Workbook

Sheet BL OECD total 2050 (hidden)
B1: Consumption | C1: Coal | D1: Crude oil | E1: Oil Products | F1: Natual Gas | G1: Nuclear | H1: Hydro | I1: Geothermal, solar, wind, etc. | J1: Biofuels and waste | K1: Electricity | L1: Heat | M1: Energy Services | N1: Total consumption | O1: World 2050 | R1: Faktor | S1: Total production | T1: Efficiency | U1: Production | V1: Coal | W1: Crude oil | X1: Oil Products | Y1: Natual Gas | Z1: Nuclear | AA1: Hydro | AB1: Geothermal, solar, wind, etc. | AC1: Biofuels and waste | AD1: Electricity | AE1: Heat | AF1: Energy Services | AG1: Loss | AH1: CO2-emissions
A2: ID | B2: C | C2: CC | D2: CCO | E2: COP | F2: CNG | G2: CNU | H2: CHY | I2: CGSW | J2: CWB | K2: CE | L2: CH | M2: CES | N2: fbrbr | P2: ID | Q2: ID Parent | R2: factor | S2: pbrpr | T2: pvrkg | U2: P | V2: PC | W2: PCO | X2: POP | Y2: PNG | Z2: PNU | AA2: PHY | AB2: PGSW | AC2: PWB | AD2: PE | AE2: PH | AF2: PES | AG2: PTAB | AH2: PCO2
A3: ID Parent | C3: C | D3: C | E3: C | F3: C | G3: C | H3: C | I3: C | J3: C | K3: C | L3: C | M3: C | O3: Structures | V3: P | W3: P | X3: P | Y3: P | Z3: P | AA3: P | AB3: P | AC3: P | AD3: P | AE3: P | AF3: P
A4: Factor | U4: =B4 -> 0 | AG4: =U4 -> 0 | AH4: =U4 -> 0
N5: =SUM(C5:M5) -> 0 | O5: Entry fuels | P5: ETP | S5: =SUM(V5:AF5) ->  | V5: =-(C6+C5) ->  | W5: =-(D6+D5) ->  | Y5: =-(F6+F5) ->  | Z5: =-(G6+G5) ->  | AC5: =-(J6+J5) -> 
C6: =-V6 ->  | D6: =-W6 ->  | F6: =-Y6 ->  | G6: =-Z6 ->  | J6: =-AC6 ->  | N6: =SUM(C6:M6) ->  | O6: Transport of fuels | P6: TRAP | S6: =SUM(V6:AF6) ->  | V6: =-(C16+C8) ->  | W6: =-(D16+D8) ->  | Y6: =-(F16+F8) ->  | Z6: =-(G16+G8) ->  | AC6: =-(J16+J8) ->  | AG6: =-(N6+S6) -> 
N7: 0 | O7: Entry On-Grid RE | P7: ELP1 | AA7: =-H8 ->  | AB7: =-I8 -> 
C8: =SUM(C9:C13) ->  | D8: =SUM(D9:D13) ->  | M8: 0 | O8: Entry electricity, district heating and oil products | P8: ES | V8: =SUM(V9:V13) -> 0 | X8: =(E14+E8)*-1 ->  | AD8: =(K14+K8)*-1 ->  | AE8: =(L14+L8)*-1 ->  | AG8: =-(N8+S8) ->  | AH8: =SUM(AH9:AH13) -> 
C9: =-($AD$9+$H$9+$I$9)/$T$9*#REF! ->  | D9: =-($AD$9+$H$9+$I$9)/$T$9*#REF! ->  | E9: =-($AD$9+$H$9+$I$9)/$T$9*#REF! ->  | F9: =-($AD$9+$H$9+$I$9)/$T$9*#REF! ->  | G9: =-($AD$9+$H$9+$I$9)/$T$9*#REF! ->  | H9: =AD9*#REF!*-1 ->  | I9: =AD9*#REF!*-1 ->  | J9: =-($AD$9+$H$9+$I$9)/$T$9*#REF! ->  | O9: Electricity-only plants | P9: ESEP | Q9: ES | T9: =#REF! ->  | AD9: =AD8-AD10 ->  | AG9: =-(S9+N9) ->  | AH9: =-(C9*Emissionsfaktorer!$B$2*(1-#REF!)+D9*Emissionsfaktorer!$B$3+E9*Emissionsfaktorer!$B$4*(1-#REF!)+F9*Emissionsfaktorer!$B$5*(1-#REF!)+G9*Emissionsfaktorer!$B$6+H9*Emissionsfaktorer!$B$7+I9*Emissionsfaktorer!$B$8-J9*Emissionsfaktorer!B13*#REF!+K9*Emissionsfaktorer!$B$10+L9*Emissionsfaktorer!$B$11+M9*Emissionsfaktorer!$B$12) -> 
C10: =-($AD$10+$AE$10+$H$10+$I$10)/$T$10*#REF! ->  | D10: =-($AD$10+$AE$10+$H$10+$I$10)/$T$10*#REF! ->  | E10: =-($AD$10+$AE$10+$H$10+$I$10)/$T$10*#REF! ->  | F10: =-($AD$10+$AE$10+$H$10+$I$10)/$T$10*#REF! ->  | G10: =-($AD$10+$AE$10+$H$10+$I$10)/$T$10*#REF! ->  | I10: =(AD10+AE10)*#REF!*-1 ->  | J10: =-($AD$10+$AE$10+$H$10+$I$10)/$T$10*#REF! ->  | O10: CHP plants | P10: ESCHP | Q10: ES | T10: =#REF! ->  | AD10: =AE10*#REF! ->  | AE10: =AE8*#REF! ->  | AG10: =-(S10+N10) ->  | AH10: =-(C10*Emissionsfaktorer!$B$2*(1-#REF!)+D10*Emissionsfaktorer!$B$3+E10*Emissionsfaktorer!$B$4*(1-#REF!)+F10*Emissionsfaktorer!$B$5*(1-#REF!)+G10*Emissionsfaktorer!$B$6+H10*Emissionsfaktorer!$B$7+I10*Emissionsfaktorer!$B$8-J10*Emissionsfaktorer!B14*#REF!+K10*Emissionsfaktorer!$B$10+L10*Emissionsfaktorer!$B$11+M10*Emissionsfaktorer!$B$12) -> 
C11: =-($AE$11+$H$11+$I$11)/$T$11*#REF! ->  | D11: =-($AE$11+$H$11+$I$11)/$T$11*#REF! ->  | E11: =-($AE$11+$H$11+$I$11)/$T$11*#REF! ->  | F11: =-($AE$11+$H$11+$I$11)/$T$11*#REF! ->  | G11: =-($AE$11+$H$11+$I$11)/$T$11*#REF! ->  | I11: =AE11*#REF!*-1 ->  | J11: =-($AE$11+$H$11+$I$11)/$T$11*#REF! ->  | K11: =AE11*#REF!*-1 ->  | O11: Heat Plants | P11: ESHP | Q11: ES | T11: =#REF! ->  | AE11: =AE8*#REF! ->  | AG11: =-(S11+N11) ->  | AH11: =-(C11*Emissionsfaktorer!$B$2+D11*Emissionsfaktorer!$B$3+E11*Emissionsfaktorer!$B$4+F11*Emissionsfaktorer!$B$5+G11*Emissionsfaktorer!$B$6+H11*Emissionsfaktorer!$B$7+I11*Emissionsfaktorer!$B$8+J11*Emissionsfaktorer!$B$9+K11*Emissionsfaktorer!$B$10+L11*Emissionsfaktorer!$B$11+M11*Emissionsfaktorer!$B$12) -> 
D12: =-X12/T12*#REF! ->  | J12: =-X12/T12*#REF! ->  | O12: Oil refineries | P12: ESOR | Q12: ES | T12: =#REF! ->  | X12: =-(E9+E10+E11+E13+E14) ->  | AG12: =-(S12+N12) ->  | AH12: =J12*Emissionsfaktorer!B4 -> 
C13: =N13*#REF! ->  | D13: =N13*#REF! ->  | E13: =N13*#REF! ->  | F13: =N13*#REF! ->  | J13: =N13*#REF! ->  | K13: =N13*#REF! ->  | L13: =N13*#REF! ->  | N13: =N16*#REF! ->  | O13: Energy Industry one use | P13: ESNSP | Q13: ES | S13: 0 | T13: 0 | AG13: =-(S13+N13) ->  | AH13: =-(C13*Emissionsfaktorer!$B$2+D13*Emissionsfaktorer!$B$3+E13*Emissionsfaktorer!$B$4+F13*Emissionsfaktorer!$B$5+G13*Emissionsfaktorer!$B$6+H13*Emissionsfaktorer!$B$7+I13*Emissionsfaktorer!$B$8+J13*Emissionsfaktorer!$B$9+K13*Emissionsfaktorer!$B$10+L13*Emissionsfaktorer!$B$11+M13*Emissionsfaktorer!$B$12) -> 
E14: =-X14*1 ->  | K14: =-AD14*(1+#REF!) ->  | L14: =-AE14*(1+#REF!) ->  | O14: Transport electricity, district heating and oil products | P14: TRAS | X14: =-E16 ->  | AD14: =-K16 ->  | AE14: =-L16 ->  | AG14: =-(N14+S14) -> 
N15: 0 | O15: Entry Off-Grid RE | P15: ELP2 | AB15: =I16*-1 -> 
C16: =SUM(C17:C19) ->  | G16: 0 | H16: 0 | M16: 0 | N16: =#REF! ->  | O16: Exit energy | P16: EX | AF16: =SUM(AF17:AF19) ->  | AG16: =SUM(AG17:AG19) ->  | AH16: =SUM(AH17:AH19) -> 
C17: =AF17*#REF!/T17*#REF!/#REF!*-1 ->  | D17: =AF17*#REF!/T17*#REF!/#REF!*-1 ->  | E17: =AF17*#REF!/T17*#REF!/#REF!*-1 ->  | F17: =AF17*#REF!/T17*#REF!/#REF!*-1 ->  | I17: =AF17*#REF!/T17*#REF!/#REF!*-1 ->  | J17: =AF17*#REF!*#REF!/T17/#REF!*-1 ->  | K17: =AF17*#REF!*#REF!/T17/#REF!*-1 ->  | L17: =AF17*#REF!*#REF!/T17/#REF!*-1 ->  | N17: =SUM(C17:L17) ->  | O17: Industry | P17: EXI | Q17: EX | T17: =(#REF!+#REF!+#REF!+#REF!+#REF!)*#REF!+(#REF!+#REF!)*#REF!+#REF!*#REF! ->  | AF17: =#REF!*#REF!*((#REF!+#REF!+#REF!+#REF!+#REF!)*#REF!+(#REF!+#REF!)*#REF!+#REF!*#REF!)*-1 ->  | AG17: =(S17+SUM(C17:M17))*-1 ->  | AH17: =-(C17*Emissionsfaktorer!$B$2+D17*Emissionsfaktorer!$B$3+E17*Emissionsfaktorer!$B$4+F17*Emissionsfaktorer!$B$5+G17*Emissionsfaktorer!$B$6+H17*Emissionsfaktorer!$B$7+I17*Emissionsfaktorer!$B$8+J17*Emissionsfaktorer!$B$9+K17*Emissionsfaktorer!$B$10+L17*Emissionsfaktorer!$B$11+M17*Emissionsfaktorer!$B$12) -> 
C18: =AF18*#REF!/T18*#REF!/#REF!*-1 ->  | E18: =AF18*#REF!/T18*#REF!/#REF!*-1 ->  | F18: =AF18*#REF!/T18*#REF!/#REF!*-1 ->  | I18: =AF18*#REF!/T18*#REF!/#REF!*-1 ->  | J18: =AF18*#REF!/T18*#REF!/#REF!*-1 ->  | K18: =AF18*#REF!/T18*#REF!/#REF!*-1 ->  | L18: =AF18*#REF!/T18*#REF!/#REF!*-1 ->  | N18: =SUM(C18:L18) ->  | O18: Transport | P18: EXT | Q18: EX | T18: =(#REF!+#REF!+#REF!+#REF!)*#REF!+(#REF!+#REF!)*#REF!+#REF!*#REF! ->  | AF18: =#REF!*#REF!*-1*((#REF!+#REF!+#REF!+#REF!)*#REF!+(#REF!+#REF!)*#REF!+#REF!*#REF!) ->  | AG18: =(S18+SUM(C18:M18))*-1 ->  | AH18: =-(C18*Emissionsfaktorer!$B$2+D18*Emissionsfaktorer!$B$3+E18*Emissionsfaktorer!$B$4+F18*Emissionsfaktorer!$B$5+G18*Emissionsfaktorer!$B$6+H18*Emissionsfaktorer!$B$7+I18*Emissionsfaktorer!$B$8+J18*Emissionsfaktorer!$B$9+K18*Emissionsfaktorer!$B$10+L18*Emissionsfaktorer!$B$11+M18*Emissionsfaktorer!$B$12) -> 
C19: =SUM(C20:C24) ->  | D19: =SUM(D20:D24) -> 0 | G19: 0 | H19: 0 | M19: 0 | N19: =SUM(N20:N24) ->  | O19: Other | P19: EXO | Q19: EX | T19: 0.8 | V19: =SUM(V20:V24) -> 0 | W19: =SUM(W20:W24) -> 0 | X19: 0 | Y19: 0 | Z19: 0 | AA19: 0 | AB19: 0 | AC19: 0 | AD19: 0 | AE19: 0
C20: =AF20*#REF!/T20*#REF!/#REF!*-1 ->  | E20: =AF20*#REF!/T20*#REF!/#REF!*-1 ->  | F20: =AF20*#REF!/T20*#REF!/#REF!*-1 ->  | I20: =AF20*#REF!/T20*#REF!/#REF!*-1 ->  | J20: =AF20*#REF!/T20*#REF!/#REF!*-1 ->  | K20: =AF20*#REF!/T20*#REF!/#REF!*-1 ->  | L20: =AF20*#REF!/T20*#REF!/#REF!*-1 ->  | N20: =SUM(C20:L20) ->  | O20: Residential | P20: EXOR | Q20: EXO | T20: =(#REF!+#REF!+#REF!+#REF!)*#REF!+(#REF!+#REF!)*#REF!+#REF!*#REF! ->  | AF20: =#REF!*#REF!*((#REF!+#REF!+#REF!+#REF!)*#REF!+(#REF!+#REF!)*#REF!+#REF!*#REF!)*-1 ->  | AG20: =(N20+AF20)*-1 ->  | AH20: =-(C20*Emissionsfaktorer!$B$2+D20*Emissionsfaktorer!$B$3+E20*Emissionsfaktorer!$B$4+F20*Emissionsfaktorer!$B$5+G20*Emissionsfaktorer!$B$6+H20*Emissionsfaktorer!$B$7+I20*Emissionsfaktorer!$B$8+J20*Emissionsfaktorer!$B$9+K20*Emissionsfaktorer!$B$10+L20*Emissionsfaktorer!$B$11+M20*Emissionsfaktorer!$B$12) -> 
C21: =AF21*#REF!/T21*#REF!/#REF!*-1 ->  | E21: =AF21*#REF!/T21*#REF!/#REF!*-1 ->  | F21: =AF21*#REF!/T21*#REF!/#REF!*-1 ->  | I21: =AF21*#REF!/T21*#REF!/#REF!*-1 ->  | J21: =AF21*#REF!/T21*#REF!/#REF!*-1 ->  | K21: =AF21*#REF!/T21*#REF!/#REF!*-1 ->  | L21: =AF21*#REF!/T21*#REF!/#REF!*-1 ->  | N21: =SUM(C21:L21) ->  | O21: Commercial and public services | P21: EXOC | Q21: EXO | T21: =(#REF!+#REF!+#REF!+#REF!)*#REF!+(#REF!+#REF!)*#REF!+#REF!*#REF! ->  | AF21: =#REF!*#REF!*((#REF!+#REF!+#REF!+#REF!)*#REF!+(#REF!+#REF!)*#REF!+#REF!*#REF!)*-1 ->  | AG21: =(N21+AF21)*-1 ->  | AH21: =-(C21*Emissionsfaktorer!$B$2+D21*Emissionsfaktorer!$B$3+E21*Emissionsfaktorer!$B$4+F21*Emissionsfaktorer!$B$5+G21*Emissionsfaktorer!$B$6+H21*Emissionsfaktorer!$B$7+I21*Emissionsfaktorer!$B$8+J21*Emissionsfaktorer!$B$9+K21*Emissionsfaktorer!$B$10+L21*Emissionsfaktorer!$B$11+M21*Emissionsfaktorer!$B$12) -> 
C22: =AF22*#REF!/T22*#REF!/#REF!*-1 ->  | E22: =AF22*#REF!/T22*#REF!/#REF!*-1 ->  | F22: =AF22*#REF!/T22*#REF!/#REF!*-1 ->  | I22: =AF22*#REF!/T22*#REF!/#REF!*-1 ->  | J22: =AF22*#REF!/T22*#REF!/#REF!*-1 ->  | K22: =AF22*#REF!/T22*#REF!/#REF!*-1 ->  | L22: =AF22*#REF!/T22*#REF!/#REF!*-1 ->  | N22: =SUM(C22:L22) ->  | O22: Agriculture / forestry | P22: EXOA | Q22: EXO | T22: =(#REF!+#REF!+#REF!+#REF!)*#REF!+(#REF!+#REF!)*#REF!+#REF!*#REF! ->  | AF22: =((#REF!+#REF!+#REF!+#REF!)*#REF!+(#REF!+#REF!)*#REF!+#REF!*#REF!)*#REF!*#REF!*-1 ->  | AG22: =(N22+AF22)*-1 ->  | AH22: =-(C22*Emissionsfaktorer!$B$2+D22*Emissionsfaktorer!$B$3+E22*Emissionsfaktorer!$B$4+F22*Emissionsfaktorer!$B$5+G22*Emissionsfaktorer!$B$6+H22*Emissionsfaktorer!$B$7+I22*Emissionsfaktorer!$B$8+J22*Emissionsfaktorer!$B$9+K22*Emissionsfaktorer!$B$10+L22*Emissionsfaktorer!$B$11+M22*Emissionsfaktorer!$B$12) -> 
C23: =AF23*#REF!/T23*#REF!/#REF!*-1 ->  | E23: =AF23*#REF!/T23*#REF!/#REF!*-1 ->  | F23: =AF23*#REF!/T23*#REF!/#REF!*-1 ->  | I23: =AF23*#REF!/T23*#REF!/#REF!*-1 ->  | J23: =AF23*#REF!/T23*#REF!/#REF!*-1 ->  | K23: =AF23*#REF!/T23*#REF!/#REF!*-1 ->  | L23: =AF23*#REF!/T23*#REF!/#REF!*-1 ->  | N23: =SUM(C23:L23) ->  | O23: Fishing | P23: EXOF | Q23: EXO | T23: =(#REF!+#REF!+#REF!+#REF!)*#REF!+(#REF!+#REF!)*#REF!+#REF!*#REF! ->  | AF23: =((#REF!+#REF!+#REF!+#REF!)*#REF!+(#REF!+#REF!)*#REF!+#REF!*#REF!)*#REF!*#REF!*-1 ->  | AG23: =(N23+AF23)*-1 ->  | AH23: =-(C23*Emissionsfaktorer!$B$2+D23*Emissionsfaktorer!$B$3+E23*Emissionsfaktorer!$B$4+F23*Emissionsfaktorer!$B$5+G23*Emissionsfaktorer!$B$6+H23*Emissionsfaktorer!$B$7+I23*Emissionsfaktorer!$B$8+J23*Emissionsfaktorer!$B$9+K23*Emissionsfaktorer!$B$10+L23*Emissionsfaktorer!$B$11+M23*Emissionsfaktorer!$B$12) -> 
C24: =AF24*#REF!/T24*#REF!/#REF!*-1 ->  | E24: =AF24*#REF!/T24*#REF!/#REF!*-1 ->  | F24: =AF24*#REF!/T24*#REF!/#REF!*-1 ->  | I24: =AF24*#REF!/T24*#REF!/#REF!*-1 ->  | J24: =AF24*#REF!/T24*#REF!/#REF!*-1 ->  | K24: =AF24*#REF!/T24*#REF!/#REF!*-1 ->  | L24: =AF24*#REF!/T24*#REF!/#REF!*-1 ->  | N24: =SUM(C24:L24) ->  | O24: Non-specified | P24: EXON | Q24: EXO | T24: =(#REF!+#REF!+#REF!+#REF!)*#REF!+(#REF!+#REF!)*#REF!+#REF!*#REF! ->  | AF24: =((#REF!+#REF!+#REF!+#REF!)*#REF!+(#REF!+#REF!)*#REF!+#REF!*#REF!)*#REF!*#REF!*-1 ->  | AG24: =(N24+AF24)*-1 ->  | AH24: =-(C24*Emissionsfaktorer!$B$2+D24*Emissionsfaktorer!$B$3+E24*Emissionsfaktorer!$B$4+F24*Emissionsfaktorer!$B$5+G24*Emissionsfaktorer!$B$6+H24*Emissionsfaktorer!$B$7+I24*Emissionsfaktorer!$B$8+J24*Emissionsfaktorer!$B$9+K24*Emissionsfaktorer!$B$10+L24*Emissionsfaktorer!$B$11+M24*Emissionsfaktorer!$B$12) -> 
N25: =N16 ->  | O25: Energy Services | P25: EN | T25: =AF25/N25*-1 ->  | AF25: =AF16 ->  | AG25: =-(S25+N25) -> 
D30: =#REF! -> 

Sheet BL OECD total 2030 (hidden)
B1: Consumption | C1: Coal | D1: Crude oil | E1: Oil Products | F1: Natual Gas | G1: Nuclear | H1: Hydro | I1: Geothermal, solar, wind, etc. | J1: Biofuels and waste | K1: Electricity | L1: Heat | M1: Energy Services | N1: Total consumption | O1: World 2030 | R1: Faktor | S1: Total production | T1: Efficiency | U1: Production | V1: Coal | W1: Crude oil | X1: Oil Products | Y1: Natual Gas | Z1: Nuclear | AA1: Hydro | AB1: Geothermal, solar, wind, etc. | AC1: Biofuels and waste | AD1: Electricity | AE1: Heat | AF1: Energy Services | AG1: Loss | AH1: CO2-emissions
A2: ID | B2: C | C2: CC | D2: CCO | E2: COP | F2: CNG | G2: CNU | H2: CHY | I2: CGSW | J2: CWB | K2: CE | L2: CH | M2: CES | N2: fbrbr | P2: ID | Q2: ID Parent | R2: factor | S2: pbrpr | T2: pvrkg | U2: P | V2: PC | W2: PCO | X2: POP | Y2: PNG | Z2: PNU | AA2: PHY | AB2: PGSW | AC2: PWB | AD2: PE | AE2: PH | AF2: PES | AG2: PTAB | AH2: PCO2
A3: ID Parent | C3: C | D3: C | E3: C | F3: C | G3: C | H3: C | I3: C | J3: C | K3: C | L3: C | M3: C | O3: Structures | V3: P | W3: P | X3: P | Y3: P | Z3: P | AA3: P | AB3: P | AC3: P | AD3: P | AE3: P | AF3: P
A4: Factor | U4: =B4 -> 0 | AG4: =U4 -> 0 | AH4: =U4 -> 0
N5: =SUM(C5:M5) -> 0 | O5: Entry fuels | P5: ETP | S5: =SUM(V5:AF5) ->  | V5: =-(C6+C5) ->  | W5: =-(D6+D5) ->  | Y5: =-(F6+F5) ->  | Z5: =-(G6+G5) ->  | AC5: =-(J6+J5) -> 
C6: =-V6 ->  | D6: =-W6 ->  | F6: =-Y6 ->  | G6: =-Z6 ->  | J6: =-AC6 ->  | N6: =SUM(C6:M6) ->  | O6: Transport of fuels | P6: TRAP | S6: =SUM(V6:AF6) ->  | V6: =-(C16+C8) ->  | W6: =-(D16+D8) ->  | Y6: =-(F16+F8) ->  | Z6: =-(G16+G8) ->  | AC6: =-(J16+J8) ->  | AG6: =-(N6+S6) -> 
N7: 0 | O7: Entry On-Grid RE | P7: ELP1 | AA7: =-H8 ->  | AB7: =-I8 -> 
C8: =SUM(C9:C13) ->  | D8: =SUM(D9:D13) ->  | M8: 0 | O8: Entry electricity, district heating and oil products | P8: ES | V8: =SUM(V9:V13) -> 0 | X8: =(E14+E8)*-1 ->  | AD8: =(K14+K8)*-1 ->  | AE8: =(L14+L8)*-1 ->  | AG8: =-(N8+S8) ->  | AH8: =SUM(AH9:AH13) -> 
C9: =-($AD$9+$H$9+$I$9)/$T$9*#REF! ->  | D9: =-($AD$9+$H$9+$I$9)/$T$9*#REF! ->  | E9: =-($AD$9+$H$9+$I$9)/$T$9*#REF! ->  | F9: =-($AD$9+$H$9+$I$9)/$T$9*#REF! ->  | G9: =-($AD$9+$H$9+$I$9)/$T$9*#REF! ->  | H9: =AD9*#REF!*-1 ->  | I9: =AD9*#REF!*-1 ->  | J9: =-($AD$9+$H$9+$I$9)/$T$9*#REF! ->  | O9: Electricity-only plants | P9: ESEP | Q9: ES | T9: =#REF! ->  | AD9: =AD8-AD10 ->  | AG9: =-(S9+N9) ->  | AH9: =-(C9*Emissionsfaktorer!$B$2*(1-#REF!)+D9*Emissionsfaktorer!$B$3+E9*Emissionsfaktorer!$B$4*(1-#REF!)+F9*Emissionsfaktorer!$B$5*(1-#REF!)+G9*Emissionsfaktorer!$B$6+H9*Emissionsfaktorer!$B$7+I9*Emissionsfaktorer!$B$8-J9*Emissionsfaktorer!B13*#REF!+K9*Emissionsfaktorer!$B$10+L9*Emissionsfaktorer!$B$11+M9*Emissionsfaktorer!$B$12) -> 
C10: =-($AD$10+$AE$10+$H$10+$I$10)/$T$10*#REF! ->  | D10: =-($AD$10+$AE$10+$H$10+$I$10)/$T$10*#REF! ->  | E10: =-($AD$10+$AE$10+$H$10+$I$10)/$T$10*#REF! ->  | F10: =-($AD$10+$AE$10+$H$10+$I$10)/$T$10*#REF! ->  | G10: =-($AD$10+$AE$10+$H$10+$I$10)/$T$10*#REF! ->  | I10: =(AD10+AE10)*#REF!*-1 ->  | J10: =-($AD$10+$AE$10+$H$10+$I$10)/$T$10*#REF! ->  | O10: CHP plants | P10: ESCHP | Q10: ES | T10: =#REF! ->  | AD10: =AE10*#REF! ->  | AE10: =AE8*#REF! ->  | AG10: =-(S10+N10) ->  | AH10: =-(C10*Emissionsfaktorer!$B$2*(1-#REF!)+D10*Emissionsfaktorer!$B$3+E10*Emissionsfaktorer!$B$4*(1-#REF!)+F10*Emissionsfaktorer!$B$5*(1-#REF!)+G10*Emissionsfaktorer!$B$6+H10*Emissionsfaktorer!$B$7+I10*Emissionsfaktorer!$B$8-J10*Emissionsfaktorer!B14*#REF!+K10*Emissionsfaktorer!$B$10+L10*Emissionsfaktorer!$B$11+M10*Emissionsfaktorer!$B$12) -> 
C11: =-($AE$11+$H$11+$I$11)/$T$11*#REF! ->  | D11: =-($AE$11+$H$11+$I$11)/$T$11*#REF! ->  | E11: =-($AE$11+$H$11+$I$11)/$T$11*#REF! ->  | F11: =-($AE$11+$H$11+$I$11)/$T$11*#REF! ->  | G11: =-($AE$11+$H$11+$I$11)/$T$11*#REF! ->  | I11: =AE11*#REF!*-1 ->  | J11: =-($AE$11+$H$11+$I$11)/$T$11*#REF! ->  | K11: =AE11*#REF!*-1 ->  | O11: Heat Plants | P11: ESHP | Q11: ES | T11: =#REF! ->  | AE11: =AE8*#REF! ->  | AG11: =-(S11+N11) ->  | AH11: =-(C11*Emissionsfaktorer!$B$2+D11*Emissionsfaktorer!$B$3+E11*Emissionsfaktorer!$B$4+F11*Emissionsfaktorer!$B$5+G11*Emissionsfaktorer!$B$6+H11*Emissionsfaktorer!$B$7+I11*Emissionsfaktorer!$B$8+J11*Emissionsfaktorer!$B$9+K11*Emissionsfaktorer!$B$10+L11*Emissionsfaktorer!$B$11+M11*Emissionsfaktorer!$B$12) -> 
D12: =-X12/T12*#REF! ->  | J12: =-X12/T12*#REF! ->  | O12: Oil refineries | P12: ESOR | Q12: ES | T12: =#REF! ->  | X12: =-(E9+E10+E11+E13+E14) ->  | AG12: =-(S12+N12) ->  | AH12: =J12*Emissionsfaktorer!B4 -> 
C13: =N13*#REF! ->  | D13: =N13*#REF! ->  | E13: =N13*#REF! ->  | F13: =N13*#REF! ->  | J13: =N13*#REF! ->  | K13: =N13*#REF! ->  | L13: =N13*#REF! ->  | N13: =N16*#REF! ->  | O13: Energy Industry one use | P13: ESNSP | Q13: ES | S13: 0 | T13: 0 | AG13: =-(S13+N13) ->  | AH13: =-(C13*Emissionsfaktorer!$B$2+D13*Emissionsfaktorer!$B$3+E13*Emissionsfaktorer!$B$4+F13*Emissionsfaktorer!$B$5+G13*Emissionsfaktorer!$B$6+H13*Emissionsfaktorer!$B$7+I13*Emissionsfaktorer!$B$8+J13*Emissionsfaktorer!$B$9+K13*Emissionsfaktorer!$B$10+L13*Emissionsfaktorer!$B$11+M13*Emissionsfaktorer!$B$12) -> 
E14: =-X14*1 ->  | K14: =-AD14*(1+#REF!) ->  | L14: =-AE14*(1+#REF!) ->  | O14: Transport electricity, district heating and oil products | P14: TRAS | X14: =-E16 ->  | AD14: =-K16 ->  | AE14: =-L16 ->  | AG14: =-(N14+S14) -> 
N15: 0 | O15: Entry Off-Grid RE | P15: ELP2 | AB15: =I16*-1 -> 
C16: =SUM(C17:C19) ->  | G16: 0 | H16: 0 | M16: 0 | N16: =#REF! ->  | O16: Exit energy | P16: EX | AF16: =SUM(AF17:AF19) ->  | AG16: =SUM(AG17:AG19) ->  | AH16: =SUM(AH17:AH19) -> 
C17: =AF17*#REF!/T17*#REF!/#REF!*-1 ->  | D17: =AF17*#REF!/T17*#REF!/#REF!*-1 ->  | E17: =AF17*#REF!/T17*#REF!/#REF!*-1 ->  | F17: =AF17*#REF!/T17*#REF!/#REF!*-1 ->  | I17: =AF17*#REF!/T17*#REF!/#REF!*-1 ->  | J17: =AF17*#REF!*#REF!/T17/#REF!*-1 ->  | K17: =AF17*#REF!*#REF!/T17/#REF!*-1 ->  | L17: =AF17*#REF!*#REF!/T17/#REF!*-1 ->  | N17: =SUM(C17:L17) ->  | O17: Industry | P17: EXI | Q17: EX | T17: =(#REF!+#REF!+#REF!+#REF!+#REF!)*#REF!+(#REF!+#REF!)*#REF!+#REF!*#REF! ->  | AF17: =#REF!*#REF!*((#REF!+#REF!+#REF!+#REF!+#REF!)*#REF!+(#REF!+#REF!)*#REF!+#REF!*#REF!)*-1 ->  | AG17: =(S17+SUM(C17:M17))*-1 ->  | AH17: =-(C17*Emissionsfaktorer!$B$2+D17*Emissionsfaktorer!$B$3+E17*Emissionsfaktorer!$B$4+F17*Emissionsfaktorer!$B$5+G17*Emissionsfaktorer!$B$6+H17*Emissionsfaktorer!$B$7+I17*Emissionsfaktorer!$B$8+J17*Emissionsfaktorer!$B$9+K17*Emissionsfaktorer!$B$10+L17*Emissionsfaktorer!$B$11+M17*Emissionsfaktorer!$B$12) -> 
C18: =AF18*#REF!/T18*#REF!/#REF!*-1 ->  | E18: =AF18*#REF!/T18*#REF!/#REF!*-1 ->  | F18: =AF18*#REF!/T18*#REF!/#REF!*-1 ->  | I18: =AF18*#REF!/T18*#REF!/#REF!*-1 ->  | J18: =AF18*#REF!/T18*#REF!/#REF!*-1 ->  | K18: =AF18*#REF!/T18*#REF!/#REF!*-1 ->  | L18: =AF18*#REF!/T18*#REF!/#REF!*-1 ->  | N18: =SUM(C18:L18) ->  | O18: Transport | P18: EXT | Q18: EX | T18: =(#REF!+#REF!+#REF!+#REF!)*#REF!+(#REF!+#REF!)*#REF!+#REF!*#REF! ->  | AF18: =#REF!*#REF!*-1*((#REF!+#REF!+#REF!+#REF!)*#REF!+(#REF!+#REF!)*#REF!+#REF!*#REF!) ->  | AG18: =(S18+SUM(C18:M18))*-1 ->  | AH18: =-(C18*Emissionsfaktorer!$B$2+D18*Emissionsfaktorer!$B$3+E18*Emissionsfaktorer!$B$4+F18*Emissionsfaktorer!$B$5+G18*Emissionsfaktorer!$B$6+H18*Emissionsfaktorer!$B$7+I18*Emissionsfaktorer!$B$8+J18*Emissionsfaktorer!$B$9+K18*Emissionsfaktorer!$B$10+L18*Emissionsfaktorer!$B$11+M18*Emissionsfaktorer!$B$12) -> 
C19: =SUM(C20:C24) ->  | D19: =SUM(D20:D24) -> 0 | G19: 0 | H19: 0 | M19: 0 | N19: =SUM(N20:N24) ->  | O19: Other | P19: EXO | Q19: EX | T19: 0.8 | V19: =SUM(V20:V24) -> 0 | W19: =SUM(W20:W24) -> 0 | X19: 0 | Y19: 0 | Z19: 0 | AA19: 0 | AB19: 0 | AC19: 0 | AD19: 0 | AE19: 0
C20: =AF20*#REF!/T20*#REF!/#REF!*-1 ->  | E20: =AF20*#REF!/T20*#REF!/#REF!*-1 ->  | F20: =AF20*#REF!/T20*#REF!/#REF!*-1 ->  | I20: =AF20*#REF!/T20*#REF!/#REF!*-1 ->  | J20: =AF20*#REF!/T20*#REF!/#REF!*-1 ->  | K20: =AF20*#REF!/T20*#REF!/#REF!*-1 ->  | L20: =AF20*#REF!/T20*#REF!/#REF!*-1 ->  | N20: =SUM(C20:L20) ->  | O20: Residential | P20: EXOR | Q20: EXO | T20: =(#REF!+#REF!+#REF!+#REF!)*#REF!+(#REF!+#REF!)*#REF!+#REF!*#REF! ->  | AF20: =#REF!*#REF!*((#REF!+#REF!+#REF!+#REF!)*#REF!+(#REF!+#REF!)*#REF!+#REF!*#REF!)*-1 ->  | AG20: =(N20+AF20)*-1 ->  | AH20: =-(C20*Emissionsfaktorer!$B$2+D20*Emissionsfaktorer!$B$3+E20*Emissionsfaktorer!$B$4+F20*Emissionsfaktorer!$B$5+G20*Emissionsfaktorer!$B$6+H20*Emissionsfaktorer!$B$7+I20*Emissionsfaktorer!$B$8+J20*Emissionsfaktorer!$B$9+K20*Emissionsfaktorer!$B$10+L20*Emissionsfaktorer!$B$11+M20*Emissionsfaktorer!$B$12) -> 
C21: =AF21*#REF!/T21*#REF!/#REF!*-1 ->  | E21: =AF21*#REF!/T21*#REF!/#REF!*-1 ->  | F21: =AF21*#REF!/T21*#REF!/#REF!*-1 ->  | I21: =AF21*#REF!/T21*#REF!/#REF!*-1 ->  | J21: =AF21*#REF!/T21*#REF!/#REF!*-1 ->  | K21: =AF21*#REF!/T21*#REF!/#REF!*-1 ->  | L21: =AF21*#REF!/T21*#REF!/#REF!*-1 ->  | N21: =SUM(C21:L21) ->  | O21: Commercial and public services | P21: EXOC | Q21: EXO | T21: =(#REF!+#REF!+#REF!+#REF!)*#REF!+(#REF!+#REF!)*#REF!+#REF!*#REF! ->  | AF21: =#REF!*#REF!*((#REF!+#REF!+#REF!+#REF!)*#REF!+(#REF!+#REF!)*#REF!+#REF!*#REF!)*-1 ->  | AG21: =(N21+AF21)*-1 ->  | AH21: =-(C21*Emissionsfaktorer!$B$2+D21*Emissionsfaktorer!$B$3+E21*Emissionsfaktorer!$B$4+F21*Emissionsfaktorer!$B$5+G21*Emissionsfaktorer!$B$6+H21*Emissionsfaktorer!$B$7+I21*Emissionsfaktorer!$B$8+J21*Emissionsfaktorer!$B$9+K21*Emissionsfaktorer!$B$10+L21*Emissionsfaktorer!$B$11+M21*Emissionsfaktorer!$B$12) -> 
C22: =AF22*#REF!/T22*#REF!/#REF!*-1 ->  | E22: =AF22*#REF!/T22*#REF!/#REF!*-1 ->  | F22: =AF22*#REF!/T22*#REF!/#REF!*-1 ->  | I22: =AF22*#REF!/T22*#REF!/#REF!*-1 ->  | J22: =AF22*#REF!/T22*#REF!/#REF!*-1 ->  | K22: =AF22*#REF!/T22*#REF!/#REF!*-1 ->  | L22: =AF22*#REF!/T22*#REF!/#REF!*-1 ->  | N22: =SUM(C22:L22) ->  | O22: Agriculture / forestry | P22: EXOA | Q22: EXO | T22: =(#REF!+#REF!+#REF!+#REF!)*#REF!+(#REF!+#REF!)*#REF!+#REF!*#REF! ->  | AF22: =((#REF!+#REF!+#REF!+#REF!)*#REF!+(#REF!+#REF!)*#REF!+#REF!*#REF!)*#REF!*#REF!*-1 ->  | AG22: =(N22+AF22)*-1 ->  | AH22: =-(C22*Emissionsfaktorer!$B$2+D22*Emissionsfaktorer!$B$3+E22*Emissionsfaktorer!$B$4+F22*Emissionsfaktorer!$B$5+G22*Emissionsfaktorer!$B$6+H22*Emissionsfaktorer!$B$7+I22*Emissionsfaktorer!$B$8+J22*Emissionsfaktorer!$B$9+K22*Emissionsfaktorer!$B$10+L22*Emissionsfaktorer!$B$11+M22*Emissionsfaktorer!$B$12) -> 
C23: =AF23*#REF!/T23*#REF!/#REF!*-1 ->  | E23: =AF23*#REF!/T23*#REF!/#REF!*-1 ->  | F23: =AF23*#REF!/T23*#REF!/#REF!*-1 ->  | I23: =AF23*#REF!/T23*#REF!/#REF!*-1 ->  | J23: =AF23*#REF!/T23*#REF!/#REF!*-1 ->  | K23: =AF23*#REF!/T23*#REF!/#REF!*-1 ->  | L23: =AF23*#REF!/T23*#REF!/#REF!*-1 ->  | N23: =SUM(C23:L23) ->  | O23: Fishing | P23: EXOF | Q23: EXO | T23: =(#REF!+#REF!+#REF!+#REF!)*#REF!+(#REF!+#REF!)*#REF!+#REF!*#REF! ->  | AF23: =((#REF!+#REF!+#REF!+#REF!)*#REF!+(#REF!+#REF!)*#REF!+#REF!*#REF!)*#REF!*#REF!*-1 ->  | AG23: =(N23+AF23)*-1 ->  | AH23: =-(C23*Emissionsfaktorer!$B$2+D23*Emissionsfaktorer!$B$3+E23*Emissionsfaktorer!$B$4+F23*Emissionsfaktorer!$B$5+G23*Emissionsfaktorer!$B$6+H23*Emissionsfaktorer!$B$7+I23*Emissionsfaktorer!$B$8+J23*Emissionsfaktorer!$B$9+K23*Emissionsfaktorer!$B$10+L23*Emissionsfaktorer!$B$11+M23*Emissionsfaktorer!$B$12) -> 
C24: =AF24*#REF!/T24*#REF!/#REF!*-1 ->  | E24: =AF24*#REF!/T24*#REF!/#REF!*-1 ->  | F24: =AF24*#REF!/T24*#REF!/#REF!*-1 ->  | I24: =AF24*#REF!/T24*#REF!/#REF!*-1 ->  | J24: =AF24*#REF!/T24*#REF!/#REF!*-1 ->  | K24: =AF24*#REF!/T24*#REF!/#REF!*-1 ->  | L24: =AF24*#REF!/T24*#REF!/#REF!*-1 ->  | N24: =SUM(C24:L24) ->  | O24: Non-specified | P24: EXON | Q24: EXO | T24: =(#REF!+#REF!+#REF!+#REF!)*#REF!+(#REF!+#REF!)*#REF!+#REF!*#REF! ->  | AF24: =((#REF!+#REF!+#REF!+#REF!)*#REF!+(#REF!+#REF!)*#REF!+#REF!*#REF!)*#REF!*#REF!*-1 ->  | AG24: =(N24+AF24)*-1 ->  | AH24: =-(C24*Emissionsfaktorer!$B$2+D24*Emissionsfaktorer!$B$3+E24*Emissionsfaktorer!$B$4+F24*Emissionsfaktorer!$B$5+G24*Emissionsfaktorer!$B$6+H24*Emissionsfaktorer!$B$7+I24*Emissionsfaktorer!$B$8+J24*Emissionsfaktorer!$B$9+K24*Emissionsfaktorer!$B$10+L24*Emissionsfaktorer!$B$11+M24*Emissionsfaktorer!$B$12) -> 
N25: =N16 ->  | O25: Energy Services | P25: EN | T25: =AF25/N25*-1 ->  | AF25: =AF16 ->  | AG25: =-(S25+N25) -> 

Sheet Introduction
A3: The purpose of the projection model
A8: The projection model in three different resolutions
A10: Bright green: The World as a whole
A11: Green: The World divided into OECD- and Non-OECD-contries
A12: Dark green: The World divided into nine areas
A16: Coherence between "Sustainable Development Goals and Energy Consumption"
A25: Key figures for the energy system

Sheet Goals and Energy Consumption
B1: 1995 | C1: 2000 | D1: 2005 | E1: 2010 | F1: 2015 | G1: 2018 | H1: 2030 | I1: 2050
A3: Ligth green resolution
A5: World
A6: Final Energy Consumption (PJ) | B6: =#REF!*-1 ->  | C6: =#REF!*-1 ->  | D6: =#REF!*-1 ->  | E6: =#REF!*-1 ->  | F6: =#REF!*-1 ->  | G6: =#REF!*-1 ->  | H6: 380000 | I6: 400000
A7: Inhabitants
A8: Final Energy Consumption per Inhabitans
A9: Gross Domestic Product (GDP)
A10: Final Energy Consumption per GDP
A11: Human Development Index (HDI)
A12: Final Energy Consumption per HDI
A13: Social Progress Index (SPI)
A14: Final Energy Consumption per SPI
A15: The same procedure for other Sustainable Goals
A17: Green resolution
A19: OECD
A20: Final Energy Consumption | B20: =#REF!*-1 ->  | C20: =#REF!*-1 ->  | D20: =#REF!*-1 ->  | E20: =#REF!*-1 ->  | F20: =#REF!*-1 ->  | G20: =#REF!*-1 -> 
A21: Inhabitants
A22: Final Energy Consumption per Inhabitans
A23: Gross Domestic Product (GDP)
A24: Final Energy Consumption per GDP
A25: Human Development Index (HDI)
A26: Final Energy Consumption per HDI
A27: Social Progress Index (SPI)
A28: Final Energy Consumption per SPI
A29: The same procedure for other Sustainable Goals
A31: Non-OECD
A32: Final Energy Consumption | B32: =#REF!*-1 ->  | C32: =#REF!*-1 ->  | D32: =#REF!*-1 ->  | E32: =#REF!*-1 ->  | F32: =#REF!*-1 ->  | G32: =#REF!*-1 -> 
A33: Inhabitants
A34: Final Energy Consumption per Inhabitans
A35: Gross Domestic Product (GDP)
A36: Final Energy Consumption per GDP
A37: Human Development Index (HDI)
A38: Final Energy Consumption per HDI
A39: Social Progress Index (SPI)
A40: Final Energy Consumption per SPI
A41: The same procedure for other Sustainable Goals
A44: Dark green resolution
A46: Non-OECD Americas
A47: Final Energy Consumption | B47: =#REF!*-1 ->  | C47: =#REF!*-1 ->  | D47: =#REF!*-1 ->  | E47: =#REF!*-1 ->  | F47: =#REF!*-1 ->  | G47: =#REF!*-1 -> 
A48: Inhabitants
A49: Final Energy Consumption per Inhabitans
A50: Gross Domestic Product (GDP)
A51: Final Energy Consumption per GDP
A52: Human Development Index (HDI)
A53: Final Energy Consumption per HDI
A54: Social Progress Index (SPI)
A55: Final Energy Consumption per SPI
A56: The same procedure for other Sustainable Goals
A58: Non-OECD Europe and Eurasia
A59: Final Energy Consumption | B59: =#REF!*-1 ->  | C59: =#REF!*-1 ->  | D59: =#REF!*-1 ->  | E59: =#REF!*-1 ->  | F59: =#REF!*-1 ->  | G59: =#REF!*-1 -> 
A60: Inhabitants
A61: Final Energy Consumption per Inhabitans
A62: Gross Domestic Product (GDP)
A63: Final Energy Consumption per GDP
A64: Human Development Index (HDI)
A65: Final Energy Consumption per HDI
A66: Social Progress Index (SPI)
A67: Final Energy Consumption per SPI
A68: The same procedure for other Sustainable Goals
A70: Non-OECD Asia excluding China
A71: Final Energy Consumption | B71: =#REF!*-1 ->  | C71: =#REF!*-1 ->  | D71: =#REF!*-1 ->  | E71: =#REF!*-1 ->  | F71: =#REF!*-1 ->  | G71: =#REF!*-1 -> 
A72: Inhabitants
A73: Final Energy Consumption per Inhabitans
A74: Gross Domestic Product (GDP)
A75: Final Energy Consumption per GDP
A76: Human Development Index (HDI)
A77: Final Energy Consumption per HDI
A78: Social Progress Index (SPI)
A79: Final Energy Consumption per SPI
A80: The same procedure for other Sustainable Goals
A82: Middle East
A83: Final Energy Consumption | B83: =#REF!*-1 ->  | C83: =#REF!*-1 ->  | D83: =#REF!*-1 ->  | E83: =#REF!*-1 ->  | F83: =#REF!*-1 ->  | G83: =#REF!*-1 -> 
A84: Inhabitants
A85: Final Energy Consumption per Inhabitans
A86: Gross Domestic Product (GDP)
A87: Final Energy Consumption per GDP
A88: Human Development Index (HDI)
A89: Final Energy Consumption per HDI
A90: Social Progress Index (SPI)
A91: Final Energy Consumption per SPI
A92: The same procedure for other Sustainable Goals
A94: Africa
A95: Final Energy Consumption | B95: =#REF!*-1 ->  | C95: =#REF!*-1 ->  | D95: =#REF!*-1 ->  | E95: =#REF!*-1 ->  | F95: =#REF!*-1 ->  | G95: =#REF!*-1 -> 
A96: Inhabitants
A97: Final Energy Consumption per Inhabitans
A98: Gross Domestic Product (GDP)
A99: Final Energy Consumption per GDP
A100: Human Development Index (HDI)
A101: Final Energy Consumption per HDI
A102: Social Progress Index (SPI)
A103: Final Energy Consumption per SPI
A104: The same procedure for other Sustainable Goals
A106: China
A107: Final Energy Consumption | B107: =#REF!*-1 ->  | C107: =#REF!*-1 ->  | D107: =#REF!*-1 ->  | E107: =#REF!*-1 ->  | F107: =#REF!*-1 ->  | G107: =#REF!*-1 -> 
A108: Inhabitants
A109: Final Energy Consumption per Inhabitans
A110: Gross Domestic Product (GDP)
A111: Final Energy Consumption per GDP
A112: Human Development Index (HDI)
A113: Final Energy Consumption per HDI
A114: Social Progress Index (SPI)
A115: Final Energy Consumption per SPI
A116: The same procedure for other Sustainable Goals
A118: OECD Americas
A119: Final Energy Consumption | B119: =#REF!*-1 ->  | C119: =#REF!*-1 ->  | D119: =#REF!*-1 ->  | E119: =#REF!*-1 ->  | F119: =#REF!*-1 ->  | G119: =#REF!*-1 -> 
A120: Inhabitants
A121: Final Energy Consumption per Inhabitans
A122: Gross Domestic Product (GDP)
A123: Final Energy Consumption per GDP
A124: Human Development Index (HDI)
A125: Final Energy Consumption per HDI
A126: Social Progress Index (SPI)
A127: Final Energy Consumption per SPI
A128: The same procedure for other Sustainable Goals
A130: OECD Europe
A131: Final Energy Consumption | B131: =#REF!*-1 ->  | C131: =#REF!*-1 ->  | D131: =#REF!*-1 ->  | E131: =#REF!*-1 ->  | F131: =#REF!*-1 ->  | G131: =#REF!*-1 -> 
A132: Inhabitants
A133: Final Energy Consumption per Inhabitans
A134: Gross Domestic Product (GDP)
A135: Final Energy Consumption per GDP
A136: Human Development Index (HDI)
A137: Final Energy Consumption per HDI
A138: Social Progress Index (SPI)
A139: Final Energy Consumption per SPI
A140: The same procedure for other Sustainable Goals
A142: OECD Asia Oceania
A143: Final Energy Consumption | B143: =#REF!*-1 ->  | C143: =#REF!*-1 ->  | D143: =#REF!*-1 ->  | E143: =#REF!*-1 ->  | F143: =#REF!*-1 ->  | G143: =#REF!*-1 -> 
A144: Inhabitants
A145: Final Energy Consumption per Inhabitans
A146: Gross Domestic Product (GDP)
A147: Final Energy Consumption per GDP
A148: Human Development Index (HDI)
A149: Final Energy Consumption per HDI
A150: Social Progress Index (SPI)
A151: Final Energy Consumption per SPI
A152: The same procedure for other Sustainable Goals

Sheet Front Page

Sheet TOC

Sheet Overview - 2018

Sheet Result - Tendency

Sheet Overview - The Calculation

Sheet Total Consumption
Q24: ='KF World - Values'!L16 -> 31954 | R24: ='KF World - Values'!L17 -> 31237
Q25: ='KF World - Values'!H1 -> 31953.8866 | R25: ='KF World - Values'!I1 -> 34360.24534
I32: 460000 | K32: 500000 | L32: 5
F37: ='KF World - Values'!H4 -> 460000
F44: ='KF World - Values'!I4 -> 550000

Sheet Share of Consumption
Q24: ='KF World - Values'!L16 -> 31954 | R24: ='KF World - Values'!L17 -> 31237
Q25: ='KF World - Values'!H1 -> 31953.8866 | R25: ='KF World - Values'!I1 -> 34360.24534
I31: ='KF World - Values'!H8 -> 34 | M31: ='KF World - Values'!H6 -> 32
F32: ='KF World - Values'!H7 -> 34 | O32: =SUM('KF World - Values'!H6:H8) -> 100
M33: ='KF World - Values'!H6 -> 32
F34: ='KF World - Values'!H7 -> 34 | I34: ='KF World - Values'!H8 -> 34
M37: ='KF World - Values'!I6 -> 32
F39: ='KF World - Values'!I7 -> 34 | I39: ='KF World - Values'!I8 -> 34 | O39: =SUM('KF World - Values'!I6:I8) -> 100
F41: ='KF World - Values'!I7 -> 34 | I41: ='KF World - Values'!I8 -> 34 | M41: ='KF World - Values'!I6 -> 32

Sheet Share of Consumption - Deeper

Sheet Consumption - Transport
Q24: ='KF World - Values'!L16 -> 31954 | R24: ='KF World - Values'!L17 -> 31237
Q25: ='KF World - Values'!H1 -> 31953.8866 | R25: ='KF World - Values'!I1 -> 34360.24534
O36: ='KF World - Values'!H21 -> 4
H37: ='KF World - Values'!H20 -> 91.99816666 | L37: ='KF World - Values'!H23 -> 3
E38: ='KF World - Values'!H24 -> 1
E43: ='KF World - Values'!I24 -> 5 | H43: ='KF World - Values'!I20 -> 86.99816666 | L43: ='KF World - Values'!I23 -> 4 | O43: ='KF World - Values'!I21 -> 4

Sheet Consumption - Industry
Q24: ='KF World - Values'!L16 -> 31954 | R24: ='KF World - Values'!L17 -> 31237
Q25: ='KF World - Values'!H1 -> 31953.8866 | R25: ='KF World - Values'!I1 -> 34360.24534
E36: ='KF World - Values'!H16 -> 25 | I36: ='KF World - Values'!H15 -> 7 | L36: ='KF World - Values'!H13 -> 18 | P36: ='KF World - Values'!H12 -> 9 | S36: ='KF World - Values'!H17 -> 7 | U36: ='KF World - Values'!H10 -> 33.87595591
U37: ='KF World - Values'!I10 -> 29.87595591
E42: ='KF World - Values'!I16 -> 29 | I42: ='KF World - Values'!I15 -> 10 | L42: ='KF World - Values'!I13 -> 16 | P42: ='KF World - Values'!I12 -> 7 | S42: ='KF World - Values'!I17 -> 8
U43: ='KF World - Values'!I10 -> 29.87595591

Sheet Consumption - Other
Q24: ='KF World - Values'!L16 -> 31954 | R24: ='KF World - Values'!L17 -> 31237
Q25: ='KF World - Values'!H1 -> 31953.8866 | R25: ='KF World - Values'!I1 -> 34360.24534
E35: ='KF World - Values'!H32 -> 35 | I35: ='KF World - Values'!H31 -> 24 | L35: ='KF World - Values'!H27 -> 4 | P35: ='KF World - Values'!H28 -> 13 | S35: ='KF World - Values'!H33 -> 6 | V35: ='KF World - Values'!H30 -> 1 | X35: ='KF World - Values'!H29 -> 17
E41: ='KF World - Values'!I32 -> 36 | I41: ='KF World - Values'!I31 -> 25 | L41: ='KF World - Values'!I27 -> 2 | P41: ='KF World - Values'!I28 -> 9 | S41: ='KF World - Values'!I33 -> 7 | V41: ='KF World - Values'!I30 -> 1 | X41: ='KF World - Values'!I29 -> 20

Sheet Transport Losses (hidden)
S4: You are currently working within the red box in the e2g-format
E35: ='KF World - Values'!H35 -> 9 | I35: ='KF World - Values'!H36 -> 7
E41: ='KF World - Values'!I35 -> 7 | I41: ='KF World - Values'!I36 -> 5

Sheet Conversion
Q24: ='KF World - Values'!L16 -> 31954 | R24: ='KF World - Values'!L17 -> 31237
Q25: ='KF World - Values'!H1 -> 31953.8866 | R25: ='KF World - Values'!I1 -> 34360.24534
F32: ='KF World - Values'!H58 -> 15 | H32: ='KF World - Values'!H59 -> 68 | M32: ='KF World - Values'!H57 -> 17
F39: ='KF World - Values'!I58 -> 22 | H39: ='KF World - Values'!I59 -> 55 | M39: ='KF World - Values'!I57 -> 23

Sheet Conversion - Deeper (hidden)

Sheet Conversion - Electricity
Q24: ='KF World - Values'!L16 -> 31954 | R24: ='KF World - Values'!L17 -> 31237
Q25: ='KF World - Values'!H1 -> 31953.8866 | R25: ='KF World - Values'!I1 -> 34360.24534
H32: ='KF World - Values'!H59 -> 68 | L32: ='KF World - Values'!H57 -> 17 | M32: =L32 -> 17
E33: ='KF World - Values'!H58 -> 15
F39: ='KF World - Values'!I58 -> 22 | H39: ='KF World - Values'!I59 -> 55 | L39: ='KF World - Values'!I57 -> 23 | M39: =L39 -> 23
E49: ='KF World - Values'!H67 -> 38
E56: ='KF World - Values'!H97 -> 0
I57: ='KF World - Values'!H98 -> 0 | L57: ='KF World - Values'!H99 -> 0 | P57: ='KF World - Values'!H100 -> 0
E63: ='KF World - Values'!I97 -> 0 | I63: ='KF World - Values'!I98 -> 0 | L63: ='KF World - Values'!I99 -> 0 | P63: ='KF World - Values'!I100 -> 0
E90: ='KF World - Values'!H76 -> 14 | I90: ='KF World - Values'!H77 -> 5 | L90: ='KF World - Values'!H75 -> 31 | P90: ='KF World - Values'!H74 -> 1 | S90: ='KF World - Values'!H73 -> 1 | U90: ='KF World - Values'!H72 -> 48
E96: ='KF World - Values'!I76 -> 12 | I96: ='KF World - Values'!I77 -> 10 | L96: ='KF World - Values'!I75 -> 38 | P96: ='KF World - Values'!I74 -> 2 | S96: ='KF World - Values'!I73 -> 1 | U96: ='KF World - Values'!I72 -> 37

Sheet Conversion - Heat (hidden)
H32: ='KF World - Values'!H49 -> 26
E33: ='KF World - Values'!H48 -> 74
E39: ='KF World - Values'!I48 -> 84 | H39: ='KF World - Values'!I49 -> 16
E68: ='KF World - Values'!H51 -> 0.6993626062 | H68: ='KF World - Values'!H53 -> 1.399784394
E75: ='KF World - Values'!I51 -> 0.6993626062 | H75: ='KF World - Values'!I53 -> 1.399784394
E105: ='KF World - Values'!H61 -> 0
H106: ='KF World - Values'!H62 -> 99.5228473
E112: ='KF World - Values'!I61 -> 0
H113: ='KF World - Values'!I62 -> 99.5228473
E145: ='KF World - Values'!H83 -> 0 | I145: ='KF World - Values'!H84 -> 6 | L145: ='KF World - Values'!H82 -> 26 | P145: ='KF World - Values'!H81 -> 1 | S145: ='KF World - Values'!H80 -> 0 | U145: ='KF World - Values'!H79 -> 67
E151: ='KF World - Values'!I83 -> 0 | I151: ='KF World - Values'!I84 -> 12 | L151: ='KF World - Values'!I82 -> 24 | P151: ='KF World - Values'!I81 -> 1 | S151: ='KF World - Values'!I80 -> 0 | U151: ='KF World - Values'!I79 -> 63
E180: ='KF World - Values'!H64 -> 1.59 | H180: ='KF World - Values'!I65 -> 98.41
E188: ='KF World - Values'!I64 -> 1.59 | H188: ='KF World - Values'!I65 -> 98.41
E221: ='KF World - Values'!H90 -> 0 | I221: ='KF World - Values'!H91 -> 13 | L221: ='KF World - Values'!H89 -> 50 | P221: ='KF World - Values'!H88 -> 8 | S221: ='KF World - Values'!H87 -> 0 | U221: ='KF World - Values'!H86 -> 29
E227: ='KF World - Values'!I90 -> 0 | I227: ='KF World - Values'!I91 -> 19 | L227: ='KF World - Values'!I89 -> 48 | P227: ='KF World - Values'!I88 -> 6 | S227: ='KF World - Values'!I87 -> 0 | U227: ='KF World - Values'!I86 -> 27
E258: ='KF World - Values'!H68 -> 57
I259: ='KF World - Values'!H69 -> 97
E265: ='KF World - Values'!I68 -> 59 | I265: ='KF World - Values'!I69 -> 98

Sheet Conversion - Refinieres (hidden)
F56: ='KF World - Values'!H94 -> 0 | I56: ='KF World - Values'!H93 -> 100
F63: ='KF World - Values'!I94 -> 0 | I63: ='KF World - Values'!I93 -> 100
G94: ='KF World - Values'!H70 -> 99
G101: ='KF World - Values'!I70 -> 99
E118: ='KF World - Values'!H40 -> 23 | I118: ='KF World - Values'!H46 -> 4 | L118: ='KF World - Values'!H43 -> 34 | P118: ='KF World - Values'!H45 -> 22 | S118: ='KF World - Values'!H41 -> 2 | V118: ='KF World - Values'!H44 -> 2 | Y118: ='KF World - Values'!H42 -> 13
E124: ='KF World - Values'!I40 -> 22 | I124: ='KF World - Values'!I46 -> 4 | L124: ='KF World - Values'!I43 -> 38 | P124: ='KF World - Values'!I45 -> 20 | S124: ='KF World - Values'!I41 -> 4 | V124: ='KF World - Values'!I44 -> 4 | Y124: ='KF World - Values'!I42 -> 8

Sheet Conversion - Industry Own Use (hidden)
E57: ='KF World - Values'!H40 -> 23 | I57: ='KF World - Values'!H46 -> 4 | M57: ='KF World - Values'!H43 -> 34 | P57: ='KF World - Values'!H45 -> 22 | T57: ='KF World - Values'!H41 -> 2 | W57: ='KF World - Values'!H44 -> 2 | Y57: ='KF World - Values'!H42 -> 13
E63: ='KF World - Values'!I40 -> 22 | I63: ='KF World - Values'!I46 -> 4 | M63: ='KF World - Values'!I43 -> 38 | P63: ='KF World - Values'!I45 -> 20 | T63: ='KF World - Values'!I41 -> 4 | W63: ='KF World - Values'!I44 -> 4 | Y63: ='KF World - Values'!I42 -> 8

Sheet Future Emissions
C49: ='KF World - Values'!AB31 -> 36000 | G49: ='KF World - Values'!AG31 -> 38000
J50: ='KF World - Values'!S32 -> 0.76 | L50: ='KF World - Values'!W32 -> 0.76 | N50: ='KF World - Values'!AB32 -> 0.76 | P50: ='KF World - Values'!AG32 -> 0.76

Sheet Results - Scenario

Sheet BL World 2030 (hidden)
B1: Consumption | C1: Coal | D1: Crude oil | E1: Oil Products | F1: Natual Gas | G1: Nuclear | H1: Hydro | I1: Geothermal, solar, wind, etc. | J1: Biofuels and waste | K1: Electricity | L1: Heat | M1: Energy Services | N1: Total consumption | O1: World 2030 | R1: Faktor | S1: Total production | T1: Efficiency | U1: Production | V1: Coal | W1: Crude oil | X1: Oil Products | Y1: Natual Gas | Z1: Nuclear | AA1: Hydro | AB1: Geothermal, solar, wind, etc. | AC1: Biofuels and waste | AD1: Electricity | AE1: Heat | AF1: Loss | AG1: Loss | AH1: CO2-emissions
A2: ID | B2: C | C2: CC | D2: CCO | E2: COP | F2: CNG | G2: CNU | H2: CHY | I2: CGSW | J2: CWB | K2: CE | L2: CH | M2: CES | N2: fbrbr | P2: ID | Q2: ID Parent | R2: factor | S2: pbrpr | T2: pvrkg | U2: P | V2: PC | W2: PCO | X2: POP | Y2: PNG | Z2: PNU | AA2: PHY | AB2: PGSW | AC2: PWB | AD2: PE | AE2: PH | AF2: PTAB | AG2: PTAB | AH2: PCO2
A3: ID Parent | C3: C | D3: C | E3: C | F3: C | G3: C | H3: C | I3: C | J3: C | K3: C | L3: C | M3: C | O3: Structures | V3: P | W3: P | X3: P | Y3: P | Z3: P | AA3: P | AB3: P | AC3: P | AD3: P | AE3: P
A4: Factor
O5: Entry fuels | P5: ETP
O6: Transport of fuels | P6: TRAP
O7: Entry On-Grid RE | P7: ELP1
O8: Entry electricity, district heating and oil products | P8: ES
O9: Electricity-only plants | P9: ESEP | Q9: ES
O10: CHP plants | P10: ESCHP | Q10: ES
O11: Heat Plants | P11: ESHP | Q11: ES
O12: Oil refineries | P12: ESOR | Q12: ES
O13: Energy Industry one use | P13: ESNSP | Q13: ES
O14: Transport electricity, district heating and oil products | P14: TRAS
O15: Entry Off-Grid RE | P15: ELP2
O16: Exit energy | P16: EX
O17: Industry | P17: EXI | Q17: EX
O18: Transport | P18: EXT | Q18: EX
O19: Other | P19: EXO | Q19: EX
O20: Residential | P20: EXOR | Q20: EXO
O21: Commercial and public services | P21: EXOC | Q21: EXO
O22: Agriculture / forestry | P22: EXOA | Q22: EXO
O23: Fishing | P23: EXOF | Q23: EXO
O24: Non-specified | P24: EXON | Q24: EXO
O25: Energy Services | P25: EN

Sheet BL World 2050 (hidden)
B1: Consumption | C1: Coal | D1: Crude oil | E1: Oil Products | F1: Natual Gas | G1: Nuclear | H1: Hydro | I1: Geothermal, solar, wind, etc. | J1: Biofuels and waste | K1: Electricity | L1: Heat | M1: Energy Services | N1: Total consumption | O1: World 2050 | R1: Faktor | S1: Total production | T1: Efficiency | U1: Production | V1: Coal | W1: Crude oil | X1: Oil Products | Y1: Natual Gas | Z1: Nuclear | AA1: Hydro | AB1: Geothermal, solar, wind, etc. | AC1: Biofuels and waste | AD1: Electricity | AE1: Heat | AF1: Energy Services | AG1: Loss | AH1: CO2-emissions
A2: ID | B2: C | C2: CC | D2: CCO | E2: COP | F2: CNG | G2: CNU | H2: CHY | I2: CGSW | J2: CWB | K2: CE | L2: CH | M2: CES | N2: fbrbr | P2: ID | Q2: ID Parent | R2: factor | S2: pbrpr | T2: pvrkg | U2: P | V2: PC | W2: PCO | X2: POP | Y2: PNG | Z2: PNU | AA2: PHY | AB2: PGSW | AC2: PWB | AD2: PE | AE2: PH | AF2: PES | AG2: PTAB | AH2: PCO2
A3: ID Parent | C3: C | D3: C | E3: C | F3: C | G3: C | H3: C | I3: C | J3: C | K3: C | L3: C | M3: C | O3: Structures | V3: P | W3: P | X3: P | Y3: P | Z3: P | AA3: P | AB3: P | AC3: P | AD3: P | AE3: P | AF3: P
A4: Factor | U4: =B4 -> 0 | AG4: =U4 -> 0 | AH4: =U4 -> 0
N5: =SUM(C5:M5) -> 0 | O5: Entry fuels | P5: ETP | S5: =SUM(V5:AF5) ->  | V5: =-(C6+C5) ->  | W5: =-(D6+D5) ->  | Y5: =-(F6+F5) ->  | Z5: =-(G6+G5) ->  | AC5: =-(J6+J5) -> 
C6: =-V6 ->  | D6: =-W6 ->  | F6: =-Y6 ->  | G6: =-Z6 ->  | J6: =-AC6 ->  | N6: =SUM(C6:M6) ->  | O6: Transport of fuels | P6: TRAP | S6: =SUM(V6:AF6) ->  | V6: =-(C16+C8) ->  | W6: =-(D16+D8) ->  | Y6: =-(F16+F8) ->  | Z6: =-(G16+G8) ->  | AC6: =-(J16+J8) ->  | AG6: =-(N6+S6) -> 
N7: 0 | O7: Entry On-Grid RE | P7: ELP1 | AA7: =-H8 ->  | AB7: =-I8 -> 
C8: =SUM(C9:C13) ->  | D8: =SUM(D9:D13) ->  | M8: 0 | O8: Entry electricity, district heating and oil products | P8: ES | V8: =SUM(V9:V13) -> 0 | X8: =(E14+E8)*-1 ->  | AD8: =(K14+K8)*-1 ->  | AE8: =(L14+L8)*-1 ->  | AG8: =-(N8+S8) ->  | AH8: =SUM(AH9:AH13) -> 
C9: =-($AD$9+$H$9+$I$9)/$T$9*#REF! ->  | D9: =-($AD$9+$H$9+$I$9)/$T$9*#REF! ->  | E9: =-($AD$9+$H$9+$I$9)/$T$9*#REF! ->  | F9: =-($AD$9+$H$9+$I$9)/$T$9*#REF! ->  | G9: =-($AD$9+$H$9+$I$9)/$T$9*#REF! ->  | H9: =AD9*#REF!*-1 ->  | I9: =AD9*#REF!*-1 ->  | J9: =-($AD$9+$H$9+$I$9)/$T$9*#REF! ->  | O9: Electricity-only plants | P9: ESEP | Q9: ES | T9: =#REF! ->  | AD9: =AD8-AD10 ->  | AG9: =-(S9+N9) ->  | AH9: =-(C9*Emissionsfaktorer!$B$2*(1-#REF!)+D9*Emissionsfaktorer!$B$3+E9*Emissionsfaktorer!$B$4*(1-#REF!)+F9*Emissionsfaktorer!$B$5*(1-#REF!)+G9*Emissionsfaktorer!$B$6+H9*Emissionsfaktorer!$B$7+I9*Emissionsfaktorer!$B$8-J9*Emissionsfaktorer!B13*#REF!+K9*Emissionsfaktorer!$B$10+L9*Emissionsfaktorer!$B$11+M9*Emissionsfaktorer!$B$12) -> 
C10: =-($AD$10+$AE$10+$H$10+$I$10)/$T$10*#REF! ->  | D10: =-($AD$10+$AE$10+$H$10+$I$10)/$T$10*#REF! ->  | E10: =-($AD$10+$AE$10+$H$10+$I$10)/$T$10*#REF! ->  | F10: =-($AD$10+$AE$10+$H$10+$I$10)/$T$10*#REF! ->  | G10: =-($AD$10+$AE$10+$H$10+$I$10)/$T$10*#REF! ->  | I10: =(AD10+AE10)*#REF!*-1 ->  | J10: =-($AD$10+$AE$10+$H$10+$I$10)/$T$10*#REF! ->  | O10: CHP plants | P10: ESCHP | Q10: ES | T10: =#REF! ->  | AD10: =AE10*#REF! ->  | AE10: =AE8*#REF! ->  | AG10: =-(S10+N10) ->  | AH10: =-(C10*Emissionsfaktorer!$B$2*(1-#REF!)+D10*Emissionsfaktorer!$B$3+E10*Emissionsfaktorer!$B$4*(1-#REF!)+F10*Emissionsfaktorer!$B$5*(1-#REF!)+G10*Emissionsfaktorer!$B$6+H10*Emissionsfaktorer!$B$7+I10*Emissionsfaktorer!$B$8-J10*Emissionsfaktorer!B14*#REF!+K10*Emissionsfaktorer!$B$10+L10*Emissionsfaktorer!$B$11+M10*Emissionsfaktorer!$B$12) -> 
C11: =-($AE$11+$H$11+$I$11)/$T$11*#REF! ->  | D11: =-($AE$11+$H$11+$I$11)/$T$11*#REF! ->  | E11: =-($AE$11+$H$11+$I$11)/$T$11*#REF! ->  | F11: =-($AE$11+$H$11+$I$11)/$T$11*#REF! ->  | G11: =-($AE$11+$H$11+$I$11)/$T$11*#REF! ->  | I11: =AE11*#REF!*-1 ->  | J11: =-($AE$11+$H$11+$I$11)/$T$11*#REF! ->  | K11: =AE11*#REF!*-1 ->  | O11: Heat Plants | P11: ESHP | Q11: ES | T11: =#REF! ->  | AE11: =AE8*#REF! ->  | AG11: =-(S11+N11) ->  | AH11: =-(C11*Emissionsfaktorer!$B$2+D11*Emissionsfaktorer!$B$3+E11*Emissionsfaktorer!$B$4+F11*Emissionsfaktorer!$B$5+G11*Emissionsfaktorer!$B$6+H11*Emissionsfaktorer!$B$7+I11*Emissionsfaktorer!$B$8+J11*Emissionsfaktorer!$B$9+K11*Emissionsfaktorer!$B$10+L11*Emissionsfaktorer!$B$11+M11*Emissionsfaktorer!$B$12) -> 
D12: =-X12/T12*#REF! ->  | J12: =-X12/T12*#REF! ->  | O12: Oil refineries | P12: ESOR | Q12: ES | T12: =#REF! ->  | X12: =-(E9+E10+E11+E13+E14) ->  | AG12: =-(S12+N12) ->  | AH12: =J12*Emissionsfaktorer!B4 -> 
C13: =N13*#REF! ->  | D13: =N13*#REF! ->  | E13: =N13*#REF! ->  | F13: =N13*#REF! ->  | J13: =N13*#REF! ->  | K13: =N13*#REF! ->  | L13: =N13*#REF! ->  | N13: =N16*#REF! ->  | O13: Energy Industry one use | P13: ESNSP | Q13: ES | S13: 0 | T13: 0 | AG13: =-(S13+N13) ->  | AH13: =-(C13*Emissionsfaktorer!$B$2+D13*Emissionsfaktorer!$B$3+E13*Emissionsfaktorer!$B$4+F13*Emissionsfaktorer!$B$5+G13*Emissionsfaktorer!$B$6+H13*Emissionsfaktorer!$B$7+I13*Emissionsfaktorer!$B$8+J13*Emissionsfaktorer!$B$9+K13*Emissionsfaktorer!$B$10+L13*Emissionsfaktorer!$B$11+M13*Emissionsfaktorer!$B$12) -> 
E14: =-X14*1 ->  | K14: =-AD14*(1+#REF!) ->  | L14: =-AE14*(1+#REF!) ->  | O14: Transport electricity, district heating and oil products | P14: TRAS | X14: =-E16 ->  | AD14: =-K16 ->  | AE14: =-L16 ->  | AG14: =-(N14+S14) -> 
N15: 0 | O15: Entry Off-Grid RE | P15: ELP2 | AB15: =I16*-1 -> 
C16: =SUM(C17:C19) ->  | G16: 0 | H16: 0 | M16: 0 | N16: =#REF! ->  | O16: Exit energy | P16: EX | AF16: =SUM(AF17:AF19) ->  | AG16: =SUM(AG17:AG19) ->  | AH16: =SUM(AH17:AH19) -> 
C17: =AF17*#REF!/T17*#REF!/#REF!*-1 ->  | D17: =AF17*#REF!/T17*#REF!/#REF!*-1 ->  | E17: =AF17*#REF!/T17*#REF!/#REF!*-1 ->  | F17: =AF17*#REF!/T17*#REF!/#REF!*-1 ->  | I17: =AF17*#REF!/T17*#REF!/#REF!*-1 ->  | J17: =AF17*#REF!*#REF!/T17/#REF!*-1 ->  | K17: =AF17*#REF!*#REF!/T17/#REF!*-1 ->  | L17: =AF17*#REF!*#REF!/T17/#REF!*-1 ->  | N17: =SUM(C17:L17) ->  | O17: Industry | P17: EXI | Q17: EX | T17: =(#REF!+#REF!+#REF!+#REF!+#REF!)*#REF!+(#REF!+#REF!)*#REF!+#REF!*#REF! ->  | AF17: =#REF!*#REF!*((#REF!+#REF!+#REF!+#REF!+#REF!)*#REF!+(#REF!+#REF!)*#REF!+#REF!*#REF!)*-1 ->  | AG17: =(S17+SUM(C17:M17))*-1 ->  | AH17: =-(C17*Emissionsfaktorer!$B$2+D17*Emissionsfaktorer!$B$3+E17*Emissionsfaktorer!$B$4+F17*Emissionsfaktorer!$B$5+G17*Emissionsfaktorer!$B$6+H17*Emissionsfaktorer!$B$7+I17*Emissionsfaktorer!$B$8+J17*Emissionsfaktorer!$B$9+K17*Emissionsfaktorer!$B$10+L17*Emissionsfaktorer!$B$11+M17*Emissionsfaktorer!$B$12) -> 
C18: =AF18*#REF!/T18*#REF!/#REF!*-1 ->  | E18: =AF18*#REF!/T18*#REF!/#REF!*-1 ->  | F18: =AF18*#REF!/T18*#REF!/#REF!*-1 ->  | I18: =AF18*#REF!/T18*#REF!/#REF!*-1 ->  | J18: =AF18*#REF!/T18*#REF!/#REF!*-1 ->  | K18: =AF18*#REF!/T18*#REF!/#REF!*-1 ->  | L18: =AF18*#REF!/T18*#REF!/#REF!*-1 ->  | N18: =SUM(C18:L18) ->  | O18: Transport | P18: EXT | Q18: EX | T18: =(#REF!+#REF!+#REF!+#REF!)*#REF!+(#REF!+#REF!)*#REF!+#REF!*#REF! ->  | AF18: =#REF!*#REF!*-1*((#REF!+#REF!+#REF!+#REF!)*#REF!+(#REF!+#REF!)*#REF!+#REF!*#REF!) ->  | AG18: =(S18+SUM(C18:M18))*-1 ->  | AH18: =-(C18*Emissionsfaktorer!$B$2+D18*Emissionsfaktorer!$B$3+E18*Emissionsfaktorer!$B$4+F18*Emissionsfaktorer!$B$5+G18*Emissionsfaktorer!$B$6+H18*Emissionsfaktorer!$B$7+I18*Emissionsfaktorer!$B$8+J18*Emissionsfaktorer!$B$9+K18*Emissionsfaktorer!$B$10+L18*Emissionsfaktorer!$B$11+M18*Emissionsfaktorer!$B$12) -> 
C19: =SUM(C20:C24) ->  | D19: =SUM(D20:D24) -> 0 | G19: 0 | H19: 0 | M19: 0 | N19: =SUM(N20:N24) ->  | O19: Other | P19: EXO | Q19: EX | T19: 0.8 | V19: =SUM(V20:V24) -> 0 | W19: =SUM(W20:W24) -> 0 | X19: 0 | Y19: 0 | Z19: 0 | AA19: 0 | AB19: 0 | AC19: 0 | AD19: 0 | AE19: 0
C20: =AF20*#REF!/T20*#REF!/#REF!*-1 ->  | E20: =AF20*#REF!/T20*#REF!/#REF!*-1 ->  | F20: =AF20*#REF!/T20*#REF!/#REF!*-1 ->  | I20: =AF20*#REF!/T20*#REF!/#REF!*-1 ->  | J20: =AF20*#REF!/T20*#REF!/#REF!*-1 ->  | K20: =AF20*#REF!/T20*#REF!/#REF!*-1 ->  | L20: =AF20*#REF!/T20*#REF!/#REF!*-1 ->  | N20: =SUM(C20:L20) ->  | O20: Residential | P20: EXOR | Q20: EXO | T20: =(#REF!+#REF!+#REF!+#REF!)*#REF!+(#REF!+#REF!)*#REF!+#REF!*#REF! ->  | AF20: =#REF!*#REF!*((#REF!+#REF!+#REF!+#REF!)*#REF!+(#REF!+#REF!)*#REF!+#REF!*#REF!)*-1 ->  | AG20: =(N20+AF20)*-1 ->  | AH20: =-(C20*Emissionsfaktorer!$B$2+D20*Emissionsfaktorer!$B$3+E20*Emissionsfaktorer!$B$4+F20*Emissionsfaktorer!$B$5+G20*Emissionsfaktorer!$B$6+H20*Emissionsfaktorer!$B$7+I20*Emissionsfaktorer!$B$8+J20*Emissionsfaktorer!$B$9+K20*Emissionsfaktorer!$B$10+L20*Emissionsfaktorer!$B$11+M20*Emissionsfaktorer!$B$12) -> 
C21: =AF21*#REF!/T21*#REF!/#REF!*-1 ->  | E21: =AF21*#REF!/T21*#REF!/#REF!*-1 ->  | F21: =AF21*#REF!/T21*#REF!/#REF!*-1 ->  | I21: =AF21*#REF!/T21*#REF!/#REF!*-1 ->  | J21: =AF21*#REF!/T21*#REF!/#REF!*-1 ->  | K21: =AF21*#REF!/T21*#REF!/#REF!*-1 ->  | L21: =AF21*#REF!/T21*#REF!/#REF!*-1 ->  | N21: =SUM(C21:L21) ->  | O21: Commercial and public services | P21: EXOC | Q21: EXO | T21: =(#REF!+#REF!+#REF!+#REF!)*#REF!+(#REF!+#REF!)*#REF!+#REF!*#REF! ->  | AF21: =#REF!*#REF!*((#REF!+#REF!+#REF!+#REF!)*#REF!+(#REF!+#REF!)*#REF!+#REF!*#REF!)*-1 ->  | AG21: =(N21+AF21)*-1 ->  | AH21: =-(C21*Emissionsfaktorer!$B$2+D21*Emissionsfaktorer!$B$3+E21*Emissionsfaktorer!$B$4+F21*Emissionsfaktorer!$B$5+G21*Emissionsfaktorer!$B$6+H21*Emissionsfaktorer!$B$7+I21*Emissionsfaktorer!$B$8+J21*Emissionsfaktorer!$B$9+K21*Emissionsfaktorer!$B$10+L21*Emissionsfaktorer!$B$11+M21*Emissionsfaktorer!$B$12) -> 
C22: =AF22*#REF!/T22*#REF!/#REF!*-1 ->  | E22: =AF22*#REF!/T22*#REF!/#REF!*-1 ->  | F22: =AF22*#REF!/T22*#REF!/#REF!*-1 ->  | I22: =AF22*#REF!/T22*#REF!/#REF!*-1 ->  | J22: =AF22*#REF!/T22*#REF!/#REF!*-1 ->  | K22: =AF22*#REF!/T22*#REF!/#REF!*-1 ->  | L22: =AF22*#REF!/T22*#REF!/#REF!*-1 ->  | N22: =SUM(C22:L22) ->  | O22: Agriculture / forestry | P22: EXOA | Q22: EXO | T22: =(#REF!+#REF!+#REF!+#REF!)*#REF!+(#REF!+#REF!)*#REF!+#REF!*#REF! ->  | AF22: =((#REF!+#REF!+#REF!+#REF!)*#REF!+(#REF!+#REF!)*#REF!+#REF!*#REF!)*#REF!*#REF!*-1 ->  | AG22: =(N22+AF22)*-1 ->  | AH22: =-(C22*Emissionsfaktorer!$B$2+D22*Emissionsfaktorer!$B$3+E22*Emissionsfaktorer!$B$4+F22*Emissionsfaktorer!$B$5+G22*Emissionsfaktorer!$B$6+H22*Emissionsfaktorer!$B$7+I22*Emissionsfaktorer!$B$8+J22*Emissionsfaktorer!$B$9+K22*Emissionsfaktorer!$B$10+L22*Emissionsfaktorer!$B$11+M22*Emissionsfaktorer!$B$12) -> 
C23: =AF23*#REF!/T23*#REF!/#REF!*-1 ->  | E23: =AF23*#REF!/T23*#REF!/#REF!*-1 ->  | F23: =AF23*#REF!/T23*#REF!/#REF!*-1 ->  | I23: =AF23*#REF!/T23*#REF!/#REF!*-1 ->  | J23: =AF23*#REF!/T23*#REF!/#REF!*-1 ->  | K23: =AF23*#REF!/T23*#REF!/#REF!*-1 ->  | L23: =AF23*#REF!/T23*#REF!/#REF!*-1 ->  | N23: =SUM(C23:L23) ->  | O23: Fishing | P23: EXOF | Q23: EXO | T23: =(#REF!+#REF!+#REF!+#REF!)*#REF!+(#REF!+#REF!)*#REF!+#REF!*#REF! ->  | AF23: =((#REF!+#REF!+#REF!+#REF!)*#REF!+(#REF!+#REF!)*#REF!+#REF!*#REF!)*#REF!*#REF!*-1 ->  | AG23: =(N23+AF23)*-1 ->  | AH23: =-(C23*Emissionsfaktorer!$B$2+D23*Emissionsfaktorer!$B$3+E23*Emissionsfaktorer!$B$4+F23*Emissionsfaktorer!$B$5+G23*Emissionsfaktorer!$B$6+H23*Emissionsfaktorer!$B$7+I23*Emissionsfaktorer!$B$8+J23*Emissionsfaktorer!$B$9+K23*Emissionsfaktorer!$B$10+L23*Emissionsfaktorer!$B$11+M23*Emissionsfaktorer!$B$12) -> 
C24: =AF24*#REF!/T24*#REF!/#REF!*-1 ->  | E24: =AF24*#REF!/T24*#REF!/#REF!*-1 ->  | F24: =AF24*#REF!/T24*#REF!/#REF!*-1 ->  | I24: =AF24*#REF!/T24*#REF!/#REF!*-1 ->  | J24: =AF24*#REF!/T24*#REF!/#REF!*-1 ->  | K24: =AF24*#REF!/T24*#REF!/#REF!*-1 ->  | L24: =AF24*#REF!/T24*#REF!/#REF!*-1 ->  | N24: =SUM(C24:L24) ->  | O24: Non-specified | P24: EXON | Q24: EXO | T24: =(#REF!+#REF!+#REF!+#REF!)*#REF!+(#REF!+#REF!)*#REF!+#REF!*#REF! ->  | AF24: =((#REF!+#REF!+#REF!+#REF!)*#REF!+(#REF!+#REF!)*#REF!+#REF!*#REF!)*#REF!*#REF!*-1 ->  | AG24: =(N24+AF24)*-1 ->  | AH24: =-(C24*Emissionsfaktorer!$B$2+D24*Emissionsfaktorer!$B$3+E24*Emissionsfaktorer!$B$4+F24*Emissionsfaktorer!$B$5+G24*Emissionsfaktorer!$B$6+H24*Emissionsfaktorer!$B$7+I24*Emissionsfaktorer!$B$8+J24*Emissionsfaktorer!$B$9+K24*Emissionsfaktorer!$B$10+L24*Emissionsfaktorer!$B$11+M24*Emissionsfaktorer!$B$12) -> 
N25: =N16 ->  | O25: Energy Services | P25: EN | T25: =AF25/N25*-1 ->  | AF25: =AF16 ->  | AG25: =-(S25+N25) -> 
D30: =#REF! -> 

Sheet KF World - Values (hidden)
A1: CO2-emissions (mio. ton) | B1: 21244.26393 | C1: 23166.07697 | D1: 27002.75457 | E1: 30264.25241 | F1: 31881.52361 | G1: 32995.27903 | H1: =-1*('BL World 2030 (forenklet)'!AH8+'BL World 2030 (forenklet)'!AH16) -> 31953.8866 | I1: =-1*('BL World 2050 (forenklet)'!AH8+'BL World 2050 (forenklet)'!AH16) -> 34360.24534 | K1: Temperature calculation
B2: Calculated and predicted values | L2: 1995 | M2: 2000 | N2: 2005 | O2: 2010 | P2: 2015 | Q2: 2020 | R2: 2025 | S2: 2030 | T2: 2035 | U2: 2040 | V2: 2045 | W2: 2050 | X2: 2055 | Y2: 2060 | Z2: 2065 | AA2: 2070 | AB2: 2075 | AC2: 2080 | AD2: 2085 | AE2: 2090 | AF2: 2095 | AG2: 2100
B3: 1995 | C3: 2000 | D3: 2005 | E3: 2010 | F3: 2015 | G3: 2018 | H3: 2030 | I3: 2050 | K3: Temperature [C] | L3: 14.24 | M3: 14.4 | N3: 14.47 | O3: 14.45 | P3: 14.65 | Q3: =O13 -> 14.72480693 | R3: =Q3+$O11*LOG(R6/Q6,2) -> 14.82527226 | S3: =R3+$O11*LOG(S6/R6,2) -> 14.91981875 | T3: =S3+$O11*LOG(T6/S6,2) -> 15.01138418 | U3: 15.10265088 | V3: 15.19359004 | W3: 15.28417515 | X3: =W3+$O11*LOG(X6/W6,2) -> 15.37394598 | Y3: =X3+$O11*LOG(Y6/X6,2) -> 15.46248202 | Z3: 15.54981796 | AA3: 15.63598699 | AB3: 15.72102086 | AC3: 15.80505391 | AD3: 15.88821078 | AE3: 15.97050718 | AF3: 16.05195844 | AG3: 16.13257952
A4: Total final consumption | B4: 251457.2714 | C4: 269066.541 | D4: 304703.7583 | E4: 338009.2496 | F4: 358988.6708 | G4: 377724.8416 | H4: =L20*1000 -> 460000 | I4: =L21*1000 -> 550000 | K4: Recommended Temperature Limit | L4: =15.8 -> 15.8 | M4: =15.8 -> 15.8 | N4: 15.8 | O4: 15.8 | P4: 15.8 | Q4: 15.8 | R4: 15.8 | S4: 15.8 | T4: 15.8 | U4: 15.8 | V4: 15.8 | W4: 15.8 | X4: 15.8 | Y4: 15.8 | Z4: 15.8 | AA4: 15.8 | AB4: 15.8 | AC4: 15.8 | AD4: 15.8 | AE4: 15.8 | AF4: 15.8 | AG4: 15.8
K5: Total Carbon emission (Gigatons) | Q5: =Q31/Q32*12/44*10^-3 -> 12.1068598 | R5: =R31/R32*12/44*10^-3 -> 11.78678276 | S5: =S31/S32*12/44*10^-3 -> 11.46670572 | T5: =T31/T32*12/44*10^-3 -> 11.68258718 | U5: 11.89846865 | V5: 12.11435012 | W5: =W31/W32*12/44*10^-3 -> 12.33023158 | X5: 12.44791732 | Y5: 12.56560306 | Z5: 12.6832888 | AA5: 12.80097455 | AB5: 12.91866029 | AC5: =AC31/AC32*12/44*10^-3 -> 13.06220096 | AD5: 13.20574163 | AE5: 13.3492823 | AF5: 13.49282297 | AG5: =AG31/AG32*12/44*10^-3 -> 13.63636364
A6: Industry | B6: 30 | C6: 29.12113889 | D6: 30.73957792 | E6: 32.67966901 | F6: 32.47595667 | G6: 31.47468762 | H6: 32 | I6: 32 | K6: C_air | Q6: =O9+O12*5 -> 408.4011871 | R6: =(Q6+AVERAGE(Q5,R5)*0.45*5/2.3)*(1-0.001)^5 -> 417.9920501 | S6: =(R6+AVERAGE(R5,S5)*0.45*5/2.3)*(1-0.001)^5 -> 427.2234982 | T6: =(S6+AVERAGE(S5,T5)*0.45*5/2.3)*(1-0.001)^5 -> 436.3581703 | U6: 445.657395 | V6: =(U6+AVERAGE(U5,V5)*0.45*5/2.3)*(1-0.001)^5 -> 455.1203509 | W6: 464.7462212 | X6: =(W6+AVERAGE(W5,X5)*0.45*5/2.3)*(1-0.001)^5 -> 474.486402 | Y6: 484.2925321 | Z6: 494.1642823 | AA6: 504.1013253 | AB6: 514.1033352 | AC6: 524.1825712 | AD6: 534.3512312 | AE6: 544.608869 | AF6: 554.9550407 | AG6: 565.3893043
A7: Transport | B7: 28.57541072 | C7: 30.54446594 | D7: 30.4832233 | E7: 30.09969351 | F7: 31.39513509 | G7: =100-G6-G8 -> 32.04655701 | H7: 34 | I7: 34
A8: Other | B8: 41.59989876 | C8: 40.3344263 | D8: 38 | E8: 37.22064986 | F8: 36.12890824 | G8: 36.47875538 | H8: =100-H7-H6 -> 34 | I8: =100-I7-I6 -> 34 | K8: C_2030 | L8: =(L28*0.45)/2.3 -> 2.243485902 | N8: Year | O8: 2015
A9: Share of energyforms Industry | K9: C_2050 | L9: =(M28*0.45)/2.3 -> 2.412436614 | N9: C_0 | O9: 399.4
A10: Coal | B10: 25.85713265 | C10: 21.35168845 | D10: 29.17577142 | E10: 32.86851978 | F10: 31.89293325 | G10: 28.06284478 | H10: =100-H11-H12-H13-H14-H15-H16-H17 -> 33.87595591 | I10: =100-I11-I12-I13-I15-I14-I16-I17 -> 29.87595591 | K10: C_2100 | L10: =(O28*0.45)/2.3 -> 2.66798419 | N10: T_0 | O10: 14.65
A11: Crude Oil | B11: 0.2249470713 | C11: 0.2818889929 | D11: 0.2037615873 | E11: 0.3595083787 | F11: 0.127715251 | G11: 0.0880494683 | H11: 0.0880494683 | I11: 0.0880494683 | N11: S (Climate sensitivity) | O11: 3
A12: Oil products | B12: 16.78672405 | C12: 16.86513789 | D12: 14.42232383 | E12: 11.83333731 | F12: 10.50906882 | G12: 10.22909415 | H12: 9 | I12: 7 | K12: C_air_2030 | L12: =O9+O12*3+AVERAGE(L8,O12)*12 -> 429.0630521 | N12: C_2020 | O12: =(F1+(G1-F1)/3*5)*10^-3*0.45*12/44/2.3 -> 1.800237414
A13: Natural Gas | B13: 20.68273586 | C13: 22.72800144 | D13: 19.28394656 | E13: 18.91493973 | F13: 19.44468288 | G13: 21.05660771 | H13: 18 | I13: 16 | K13: C_air_2050 | L13: =L12+AVERAGE(L9,L8)*20 -> 475.6222773 | N13: T_2020 | O13: =O10+O11*LOG((O12*5+O9)*0.999^5/O9,2) -> 14.72480693
A14: Geothermal, Solar, Wind, etc. | B14: 0.01178054903 | C14: 0.02244424209 | D14: 0.02186033703 | E14: 0.01781621025 | F14: 0.03052811118 | G14: 0.03599462264 | H14: 0.03599462264 | I14: 0.03599462264 | K14: C_air_2100 | L14: =L13+AVERAGE(L9,L10)*50 -> 602.6327974
A15: Biofuels and Waste | B15: 6.900498468 | C15: 8.551363114 | D15: 7.669223149 | E15: 6.995970883 | F15: 7.170765993 | G15: 7.186491944 | H15: 7 | I15: 10
A16: Electricity | B16: 22.74031203 | C16: 24.82488147 | D16: 24.12339601 | E16: 24.29111384 | F16: 26.34712474 | G16: 28.35066088 | H16: 25 | I16: 29 | K16: CO2_following tendency | L16: 31954
A17: Heat | B17: 6.795869326 | C17: 5.3745944 | D17: 5.099717112 | E17: 4.718793865 | F17: 4.47714504 | G17: 4.990291666 | H17: 7 | I17: 8 | L17: 31237
A18: Share of energyforms Transport
A19: Coal | B19: 0.1885130024 | C19: 0.03123143564 | D19: 0.0118109899 | E19: 0.007696170024 | F19: 0.00204335251 | G19: 0.001833339099 | H19: 0.001833339099 | I19: 0.001833339099 | L19: Scroller value
A20: Oil products | B20: 94.7587558 | C20: 95.56498329 | D20: 94.77462873 | E20: 92.95071982 | F20: 92.39204133 | G20: 91.68196755 | H20: =100-H19-H21-H22-H23-H24-H25 -> 91.99816666 | I20: =100-I19-I21-I22-I23-I24-I25 -> 86.99816666 | K20: 2030 | L20: 460
A21: Natural Gas | B21: 3.432510014 | C21: 2.94156308 | D21: 3.33399 | E21: 3.671031945 | F21: 3.632114814 | G21: 4.053236016 | H21: 4 | I21: 4 | K21: 2050 | L21: 550
A22: Geothermal, Solar, Wind, etc. | B22: 0 | C22: 0 | D22: 0 | E22: 0 | F22: 0 | G22: 0 | H22: 0 | I22: 0
A23: Biofuels and Waste | B23: 0.568394382 | C23: 0.5060715337 | D23: 0.8712633657 | E23: 2.325107623 | F23: 2.903455309 | G23: 3.10083365 | H23: 3 | I23: 4 | L23: 2030 | M23: 2050 | N23: 2075 | O23: 2100
A24: Electricity | B24: 1.051185796 | C24: 0.9556411717 | D24: 1.00740531 | E24: 1.043880516 | F24: 1.069787919 | G24: 1.159673458 | H24: 1 | I24: 5 | K24: Share of Emission which is CO2 | L24: =S32 -> 0.76 | M24: =W32 -> 0.76 | N24: =AB32 -> 0.76 | O24: =AG32 -> 0.76
A25: Heat | B25: 0 | C25: 0 | D25: 0 | E25: 0 | F25: 0 | G25: 0 | H25: 0 | I25: 0 | K25: Other Emission Gasses (mio. ton) | L25: =(H1/L24)*(1-L24) -> 10090.70103 | M25: =(I1/M24)*(1-M24) -> 10850.60379 | N25: =(AB31/N24)*(1-N24) -> 11368.42105 | O25: =(AG31/O24)*(1-O24) -> 12000
A26: Share of energyforms Other
A27: Coal | B27: 6.893274924 | C27: 4.604990543 | D27: 4.894301562 | E27: 5.16482145 | F27: 5.000832929 | G27: 4.441237453 | H27: 4 | I27: 2 | L27: 2030 | M27: 2050 | N27: 2075 | O27: 2100 | AB27: Scroller værdi | AG27: Scroller værdi
A28: Oil products | B28: 17.98371809 | C28: 17.08258387 | D28: 28.59279645 | E28: 14.22711396 | F28: 13.68756909 | G28: 13.24926073 | H28: 13 | I28: 9 | K28: Total Carbon emission (Gigatons) | L28: =(L25+H1)*12/44*10^-3 -> 11.46670572 | M28: =(M25+I1)*12/44*10^-3 -> 12.33023158 | N28: =(N25+AB31)*12/44*10^-3 -> 12.91866029 | O28: =(O25+AG31)*12/44*10^-3 -> 13.63636364 | AB28: 360 | AG28: 380
A29: Natural Gas | B29: 19.51976438 | C29: 20.50147732 | D29: 19.55547359 | E29: 20.52266264 | F29: 20.06409031 | G29: 21.35382242 | H29: =100-H27-H28-H30-H31-H32-H33 -> 17 | I29: =100-I27-I28-I30-I31-I32-I33 -> 20
A30: Geothermal, Solar, Wind, etc. | B30: 0.1965790207 | C30: 0.3171079324 | D30: 0.3271530507 | E30: 0.6967947641 | F30: 1.309570545 | G30: 1.43737235 | H30: 1 | I30: 1 | L30: 1995 | M30: 2000 | N30: 2005 | O30: 2010 | P30: 2015 | Q30: 2020 | R30: 2025 | S30: 2030 | T30: 2035 | U30: 2040 | V30: 2045 | W30: 2050 | X30: 2055 | Y30: 2060 | Z30: 2065 | AA30: 2070 | AB30: 2075 | AC30: 2080 | AD30: 2085 | AE30: 2090 | AF30: 2095 | AG30: 2100
A31: Biofuels and Waste | B31: 28.38071084 | C31: 28.27507792 | D31: 21.28117685 | E31: 25.32850299 | F31: 23.59467494 | G31: 22 | H31: 24 | I31: 25 | K31: CO2 | L31: =B1 -> 21244.26393 | M31: =C1 -> 23166.07697 | N31: 27002.75457 | O31: 30264.25241 | P31: 31881.52361 | Q31: =F1+(G1-F1)/3*5 -> 33737.78265 | R31: =AVERAGE(Q31,S31) -> 32845.83463 | S31: =H1 -> 31953.8866 | T31: =S31+($W31-$S31)/4 -> 32555.47629 | U31: =T31+($W31-$S31)/4 -> 33157.06597 | V31: =U31+($W31-$S31)/4 -> 33758.65565 | W31: =I1 -> 34360.24534 | X31: =W31+($AB31-$W31)/5 -> 34688.19627 | Y31: =X31+($AB31-$W31)/5 -> 35016.1472 | Z31: 35344.09814 | AA31: 35672.04907 | AB31: =AB28*100 -> 36000 | AC31: =AB31+($AG31-$AB31)/5 -> 36400 | AD31: =AC31+($AG31-$AB31)/5 -> 36800 | AE31: 37200 | AF31: 37600 | AG31: =AG28*100 -> 38000
A32: Electricity | B32: 20 | C32: 23.47702154 | D32: 20.9758132 | E32: 29.0160969 | F32: 31.58488254 | G32: 32.82830815 | H32: 35 | I32: 36 | K32: Share of Emission which is CO2 | Q32: 0.76 | R32: =AVERAGE(Q32,S32) -> 0.76 | S32: =S35/100 -> 0.76 | T32: =S32+($W32-$S32)/4 -> 0.76 | U32: =T32+($W32-$S32)/4 -> 0.76 | V32: 0.76 | W32: =W35/100 -> 0.76 | X32: =W32+($AB32-$W32)/5 -> 0.76 | Y32: =X32+($AB32-$W32)/5 -> 0.76 | Z32: 0.76 | AA32: 0.76 | AB32: =AB35/100 -> 0.76 | AC32: =AB32+($AG32-$AB32)/5 -> 0.76 | AD32: =AC32+($AG32-$AB32)/5 -> 0.76 | AE32: 0.76 | AF32: =AE32+($AG32-$AB32)/5 -> 0.76 | AG32: =AG35/100 -> 0.76
A33: Heat | B33: 6.60190887 | C33: 5.703042832 | D33: 4.147787724 | E33: 5.017814262 | F33: 4.756281186 | G33: 4.850113668 | H33: 6 | I33: 7 | K33: Other Emissions | Q33: =1-Q32 -> 0.24 | R33: =1-R32 -> 0.24 | S33: 0.24 | T33: 0.24 | U33: 0.24 | V33: 0.24 | W33: 0.24 | X33: 0.24 | Y33: 0.24 | Z33: 0.24 | AA33: 0.24 | AB33: 0.24 | AC33: 0.24 | AD33: 0.24 | AE33: 0.24 | AF33: 0.24 | AG33: 0.24
A34: Transport losses
A35: Electricity | B35: 10.42493754 | C35: 10.7315639 | D35: 10.55410999 | E35: 9.821729287 | F35: 9.482480298 | G35: 8.935891002 | H35: 9 | I35: 7 | R35: Scroller værdi | S35: 76 | W35: 76 | AB35: 76 | AG35: 76
A36: Heat | B36: 6.521147594 | C36: 7.765207939 | D36: 9.54228829 | E36: 7.901180745 | F36: 6.715468557 | G36: 6.939710251 | H36: 7 | I36: 5
A37: Industry own use
A38: Industry own use (% of total consumption) | B38: 8.820907253 | C38: 9.277505357 | D38: 9.536639197 | E38: 9.983547727 | F38: 9.565826144 | G38: 9.302632619 | H38: 9.302632619 | I38: 9.302632619
A39: Distribution between energi forms
A40: Electricity | B40: 19.8952672 | C40: 19.90234264 | D40: 19.37537465 | E40: 19.52672487 | F40: 21.54357146 | G40: 22.99552542 | H40: 23 | I40: 22
A41: Heat | B41: 4.930256792 | C41: 4.057762435 | D41: 4.9024185 | E41: 5.009951409 | F41: 4.505416254 | G41: 4.665479006 | H41: 2 | I41: 4
A42: Coal | B42: 9.606610172 | C42: 9.62315865 | D42: 10.01838659 | E42: 14.18832732 | F42: 11.30451005 | G42: 9.528411494 | H42: =100-H40-H41-H43-H44-H45-H46 -> 13 | I42: =100-I40-I41-I43-I44-I45-I46 -> 8
A43: Natural gas | B43: 28.34260537 | C43: 30.15619811 | D43: 31.75447849 | E43: 31.30475136 | F43: 33.35958953 | G43: 36.07154561 | H43: 34 | I43: 38
A44: Crude oil | B44: 1.231761901 | C44: 1.610289752 | D44: 1.457958685 | E44: 1.16848406 | F44: 1.472582195 | G44: 1.176021974 | H44: 2 | I44: 4
A45: Oil products | B45: 34.6110936 | C45: 33.69833234 | D45: 31.27046157 | E45: 27.10356911 | F45: 26.05764494 | G45: 23.71884626 | H45: 22 | I45: 20
A46: Biofuels and waste | B46: 1.382593741 | C46: 0.9519160771 | D46: 1.221065615 | E46: 1.698067789 | F46: 1.756807507 | G46: 1.843812747 | H46: 4 | I46: 4
A47: Distribution of production between technologies Heat
A48: CHP plants | B48: 47.38903985 | C48: 47.9206496 | D48: 60.64158779 | E48: 62.64804578 | F48: 69.95204755 | G48: 71.50345191 | H48: 74 | I48: 84
A49: Heat plants | B49: 52.61096015 | C49: 52.0793504 | D49: 39.35841221 | E49: 37.35195422 | F49: 30.04795245 | G49: 28.49654809 | H49: =100-H48 -> 26 | I49: =100-I48 -> 16
A50: Electricity consumption on Heat plants
A51: % of heat production on Heat plants | B51: 0.3450865296 | C51: 0.3447277703 | D51: 0.2916613541 | E51: 0.2765486726 | F51: 0.3803560867 | G51: 0.6993626062 | H51: =G51 -> 0.6993626062 | I51: =G51 -> 0.6993626062
A52: Ratio between electricity and heat production on CHP plants (Electricity)
A53: Cm-value | B53: 0.8557918719 | C53: 1.017402371 | D53: 1.286176078 | E53: 1.4211409 | F53: 1.439287951 | G53: 1.399784394 | H53: =G53 -> 1.399784394 | I53: =G53 -> 1.399784394
A54: Distribution of production between technologies Oil products
A55: Oil refineries | B55: 100 | C55: 100 | D55: 100 | E55: 100 | F55: 100 | G55: 100 | H55: 100 | I55: 100
A56: Share of non-fuel RE for Electricity-only plants
A57: Hydro | B57: 21.16975624 | C57: 18.9720473 | D57: 19.06731601 | E57: 19.13906054 | F57: 19.03486123 | G57: 18.75682677 | H57: 17 | I57: 23
A58: Geothermal, Solar, Wind, etc. | B58: 3.617442766 | C58: 4.236099441 | D58: 4.269354723 | E58: 5.542551186 | F58: 9.006529305 | G58: 12.08546311 | H58: 15 | I58: 22
A59: Fuel based plants | B59: 75.21280099 | C59: 76.79185326 | D59: 76.66332927 | E59: 75.31838828 | F59: 71.95860946 | G59: 69.15771012 | H59: =100-H58-H57 -> 68 | I59: =100-I58-I57 -> 55
A60: Share of non-fuel RE for CHP plants
A61: Geothermal, Solar, Wind, etc. | B61: 0.1838084003 | C61: 0.3136451592 | D61: 0.2167308036 | E61: 0.3979079189 | F61: 0.4900455568 | G61: 0.4771527003 | H61: 0 | I61: 0
A62: Fuel based plants | B62: 99.8161916 | C62: 99.68635484 | D62: 99.7832692 | E62: 99.60209208 | F62: 99.50995444 | G62: 99.5228473 | H62: 99.5228473 | I62: 99.5228473
A63: Share of non-fuel RE for Heat plants
A64: Geothermal, Solar, Wind, etc. | B64: 0.2126696054 | C64: 0.3013078603 | D64: 0.5108058141 | E64: 0.6969026549 | F64: 1.228764302 | G64: 1.591517155 | H64: 1.59 | I64: 1.59
A65: Fuel based plants | B65: 99.78733039 | C65: 99.69869214 | D65: 99.48919419 | E65: 99.30309735 | F65: 98.7712357 | G65: 98.40848285 | H65: =100-H64 -> 98.41 | I65: =100-I64 -> 98.41
A66: Efficiencies thermal plants
A67: Electricity-only plants | B67: 33.58496451 | C67: 33.93968099 | D67: 34.86132453 | E67: 35.72823876 | F67: 36.66727496 | G67: 36.54993807 | H67: 38 | I67: 38
A68: CHP plants | B68: 57.89816025 | C68: 57.95318517 | D68: 52.60486923 | E68: 53.9339445 | F68: 54.01845072 | G68: 55.73014714 | H68: 57 | I68: 59
A69: Heat Plants | B69: 88.93252483 | C69: 79.48222022 | D69: 90.28044206 | E69: 90.93776313 | F69: 90.80439794 | G69: 97.1489846 | H69: 97 | I69: 98
A70: Oil refineries | B70: 98.59663146 | C70: 99.20154934 | D70: 98.87567842 | E70: 99.02625709 | F70: 98.07574824 | G70: 97.87425739 | H70: 99 | I70: 99
A71: Fuel distribution for Electricity-only plants
A72: Coal | B72: 48.57584259 | C72: 48.82736248 | D72: 47.81045548 | E72: 48.01782685 | F72: 48.17874176 | G72: 47.70438179 | H72: =100-H73-H74-H75-H76-H77 -> 48 | I72: =100-I73-I74-I75-I76-I77 -> 37
A73: Crude Oil | B73: 1.685507362 | C73: 0.8601833065 | D73: 0.778497144 | E73: 1.032637202 | F73: 1.328307675 | G73: 0.8364050612 | H73: 1 | I73: 1
A74: Oil products | B74: 9.828566487 | C74: 9.452988683 | D74: 7.62857662 | E74: 5.870296598 | F74: 5.387781204 | G74: 3.963735981 | H74: 1 | I74: 2
A75: Natural Gas | B75: 12.73235293 | C75: 15.14379924 | D75: 18.22333712 | E75: 21.48118094 | F75: 23.38242694 | G75: 24.70691783 | H75: 31 | I75: 38
A76: Nuclear | B76: 26.24532695 | C76: 24.7566594 | D76: 24.21249516 | E76: 21.5539343 | F76: 18.93317057 | G76: 19.07842738 | H76: 14 | I76: 12
A77: Biofuels and Waste | B77: 0.9285163001 | C77: 0.9506451837 | D77: 1.329083267 | E77: 2.026882686 | F77: 2.76456928 | G77: 3.685829367 | H77: 5 | I77: 10
A78: Fuel distribution for CHP plants
A79: Coal | B79: 34.88166603 | C79: 35.78670495 | D79: 55.33046078 | E79: 58.95792001 | F79: 60.30943311 | G79: 61.85308062 | H79: =100-H80-H81-H82-H83-H84 -> 67 | I79: =100-I80-I81-I82-I83-I84 -> 63
A80: Crude Oil | B80: 0.175728778 | C80: 0.1846763845 | D80: 0.007274800211 | E80: 0.001158967086 | F80: 0.0006823436751 | G80: 0.001920897443 | H80: 0 | I80: 0
A81: Oil products | B81: 8.135746013 | C81: 8.178408081 | D81: 4.033340052 | E81: 2.26188231 | F81: 1.802167124 | G81: 1.416341715 | H81: 1 | I81: 1
A82: Natural Gas | B82: 47.19479287 | C82: 49.3914728 | D82: 35.23328853 | E82: 33.46338349 | F82: 31.33790049 | G82: 30.49845459 | H82: 26 | I82: 24
A83: Nuclear | B83: 1.434026254 | C83: 1.304868218 | D83: 1.36038764 | E83: 0.7788258821 | F83: 0.7387832448 | G83: 0.3129233406 | H83: 0 | I83: 0
A84: Biofuels and Waste | B84: 8.177841495 | C84: 5.15407522 | D84: 4.035128937 | E84: 4.536934701 | F84: 5.810936215 | G84: 5.917278838 | H84: 6 | I84: 12
A85: Fuel distribution for Heat plants
A86: Coal | B86: 30.22845402 | C86: 35.0886194 | D86: 16.72953737 | E86: 19.28684436 | F86: 21.78870512 | G86: 22.56360793 | H86: =100-H87-H88-H89-H90-H91 -> 29 | I86: =100-I87-I88-I89-I90-I91 -> 27
A87: Crude Oil | B87: 0.02492040727 | C87: 0.591314262 | D87: 0.5637010676 | E87: 0.5739583259 | F87: 0.5946589804 | G87: 0.4429378108 | H87: 0 | I87: 0
A88: Oil products | B88: 17.1955896 | C88: 10.60789801 | D88: 10.62348754 | E88: 10.77537584 | F88: 10.49382155 | G88: 9.23707942 | H88: 8 | I88: 6
A89: Natural Gas | B89: 49.84335744 | C89: 50.70066335 | D89: 66.75160142 | E89: 61.74699009 | F89: 56.61444458 | G89: 56.11263543 | H89: 50 | I89: 48
A90: Nuclear | B90: 0 | C90: 0 | D90: 0 | E90: 0 | F90: 0 | G90: 0 | H90: 0 | I90: 0
A91: Biofuels and Waste | B91: 2.707169957 | C91: 3.011504975 | D91: 5.331672598 | E91: 7.616831381 | F91: 10.50746052 | G91: 11.64280296 | H91: 13 | I91: 19
A92: Fuel distribution for Oil refineries
A93: Crude Oil | B93: 100 | C93: 100 | D93: 100 | E93: 100 | F93: 100 | G93: 100 | H93: =100-H94 -> 100 | I93: =100-I94 -> 100
A94: Biofuels and Waste | B94: 0 | C94: 0 | D94: 0 | E94: 0 | F94: 0 | G94: 0 | H94: 0 | I94: 0
A96: Fluegas cleaning
A97: Coal fired power plants | H97: 0 | I97: 0
A98: Oilfired power plants | H98: 0 | I98: 0
A99: Natural gas fired power plants | H99: 0 | I99: 0
A100: Biomass-fired power plants | H100: 0 | I100: 0
A101: Efficiency of final consumption
A102: Fuels | G102: 0.8 | H102: 0.8 | I102: 0.8
A103: Fuels in Transport | G103: 0.3 | H103: 0.3 | I103: 0.3
A104: Electricity | G104: 0.95 | H104: 0.95 | I104: 0.95
A105: Other | G105: 1 | H105: 1 | I105: 1
... 1 more rows

Sheet Static Data to Tendency (hidden)
A1: Page created for pupose of the page "Result Tendency". Here is the Static data displayed, so the graph does not change.
A3: CO2-emissions (mio. ton) | B3: 21244.26393 | C3: 23166.07697 | D3: 27002.75457 | E3: 30264.25241 | F3: 31881.52361 | G3: 35952.76181 | H3: 37988.3809 | I3: 40024 | J3: =I3+($M3-$I3)/4 -> 42709.75 | K3: =J3+($M3-$I3)/4 -> 45395.5 | L3: 48081.25 | M3: 50767 | N3: =M3+($W3-$M3)/10 -> 53452.71295 | O3: =N3+($W3-$M3)/10 -> 56138.4259 | P3: 58824.13886 | Q3: 61509.85181 | R3: 64195.56476 | S3: 66881.27771 | T3: 69566.99067 | U3: 72252.70362 | V3: 74938.41657 | W3: 77624.12952
B4: Calculated and predicted values
B5: 1995 | C5: 2000 | D5: 2005 | E5: 2010 | F5: 2015 | G5: 2020 | H5: 2025 | I5: 2030 | J5: 2035 | K5: 2040 | L5: 2045 | M5: 2050 | N5: 2055 | O5: 2060 | P5: 2065 | Q5: 2070 | R5: 2075 | S5: 2080 | T5: 2085 | U5: 2090 | V5: 2095 | W5: 2100
A6: Total final consumption | B6: 251457.2714 | C6: 269066.541 | D6: 304703.7583 | E6: 338009.2496 | F6: 358988.6708 | G6: =AVERAGE(F6,H6) -> 409494.3354 | H6: 460000 | I6: 500000 | M6: =I14*M5+J14 -> 560050.0549
B7: 1995 | C7: 2000 | D7: 2005 | E7: 2010 | F7: 2015 | G7: 2020 | H7: 2025 | I7: 2030 | J7: 2035 | K7: 2040 | L7: 2045 | M7: 2050 | N7: 2055 | O7: 2060 | P7: 2065 | Q7: 2070 | R7: 2075 | S7: 2080 | T7: 2085 | U7: 2090 | V7: 2095 | W7: 2100
A8: Temperature [C] | B8: 14.24 | C8: 14.4 | D8: 14.47 | E8: 14.45 | F8: 14.65 | G8: ='KF World - Values'!O13 -> 14.72480693 | H8: =G8+'KF World - Values'!$O$11*LOG(H10/G10,2) -> 14.83855721 | I8: =H8+'KF World - Values'!$O$11*LOG(I10/H10,2) -> 14.95599751 | J8: =I8+'KF World - Values'!$O$11*LOG(J10/I10,2) -> 15.07783369 | K8: =J8+'KF World - Values'!$O$11*LOG(K10/J10,2) -> 15.20465827 | L8: =K8+'KF World - Values'!$O$11*LOG(L10/K10,2) -> 15.33590732 | M8: =L8+'KF World - Values'!$O$11*LOG(M10/L10,2) -> 15.47104219 | N8: =M8+'KF World - Values'!$O$11*LOG(N10/M10,2) -> 15.60955249 | O8: =N8+'KF World - Values'!$O$11*LOG(O10/N10,2) -> 15.75095809 | P8: =O8+'KF World - Values'!$O$11*LOG(P10/O10,2) -> 15.89481043 | Q8: =P8+'KF World - Values'!$O$11*LOG(Q10/P10,2) -> 16.04069287 | R8: =Q8+'KF World - Values'!$O$11*LOG(R10/Q10,2) -> 16.18822061 | S8: =R8+'KF World - Values'!$O$11*LOG(S10/R10,2) -> 16.33704007 | T8: =S8+'KF World - Values'!$O$11*LOG(T10/S10,2) -> 16.48682791 | U8: =T8+'KF World - Values'!$O$11*LOG(U10/T10,2) -> 16.63728984 | V8: =U8+'KF World - Values'!$O$11*LOG(V10/U10,2) -> 16.78815911 | W8: =V8+'KF World - Values'!$O$11*LOG(W10/V10,2) -> 16.93919498
A9: Recommended Temperature Limit | B9: 15.8 | C9: 15.8 | D9: 15.8 | E9: 15.8 | F9: 15.8 | G9: 15.8 | H9: 15.8 | I9: 15.8 | J9: 15.8 | K9: 15.8 | L9: 15.8 | M9: 15.8 | N9: 15.8 | O9: 15.8 | P9: 15.8 | Q9: 15.8 | R9: 15.8 | S9: 15.8 | T9: 15.8 | U9: 15.8 | V9: 15.8 | W9: 15.8
A10: C_air | G10: ='KF World - Values'!O9+'KF World - Values'!O12*5 -> 408.4011871 | H10: =(G10+AVERAGE(G3+G11,H3+H11)*12/44*10^-3*0.45*5/2.3)*(1-0.001)^5 -> 419.2770375 | I10: =(H10+AVERAGE(H3+H11,I3+I11)*12/44*10^-3*0.45*5/2.3)*(1-0.001)^5 -> 430.8096566 | J10: 443.1093121 | K10: 456.2857215 | L10: 470.3345098 | M10: 485.2513237 | N10: 501.0318254 | O10: 517.6716985 | P10: 535.1666548 | Q10: 553.5124275 | R10: 572.7047709 | S10: 592.7394606 | T10: 613.6122933 | U10: 635.3190868 | V10: 657.8556794 | W10: 681.2179305
A11: Other Emission Gasses (mio. ton) | G11: =(G3/$B14)*(1-$B14) -> 11353.50373 | H11: =(H3/$B14)*(1-$B14) -> 11996.33081 | I11: 12639.15789 | J11: =(J3/$C14)*(1-$C14) -> 13487.28947 | K11: =(K3/$C14)*(1-$C14) -> 14335.42105 | L11: 15183.55263 | M11: 16031.68421 | N11: =(N3/$D14)*(1-$D14) -> 16879.80409 | O11: =(O3/$D14)*(1-$D14) -> 17727.92397 | P11: 18576.04385 | Q11: 19424.16373 | R11: 20272.28361 | S11: 21120.40349 | T11: 21968.52337 | U11: 22816.64325 | V11: 23664.76313 | W11: 24512.88301
B13: 2030 | C13: 2050 | D13: 2100 | I13: Lineær regression for Total Consumtion
A14: Share of Emission which is CO2 | B14: 0.76 | C14: 0.76 | D14: 0.76 | I14: =LINEST(B6:F6,B5:F5,TRUE,FALSE) -> 5680.11015 | J14: -11084175.75
A15: Other Emission Gasses (mio. ton) | B15: =(I3/B14)*(1-B14) -> 12639.15789 | C15: =(M3/C14)*(1-C14) -> 16031.68421 | D15: =(W3/D14)*(1-D14) -> 24512.88301 | I15: a | J15: b
B17: 2030 | C17: 2050 | D17: 2100
A18: Total Carbon emission (Gigatons) | B18: =(B15+I3)*12/44*10^-3 -> 14.36267943 | C18: =(C15+M3)*12/44*10^-3 -> 18.21782297 | D18: =(D15+W3)*12/44*10^-3 -> 27.85554887
A20: C_2030 | B20: =B18*0.45/2.3 -> 2.810089453
A21: C_2050 | B21: =C18*0.45/2.3 -> 3.564356667
A22: C_2100 | B22: =D18*0.45/2.4 -> 5.222915414
A24: C_air_2030 | B24: =('KF World - Values'!O9+'KF World - Values'!O12*3+AVERAGE(B20,'KF World - Values'!O12)*12)*(1-0.001)^12 -> 427.301569
A25: C_air_2050 | B25: =(B24+AVERAGE(B20,B21)*20)*(1-0.001)^20 -> 481.3178509
A26: C_air_2100 | B26: =(B25+AVERAGE(B21,B22)*50)*(1-0.001)^50 -> 666.7948152

Sheet KF World (simplified) (hidden)
A1: CO2-emissions (mio. ton) | B1: 21244.26393 | C1: 23166.07697 | D1: 27002.75457 | E1: 30264.25241 | F1: 31881.52361 | G1: 32995.27903 | H1: ='KF World - Values'!H1 -> 31953.8866 | I1: ='KF World - Values'!I1 -> 34360.24534 | K1: *This page is created for the purpose of BL World 2030 (& 2050) (forenklet)
B2: Calculated and predicted values
B3: 1995 | C3: 2000 | D3: 2005 | E3: 2010 | F3: 2015 | G3: 2018 | H3: 2030 | I3: 2050
A4: Total final consumption | B4: 251457.2714 | C4: 269066.541 | D4: 304703.7583 | E4: 338009.2496 | F4: 358988.6708 | G4: 377724.8416 | H4: ='KF World - Values'!H4 -> 460000 | I4: ='KF World - Values'!I4 -> 550000
A6: Industry | B6: 0.3 | C6: 0.2912113889 | D6: 0.3073957792 | E6: 0.3267966901 | F6: 0.3247595667 | G6: 0.3147468762 | H6: =('KF World - Values'!H6)/(100) -> 0.32 | I6: =('KF World - Values'!I6)/(100) -> 0.32 | K6: Share of secondary energyforms in consumption
A7: Transport | B7: 0.2857541072 | C7: 0.3054446594 | D7: 0.304832233 | E7: 0.3009969351 | F7: 0.3139513509 | G7: =1-G6-G8 -> 0.3204655701 | H7: =('KF World - Values'!H7)/(100) -> 0.34 | I7: =('KF World - Values'!I7)/(100) -> 0.34 | L7: 1995 | M7: 2000 | N7: 2005 | O7: 2010 | P7: 2015 | Q7: 2018
A8: Other | B8: 0.4159989876 | C8: 0.403344263 | D8: 0.38 | E8: 0.3722064986 | F8: 0.3612890824 | G8: 0.3647875538 | H8: =('KF World - Values'!H8)/(100) -> 0.34 | I8: =('KF World - Values'!I8)/(100) -> 0.34 | K8: Coal | L8: =($B$4*$B$6*B10+$B$4*$B$7*B19+$B$4*$B$8*B27) -> 26852.1251 | M8: =($C$4*$C$6*C10+$C$4*$C$7*C19+$C$4*$C$8*C27) -> 21753.46706 | N8: =($D$4*$D$6*D10+$D$4*$D$7*D19+$D$4*$D$8*D27) -> 33005.34032 | O8: =($E$4*$E$6*E10+$E$4*$E$7*E19+$E$4*$E$8*E27) -> 42812.3195 | P8: =($F$4*$F$6*F10+$F$4*$F$7*F19+$F$4*$F$8*F27) -> 43670.6955 | Q8: =($G$4*$G$6*G10+$G$4*$G$7*G19+$G$4*$G$8*G27) -> 39485.04477
A9: Share of energyforms Industry | K9: Crude Oil | L9: =$B$4*$B$6*B11 -> 169.6937302 | M9: =$C$4*$C$6*C11 -> 220.8748 | N9: =$D$4*$D$6*D11 -> 190.852576 | O9: =$E$4*$E$6*E11 -> 397.114048 | P9: =$F$4*$F$6*F11 -> 148.896832 | Q9: =$G$4*$G$6*G11 -> 104.68
A10: Coal | B10: 0.2585713265 | C10: 0.2135168845 | D10: 0.2917577142 | E10: 0.3286851978 | F10: 0.3189293325 | G10: 0.2806284478 | H10: =('KF World - Values'!H10)/(100) -> 0.3387595591 | I10: =('KF World - Values'!I10)/(100) -> 0.2987595591 | K10: Oil products | L10: =($B$4*$B$6*B12+$B$4*$B$7*B20+$B$4*$B$8*B29) -> 101171.1252 | M10: =($C$4*$C$6*C12+$C$4*$C$7*C20+$C$4*$C$8*C28) -> 110293.8628 | N10: =($D$4*$D$6*D12+$D$4*$D$7*D20+$D$4*$D$8*D28) -> 134645.5006 | O10: =($E$4*$E$6*E12+$E$4*$E$7*E20+$E$4*$E$8*E28) -> 125537.9925 | P10: =($F$4*$F$6*F12+$F$4*$F$7*F20+$F$4*$F$8*F28) -> 134135.0259 | Q10: =($G$4*$G$6*G12+$G$4*$G$7*G20+$G$4*$G$8*G28) -> 141396.2134
A11: Crude Oil | B11: 0.002249470713 | C11: 0.002818889929 | D11: 0.002037615873 | E11: 0.003595083787 | F11: 0.00127715251 | G11: 0.000880494683 | H11: =('KF World - Values'!H11)/(100) -> 0.000880494683 | I11: =('KF World - Values'!I11)/(100) -> 0.000880494683 | K11: Natural Gas | L11: =($B$4*$B$6*B13+$B$4*$B$7*B21+$B$4*$B$8*B29) -> 38487.74018 | M11: 42475.62675 | N11: 43801.74834 | O11: 50447.80432 | P11: 52786.02054 | Q11: 59363.35975
A12: Oil products | B12: 0.1678672405 | C12: 0.1686513789 | D12: 0.1442232383 | E12: 0.1183333731 | F12: 0.1050906882 | G12: 0.1022909415 | H12: =('KF World - Values'!H12)/(100) -> 0.09 | I12: =('KF World - Values'!I12)/(100) -> 0.07 | K12: Geothermal | L12: =($B$4*$B$6*B14+$B$4*$B$7*B22+$B$4*$B$8*B30) -> 214.5203061 | M12: 361.732208 | N12: 399.2775115 | O12: 896.312032 | P12: 1734.087008 | Q12: 2023.338784
A13: Natural Gas | B13: 0.2068273586 | C13: 0.2272800144 | D13: 0.1928394656 | E13: 0.1891493973 | F13: 0.1944468288 | G13: 0.2105660771 | H13: =('KF World - Values'!H13)/(100) -> 0.18 | I13: =('KF World - Values'!I13)/(100) -> 0.16 | K13: Biofuels | L13: =($B$4*$B$6*B15+$B$4*$B$7*B23+$B$4*$B$8*B31) -> 35301.87899 | M13: 37802.29283 | N13: 32633.53846 | O13: 41958.92627 | P13: 42234.36029 | Q13: 42610.99771
A14: Geothermal, Solar, Wind, etc. | B14: 0.0001178054903 | C14: 0.0002244424209 | D14: 0.0002186033703 | E14: 0.0001781621025 | F14: 0.0003052811118 | G14: 0.0003599462264 | H14: =('KF World - Values'!H14)/(100) -> 0.0003599462264 | I14: =('KF World - Values'!I14)/(100) -> 0.0003599462264 | K14: Electricity | L14: =($B$4*$B$6*B16+$B$4*$B$7*B24+$B$4*$B$8*B32) -> 38831.17351 | M14: 45715.76586 | N14: 47818.16248 | O14: 64399.01038 | P14: 72887.67907 | Q14: 80343.11477
A15: Biofuels and Waste | B15: 0.06900498468 | C15: 0.08551363114 | D15: 0.07669223149 | E15: 0.06995970883 | F15: 0.07170765993 | G15: 0.07186491944 | H15: =('KF World - Values'!H15)/(100) -> 0.07 | I15: =('KF World - Values'!I15)/(100) -> 0.1 | K15: Heat | L15: =($B$4*$B$6*B17+$B$4*$B$7*B25+$B$4*$B$8*B33) -> 12032.6031 | M15: 10400.58608 | N15: 9579.248874 | O15: 11525.268 | P15: 11388.51405 | Q15: 12615.78237
A16: Electricity | B16: 0.2274031203 | C16: 0.2482488147 | D16: 0.2412339601 | E16: 0.2429111384 | F16: 0.2634712474 | G16: 0.2835066088 | H16: =('KF World - Values'!H16)/(100) -> 0.25 | I16: =('KF World - Values'!I16)/(100) -> 0.29
A17: Heat | B17: 0.06795869326 | C17: 0.053745944 | D17: 0.05099717112 | E17: 0.04718793865 | F17: 0.0447714504 | G17: 0.04990291666 | H17: =('KF World - Values'!H17)/(100) -> 0.07 | I17: =('KF World - Values'!I17)/(100) -> 0.08 | K17: Share of secondary energyforms in conversion
A18: Share of energyforms Transport | L18: 1995 | M18: 2000 | N18: 2005 | O18: 2010 | P18: 2015 | Q18: 2018
A19: Coal | B19: 0.001885130024 | C19: 0.0003123143564 | D19: 0.000118109899 | E19: 7.696170024e-05 | F19: 2.04335251e-05 | G19: 1.833339099e-05 | H19: =('KF World - Values'!H19)/(100) -> 1.833339099e-05 | I19: =('KF World - Values'!I19)/(100) -> 1.833339099e-05 | K19: Coal | L19: =$L$27*(1+$B$67)*$B$59*B72+$L$28*$B$48*(1+$B$68)*$B$62*B79+$L$28*$B$49*(1+$B$69)*$B$65*B86+L8 -> 54961.86743 | M19: =$M$27*(1+$C$67)*$C$59*C72+$M$28*$C$48*(1+$C$68)*$C$62*C79+$M$28*$C$49*(1+$C$69)*$C$65*C86+M8 -> 53867.94091 | N19: =$N$27*(1+$D$67)*$D$59*D72+$N$28*$D$48*(1+$D$68)*$D$62*$D$79+$N$28*$D$49*(1+$D$69)*$D$65*D86+N8 -> 65806.26755 | O19: =$O$27*(1+$E$67)*$E$59*E72+$O$28*$E$48*(1+$E$68)*$E$62*$E$79+$O$28*$E$49*(1+$E$69)*$E$65*E86+O8 -> 86270.44765 | P19: =$P$27*(1+$F$67)*$F$59*F72+$P$28*$F$48*(1+$F$68)*$F$62*$F$79+$P$28*$F$49*(1+$F$69)*$F$65*F86+P8 -> 90837.92347 | Q19: =$Q$27*(1+$G$67)*$G$59*G72+$Q$28*$G$48*(1+$G$68)*$G$62*$G$79+$Q$28*$G$49*(1+$G$69)*$G$65*G86+Q8 -> 89844.28337
A20: Oil products | B20: 0.947587558 | C20: 0.9556498329 | D20: 0.9477462873 | E20: 0.9295071982 | F20: 0.9239204133 | G20: 0.9168196755 | H20: =('KF World - Values'!H20)/(100) -> 0.9199816666 | I20: =('KF World - Values'!I20)/(100) -> 0.8699816666 | K20: Crude Oil | L20: =$L$27*(1+$B$67)*$B$59*B73+$L$28*$B$48*(1+$B$68)*$B$62*B80+$L$28*$B$49*(1+$B$69)*$B$65*B87+L29+L29*(1-B70)*B93+L9 -> 103506.7657 | M20: =M27*(1+C67)*C59*C73+M28*C48*(1+C68)*C62*C80+M28*C49*(1+C69)*C65*C87+M29+M29*(1-C70)*C93+M8 -> 133453.2245 | N20: =N27*(1+D67)*D59*D73+N28*D48*(1+D68)*D62*D80+N28*D49*(1+D69)*D65*D87+N29+N29*(1-D70)*D93+N9 -> 136820.4795 | O20: =O27*(1+E67)*E59*E73+O28*E48*(1+E68)*E62*E80+O28*E49*(1+E69)*E65*E87+O29+O29*(1-E70)*E93+O9 -> 127954.8102 | P20: =P27*(1+F67)*F59*F73+P28*F48*(1+F68)*F62*F80+P28*F49*(1+F69)*F65*F87+P29+P29*(1-F70)*F93+P9 -> 137948.4577 | Q20: =Q27*(1+G67)*G59*G73+Q28*G48*(1+G68)*G62*G80+Q28*G49*(1+G69)*G65*G87+Q29+Q29*(1-G70)*G93+Q9 -> 145231.2413
A21: Natural Gas | B21: 0.03432510014 | C21: 0.0294156308 | D21: 0.0333399 | E21: 0.03671031945 | F21: 0.03632114814 | G21: 0.04053236016 | H21: =('KF World - Values'!H21)/(100) -> 0.04 | I21: =('KF World - Values'!I21)/(100) -> 0.04 | K21: Oil products | L21: =$L$27*(1+$B$67)*$B$59*B74+$L$28*$B$48*(1+$B$68)*$B$62*B81+$L$28*$B$49*(1+$B$69)*$B$65*B88 -> 7199.299526 | M21: =$M$27*(1+$C$67)*$C$59*C74+$M$28*$C$48*(1+$C$68)*$C$62*C81+$M$28*$C$49*(1+$C$69)*$C$65*C88 -> 6721.544579 | N21: =$N$27*(1+$D$67)*$D$59*D74+$N$28*$D$48*(1+$D$68)*$D$62*$D$79+$N$28*$D$49*(1+$D$69)*$D$65*D88 -> 10361.46656 | O21: =$O$27*(1+$E$67)*$E$59*E74+$O$28*$E$48*(1+$E$68)*$E$62*$E$79+$O$28*$E$49*(1+$E$69)*$E$65*E88 -> 12235.80059 | P21: =$P$27*(1+$F$67)*$F$59*F74+$P$28*$F$48*(1+$F$68)*$F$62*$F$79+$P$28*$F$49*(1+$F$69)*$F$65*F88 -> 12808.54523 | Q21: =$Q$27*(1+$G$67)*$G$59*G74+$Q$28*$G$48*(1+$G$68)*$G$62*$G$79+$Q$28*$G$49*(1+$G$69)*$G$65*G88 -> 13212.84595
A22: Geothermal, Solar, Wind, etc. | B22: 0 | C22: 0 | D22: 0 | E22: 0 | F22: 0 | G22: 0 | H22: =('KF World - Values'!H22)/(100) -> 0 | I22: =('KF World - Values'!I22)/(100) -> 0 | K22: Natural Gas | L22: =$L$27*(1+$B$67)*$B$59*B75+$L$28*$B$48*(1+$B$68)*$B$62*B82+$L$28*$B$49*(1+$B$69)*$B$65*B89+L11 -> 54827.76928 | M22: =$M$27*(1+$C$67)*$C$59*C75+$M$28*$C$48*(1+$C$68)*$C$62*C82+$M$28*$C$49*(1+$C$69)*$C$65*C89+M11 -> 59833.37638 | N22: =$N$27*(1+$D$67)*$D$59*D75+$N$28*$D$48*(1+$D$68)*$D$62*$D$79+$N$28*$D$49*(1+$D$69)*$D$65*D89+N11 -> 64342.30515 | O22: =$O$27*(1+$E$67)*$E$59*E75+$O$28*$E$48*(1+$E$68)*$E$62*$E$79+$O$28*$E$49*(1+$E$69)*$E$65*E89+O11 -> 78459.53256 | P22: =$P$27*(1+$F$67)*$F$59*F75+$P$28*$F$48*(1+$F$68)*$F$62*$F$79+$P$28*$F$49*(1+$F$69)*$F$65*F89+P11 -> 82890.46281 | Q22: =$Q$27*(1+$G$67)*$G$59*G75+$Q$28*$G$48*(1+$G$68)*$G$62*$G$79+$Q$28*$G$49*(1+$G$69)*$G$65*G89+Q11 -> 93217.17987
A23: Biofuels and Waste | B23: 0.00568394382 | C23: 0.005060715337 | D23: 0.008712633657 | E23: 0.02325107623 | F23: 0.02903455309 | G23: 0.0310083365 | H23: =('KF World - Values'!H23)/(100) -> 0.03 | I23: =('KF World - Values'!I23)/(100) -> 0.04 | K23: Nuclear | L23: =$L$27*(1+$B$67)*$B$59*B76+$L$28*$B$48*(1+$B$68)*$B$62*B83+$L$28*$B$49*(1+$B$69)*$B$65*B90 -> 11444.32243 | M23: =$M$27*(1+$C$67)*$C$59*C76+$M$28*$C$48*(1+$C$68)*$C$62*C83+$M$28*$C$49*(1+$C$69)*$C$65*C90 -> 13000.38314 | N23: =$N$27*(1+$D$67)*$D$59*D76+$N$28*$D$48*(1+$D$68)*$D$62*$D$79+$N$28*$D$49*(1+$D$69)*$D$65*D90 -> 18595.08549 | O23: =$O$27*(1+$E$67)*$E$59*E76+$O$28*$E$48*(1+$E$68)*$E$62*$E$79+$O$28*$E$49*(1+$E$69)*$E$65*E90 -> 22626.05634 | P23: =$P$27*(1+$F$67)*$F$59*F76+$P$28*$F$48*(1+$F$68)*$F$62*$F$79+$P$28*$F$49*(1+$F$69)*$F$65*F90 -> 22716.4426 | Q23: =$Q$27*(1+$G$67)*$G$59*G76+$Q$28*$G$48*(1+$G$68)*$G$62*$G$79+$Q$28*$G$49*(1+$G$69)*$G$65*G90 -> 25016.41373
A24: Electricity | B24: 0.01051185796 | C24: 0.009556411717 | D24: 0.0100740531 | E24: 0.01043880516 | F24: 0.01069787919 | G24: 0.01159673458 | H24: =('KF World - Values'!H24)/(100) -> 0.01 | I24: =('KF World - Values'!I24)/(100) -> 0.05 | K24: Biofuels | L24: =$L$27*(1+$B$67)*$B$59*B77+$L$28*$B$48*(1+$B$68)*$B$62*B84+$L$28*$B$49*(1+$B$69)*$B$65*B91+L13 -> 36828.94131 | M24: =$M$27*(1+$C$67)*$C$59*C77+$M$28*$C$48*(1+$C$68)*$C$62*C84+$M$28*$C$49*(1+$C$69)*$C$65*C91+M13 -> 39047.70634 | N24: =$N$27*(1+$D$67)*$D$59*D77+$N$28*$D$48*(1+$D$68)*$D$62*$D$79+$N$28*$D$49*(1+$D$69)*$D$65*D91+N14 -> 54322.79996 | O24: =$O$27*(1+$E$67)*$E$59*E77+$O$28*$E$48*(1+$E$68)*$E$62*$E$79+$O$28*$E$49*(1+$E$69)*$E$65*E91+O13 -> 51137.75198 | P24: =$P$27*(1+$F$67)*$F$59*F77+$P$28*$F$48*(1+$F$68)*$F$62*$F$79+$P$28*$F$49*(1+$F$69)*$F$65*F91+P13 -> 52985.20884 | Q24: =$Q$27*(1+$G$67)*$G$59*G77+$Q$28*$G$48*(1+$G$68)*$G$62*$G$79+$Q$28*$G$49*(1+$G$69)*$G$65*G91+Q13 -> 55773.58872
A25: Heat | B25: 0 | C25: 0 | D25: 0 | E25: 0 | F25: 0 | G25: 0 | H25: =('KF World - Values'!H25)/(100) -> 0 | I25: =('KF World - Values'!I25)/(100) -> 0 | K25: Geothermal | L25: =L27*(1+B67)*B58+L28*B48*(1+B68)*B61+L28*B49*(1+B69)*B64 -> 2116.805124 | M25: =M27*(1+C67)*C58+M28*C48*(1+C68)*C61+M28*C49*(1+C69)*C64 -> 2930.363731 | N25: 3104.997607 | O25: 5429.967677 | P25: 9972.254999 | Q25: =Q27*(1+G67)*G58+Q28*G48*(1+G68)*G61+Q28*G49*(1+G69)*G64 -> 14635.87787
A26: Share of energyforms Other
A27: Coal | B27: 0.06893274924 | C27: 0.04604990543 | D27: 0.04894301562 | E27: 0.0516482145 | F27: 0.05000832929 | G27: 0.04441237453 | H27: =('KF World - Values'!H27)/(100) -> 0.04 | I27: =('KF World - Values'!I27)/(100) -> 0.02 | K27: Electricity Output from conversion | L27: =L14*B35+L14 -> 42879.2991 | M27: =M14*(1+C35) -> 50621.78248 | N27: 52864.94394 | O27: 70724.10685 | P27: 79799.23888 | Q27: 87522.48794
A28: Oil products | B28: 0.1798371809 | C28: 0.1708258387 | D28: 0.2859279645 | E28: 0.1422711396 | F28: 0.1368756909 | G28: 0.1324926073 | H28: =('KF World - Values'!H28)/(100) -> 0.13 | I28: =('KF World - Values'!I28)/(100) -> 0.09 | K28: Heat Output from conversion | L28: =L15*(1+B36) -> 12817.26691 | M28: =M15*(1+C36) -> 11208.21322 | N28: 10493.32842 | O28: 12435.90026 | P28: 12153.30613 | Q28: 13491.28111
A29: Natural Gas | B29: 0.1951976438 | C29: 0.2050147732 | D29: 0.1955547359 | E29: 0.2052266264 | F29: 0.2006409031 | G29: 0.2135382242 | H29: =('KF World - Values'!H29)/(100) -> 0.17 | I29: =('KF World - Values'!I29)/(100) -> 0.2 | K29: Oil products Output from conversion | L29: =L10 -> 101171.1252 | M29: =M10 -> 110293.8628 | N29: 134645.5006 | O29: 125537.9925 | P29: 134135.0259 | Q29: 141396.2134
A30: Geothermal, Solar, Wind, etc. | B30: 0.001965790207 | C30: 0.003171079324 | D30: 0.003271530507 | E30: 0.006967947641 | F30: 0.01309570545 | G30: 0.0143737235 | H30: =('KF World - Values'!H30)/(100) -> 0.01 | I30: =('KF World - Values'!I30)/(100) -> 0.01
A31: Biofuels and Waste | B31: 0.2838071084 | C31: 0.2827507792 | D31: 0.2128117685 | E31: 0.2532850299 | F31: 0.2359467494 | G31: 0.22 | H31: =('KF World - Values'!H31)/(100) -> 0.24 | I31: =('KF World - Values'!I31)/(100) -> 0.25
A32: Electricity | B32: 0.2 | C32: 0.2347702154 | D32: 0.209758132 | E32: 0.290160969 | F32: 0.3158488254 | G32: 0.3282830815 | H32: =('KF World - Values'!H32)/(100) -> 0.35 | I32: =('KF World - Values'!I32)/(100) -> 0.36
A33: Heat | B33: 0.0660190887 | C33: 0.05703042832 | D33: 0.04147787724 | E33: 0.05017814262 | F33: 0.04756281186 | G33: 0.04850113668 | H33: =('KF World - Values'!H33)/(100) -> 0.06 | I33: =('KF World - Values'!I33)/(100) -> 0.07
A34: Transport losses
A35: Electricity | B35: 0.1042493754 | C35: 0.107315639 | D35: 0.1055410999 | E35: 0.09821729287 | F35: 0.09482480298 | G35: 0.08935891002 | H35: =('KF World - Values'!H35)/(100) -> 0.09 | I35: =('KF World - Values'!I35)/(100) -> 0.07
A36: Heat | B36: 0.06521147594 | C36: 0.07765207939 | D36: 0.0954228829 | E36: 0.07901180745 | F36: 0.06715468557 | G36: 0.06939710251 | H36: =('KF World - Values'!H36)/(100) -> 0.07 | I36: =('KF World - Values'!I36)/(100) -> 0.05
A37: Industry own use
A38: Industry own use (% of total consumption) | B38: 0.08820907253 | C38: 0.09277505357 | D38: 0.09536639197 | E38: 0.09983547727 | F38: 0.09565826144 | G38: 0.09302632619 | H38: =('KF World - Values'!H38)/(100) -> 0.09302632619 | I38: =('KF World - Values'!I38)/(100) -> 0.09302632619
A39: Distribution between energi forms
A40: Electricity | B40: 0.198952672 | C40: 0.1990234264 | D40: 0.1937537465 | E40: 0.1952672487 | F40: 0.2154357146 | G40: 0.2299552542 | H40: =('KF World - Values'!H40)/(100) -> 0.23 | I40: =('KF World - Values'!I40)/(100) -> 0.22
A41: Heat | B41: 0.04930256792 | C41: 0.04057762435 | D41: 0.049024185 | E41: 0.05009951409 | F41: 0.04505416254 | G41: 0.04665479006 | H41: =('KF World - Values'!H41)/(100) -> 0.02 | I41: =('KF World - Values'!I41)/(100) -> 0.04
A42: Coal | B42: 0.09606610172 | C42: 0.0962315865 | D42: 0.1001838659 | E42: 0.1418832732 | F42: 0.1130451005 | G42: 0.09528411494 | H42: =('KF World - Values'!H42)/(100) -> 0.13 | I42: =('KF World - Values'!I42)/(100) -> 0.08
A43: Natural gas | B43: 0.2834260537 | C43: 0.3015619811 | D43: 0.3175447849 | E43: 0.3130475136 | F43: 0.3335958953 | G43: 0.3607154561 | H43: =('KF World - Values'!H43)/(100) -> 0.34 | I43: =('KF World - Values'!I43)/(100) -> 0.38
A44: Crude oil | B44: 0.01231761901 | C44: 0.01610289752 | D44: 0.01457958685 | E44: 0.0116848406 | F44: 0.01472582195 | G44: 0.01176021974 | H44: =('KF World - Values'!H44)/(100) -> 0.02 | I44: =('KF World - Values'!I44)/(100) -> 0.04
A45: Oil products | B45: 0.346110936 | C45: 0.3369833234 | D45: 0.3127046157 | E45: 0.2710356911 | F45: 0.2605764494 | G45: 0.2371884626 | H45: =('KF World - Values'!H45)/(100) -> 0.22 | I45: =('KF World - Values'!I45)/(100) -> 0.2
A46: Biofuels and waste | B46: 0.01382593741 | C46: 0.009519160771 | D46: 0.01221065615 | E46: 0.01698067789 | F46: 0.01756807507 | G46: 0.01843812747 | H46: =('KF World - Values'!H46)/(100) -> 0.04 | I46: =('KF World - Values'!I46)/(100) -> 0.04
A47: Distribution of production between technologies Heat
A48: CHP plants | B48: 0.4738903985 | C48: 0.479206496 | D48: 0.6064158779 | E48: 0.6264804578 | F48: 0.6995204755 | G48: 0.7150345191 | H48: =('KF World - Values'!H48)/(100) -> 0.74 | I48: =('KF World - Values'!I48)/(100) -> 0.84
A49: Heat plants | B49: 0.5261096015 | C49: 0.520793504 | D49: 0.3935841221 | E49: 0.3735195422 | F49: 0.3004795245 | G49: 0.2849654809 | H49: =('KF World - Values'!H49)/(100) -> 0.26 | I49: =('KF World - Values'!I49)/(100) -> 0.16
A50: Electricity consumption on Heat plants
A51: % of heat production on Heat plants | B51: 0.003450865296 | C51: 0.003447277703 | D51: 0.002916613541 | E51: 0.002765486726 | F51: 0.003803560867 | G51: 0.006993626062 | H51: =('KF World - Values'!H51)/(100) -> 0.006993626062 | I51: =('KF World - Values'!I51)/(100) -> 0.006993626062
A52: Ratio between electricity and heat production on CHP plants (Electricity)
A53: Cm-value | B53: 0.8557918719 | C53: 1.017402371 | D53: 1.286176078 | E53: 1.4211409 | F53: 1.439287951 | G53: 1.399784394 | H53: ='KF World - Values'!H53 -> 1.399784394 | I53: ='KF World - Values'!I53 -> 1.399784394
A54: Distribution of production between technologies Oil products
A55: Oil refineries | B55: 1 | C55: 1 | D55: 1 | E55: 1 | F55: 1 | G55: 1 | H55: =('KF World - Values'!H55)/(100) -> 1 | I55: =('KF World - Values'!I55)/(100) -> 1
A56: Share of non-fuel RE for Electricity-only plants
A57: Hydro | B57: 0.2116975624 | C57: 0.189720473 | D57: 0.1906731601 | E57: 0.1913906054 | F57: 0.1903486123 | G57: 0.1875682677 | H57: =('KF World - Values'!H57)/(100) -> 0.17 | I57: =('KF World - Values'!I57)/(100) -> 0.23
A58: Geothermal, Solar, Wind, etc. | B58: 0.03617442766 | C58: 0.04236099441 | D58: 0.04269354723 | E58: 0.05542551186 | F58: 0.09006529305 | G58: 0.1208546311 | H58: =('KF World - Values'!H58)/(100) -> 0.15 | I58: =('KF World - Values'!I58)/(100) -> 0.22
A59: Fuel based plants | B59: 0.7521280099 | C59: 0.7679185326 | D59: 0.7666332927 | E59: 0.7531838828 | F59: 0.7195860946 | G59: 0.6915771012 | H59: =('KF World - Values'!H59)/(100) -> 0.68 | I59: =('KF World - Values'!I59)/(100) -> 0.55
A60: Share of non-fuel RE for CHP plants
A61: Geothermal, Solar, Wind, etc. | B61: 0.001838084003 | C61: 0.003136451592 | D61: 0.002167308036 | E61: 0.003979079189 | F61: 0.004900455568 | G61: 0.004771527003 | H61: =('KF World - Values'!H61)/(100) -> 0 | I61: =('KF World - Values'!I61)/(100) -> 0
A62: Fuel based plants | B62: 0.998161916 | C62: 0.9968635484 | D62: 0.997832692 | E62: 0.9960209208 | F62: 0.9950995444 | G62: 0.995228473 | H62: =('KF World - Values'!H62)/(100) -> 0.995228473 | I62: =('KF World - Values'!I62)/(100) -> 0.995228473
A63: Share of non-fuel RE for Heat plants
A64: Geothermal, Solar, Wind, etc. | B64: 0.002126696054 | C64: 0.003013078603 | D64: 0.005108058141 | E64: 0.006969026549 | F64: 0.01228764302 | G64: 0.01591517155 | H64: =('KF World - Values'!H64)/(100) -> 0.0159 | I64: =('KF World - Values'!I64)/(100) -> 0.0159
A65: Fuel based plants | B65: 0.9978733039 | C65: 0.9969869214 | D65: 0.9948919419 | E65: 0.9930309735 | F65: 0.987712357 | G65: 0.9840848285 | H65: =('KF World - Values'!H65)/(100) -> 0.9841 | I65: =('KF World - Values'!I65)/(100) -> 0.9841
A66: Efficiencies thermal plants
A67: Electricity-only plants | B67: 0.3358496451 | C67: 0.3393968099 | D67: 0.3486132453 | E67: 0.3572823876 | F67: 0.3666727496 | G67: 0.3654993807 | H67: =('KF World - Values'!H67)/(100) -> 0.38 | I67: =('KF World - Values'!I67)/(100) -> 0.38
A68: CHP plants | B68: 0.5789816025 | C68: 0.5795318517 | D68: 0.5260486923 | E68: 0.539339445 | F68: 0.5401845072 | G68: 0.5573014714 | H68: =('KF World - Values'!H68)/(100) -> 0.57 | I68: =('KF World - Values'!I68)/(100) -> 0.59
A69: Heat Plants | B69: 0.8893252483 | C69: 0.7948222022 | D69: 0.9028044206 | E69: 0.9093776313 | F69: 0.9080439794 | G69: 0.971489846 | H69: =('KF World - Values'!H69)/(100) -> 0.97 | I69: =('KF World - Values'!I69)/(100) -> 0.98
A70: Oil refineries | B70: 0.9859663146 | C70: 0.9920154934 | D70: 0.9887567842 | E70: 0.9902625709 | F70: 0.9807574824 | G70: 0.9787425739 | H70: =('KF World - Values'!H70)/(100) -> 0.99 | I70: =('KF World - Values'!I70)/(100) -> 0.99
A71: Fuel distribution for Electricity-only plants
A72: Coal | B72: 0.4857584259 | C72: 0.4882736248 | D72: 0.4781045548 | E72: 0.4801782685 | F72: 0.4817874176 | G72: 0.4770438179 | H72: =('KF World - Values'!H72)/(100) -> 0.48 | I72: =('KF World - Values'!I72)/(100) -> 0.37
A73: Crude Oil | B73: 0.01685507362 | C73: 0.008601833065 | D73: 0.00778497144 | E73: 0.01032637202 | F73: 0.01328307675 | G73: 0.008364050612 | H73: =('KF World - Values'!H73)/(100) -> 0.01 | I73: =('KF World - Values'!I73)/(100) -> 0.01
A74: Oil products | B74: 0.09828566487 | C74: 0.09452988683 | D74: 0.0762857662 | E74: 0.05870296598 | F74: 0.05387781204 | G74: 0.03963735981 | H74: =('KF World - Values'!H74)/(100) -> 0.01 | I74: =('KF World - Values'!I74)/(100) -> 0.02
A75: Natural Gas | B75: 0.1273235293 | C75: 0.1514379924 | D75: 0.1822333712 | E75: 0.2148118094 | F75: 0.2338242694 | G75: 0.2470691783 | H75: =('KF World - Values'!H75)/(100) -> 0.31 | I75: =('KF World - Values'!I75)/(100) -> 0.38
A76: Nuclear | B76: 0.2624532695 | C76: 0.247566594 | D76: 0.2421249516 | E76: 0.215539343 | F76: 0.1893317057 | G76: 0.1907842738 | H76: =('KF World - Values'!H76)/(100) -> 0.14 | I76: =('KF World - Values'!I76)/(100) -> 0.12
A77: Biofuels and Waste | B77: 0.009285163001 | C77: 0.009506451837 | D77: 0.01329083267 | E77: 0.02026882686 | F77: 0.0276456928 | G77: 0.03685829367 | H77: =('KF World - Values'!H77)/(100) -> 0.05 | I77: =('KF World - Values'!I77)/(100) -> 0.1
A78: Fuel distribution for CHP plants
A79: Coal | B79: 0.3488166603 | C79: 0.3578670495 | D79: 0.5533046078 | E79: 0.5895792001 | F79: 0.6030943311 | G79: 0.6185308062 | H79: =('KF World - Values'!H79)/(100) -> 0.67 | I79: =('KF World - Values'!I79)/(100) -> 0.63
A80: Crude Oil | B80: 0.00175728778 | C80: 0.001846763845 | D80: 7.274800211e-05 | E80: 1.158967086e-05 | F80: 6.823436751e-06 | G80: 1.920897443e-05 | H80: =('KF World - Values'!H80)/(100) -> 0 | I80: =('KF World - Values'!I80)/(100) -> 0
A81: Oil products | B81: 0.08135746013 | C81: 0.08178408081 | D81: 0.04033340052 | E81: 0.0226188231 | F81: 0.01802167124 | G81: 0.01416341715 | H81: =('KF World - Values'!H81)/(100) -> 0.01 | I81: =('KF World - Values'!I81)/(100) -> 0.01
A82: Natural Gas | B82: 0.4719479287 | C82: 0.493914728 | D82: 0.3523328853 | E82: 0.3346338349 | F82: 0.3133790049 | G82: 0.3049845459 | H82: =('KF World - Values'!H82)/(100) -> 0.26 | I82: =('KF World - Values'!I82)/(100) -> 0.24
A83: Nuclear | B83: 0.01434026254 | C83: 0.01304868218 | D83: 0.0136038764 | E83: 0.007788258821 | F83: 0.007387832448 | G83: 0.003129233406 | H83: =('KF World - Values'!H83)/(100) -> 0 | I83: =('KF World - Values'!I83)/(100) -> 0
A84: Biofuels and Waste | B84: 0.08177841495 | C84: 0.0515407522 | D84: 0.04035128937 | E84: 0.04536934701 | F84: 0.05810936215 | G84: 0.05917278838 | H84: =('KF World - Values'!H84)/(100) -> 0.06 | I84: =('KF World - Values'!I84)/(100) -> 0.12
A85: Fuel distribution for Heat plants
A86: Coal | B86: 0.3022845402 | C86: 0.350886194 | D86: 0.1672953737 | E86: 0.1928684436 | F86: 0.2178870512 | G86: 0.2256360793 | H86: =('KF World - Values'!H86)/(100) -> 0.29 | I86: =('KF World - Values'!I86)/(100) -> 0.27
A87: Crude Oil | B87: 0.0002492040727 | C87: 0.00591314262 | D87: 0.005637010676 | E87: 0.005739583259 | F87: 0.005946589804 | G87: 0.004429378108 | H87: =('KF World - Values'!H87)/(100) -> 0 | I87: =('KF World - Values'!I87)/(100) -> 0
A88: Oil products | B88: 0.171955896 | C88: 0.1060789801 | D88: 0.1062348754 | E88: 0.1077537584 | F88: 0.1049382155 | G88: 0.0923707942 | H88: =('KF World - Values'!H88)/(100) -> 0.08 | I88: =('KF World - Values'!I88)/(100) -> 0.06
A89: Natural Gas | B89: 0.4984335744 | C89: 0.5070066335 | D89: 0.6675160142 | E89: 0.6174699009 | F89: 0.5661444458 | G89: 0.5611263543 | H89: =('KF World - Values'!H89)/(100) -> 0.5 | I89: =('KF World - Values'!I89)/(100) -> 0.48
A90: Nuclear | B90: 0 | C90: 0 | D90: 0 | E90: 0 | F90: 0 | G90: 0 | H90: =('KF World - Values'!H90)/(100) -> 0 | I90: =('KF World - Values'!I90)/(100) -> 0
A91: Biofuels and Waste | B91: 0.02707169957 | C91: 0.03011504975 | D91: 0.05331672598 | E91: 0.07616831381 | F91: 0.1050746052 | G91: 0.1164280296 | H91: =('KF World - Values'!H91)/(100) -> 0.13 | I91: =('KF World - Values'!I91)/(100) -> 0.19
A92: Fuel distribution for Oil refineries
A93: Crude Oil | B93: 1 | C93: 1 | D93: 1 | E93: 1 | F93: 1 | G93: 1 | H93: =('KF World - Values'!H93)/(100) -> 1 | I93: =('KF World - Values'!I93)/(100) -> 1
A94: Biofuels and Waste | B94: 0 | C94: 0 | D94: 0 | E94: 0 | F94: 0 | G94: 0 | H94: =('KF World - Values'!H94)/(100) -> 0 | I94: =('KF World - Values'!I94)/(100) -> 0
B95: 0 | C95: 0 | D95: 0 | E95: 0 | F95: 0 | G95: 0
A96: Fluegas cleaning
A97: Coal fired power plants | H97: =('KF World - Values'!H97)/100 -> 0 | I97: =('KF World - Values'!I97)/100 -> 0
A98: Oilfired power plants | H98: =('KF World - Values'!H98)/100 -> 0 | I98: =('KF World - Values'!I98)/100 -> 0
A99: Natural gas fired power plants | H99: =('KF World - Values'!H99)/100 -> 0 | I99: =('KF World - Values'!I99)/100 -> 0
A100: Biomass-fired power plants | H100: =('KF World - Values'!H100)/100 -> 0 | I100: =('KF World - Values'!I100)/100 -> 0
A101: Efficiency of final consumption
A102: Fuels | G102: 0.8 | H102: 0.8 | I102: 0.8
A103: Fuels in Transport | G103: 0.3 | H103: 0.3 | I103: 0.3
A104: Electricity | G104: 0.95 | H104: 0.95 | I104: 0.95
A105: Other | G105: 1 | H105: 1 | I105: 1

Sheet BL World 2030 (forenklet) (hidden)
B1: Consumption | C1: Coal | D1: Crude oil | E1: Oil Products | F1: Natual Gas | G1: Nuclear | H1: Hydro | I1: Geothermal, solar, wind, etc. | J1: Biofuels and waste | K1: Electricity | L1: Heat | M1: Energy Services | N1: Total consumption | O1: World 2030 | R1: Faktor | S1: Total production | T1: Efficiency | U1: Production | V1: Coal | W1: Crude oil | X1: Oil Products | Y1: Natual Gas | Z1: Nuclear | AA1: Hydro | AB1: Geothermal, solar, wind, etc. | AC1: Biofuels and waste | AD1: Electricity | AE1: Heat | AF1: Energy Services | AG1: Loss | AH1: CO2-emissions
A2: ID | B2: C | C2: CC | D2: CCO | E2: COP | F2: CNG | G2: CNU | H2: CHY | I2: CGSW | J2: CWB | K2: CE | L2: CH | M2: CES | N2: fbrbr | P2: ID | Q2: ID Parent | R2: factor | S2: pbrpr | T2: pvrkg | U2: P | V2: PC | W2: PCO | X2: POP | Y2: PNG | Z2: PNU | AA2: PHY | AB2: PGSW | AC2: PWB | AD2: PE | AE2: PH | AF2: PES | AG2: PTAB | AH2: PCO2
A3: ID Parent | C3: C | D3: C | E3: C | F3: C | G3: C | H3: C | I3: C | J3: C | K3: C | L3: C | M3: C | O3: Structures | V3: P | W3: P | X3: P | Y3: P | Z3: P | AA3: P | AB3: P | AC3: P | AD3: P | AE3: P | AF3: P
A4: Factor | U4: =B4 -> 0 | AG4: =U4 -> 0 | AH4: =U4 -> 0
N5: =SUM(C5:M5) -> 0 | O5: Entry fuels | P5: ETP | S5: =SUM(V5:AF5) -> -400035.5417 | V5: =-(C6+C5) -> -115081.7698 | W5: =-(D6+D5) -> -171765.3164 | Y5: =-(F6+F5) -> -80421.04909 | Z5: =-(G6+G5) -> -9874.064128 | AC5: =-(J6+J5) -> -22893.34232
C6: =-V6 -> 115081.7698 | D6: =-W6 -> 171765.3164 | F6: =-Y6 -> 80421.04909 | G6: =-Z6 -> 9874.064128 | J6: =-AC6 -> 22893.34232 | N6: 400035.5417 | O6: Transport of fuels | P6: TRAP | S6: -400035.5417 | V6: =-(C16+C8) -> -115081.7698 | W6: =-(D16+D8) -> -171765.3164 | Y6: =-(F16+F8) -> -80421.04909 | Z6: =-(G16+G8) -> -9874.064128 | AC6: =-(J16+J8) -> -22893.34232 | AG6: =-(N6+S6) -> 0
N7: 0 | O7: Entry On-Grid RE | P7: ELP1 | S7: -12661.42043 | AA7: =-H8 -> -6700.257801 | AB7: =-I8 -> -5961.162627
C8: =SUM(C9:C13) -> 65154.52731 | D8: 171635.5543 | E8: 10741.11282 | F8: 47616.68771 | G8: 9874.064128 | H8: 6700.257801 | I8: 5961.162627 | J8: 7869.384018 | K8: 9863.812967 | L8: 855.8422009 | M8: 0 | N8: 336272.4059 | O8: Entry electricity, district heating and oil products | P8: ES | S8: -232001.5667 | V8: =SUM(V9:V13) -> 0 | X8: =(E14+E8)*-1 -> -168373.6776 | AD8: =(K14+K8)*-1 -> -51733.73112 | AE8: =(L14+L8)*-1 -> -11894.15794 | AG8: =-(N8+S8) -> -104270.8392 | AH8: =SUM(AH9:AH13) -> -9720.155868
C9: =-($AD$9+$H$9+$I$9)/$T$9*'KF World (simplified)'!$H72 -> 33853.93415 | D9: =-($AD$9+$H$9+$I$9)/$T$9*'KF World (simplified)'!$H73 -> 705.2902949 | E9: =-($AD$9+$H$9+$I$9)/$T$9*'KF World (simplified)'!$H74 -> 705.2902949 | F9: =-($AD$9+$H$9+$I$9)/$T$9*'KF World (simplified)'!$H75 -> 21863.99914 | G9: =-($AD$9+$H$9+$I$9)/$T$9*'KF World (simplified)'!$H76 -> 9874.064128 | H9: =AD9*'KF World (simplified)'!H57*-1 -> 6700.257801 | I9: =AD9*'KF World (simplified)'!H58*-1 -> 5911.992178 | J9: =-($AD$9+$H$9+$I$9)/$T$9*'KF World (simplified)'!$H77 -> 3526.451474 | N9: 83141.27947 | O9: Electricity-only plants | P9: ESEP | Q9: ES | S9: -39413.28118 | T9: ='KF World (simplified)'!H67 -> 0.38 | AD9: =AD8-AD10 -> -39413.28118 | AG9: =-(S9+N9) -> -43727.99828 | AH9: =-(C9*Emissionsfaktorer!$B$2*(1-'KF World (simplified)'!H97)+D9*Emissionsfaktorer!$B$3+E9*Emissionsfaktorer!$B$4*(1-'KF World (simplified)'!H98)+F9*Emissionsfaktorer!$B$5*(1-'KF World (simplified)'!H99)+G9*Emissionsfaktorer!$B$6+H9*Emissionsfaktorer!$B$7+I9*Emissionsfaktorer!$B$8-J9*Emissionsfaktorer!B13*'KF World (simplified)'!H100+K9*Emissionsfaktorer!$B$10+L9*Emissionsfaktorer!$B$11+M9*Emissionsfaktorer!$B$12) -> -4515.973758
C10: =-($AD$10+$AE$10+$H$10+$I$10)/$T$10*'KF World (simplified)'!$H79 -> 24827.7631 | D10: =-($AD$10+$AE$10+$H$10+$I$10)/$T$10*'KF World (simplified)'!$H80 -> 0 | E10: =-($AD$10+$AE$10+$H$10+$I$10)/$T$10*'KF World (simplified)'!$H81 -> 370.5636283 | F10: =-($AD$10+$AE$10+$H$10+$I$10)/$T$10*'KF World (simplified)'!$H82 -> 9634.654337 | G10: =-($AD$10+$AE$10+$H$10+$I$10)/$T$10*'KF World (simplified)'!$H83 -> 0 | I10: =(AD10+AE10)*'KF World (simplified)'!H61*-1 -> 0 | J10: =-($AD$10+$AE$10+$H$10+$I$10)/$T$10*'KF World (simplified)'!$H84 -> 2223.38177 | N10: 37056.36283 | O10: CHP plants | P10: ESCHP | Q10: ES | S10: -21122.12682 | T10: ='KF World (simplified)'!H68 -> 0.57 | AD10: =AE10*'KF World (simplified)'!H53 -> -12320.44994 | AE10: =AE8*'KF World (simplified)'!H48 -> -8801.676879 | AG10: =-(S10+N10) -> -15934.23602 | AH10: =-(C10*Emissionsfaktorer!$B$2*(1-'KF World (simplified)'!H98)+D10*Emissionsfaktorer!$B$3+E10*Emissionsfaktorer!$B$4*(1-'KF World (simplified)'!H99)+F10*Emissionsfaktorer!$B$5*(1-'KF World (simplified)'!H100)+G10*Emissionsfaktorer!$B$6+H10*Emissionsfaktorer!$B$7+I10*Emissionsfaktorer!$B$8-J10*Emissionsfaktorer!B14*'KF World (simplified)'!H105+K10*Emissionsfaktorer!$B$10+L10*Emissionsfaktorer!$B$11+M10*Emissionsfaktorer!$B$12) -> -2935.975627
C11: =-($AE$11+$H$11+$I$11)/$T$11*'KF World (simplified)'!$H86 -> 909.8557513 | D11: =-($AE$11+$H$11+$I$11)/$T$11*'KF World (simplified)'!$H87 -> 0 | E11: =-($AE$11+$H$11+$I$11)/$T$11*'KF World (simplified)'!$H88 -> 250.99469 | F11: =-($AE$11+$H$11+$I$11)/$T$11*'KF World (simplified)'!$H89 -> 1568.716813 | G11: =-($AE$11+$H$11+$I$11)/$T$11*'KF World (simplified)'!$H90 -> 0 | I11: =AE11*'KF World (simplified)'!H64*-1 -> 49.17044894 | J11: =-($AE$11+$H$11+$I$11)/$T$11*'KF World (simplified)'!$H91 -> 407.8663713 | K11: =AE11*'KF World (simplified)'!H51*-1 -> 21.62765618 | N11: 3208.23173 | O11: Heat Plants | P11: ESHP | Q11: ES | S11: -3092.481066 | T11: ='KF World (simplified)'!H69 -> 0.97 | AE11: =AE8*'KF World (simplified)'!H49 -> -3092.481066 | AG11: =-(S11+N11) -> -115.7506649 | AH11: =-(C11*Emissionsfaktorer!$B$2+D11*Emissionsfaktorer!$B$3+E11*Emissionsfaktorer!$B$4+F11*Emissionsfaktorer!$B$5+G11*Emissionsfaktorer!$B$6+H11*Emissionsfaktorer!$B$7+I11*Emissionsfaktorer!$B$8+J11*Emissionsfaktorer!$B$9+K11*Emissionsfaktorer!$B$10+L11*Emissionsfaktorer!$B$11+M11*Emissionsfaktorer!$B$12) -> -194.9287511
D12: =-X12/T12*'KF World (simplified)'!H93 -> 170074.4218 | J12: =-X12/T12*'KF World (simplified)'!H94 -> 0 | N12: 170074.4218 | O12: Oil refineries | P12: ESOR | Q12: ES | S12: -168373.6776 | T12: ='KF World (simplified)'!H70 -> 0.99 | X12: =-(E9+E10+E11+E13+E14) -> -168373.6776 | AG12: =-(S12+N12) -> -1700.744218 | AH12: =J12*Emissionsfaktorer!B4 -> 0
C13: =N13*'KF World (simplified)'!H42 -> 5562.974306 | D13: =N13*'KF World (simplified)'!H44 -> 855.8422009 | E13: =N13*'KF World (simplified)'!H45 -> 9414.26421 | F13: =N13*'KF World (simplified)'!H43 -> 14549.31742 | J13: =N13*'KF World (simplified)'!H46 -> 1711.684402 | K13: =N13*'KF World (simplified)'!H40 -> 9842.185311 | L13: =N13*'KF World (simplified)'!H41 -> 855.8422009 | N13: =N16*'KF World (simplified)'!H38 -> 42792.11005 | O13: Energy Industry one use | P13: ESNSP | Q13: ES | S13: 0 | T13: 0 | AG13: =-(S13+N13) -> -42792.11005 | AH13: =-(C13*Emissionsfaktorer!$B$2+D13*Emissionsfaktorer!$B$3+E13*Emissionsfaktorer!$B$4+F13*Emissionsfaktorer!$B$5+G13*Emissionsfaktorer!$B$6+H13*Emissionsfaktorer!$B$7+I13*Emissionsfaktorer!$B$8+J13*Emissionsfaktorer!$B$9+K13*Emissionsfaktorer!$B$10+L13*Emissionsfaktorer!$B$11+M13*Emissionsfaktorer!$B$12) -> -2073.277732
E14: =-X14*1 -> 157632.5648 | K14: =-AD14*(1+'KF World (simplified)'!H35) -> 41869.91815 | L14: =-AE14*(1+'KF World (simplified)'!H36) -> 11038.31574 | N14: =SUM(C14:M14) -> 210540.7987 | O14: Transport electricity, district heating and oil products | P14: TRAS | S14: -206361.5167 | X14: =-E16 -> -157632.5648 | AD14: =-K16 -> -38412.76895 | AE14: =-L16 -> -10316.18294 | AG14: =-(N14+S14) -> -4179.282011
N15: =SUM(C15:M15) -> 0 | O15: Entry Off-Grid RE | P15: ELP2 | S15: -53.04673028 | AB15: =I16*-1 -> -53.04673028
C16: =SUM(C17:C18) -> 49927.24246 | D16: 129.7620604 | E16: 157632.5648 | F16: 32804.36138 | G16: 0 | H16: 0 | I16: 53.04673028 | J16: 15023.95831 | K16: 38412.76895 | L16: 10316.18294 | M16: 0 | N16: ='KF World (simplified)'!H4 -> 460000 | O16: Exit energy | P16: EX | S16: -173597.3778 | AF16: =SUM(AF17:AF18) -> -173597.3778 | AG16: =SUM(AG17:AG18) -> -130702.5098 | AH16: =SUM(AH17:AH19) -> -22233.73074
C17: =AF17*'KF World (simplified)'!H10/T17*'KF World (simplified)'!H102/'KF World (simplified)'!H$102*-1 -> 49924.36548 | D17: =AF17*'KF World (simplified)'!H11/T17*'KF World (simplified)'!H102/'KF World (simplified)'!H$102*-1 -> 129.7620604 | E17: =AF17*'KF World (simplified)'!H12/T17*'KF World (simplified)'!H102/'KF World (simplified)'!H$102*-1 -> 13263.66378 | F17: =AF17*'KF World (simplified)'!H13/T17*'KF World (simplified)'!H102/'KF World (simplified)'!H$102*-1 -> 26527.32755 | I17: =AF17*'KF World (simplified)'!H14/T17*'KF World (simplified)'!H105/'KF World (simplified)'!H$105*-1 -> 53.04673028 | J17: =AF17*'KF World (simplified)'!H15*'KF World (simplified)'!H102/T17/'KF World (simplified)'!H$102*-1 -> 10316.18294 | K17: =AF17*'KF World (simplified)'!H16*'KF World (simplified)'!H104/T17/'KF World (simplified)'!H$104*-1 -> 36843.51049 | L17: =AF17*'KF World (simplified)'!H17*'KF World (simplified)'!H105/T17/'KF World (simplified)'!H$105*-1 -> 10316.18294 | N17: =SUM(C17:L17) -> 147374.042 | O17: Industry | P17: EXI | Q17: EX | S17: -125499.6061 | T17: =('KF World (simplified)'!H10+'KF World (simplified)'!H11+'KF World (simplified)'!H12+'KF World (simplified)'!H13+'KF World (simplified)'!H15)*'KF World (simplified)'!H102+('KF World (simplified)'!H14+'KF World (simplified)'!H17)*'KF World (simplified)'!H105+'KF World (simplified)'!H16*'KF World (simplified)'!H104 -> 0.8515719892 | AF17: ='KF World (simplified)'!H4*'KF World (simplified)'!H6*(('KF World (simplified)'!G10+'KF World (simplified)'!G11+'KF World (simplified)'!G12+'KF World (simplified)'!G13+'KF World (simplified)'!G15)*'KF World (simplified)'!G102+('KF World (simplified)'!G14+'KF World (simplified)'!G17)*'KF World (simplified)'!G105+'KF World (simplified)'!G16*'KF World (simplified)'!G104)*-1 -> -125499.6061 | AG17: =(S17+SUM(C17:M17))*-1 -> -21874.43589 | AH17: =-(C17*Emissionsfaktorer!$B$2+D17*Emissionsfaktorer!$B$3+E17*Emissionsfaktorer!$B$4+F17*Emissionsfaktorer!$B$5+G17*Emissionsfaktorer!$B$6+H17*Emissionsfaktorer!$B$7+I17*Emissionsfaktorer!$B$8+J17*Emissionsfaktorer!$B$9+K17*Emissionsfaktorer!$B$10+L17*Emissionsfaktorer!$B$11+M17*Emissionsfaktorer!$B$12) -> -7262.910838
C18: =AF18*'KF World (simplified)'!H19/T18*'KF World (simplified)'!H103/'KF World (simplified)'!H$103*-1 -> 2.876982884 | E18: =AF18*'KF World (simplified)'!H20/T18*'KF World (simplified)'!H103/'KF World (simplified)'!H$103*-1 -> 144368.901 | F18: =AF18*'KF World (simplified)'!H21/T18*'KF World (simplified)'!H103/'KF World (simplified)'!H$103*-1 -> 6277.033826 | I18: =AF18*'KF World (simplified)'!H22/T18*'KF World (simplified)'!H105/'KF World (simplified)'!H$105*-1 -> 0 | J18: =AF18*'KF World (simplified)'!H23/T18*'KF World (simplified)'!H103/'KF World (simplified)'!H$103*-1 -> 4707.775369 | K18: =AF18*'KF World (simplified)'!H24/T18*'KF World (simplified)'!H104/'KF World (simplified)'!H$104*-1 -> 1569.258456 | L18: =AF18*'KF World (simplified)'!H25/T18*'KF World (simplified)'!H105/'KF World (simplified)'!H$105*-1 -> 0 | N18: =SUM(C18:L18) -> 156925.8456 | O18: Transport | P18: EXT | Q18: EX | S18: -48097.77169 | T18: =('KF World (simplified)'!H19+'KF World (simplified)'!H20+'KF World (simplified)'!H21+'KF World (simplified)'!H23)*'KF World (simplified)'!H103+('KF World (simplified)'!H22+'KF World (simplified)'!H25)*'KF World (simplified)'!H105+'KF World (simplified)'!H24*'KF World (simplified)'!H104 -> 0.3065 | AF18: ='KF World (simplified)'!H4*'KF World (simplified)'!H7*-1*(('KF World (simplified)'!G19+'KF World (simplified)'!G20+'KF World (simplified)'!G21+'KF World (simplified)'!G23)*'KF World (simplified)'!G103+('KF World (simplified)'!G22+'KF World (simplified)'!G25)*'KF World (simplified)'!G105+'KF World (simplified)'!G24*'KF World (simplified)'!G104) -> -48097.77169 | AG18: =(S18+SUM(C18:M18))*-1 -> -108828.074 | AH18: =-(C18*Emissionsfaktorer!$B$2+D18*Emissionsfaktorer!$B$3+E18*Emissionsfaktorer!$B$4+F18*Emissionsfaktorer!$B$5+G18*Emissionsfaktorer!$B$6+H18*Emissionsfaktorer!$B$7+I18*Emissionsfaktorer!$B$8+J18*Emissionsfaktorer!$B$9+K18*Emissionsfaktorer!$B$10+L18*Emissionsfaktorer!$B$11+M18*Emissionsfaktorer!$B$12) -> -11330.10072
C19: =AF19*'KF World (simplified)'!H$27/T19*'KF World (simplified)'!H$102/'KF World (simplified)'!H$102*-1 -> 6231.440615 | E19: =AF19*'KF World (simplified)'!H28/T19*'KF World (simplified)'!H$103/'KF World (simplified)'!H$103*-1 -> 20252.182 | F19: =AF19*'KF World (simplified)'!H$29/T19*'KF World (simplified)'!H$103/'KF World (simplified)'!H$103*-1 -> 26483.62261 | I19: =AF19*'KF World (simplified)'!H$30/T19*'KF World (simplified)'!H$105/'KF World (simplified)'!H$105*-1 -> 1557.860154 | J19: =AF19*'KF World (simplified)'!H$31/T19*'KF World (simplified)'!H$103/'KF World (simplified)'!H$103*-1 -> 37388.64369 | K19: =AF19*'KF World (simplified)'!H$32/T19*'KF World (simplified)'!H$104/'KF World (simplified)'!H$104*-1 -> 54525.10538 | L19: =AF19*'KF World (simplified)'!H$33/T19*'KF World (simplified)'!H$105/'KF World (simplified)'!H$105*-1 -> 9347.160922 | N19: =SUM(C19:L19) -> 155786.0154 | O19: Other | P19: EXOR | Q19: EXO | S19: -134988.5823 | T19: =('KF World (simplified)'!H27+'KF World (simplified)'!H28+'KF World (simplified)'!H29+'KF World (simplified)'!H31)*'KF World (simplified)'!H102+('KF World (simplified)'!H30+'KF World (simplified)'!H33)*'KF World (simplified)'!H105+'KF World (simplified)'!H32*'KF World (simplified)'!H104 -> 0.8665 | AF19: ='KF World (simplified)'!H4*'KF World (simplified)'!H8*(('KF World (simplified)'!G27+'KF World (simplified)'!G28+'KF World (simplified)'!G29+'KF World (simplified)'!G31)*'KF World (simplified)'!G102+('KF World (simplified)'!G30+'KF World (simplified)'!G33)*'KF World (simplified)'!G105+'KF World (simplified)'!G32*'KF World (simplified)'!G104)*-1 -> -134988.5823 | AG19: =(N19+AF19)*-1 -> -20797.43305 | AH19: =-(C19*Emissionsfaktorer!$B$2+D19*Emissionsfaktorer!$B$3+E19*Emissionsfaktorer!$B$4+F19*Emissionsfaktorer!$B$5+G19*Emissionsfaktorer!$B$6+H19*Emissionsfaktorer!$B$7+I19*Emissionsfaktorer!$B$8+J19*Emissionsfaktorer!$B$9+K19*Emissionsfaktorer!$B$10+L19*Emissionsfaktorer!$B$11+M19*Emissionsfaktorer!$B$12) -> -3640.719179
N20: =N16 -> 460000 | O20: Energy Services | P20: EN | S20: -173597.3778 | T20: =AF20/N20*-1 -> 0.3773856039 | AF20: =AF16 -> -173597.3778 | AG20: =-(S20+N20) -> -286402.6222

Sheet BL World 2050 (forenklet) (hidden)
B1: Consumption | C1: Coal | D1: Crude oil | E1: Oil Products | F1: Natual Gas | G1: Nuclear | H1: Hydro | I1: Geothermal, solar, wind, etc. | J1: Biofuels and waste | K1: Electricity | L1: Heat | M1: Energy Services | N1: Total consumption | O1: World 2050 | R1: Faktor | S1: Total production | T1: Efficiency | U1: Production | V1: Coal | W1: Crude oil | X1: Oil Products | Y1: Natual Gas | Z1: Nuclear | AA1: Hydro | AB1: Geothermal, solar, wind, etc. | AC1: Biofuels and waste | AD1: Electricity | AE1: Heat | AF1: Energy Services | AG1: Loss | AH1: CO2-emissions
A2: ID | B2: C | C2: CC | D2: CCO | E2: COP | F2: CNG | G2: CNU | H2: CHY | I2: CGSW | J2: CWB | K2: CE | L2: CH | M2: CES | N2: fbrbr | P2: ID | Q2: ID Parent | R2: factor | S2: pbrpr | T2: pvrkg | U2: P | V2: PC | W2: PCO | X2: POP | Y2: PNG | Z2: PNU | AA2: PHY | AB2: PGSW | AC2: PWB | AD2: PE | AE2: PH | AF2: PES | AG2: PTAB | AH2: PCO2
A3: ID Parent | C3: C | D3: C | E3: C | F3: C | G3: C | H3: C | I3: C | J3: C | K3: C | L3: C | M3: C | O3: Structures | V3: P | W3: P | X3: P | Y3: P | Z3: P | AA3: P | AB3: P | AC3: P | AD3: P | AE3: P | AF3: P
A4: Factor | U4: =B4 -> 0 | AG4: =U4 -> 0 | AH4: =U4 -> 0
N5: =SUM(C5:M5) -> 0 | O5: Entry fuels | P5: ETP | S5: =SUM(V5:AF5) -> -453309.248 | V5: =-(C6+C5) -> -122423.6066 | W5: =-(D6+D5) -> -180014.8308 | Y5: =-(F6+F5) -> -99559.3112 | Z5: =-(G6+G5) -> -9561.018144 | AC5: =-(J6+J5) -> -41750.4812
C6: =-V6 -> 122423.6066 | D6: =-W6 -> 180014.8308 | F6: =-Y6 -> 99559.3112 | G6: =-Z6 -> 9561.018144 | J6: =-AC6 -> 41750.4812 | N6: 453309.248 | O6: Transport of fuels | P6: TRAP | S6: -453309.248 | V6: =-(C16+C8) -> -122423.6066 | W6: =-(D16+D8) -> -180014.8308 | Y6: =-(F16+F8) -> -99559.3112 | Z6: =-(G16+G8) -> -9561.018144 | AC6: =-(J16+J8) -> -41750.4812 | AG6: =-(N6+S6) -> 0
N7: 0 | O7: Entry On-Grid RE | P7: ELP1 | S7: -24814.23984 | AA7: =-H8 -> -12661.10585 | AB7: =-I8 -> -12153.13399
C8: =SUM(C9:C13) -> 70266.53749 | D8: 179861.1245 | E8: 12558.42019 | F8: 64710.12968 | G8: 9561.018144 | H8: 12661.10585 | I8: 12153.13399 | J8: 17375.38762 | K8: 11274.88397 | L8: 2046.579176 | M8: 0 | N8: 392468.3206 | O8: Entry electricity, district heating and oil products | P8: ES | S8: -266654.4935 | V8: =SUM(V9:V13) -> 0 | X8: =(E14+E8)*-1 -> -175247.6158 | AD8: =(K14+K8)*-1 -> -74696.5754 | AE8: =(L14+L8)*-1 -> -16710.3023 | AG8: =-(N8+S8) -> -125813.827 | AH8: =SUM(AH9:AH13) -> -11318.23839
C9: =-($AD$9+$H$9+$I$9)/$T$9*'KF World (simplified)'!$I72 -> 29479.80594 | D9: =-($AD$9+$H$9+$I$9)/$T$9*'KF World (simplified)'!$I73 -> 796.751512 | E9: =-($AD$9+$H$9+$I$9)/$T$9*'KF World (simplified)'!$I74 -> 1593.503024 | F9: =-($AD$9+$H$9+$I$9)/$T$9*'KF World (simplified)'!$I75 -> 30276.55746 | G9: =-($AD$9+$H$9+$I$9)/$T$9*'KF World (simplified)'!$I76 -> 9561.018144 | H9: =AD9*'KF World (simplified)'!I57*-1 -> 12661.10585 | I9: =AD9*'KF World (simplified)'!I58*-1 -> 12110.62298 | J9: =-($AD$9+$H$9+$I$9)/$T$9*'KF World (simplified)'!$I77 -> 7967.51512 | N9: 104446.88 | O9: Electricity-only plants | P9: ESEP | Q9: ES | S9: -55048.28628 | T9: ='KF World (simplified)'!I67 -> 0.38 | AD9: =AD8-AD10 -> -55048.28628 | AG9: =-(S9+N9) -> -49398.59374 | AH9: =-(C9*Emissionsfaktorer!$B$2*(1-'KF World (simplified)'!I97)+D9*Emissionsfaktorer!$B$3+E9*Emissionsfaktorer!$B$4*(1-'KF World (simplified)'!I98)+F9*Emissionsfaktorer!$B$5*(1-'KF World (simplified)'!I99)+G9*Emissionsfaktorer!$B$6+H9*Emissionsfaktorer!$B$7+I9*Emissionsfaktorer!$B$8-J9*Emissionsfaktorer!B13*'KF World (simplified)'!I100+K9*Emissionsfaktorer!$B$10+L9*Emissionsfaktorer!$B$11+M9*Emissionsfaktorer!$B$12) -> -4647.451569
C10: =-($AD$10+$AE$10+$H$10+$I$10)/$T$10*'KF World (simplified)'!$I79 -> 35968.668 | D10: =-($AD$10+$AE$10+$H$10+$I$10)/$T$10*'KF World (simplified)'!$I80 -> 0 | E10: =-($AD$10+$AE$10+$H$10+$I$10)/$T$10*'KF World (simplified)'!$I81 -> 570.9312381 | F10: =-($AD$10+$AE$10+$H$10+$I$10)/$T$10*'KF World (simplified)'!$I82 -> 13702.34971 | G10: =-($AD$10+$AE$10+$H$10+$I$10)/$T$10*'KF World (simplified)'!$I83 -> 0 | I10: =(AD10+AE10)*'KF World (simplified)'!I61*-1 -> 0 | J10: =-($AD$10+$AE$10+$H$10+$I$10)/$T$10*'KF World (simplified)'!$I84 -> 6851.174857 | N10: 57093.12381 | O10: CHP plants | P10: ESCHP | Q10: ES | S10: -33684.94305 | T10: ='KF World (simplified)'!I68 -> 0.59 | AD10: =AE10*'KF World (simplified)'!I53 -> -19648.28912 | AE10: =AE8*'KF World (simplified)'!I48 -> -14036.65393 | AG10: =-(S10+N10) -> -23408.18076 | AH10: =-(C10*Emissionsfaktorer!$B$2*(1-'KF World (simplified)'!I98)+D10*Emissionsfaktorer!$B$3+E10*Emissionsfaktorer!$B$4*(1-'KF World (simplified)'!I99)+F10*Emissionsfaktorer!$B$5*(1-'KF World (simplified)'!I100)+G10*Emissionsfaktorer!$B$6+H10*Emissionsfaktorer!$B$7+I10*Emissionsfaktorer!$B$8-J10*Emissionsfaktorer!B14*'KF World (simplified)'!I105+K10*Emissionsfaktorer!$B$10+L10*Emissionsfaktorer!$B$11+M10*Emissionsfaktorer!$B$12) -> -4241.448168
C11: =-($AE$11+$H$11+$I$11)/$T$11*'KF World (simplified)'!$I86 -> 724.9051907 | D11: =-($AE$11+$H$11+$I$11)/$T$11*'KF World (simplified)'!$I87 -> 0 | E11: =-($AE$11+$H$11+$I$11)/$T$11*'KF World (simplified)'!$I88 -> 161.0900424 | F11: =-($AE$11+$H$11+$I$11)/$T$11*'KF World (simplified)'!$I89 -> 1288.720339 | G11: =-($AE$11+$H$11+$I$11)/$T$11*'KF World (simplified)'!$I90 -> 0 | I11: =AE11*'KF World (simplified)'!I64*-1 -> 42.51100905 | J11: =-($AE$11+$H$11+$I$11)/$T$11*'KF World (simplified)'!$I91 -> 510.1184675 | K11: =AE11*'KF World (simplified)'!I51*-1 -> 18.69849691 | N11: 2746.043545 | O11: Heat Plants | P11: ESHP | Q11: ES | S11: -2673.648368 | T11: ='KF World (simplified)'!I69 -> 0.98 | AE11: =AE8*'KF World (simplified)'!I49 -> -2673.648368 | AG11: =-(S11+N11) -> -72.3951777 | AH11: =-(C11*Emissionsfaktorer!$B$2+D11*Emissionsfaktorer!$B$3+E11*Emissionsfaktorer!$B$4+F11*Emissionsfaktorer!$B$5+G11*Emissionsfaktorer!$B$6+H11*Emissionsfaktorer!$B$7+I11*Emissionsfaktorer!$B$8+J11*Emissionsfaktorer!$B$9+K11*Emissionsfaktorer!$B$10+L11*Emissionsfaktorer!$B$11+M11*Emissionsfaktorer!$B$12) -> -154.5658957
D12: =-X12/T12*'KF World (simplified)'!I93 -> 177017.7938 | J12: =-X12/T12*'KF World (simplified)'!I94 -> 0 | N12: 177017.7938 | O12: Oil refineries | P12: ESOR | Q12: ES | S12: -175247.6158 | T12: ='KF World (simplified)'!I70 -> 0.99 | X12: =-(E9+E10+E11+E13+E14) -> -175247.6158 | AG12: =-(S12+N12) -> -1770.177938 | AH12: =J12*Emissionsfaktorer!B4 -> 0
C13: =N13*'KF World (simplified)'!I42 -> 4093.158352 | D13: =N13*'KF World (simplified)'!I44 -> 2046.579176 | E13: =N13*'KF World (simplified)'!I45 -> 10232.89588 | F13: =N13*'KF World (simplified)'!I43 -> 19442.50217 | J13: =N13*'KF World (simplified)'!I46 -> 2046.579176 | K13: =N13*'KF World (simplified)'!I40 -> 11256.18547 | L13: =N13*'KF World (simplified)'!I41 -> 2046.579176 | N13: =N16*'KF World (simplified)'!I38 -> 51164.4794 | O13: Energy Industry one use | P13: ESNSP | Q13: ES | S13: 0 | T13: 0 | AG13: =-(S13+N13) -> -51164.4794 | AH13: =-(C13*Emissionsfaktorer!$B$2+D13*Emissionsfaktorer!$B$3+E13*Emissionsfaktorer!$B$4+F13*Emissionsfaktorer!$B$5+G13*Emissionsfaktorer!$B$6+H13*Emissionsfaktorer!$B$7+I13*Emissionsfaktorer!$B$8+J13*Emissionsfaktorer!$B$9+K13*Emissionsfaktorer!$B$10+L13*Emissionsfaktorer!$B$11+M13*Emissionsfaktorer!$B$12) -> -2274.772754
E14: =-X14*1 -> 162689.1957 | K14: =-AD14*(1+'KF World (simplified)'!I35) -> 63421.69143 | L14: =-AE14*(1+'KF World (simplified)'!I36) -> 14663.72312 | N14: =SUM(C14:M14) -> 240774.6102 | O14: Transport electricity, district heating and oil products | P14: TRAS | S14: -235927.2551 | X14: =-E16 -> -162689.1957 | AD14: =-K16 -> -59272.60882 | AE14: =-L16 -> -13965.45059 | AG14: =-(N14+S14) -> -4847.355147
N15: =SUM(C15:M15) -> 0 | O15: Entry Off-Grid RE | P15: ELP2 | S15: -62.83514052 | AB15: =I16*-1 -> -62.83514052
C16: =SUM(C17:C18) -> 52157.06916 | D16: 153.7063124 | E16: 162689.1957 | F16: 34849.18152 | G16: 0 | H16: 0 | I16: 62.83514052 | J16: 24375.09358 | K16: 59272.60882 | L16: 13965.45059 | M16: 0 | N16: ='KF World (simplified)'!I4 -> 550000 | O16: Exit energy | P16: EX | S16: -207562.0821 | AF16: =SUM(AF17:AF18) -> -207562.0821 | AG16: =SUM(AG17:AG18) -> -139963.0587 | AH16: =SUM(AH17:AH19) -> -23042.00695
C17: =AF17*'KF World (simplified)'!I10/T17*'KF World (simplified)'!I102/'KF World (simplified)'!I$102*-1 -> 52153.89827 | D17: =AF17*'KF World (simplified)'!I11/T17*'KF World (simplified)'!I102/'KF World (simplified)'!I$102*-1 -> 153.7063124 | E17: =AF17*'KF World (simplified)'!I12/T17*'KF World (simplified)'!I102/'KF World (simplified)'!I$102*-1 -> 12219.76927 | F17: =AF17*'KF World (simplified)'!I13/T17*'KF World (simplified)'!I102/'KF World (simplified)'!I$102*-1 -> 27930.90119 | I17: =AF17*'KF World (simplified)'!I14/T17*'KF World (simplified)'!I105/'KF World (simplified)'!I$105*-1 -> 62.83514052 | J17: =AF17*'KF World (simplified)'!I15*'KF World (simplified)'!I102/T17/'KF World (simplified)'!I$102*-1 -> 17456.81324 | K17: =AF17*'KF World (simplified)'!I16*'KF World (simplified)'!I104/T17/'KF World (simplified)'!I$104*-1 -> 50624.7584 | L17: =AF17*'KF World (simplified)'!I17*'KF World (simplified)'!I105/T17/'KF World (simplified)'!I$105*-1 -> 13965.45059 | N17: =SUM(C17:L17) -> 174568.1324 | O17: Industry | P17: EXI | Q17: EX | S17: -150053.8768 | T17: =('KF World (simplified)'!I10+'KF World (simplified)'!I11+'KF World (simplified)'!I12+'KF World (simplified)'!I13+'KF World (simplified)'!I15)*'KF World (simplified)'!I102+('KF World (simplified)'!I14+'KF World (simplified)'!I17)*'KF World (simplified)'!I105+'KF World (simplified)'!I16*'KF World (simplified)'!I104 -> 0.8595719892 | AF17: ='KF World (simplified)'!I4*'KF World (simplified)'!I6*(('KF World (simplified)'!G10+'KF World (simplified)'!G11+'KF World (simplified)'!G12+'KF World (simplified)'!G13+'KF World (simplified)'!G15)*'KF World (simplified)'!G102+('KF World (simplified)'!G14+'KF World (simplified)'!G17)*'KF World (simplified)'!G105+'KF World (simplified)'!G16*'KF World (simplified)'!G104)*-1 -> -150053.8768 | AG17: =(S17+SUM(C17:M17))*-1 -> -24514.25558 | AH17: =-(C17*Emissionsfaktorer!$B$2+D17*Emissionsfaktorer!$B$3+E17*Emissionsfaktorer!$B$4+F17*Emissionsfaktorer!$B$5+G17*Emissionsfaktorer!$B$6+H17*Emissionsfaktorer!$B$7+I17*Emissionsfaktorer!$B$8+J17*Emissionsfaktorer!$B$9+K17*Emissionsfaktorer!$B$10+L17*Emissionsfaktorer!$B$11+M17*Emissionsfaktorer!$B$12) -> -7475.384168
C18: =AF18*'KF World (simplified)'!I19/T18*'KF World (simplified)'!I103/'KF World (simplified)'!I$103*-1 -> 3.170888458 | E18: =AF18*'KF World (simplified)'!I20/T18*'KF World (simplified)'!I103/'KF World (simplified)'!I$103*-1 -> 150469.4264 | F18: =AF18*'KF World (simplified)'!I21/T18*'KF World (simplified)'!I103/'KF World (simplified)'!I$103*-1 -> 6918.280335 | I18: =AF18*'KF World (simplified)'!I22/T18*'KF World (simplified)'!I105/'KF World (simplified)'!I$105*-1 -> 0 | J18: =AF18*'KF World (simplified)'!I23/T18*'KF World (simplified)'!I103/'KF World (simplified)'!I$103*-1 -> 6918.280335 | K18: =AF18*'KF World (simplified)'!I24/T18*'KF World (simplified)'!I104/'KF World (simplified)'!I$104*-1 -> 8647.850418 | L18: =AF18*'KF World (simplified)'!I25/T18*'KF World (simplified)'!I105/'KF World (simplified)'!I$105*-1 -> 0 | N18: =SUM(C18:L18) -> 172957.0084 | O18: Transport | P18: EXT | Q18: EX | S18: -57508.20528 | T18: =('KF World (simplified)'!I19+'KF World (simplified)'!I20+'KF World (simplified)'!I21+'KF World (simplified)'!I23)*'KF World (simplified)'!I103+('KF World (simplified)'!I22+'KF World (simplified)'!I25)*'KF World (simplified)'!I105+'KF World (simplified)'!I24*'KF World (simplified)'!I104 -> 0.3325 | AF18: ='KF World (simplified)'!I4*'KF World (simplified)'!I7*-1*(('KF World (simplified)'!G19+'KF World (simplified)'!G20+'KF World (simplified)'!G21+'KF World (simplified)'!G23)*'KF World (simplified)'!G103+('KF World (simplified)'!G22+'KF World (simplified)'!G25)*'KF World (simplified)'!G105+'KF World (simplified)'!G24*'KF World (simplified)'!G104) -> -57508.20528 | AG18: =(S18+SUM(C18:M18))*-1 -> -115448.8031 | AH18: =-(C18*Emissionsfaktorer!$B$2+D18*Emissionsfaktorer!$B$3+E18*Emissionsfaktorer!$B$4+F18*Emissionsfaktorer!$B$5+G18*Emissionsfaktorer!$B$6+H18*Emissionsfaktorer!$B$7+I18*Emissionsfaktorer!$B$8+J18*Emissionsfaktorer!$B$9+K18*Emissionsfaktorer!$B$10+L18*Emissionsfaktorer!$B$11+M18*Emissionsfaktorer!$B$12) -> -11830.31962
C19: =AF19*'KF World (simplified)'!I$27/T19*'KF World (simplified)'!I$102/'KF World (simplified)'!I$102*-1 -> 3710.330848 | E19: =AF19*'KF World (simplified)'!I28/T19*'KF World (simplified)'!I$103/'KF World (simplified)'!I$103*-1 -> 16696.48882 | F19: =AF19*'KF World (simplified)'!I$29/T19*'KF World (simplified)'!I$103/'KF World (simplified)'!I$103*-1 -> 37103.30848 | I19: =AF19*'KF World (simplified)'!I$30/T19*'KF World (simplified)'!I$105/'KF World (simplified)'!I$105*-1 -> 1855.165424 | J19: =AF19*'KF World (simplified)'!I$31/T19*'KF World (simplified)'!I$103/'KF World (simplified)'!I$103*-1 -> 46379.1356 | K19: =AF19*'KF World (simplified)'!I$32/T19*'KF World (simplified)'!I$104/'KF World (simplified)'!I$104*-1 -> 66785.95527 | L19: =AF19*'KF World (simplified)'!I$33/T19*'KF World (simplified)'!I$105/'KF World (simplified)'!I$105*-1 -> 12986.15797 | N19: =SUM(C19:L19) -> 185516.5424 | O19: Residential | P19: EXOR | Q19: EXO | S19: -161399.3919 | T19: =('KF World (simplified)'!I27+'KF World (simplified)'!I28+'KF World (simplified)'!I29+'KF World (simplified)'!I31)*'KF World (simplified)'!I102+('KF World (simplified)'!I30+'KF World (simplified)'!I33)*'KF World (simplified)'!I105+'KF World (simplified)'!I32*'KF World (simplified)'!I104 -> 0.87 | AF19: ='KF World (simplified)'!I4*'KF World (simplified)'!I8*(('KF World (simplified)'!G27+'KF World (simplified)'!G28+'KF World (simplified)'!G29+'KF World (simplified)'!G31)*'KF World (simplified)'!G102+('KF World (simplified)'!G30+'KF World (simplified)'!G33)*'KF World (simplified)'!G105+'KF World (simplified)'!G32*'KF World (simplified)'!G104)*-1 -> -161399.3919 | AG19: =(N19+AF19)*-1 -> -24117.15051 | AH19: =-(C19*Emissionsfaktorer!$B$2+D19*Emissionsfaktorer!$B$3+E19*Emissionsfaktorer!$B$4+F19*Emissionsfaktorer!$B$5+G19*Emissionsfaktorer!$B$6+H19*Emissionsfaktorer!$B$7+I19*Emissionsfaktorer!$B$8+J19*Emissionsfaktorer!$B$9+K19*Emissionsfaktorer!$B$10+L19*Emissionsfaktorer!$B$11+M19*Emissionsfaktorer!$B$12) -> -3736.303164
N20: =N16 -> 550000 | O20: Energy Services | P20: EN | S20: -207562.0821 | T20: =AF20/N20*-1 -> 0.3773856039 | AF20: =AF16 -> -207562.0821 | AG20: =-(S20+N20) -> -342437.9179

Sheet Emissionsfaktorer (hidden)
B1: mio. ton/PJ
A2: Coal | B2: 0.095
A3: Crude Oil | B3: 0
A4: Oil products | B4: 0.076
A5: Natual Gas | B5: 0.057
A6: Nuclear | B6: 0
A7: Hydro | B7: 0
A8: Geothermal, Solar, Wind, etc. | B8: 0
A9: Biofuels and Waste | B9: 0
A10: Electricity | B10: 0
A11: Heat | B11: 0
A12: Energy Services | B12: 0
A13: Biofuels and Waste with cleaning | B13: 0.1

Sheet World 1995 (hidden)
B1: Coal* | C1: Crude oil | D1: Oil products | E1: Natural gas | F1: Nuclear | G1: Hydro | H1: Geothermal, solar, etc. | I1: Biofuels and waste | J1: Electricity | K1: Heat | L1: Total**
B2: ktoe | C2: ktoe | D2: ktoe | E2: ktoe | F2: ktoe | G2: ktoe | H2: ktoe | I2: ktoe | J2: ktoe | K2: ktoe | L2: ktoe
A3: Production | B3: 2219358 | C3: 3397556 | E3: 1810882 | F3: 608098 | G3: 212766 | H3: 42391 | I3: 966345 | K3: 399 | L3: 9257796
A4: Imports | B4: 332508 | C4: 1766044 | D4: 609168 | E4: 406863 | I4: 1973 | J4: 34551 | K4: 3 | L4: 3151109
A5: Exports | B5: -338991 | C5: -1732686 | D5: -679115 | E5: -407857 | I5: -882 | J5: -34713 | K5: -3 | L5: -3194248
A6: International marine bunkers
A7: International aviation bunkers
A8: Stock changes | B8: -5205 | C8: 2290 | D8: 10041 | E8: -3263 | I8: 32 | L8: 3894
A9: TES | B9: 2207669 | C9: 3433204 | D9: -59907 | E9: 1806624 | F9: 608098 | G9: 212766 | H9: 42391 | I9: 967469 | J9: -162 | K9: 399 | L9: 9218551
A10: Transfers | C10: -123289 | D10: 135813 | L10: 12524
A11: Statistical differences | B11: 31367 | C11: -5430 | D11: 2103 | E11: -7283 | H11: 4 | I11: 67 | J11: -884 | K11: -340 | L11: 19604
A12: Electricity plants | B12: -1112124 | C12: -38589 | D12: -225021 | E12: -291502 | F12: -600876 | G12: -212766 | H12: -36357 | I12: -21258 | J12: 1005047 | K12: -89 | L12: -1533535
A13: CHP plants | B13: -175670 | C13: -885 | D13: -40973 | E13: -237681 | F13: -7222 | H13: -536 | I13: -41185 | J13: 134474 | K13: 157134 | L13: -212545
A14: Heat plants | B14: -59437 | C14: -49 | D14: -33811 | E14: -98005 | H14: -371 | I14: -5323 | J14: -602 | K14: 174449 | L14: -23150
A15: Gas works | B15: -4690 | D15: -6695 | E15: 6334 | I15: -44 | L15: -5096
A16: Oil refineries | C16: -3275191 | D16: 3229228 | L16: -45963
A17: Coal transformation | B17: -152219 | C17: 66 | D17: -3595 | E17: -276 | I17: -44 | L17: -156068
A18: Liquefication plants | B18: -14389 | C18: 7814 | E18: -2846 | L18: -9421
A19: Other transformation | C19: 23669 | D19: -23392 | E19: -1533 | I19: -49765 | K19: -90 | L19: -51112
A20: Energy industry own use | B20: -50889 | C20: -6525 | D20: -183345 | E20: -150139 | I20: -7324 | J20: -105391 | K20: -26117 | L20: -529729
A21: Losses | B21: -9299 | C21: -3657 | D21: -589 | E21: -17827 | H21: -8 | I21: -227 | J21: -97474 | K21: -18693 | L21: -147774
A22: Total final consumption | B22: 660320 | C22: 11138 | D22: 2789815 | E22: 1005865 | H22: 5123 | I22: 842366 | J22: 935008 | K22: 286652 | L22: 6536286
A23: Industry | B23: 463124 | C23: 4029 | D23: 300665 | E23: 370446 | H23: 211 | I23: 123594 | J23: 407299 | K23: 121720 | L23: 1791088
A24: Transport | B24: 3235 | C24: 10 | D24: 1626119 | E24: 58904 | I24: 9754 | J24: 18039 | L24: 1716062
A25: Residential | B25: 113547 | C25: 133 | D25: 213482 | E25: 329299 | H25: 3296 | I25: 686471 | J25: 262432 | K25: 118031 | L25: 1726692
A26: Commercial and public services | B26: 21004 | C26: 5 | D26: 102658 | E26: 136920 | H26: 681 | I26: 13753 | J26: 204248 | K26: 23491 | L26: 502760
A27: Agriculture / forestry | B27: 12782 | C27: 3 | D27: 108943 | E27: 6372 | H27: 248 | I27: 6038 | J27: 31057 | K27: 8943 | L27: 174387
A28: Fishing | B28: 31 | D28: 5806 | E28: 2 | H28: 11 | J28: 194 | K28: 3 | L28: 6048
A29: Non-specified | B29: 24846 | C29: 424 | D29: 18386 | E29: 15056 | H29: 675 | I29: 2754 | J29: 11740 | K29: 14463 | L29: 88345
A30: Non-energy use | B30: 21751 | C30: 6534 | D30: 413755 | E30: 88865 | L30: 530906
B32: =SUM(B9,B10:B21,B22*-1) -> -1 | C32: =SUM(C9,C10:C21,C22*-1) -> 0 | D32: 1 | E32: 1 | F32: 0 | G32: 0 | H32: 0 | I32: 0 | J32: 0 | K32: 1 | L32: 0

Sheet World 2000 (hidden)
B1: Coal* | C1: Crude oil | D1: Oil products | E1: Natural gas | F1: Nuclear | G1: Hydro | H1: Geothermal, solar, etc. | I1: Biofuels and waste | J1: Electricity | K1: Heat | L1: Total**
B2: ktoe | C2: ktoe | D2: ktoe | E2: ktoe | F2: ktoe | G2: ktoe | H2: ktoe | I2: ktoe | J2: ktoe | K2: ktoe | L2: ktoe
A3: Production | B3: 2278274 | C3: 3707551 | E3: 2064486 | F3: 675467 | G3: 224663 | H3: 60262 | I3: 1013596 | K3: 689 | L3: 10024988
A4: Imports | B4: 409119 | C4: 2075573 | D4: 720657 | E4: 534897 | I4: 1256 | J4: 44892 | K4: 3 | L4: 3786396
A5: Exports | B5: -411503 | C5: -2027230 | D5: -790476 | E5: -540283 | I5: -1141 | J5: -44027 | K5: -7 | L5: -3814666
A6: International marine bunkers
A7: International aviation bunkers
A8: Stock changes | B8: 41245 | C8: -4228 | D8: -12370 | E8: 12134 | I8: 948 | L8: 37729
A9: TES | B9: 2317134 | C9: 3751665 | D9: -82188 | E9: 2071233 | F9: 675467 | G9: 224663 | H9: 60262 | I9: 1014659 | J9: 865 | K9: 686 | L9: 10034446
A10: Transfers | C10: -136765 | D10: 157098 | L10: 20333
A11: Statistical differences | B11: 19381 | C11: -15466 | D11: 31344 | E11: -4174 | H11: -109 | I11: 331 | J11: 794 | K11: -222 | L11: 31880
A12: Electricity plants | B12: -1319704 | C12: -23249 | D12: -255495 | E12: -409306 | F12: -669122 | G12: -224663 | H12: -50163 | I12: -25694 | J12: 1184179 | K12: -227 | L12: -1793443
A13: CHP plants | B13: -174015 | C13: -898 | D13: -39768 | E13: -240169 | F13: -6345 | H13: -885 | I13: -25062 | J13: 142300 | K13: 139866 | L13: -204975
A14: Heat plants | B14: -67707 | C14: -1141 | D14: -20469 | E14: -97832 | H14: -458 | I14: -5811 | J14: -524 | K14: 152004 | L14: -41938
A15: Gas works | B15: -5784 | D15: -5333 | E15: 5771 | I15: -19 | L15: -5366
A16: Oil refineries | C16: -3587072 | D16: 3558431 | L16: -28642
A17: Coal transformation | B17: -152090 | C17: 52 | D17: -3442 | E17: -194 | L17: -155675
A18: Liquefication plants | B18: -15219 | C18: 8088 | E18: -1849 | L18: -8979
A19: Other transformation | B19: -142 | C19: 33194 | D19: -32472 | E19: -4797 | I19: -49755 | K19: -237 | L19: -54209
A20: Energy industry own use | B20: -57370 | C20: -9600 | D20: -200898 | E20: -179781 | I20: -5675 | J20: -118651 | K20: -24191 | L20: -596166
A21: Losses | B21: -2793 | C21: -5083 | D21: -1071 | E21: -19656 | H21: -8 | I21: -170 | J21: -117167 | K21: -19288 | L21: -165236
A22: Total final consumption | B22: 541691 | C22: 13726 | D22: 3105737 | E22: 1119246 | H22: 8639 | I22: 902805 | J22: 1091798 | K22: 248390 | L22: 7032031
A23: Industry | B23: 399555 | C23: 5275 | D23: 315598 | E23: 425310 | H23: 420 | I23: 160022 | J23: 464549 | K23: 100575 | L23: 1871304
A24: Transport | B24: 613 | C24: 10 | D24: 1875717 | E24: 57736 | I24: 9933 | J24: 18757 | L24: 1962766
A25: Residential | B25: 77007 | C25: 722 | D25: 226996 | E25: 369531 | H25: 6390 | I25: 707408 | J25: 306262 | K25: 109797 | L25: 1804114
A26: Commercial and public services | B26: 15472 | D26: 98287 | E26: 143119 | H26: 1308 | I26: 15577 | J26: 257447 | K26: 23793 | L26: 555003
A27: Agriculture / forestry | B27: 7703 | C27: 1 | D27: 95865 | E27: 5841 | H27: 363 | I27: 5733 | J27: 28547 | K27: 5141 | L27: 149194
A28: Fishing | B28: 9 | D28: 5943 | E28: 1 | H28: 67 | I28: 1 | J28: 144 | K28: 4 | L28: 6169
A29: Non-specified | B29: 19164 | C29: 279 | D29: 15666 | E29: 12878 | H29: 91 | I29: 4132 | J29: 16092 | K29: 9080 | L29: 77382
A30: Non-energy use | B30: 22168 | C30: 7439 | D30: 471665 | E30: 104830 | L30: 606101
B32: =SUM(B9,B10:B21,B22*-1) -> 0 | C32: =SUM(C9,C10:C21,C22*-1) -> -1 | D32: 0 | E32: 0 | F32: 0 | G32: 0 | H32: 0 | I32: -1 | J32: -2 | K32: 1 | L32: -1

Sheet World 2005 (hidden)
B1: Coal* | C1: Crude oil | D1: Oil products | E1: Natural gas | F1: Nuclear | G1: Hydro | H1: Geothermal, solar, etc. | I1: Biofuels and waste | J1: Electricity | K1: Heat | L1: Total**
B2: ktoe | C2: ktoe | D2: ktoe | E2: ktoe | F2: ktoe | G2: ktoe | H2: ktoe | I2: ktoe | J2: ktoe | K2: ktoe | L2: ktoe
A3: Production | B3: 2997579 | C3: 4047845 | E3: 2372242 | F3: 721706 | G3: 252334 | H3: 70143 | I3: 1087885 | K3: 878 | L3: 11550613
A4: Imports | B4: 512939 | C4: 2318621 | D4: 911688 | E4: 708370 | I4: 5003 | J4: 53187 | K4: 4 | L4: 4509812
A5: Exports | B5: -528755 | C5: -2271463 | D5: -999194 | E5: -726677 | I5: -4199 | J5: -53490 | K5: -9 | L5: -4583787
A6: International marine bunkers
A7: International aviation bunkers
A8: Stock changes | B8: 8838 | C8: -2564 | D8: 5134 | E8: 6086 | I8: 272 | L8: 17766
A9: TES | B9: 2990601 | C9: 4092438 | D9: -82371 | E9: 2360022 | F9: 721706 | G9: 252334 | H9: 70143 | I9: 1088960 | J9: -302 | K9: 873 | L9: 11494403
A10: Transfers | C10: -165738 | D10: 183249 | L10: 17511
A11: Statistical differences | B11: 6107 | C11: -9318 | D11: 2329 | E11: 6662 | H11: -15 | I11: 220 | J11: 1702 | K11: 159 | L11: 7847
A12: Electricity plants | B12: -1402568 | C12: -22838 | D12: -223792 | E12: -534600 | F12: -710298 | G12: -252334 | H12: -56500 | I12: -38990 | J12: 1323385 | K12: -515 | L12: -1919050
A13: CHP plants | B13: -463952 | C13: -61 | D13: -33820 | E13: -295435 | F13: -11407 | H13: -958 | I13: -33835 | J13: 248677 | K13: 193346 | L13: -397446
A14: Heat plants | B14: -23505 | C14: -792 | D14: -14926 | E14: -93786 | H14: -641 | I14: -7491 | J14: -366 | K14: 125488 | L14: -16019
A15: Gas works | B15: -9255 | D15: -3931 | E15: 4174 | I15: -12 | L15: -9024
A16: Oil refineries | C16: -3902798 | D16: 3858918 | L16: -43880
A17: Coal transformation | B17: -192949 | C17: 23 | D17: -2993 | E17: -105 | I17: -5 | L17: -196028
A18: Liquefication plants | B18: -6330 | C18: 4826 | E18: -4346 | L18: -5850
A19: Other transformation | B19: -213 | C19: 32921 | D19: -32243 | E19: -4207 | I19: -59069 | K19: -221 | L19: -63031
A20: Energy industry own use | B20: -69526 | C20: -10118 | D20: -217012 | E20: -220371 | I20: -8474 | J20: -134462 | K20: -34022 | L20: -693984
A21: Losses | B21: -3001 | C21: -6023 | D21: -635 | E21: -23421 | H21: -10 | I21: -334 | J21: -137340 | K21: -24836 | L21: -195598
A22: Total final consumption | B22: 825410 | C22: 12525 | D22: 3432774 | E22: 1194586 | H22: 12019 | I22: 940969 | J22: 1301294 | K22: 260273 | L22: 7979851
A23: Industry | B23: 652641 | C23: 4558 | D23: 322617 | E23: 431368 | H23: 489 | I23: 171555 | J23: 539623 | K23: 114077 | L23: 2236928
A24: Transport | B24: 262 | C24: 19 | D24: 2102360 | E24: 73957 | I24: 19327 | J24: 22347 | L24: 2218273
A25: Residential | B25: 78495 | D25: 230375 | E25: 397603 | H25: 8947 | I25: 718919 | J25: 362424 | K25: 100707 | L25: 1897469
A26: Commercial and public services | B26: 25300 | C26: 31 | D26: 98448 | E26: 157794 | H26: 1941 | I26: 20871 | J26: 306830 | K26: 31609 | L26: 642824
A27: Agriculture / forestry | B27: 12365 | C27: 7 | D27: 107188 | E27: 7830 | H27: 384 | I27: 7466 | J27: 35325 | K27: 3808 | L27: 174375
A28: Fishing | B28: 12 | D28: 7553 | E28: 26 | H28: 85 | I28: 1 | J28: 361 | K28: 16 | L28: 8054
A29: Non-specified | B29: 26515 | D29: 19655 | E29: 5493 | H29: 174 | I29: 2830 | J29: 34384 | K29: 10055 | L29: 99106
A30: Non-energy use | B30: 29820 | C30: 7909 | D30: 544577 | E30: 120516 | L30: 702822
B32: =SUM(B9,B10:B21,B22*-1) -> -1 | C32: =SUM(C9,C10:C21,C22*-1) -> -3 | D32: -1 | E32: 1 | F32: 1 | G32: 0 | H32: 0 | I32: 1 | J32: 0 | K32: -1 | L32: 0

Sheet World 2010 (hidden)
B1: Coal* | C1: Crude oil | D1: Oil products | E1: Natural gas | F1: Nuclear | G1: Hydro | H1: Geothermal, solar, etc. | I1: Biofuels and waste | J1: Electricity | K1: Heat | L1: Total**
B2: ktoe | C2: ktoe | D2: ktoe | E2: ktoe | F2: ktoe | G2: ktoe | H2: ktoe | I2: ktoe | J2: ktoe | K2: ktoe | L2: ktoe
A3: Production | B3: 3662889 | C3: 4093272 | E3: 2715919 | F3: 718713 | G3: 296474 | H3: 110200 | I3: 1202478 | K3: 1131 | L3: 12801076
A4: Imports | B4: 668702 | C4: 2281341 | D4: 1112353 | E4: 822855 | I4: 14334 | J4: 50597 | K4: 5 | L4: 4950187
A5: Exports | B5: -679282 | C5: -2180182 | D5: -1156247 | E5: -820361 | I5: -10805 | J5: -50820 | K5: -9 | L5: -4897705
A6: International marine bunkers
A7: International aviation bunkers
A8: Stock changes | B8: -2511 | C8: -23606 | D8: 429 | E8: 17538 | I8: -721 | L8: -8871
A9: TES | B9: 3649798 | C9: 4170825 | D9: -43465 | E9: 2735952 | F9: 718713 | G9: 296474 | H9: 110200 | I9: 1205287 | J9: -223 | K9: 1127 | L9: 12844687
A10: Transfers | B10: -354 | C10: -161259 | D10: 182472 | I10: -47 | L10: 20811
A11: Statistical differences | B11: -44766 | C11: -1664 | D11: -13165 | E11: 9920 | H11: 2 | I11: -3341 | J11: -3722 | K11: -1644 | L11: -58379
A12: Electricity plants | B12: -1584680 | C12: -34079 | D12: -193731 | E12: -708920 | F12: -711321 | G12: -296474 | H12: -85857 | I12: -66891 | J12: 1549052 | K12: -569 | L12: -2133470
A13: CHP plants | B13: -559582 | C13: -11 | D13: -21468 | E13: -317608 | F13: -7392 | H13: -2045 | I13: -43061 | J13: 301667 | K13: 212271 | L13: -437228
A14: Heat plants | B14: -27185 | C14: -809 | D14: -15188 | E14: -87033 | H14: -882 | I14: -10736 | J14: -350 | K14: 126560 | L14: -15623
A15: Gas works | B15: -4456 | D15: -2995 | E15: 3742 | I15: -35 | L15: -3743
A16: Oil refineries | C16: -3976717 | D16: 3937994 | L16: -38723
A17: Coal transformation | B17: -245086 | D17: -3334 | E17: -54 | I17: -27 | L17: -248502
A18: Liquefication plants | B18: -7206 | C18: 7030 | E18: -6854 | L18: -7030
A19: Other transformation | B19: -209 | C19: 36200 | D19: -33157 | E19: -5647 | I19: -65131 | K19: -369 | L19: -68314
A20: Energy industry own use | B20: -114346 | C20: -9417 | D20: -218432 | E20: -252290 | H20: -2 | I20: -13685 | J20: -157369 | K20: -40376 | L20: -805916
A21: Losses | B21: -3451 | C21: -8160 | D21: -771 | E21: -25385 | H21: -10 | I21: -254 | J21: -151058 | K21: -21748 | L21: -210838
A22: Total final consumption | B22: 1058479 | C22: 21939 | D22: 3574760 | E22: 1345822 | H22: 21407 | I22: 1002077 | J22: 1537998 | K22: 275250 | L22: 8837731
A23: Industry | B23: 867087 | C23: 9484 | D23: 312169 | E23: 498985 | H23: 470 | I23: 184557 | J23: 640811 | K23: 124484 | L23: 2638047
A24: Transport | B24: 187 | C24: 37 | D24: 2258498 | E24: 89198 | I24: 56495 | J24: 25364 | L24: 2429780
A25: Residential | B25: 76964 | C25: 555 | D25: 206906 | E25: 429486 | H25: 15301 | I25: 724580 | J25: 427705 | K25: 105843 | L25: 1987340
A26: Commercial and public services | B26: 32492 | C26: 118 | D26: 87196 | E26: 175420 | H26: 4495 | I26: 24215 | J26: 357798 | K26: 35645 | L26: 717378
A27: Agriculture / forestry | B27: 13173 | C27: 94 | D27: 105203 | E27: 8265 | H27: 564 | I27: 9851 | J27: 41578 | K27: 4019 | L27: 182748
A28: Fishing | B28: 11 | D28: 7390 | E28: 17 | H28: 59 | I28: 9 | J28: 505 | K28: 39 | L28: 8031
A29: Non-specified | B29: 32543 | C29: 18 | D29: 20775 | E29: 3439 | H29: 517 | I29: 2369 | J29: 44236 | K29: 5220 | L29: 109118
A30: Non-energy use | B30: 36021 | C30: 11633 | D30: 576622 | E30: 141013 | L30: 765290
B32: =SUM(B9,B10:B21,B22*-1) -> -2 | C32: =SUM(C9,C10:C21,C22*-1) -> 0 | D32: 0 | E32: 1 | F32: 0 | G32: 0 | H32: -1 | I32: 2 | J32: -1 | K32: 2 | L32: 1

Sheet World 2015 (hidden)
B1: Coal* | C1: Crude oil | D1: Oil products | E1: Natural gas | F1: Nuclear | G1: Hydro | H1: Geothermal, solar, etc. | I1: Biofuels and waste | J1: Electricity | K1: Heat | L1: Total**
B2: ktoe | C2: ktoe | D2: ktoe | E2: ktoe | F2: ktoe | G2: ktoe | H2: ktoe | I2: ktoe | J2: ktoe | K2: ktoe | L2: ktoe
A3: Production | B3: 3877572 | C3: 4419467 | E3: 2966252 | F3: 670172 | G3: 334851 | H3: 203821 | I3: 1265443 | K3: 1867 | L3: 13739445
A4: Imports | B4: 765186 | C4: 2312966 | D4: 1276375 | E4: 878814 | I4: 23451 | J4: 64620 | K4: 6 | L4: 5321418
A5: Exports | B5: -795086 | C5: -2264148 | D5: -1380269 | E5: -900334 | I5: -18044 | J5: -63001 | K5: -5 | L5: -5420889
A6: International marine bunkers
A7: International aviation bunkers
A8: Stock changes | B8: -4929 | C8: -18429 | D8: -17727 | E8: -15937 | I8: 385 | L8: -56637
A9: TES | B9: 3842742 | C9: 4449855 | D9: -121622 | E9: 2928795 | F9: 670172 | G9: 334851 | H9: 203821 | I9: 1271235 | J9: 1619 | K9: 1868 | L9: 13583338
A10: Transfers | B10: -971 | C10: -216085 | D10: 241416 | I10: -27 | L10: 24334
A11: Statistical differences | B11: -19322 | C11: -4961 | D11: 37804 | E11: 15714 | H11: -24 | I11: -2245 | J11: -6508 | K11: 407 | L11: 20867
A12: Electricity plants | B12: -1686083 | C12: -46486 | D12: -188553 | E12: -818301 | F12: -662593 | G12: -334851 | H12: -158438 | I12: -96750 | J12: 1759146 | K12: -873 | L12: -2233784
A13: CHP plants | B13: -618700 | C13: -7 | D13: -18488 | E13: -321488 | F13: -7579 | H13: -2729 | I13: -59613 | J13: 328588 | K13: 228299 | L13: -471718
A14: Heat plants | B14: -23963 | C14: -654 | D14: -11541 | E14: -62264 | H14: -1205 | I14: -11556 | J14: -373 | K14: 98066 | L14: -13491
A15: Gas works | B15: -8451 | C15: -3 | D15: -2482 | E15: 4592 | I15: -220 | L15: -6565
A16: Oil refineries | C16: -4208441 | D16: 4127460 | L16: -80981
A17: Coal transformation | B17: -282304 | D17: -2551 | E17: -64 | I17: -166 | L17: -285085
A18: Liquefication plants | B18: -10105 | C18: 14376 | E18: -17894 | L18: -13623
A19: Other transformation | B19: -368 | C19: 46461 | D19: -35562 | E19: -12974 | I19: -77406 | K19: -569 | L19: -80417
A20: Energy industry own use | B20: -92711 | C20: -12077 | D20: -213705 | E20: -273590 | I20: -14408 | J20: -176684 | K20: -36950 | L20: -820124
A21: Losses | B21: -2503 | C21: -8478 | D21: -391 | E21: -19864 | H21: -11 | I21: -189 | J21: -165064 | K21: -18265 | L21: -214765
A22: Total final consumption | B22: 1097261 | C22: 13500 | D22: 3811786 | E22: 1422661 | H22: 41414 | I22: 1008654 | J22: 1740726 | K22: 271984 | L22: 9407986
A23: Industry | B23: 888001 | C23: 3556 | D23: 292606 | E23: 541402 | H23: 850 | I23: 199657 | J23: 733588 | K23: 124658 | L23: 2784319
A24: Transport | B24: 55 | C24: 15 | D24: 2486875 | E24: 97764 | I24: 78151 | J24: 28795 | L24: 2691655
A25: Residential | B25: 74956 | D25: 204943 | E25: 423166 | H25: 29973 | I25: 688011 | J25: 472082 | K25: 102624 | L25: 1995755
A26: Commercial and public services | B26: 34778 | D26: 82279 | E26: 185474 | H26: 7680 | I26: 29396 | J26: 387199 | K26: 34421 | L26: 761226
A27: Agriculture / forestry | B27: 15327 | C27: 10 | D27: 106938 | E27: 9229 | H27: 1878 | I27: 11187 | J27: 49932 | K27: 3074 | L27: 197573
A28: Fishing | B28: 1 | D28: 6363 | E28: 97 | H28: 43 | I28: 22 | J28: 616 | K28: 31 | L28: 7173
A29: Non-specified | B29: 29839 | C29: 58 | D29: 23450 | E29: 3520 | H29: 990 | I29: 2230 | J29: 68514 | K29: 7176 | L29: 135777
A30: Non-energy use | B30: 54305 | C30: 9861 | D30: 608332 | E30: 162009 | L30: 834508
B32: =SUM(B9,B10:B21,B22*-1) -> 0 | C32: =SUM(C9,C10:C21,C22*-1) -> 0 | D32: -1 | E32: 1 | F32: 0 | G32: 0 | H32: 0 | I32: 1 | J32: -2 | K32: -1 | L32: 0

Sheet World 2018 (hidden)
B1: Coal* | C1: Crude oil | D1: Oil products | E1: Natural gas | F1: Nuclear | G1: Hydro | H1: Geothermal, solar, etc. | I1: Biofuels and waste | J1: Electricity | K1: Heat | L1: Total**
B2: ktoe | C2: ktoe | D2: ktoe | E2: ktoe | F2: ktoe | G2: ktoe | H2: ktoe | I2: ktoe | J2: ktoe | K2: ktoe | L2: ktoe
A3: Production | B3: 3893679 | C3: 4552548 | E3: 3293124 | F3: 706814 | G3: 362332 | H3: 286377 | I3: 1324214 | K3: 2062 | L3: 14421151
A4: Imports | B4: 829289 | C4: 2479487 | D4: 1396839 | E4: 985018 | I4: 29259 | J4: 62626 | K4: 6 | L4: 5782524
A5: Exports | B5: -879689 | C5: -2440069 | D5: -1488672 | E5: -1019823 | I5: -25250 | J5: -62373 | K5: -2 | L5: -5915877
A6: International marine bunkers
A7: International aviation bunkers
A8: Stock changes | B8: -4954 | C8: -6450 | D8: 3316 | E8: 3276 | I8: -1096 | L8: -5909
A9: TES | B9: 3838326 | C9: 4585516 | D9: -88517 | E9: 3261595 | F9: 706814 | G9: 362332 | H9: 286377 | I9: 1327127 | J9: 253 | K9: 2066 | L9: 14281889
A10: Transfers | B10: -1156 | C10: -230550 | D10: 261068 | L10: 29362
A11: Statistical differences | B11: -27371 | C11: 4874 | D11: 9542 | E11: -3130 | H11: -42 | I11: -118 | J11: -5139 | K11: 3966 | L11: -17417
A12: Electricity plants | B12: -1758789 | C12: -30837 | D12: -146137 | E12: -910907 | F12: -703393 | G12: -362332 | H12: -233459 | I12: -135891 | J12: 1931734 | K12: -894 | L12: -2350907
A13: CHP plants | B13: -676202 | C13: -21 | D13: -15484 | E13: -333421 | F13: -3421 | H13: -2921 | I13: -64690 | J13: 357078 | K13: 255095 | L13: -483987
A14: Heat plants | B14: -24095 | C14: -473 | D14: -9864 | E14: -59921 | H14: -1618 | I14: -12433 | J14: -711 | K14: 101664 | L14: -7452
A15: Gas works | B15: -9659 | D15: -2817 | E15: 5137 | I15: -671 | L15: -8011
A16: Oil refineries | C16: -4361958 | D16: 4269234 | L16: -92723
A17: Coal transformation | B17: -246837 | D17: -2529 | E17: -56 | I17: -160 | L17: -249583
A18: Liquefication plants | B18: -17168 | C18: 15456 | E18: -11303 | L18: -13015
A19: Other transformation | B19: -275 | C19: 48551 | D19: -36636 | E19: -14738 | I19: -85124 | K19: -541 | L19: -88764
A20: Energy industry own use | B20: -79961 | C20: -9869 | D20: -199045 | E20: -302707 | H20: -3 | I20: -15473 | J20: -192975 | K20: -39152 | L20: -839185
A21: Losses | B21: -2313 | C21: -8100 | D21: -313 | E21: -19204 | H21: -11 | I21: -192 | J21: -171460 | K21: -20909 | L21: -222503
A22: Total final consumption | B22: 994497 | C22: 12588 | D22: 4038502 | E22: 1611345 | H22: 48322 | I22: 1012374 | J22: 1918779 | K22: 301295 | L22: 9937703
A23: Industry | B23: 796792 | C23: 2500 | D23: 290436 | E23: 597863 | H23: 1022 | I23: 204047 | J23: 804964 | K23: 141690 | L23: 2839313
A24: Transport | B24: 53 | C24: 71 | D24: 2650434 | E24: 117175 | I24: 89642 | J24: 33525 | L24: 2890900
A25: Residential | B25: 74877 | D25: 218297 | E25: 481530 | H25: 34973 | I25: 673755 | J25: 516595 | K25: 109177 | L25: 2109205
A26: Commercial and public services | B26: 30265 | D26: 79180 | E26: 207178 | H26: 8644 | I26: 30823 | J26: 412627 | K26: 39901 | L26: 808619
A27: Agriculture / forestry | B27: 15601 | C27: 2 | D27: 111062 | E27: 10348 | H27: 2347 | I27: 12005 | J27: 58873 | K27: 4482 | L27: 214719
A28: Fishing | B28: 2 | D28: 6151 | E28: 50 | H28: 58 | I28: 24 | J28: 665 | K28: 55 | L28: 7005
A29: Non-specified | B29: 25404 | C29: 3 | D29: 21307 | E29: 3590 | H29: 1278 | I29: 2078 | J29: 91530 | K29: 5989 | L29: 151179
A30: Non-energy use | B30: 51503 | C30: 10012 | D30: 661634 | E30: 193612 | L30: 916762
B32: =SUM(B9,B10:B21,B22*-1) -> 3 | C32: =SUM(C9,C10:C21,C22*-1) -> 1 | D32: 0 | E32: 0 | F32: 0 | G32: 0 | H32: 1 | I32: 1 | J32: 1 | K32: 0 | L32: 1

Sheet BL Non OECD total 2050 (hidden)
B1: Consumption | C1: Coal | D1: Crude oil | E1: Oil Products | F1: Natual Gas | G1: Nuclear | H1: Hydro | I1: Geothermal, solar, wind, etc. | J1: Biofuels and waste | K1: Electricity | L1: Heat | M1: Energy Services | N1: Total consumption | O1: Non OECD total 2050 | R1: Faktor | S1: Total production | T1: Efficiency | U1: Production | V1: Coal | W1: Crude oil | X1: Oil Products | Y1: Natual Gas | Z1: Nuclear | AA1: Hydro | AB1: Geothermal, solar, wind, etc. | AC1: Biofuels and waste | AD1: Electricity | AE1: Heat | AF1: Energy Services | AG1: Loss | AH1: CO2-emissions
A2: ID | B2: C | C2: CC | D2: CCO | E2: COP | F2: CNG | G2: CNU | H2: CHY | I2: CGSW | J2: CWB | K2: CE | L2: CH | M2: CES | N2: fbrbr | P2: ID | Q2: ID Parent | R2: factor | S2: pbrpr | T2: pvrkg | U2: P | V2: PC | W2: PCO | X2: POP | Y2: PNG | Z2: PNU | AA2: PHY | AB2: PGSW | AC2: PWB | AD2: PE | AE2: PH | AF2: PES | AG2: PTAB | AH2: PCO2
A3: ID Parent | C3: C | D3: C | E3: C | F3: C | G3: C | H3: C | I3: C | J3: C | K3: C | L3: C | M3: C | O3: Structures | V3: P | W3: P | X3: P | Y3: P | Z3: P | AA3: P | AB3: P | AC3: P | AD3: P | AE3: P | AF3: P
A4: Factor | U4: =B4 -> 0 | AG4: =U4 -> 0 | AH4: =U4 -> 0
N5: =SUM(C5:M5) -> 0 | O5: Entry fuels | P5: ETP | S5: =SUM(V5:AF5) ->  | V5: =-(C6+C5) ->  | W5: =-(D6+D5) ->  | Y5: =-(F6+F5) ->  | Z5: =-(G6+G5) ->  | AC5: =-(J6+J5) -> 
C6: =-V6 ->  | D6: =-W6 ->  | F6: =-Y6 ->  | G6: =-Z6 ->  | J6: =-AC6 ->  | N6: =SUM(C6:M6) ->  | O6: Transport of fuels | P6: TRAP | S6: =SUM(V6:AF6) ->  | V6: =-(C16+C8) ->  | W6: =-(D16+D8) ->  | Y6: =-(F16+F8) ->  | Z6: =-(G16+G8) ->  | AC6: =-(J16+J8) ->  | AG6: =-(N6+S6) -> 
N7: 0 | O7: Entry On-Grid RE | P7: ELP1 | AA7: =-H8 ->  | AB7: =-I8 -> 
C8: =SUM(C9:C13) ->  | D8: =SUM(D9:D13) ->  | M8: 0 | O8: Entry electricity, district heating and oil products | P8: ES | V8: =SUM(V9:V13) -> 0 | X8: =(E14+E8)*-1 ->  | AD8: =(K14+K8)*-1 ->  | AE8: =(L14+L8)*-1 ->  | AG8: =-(N8+S8) ->  | AH8: =SUM(AH9:AH13) -> 
C9: =-($AD$9+$H$9+$I$9)/$T$9*#REF! ->  | D9: =-($AD$9+$H$9+$I$9)/$T$9*#REF! ->  | E9: =-($AD$9+$H$9+$I$9)/$T$9*#REF! ->  | F9: =-($AD$9+$H$9+$I$9)/$T$9*#REF! ->  | G9: =-($AD$9+$H$9+$I$9)/$T$9*#REF! ->  | H9: =AD9*#REF!*-1 ->  | I9: =AD9*#REF!*-1 ->  | J9: =-($AD$9+$H$9+$I$9)/$T$9*#REF! ->  | O9: Electricity-only plants | P9: ESEP | Q9: ES | T9: =#REF! ->  | AD9: =AD8-AD10 ->  | AG9: =-(S9+N9) ->  | AH9: =-(C9*Emissionsfaktorer!$B$2*(1-#REF!)+D9*Emissionsfaktorer!$B$3+E9*Emissionsfaktorer!$B$4*(1-#REF!)+F9*Emissionsfaktorer!$B$5*(1-#REF!)+G9*Emissionsfaktorer!$B$6+H9*Emissionsfaktorer!$B$7+I9*Emissionsfaktorer!$B$8-J9*Emissionsfaktorer!B13*#REF!+K9*Emissionsfaktorer!$B$10+L9*Emissionsfaktorer!$B$11+M9*Emissionsfaktorer!$B$12) -> 
C10: =-($AD$10+$AE$10+$H$10+$I$10)/IF($T$10=0,1,T10)*#REF! ->  | D10: =-($AD$10+$AE$10+$H$10+$I$10)/IF($T$10=0,1,T10)*#REF! ->  | E10: =-($AD$10+$AE$10+$H$10+$I$10)/IF($T$10=0,1,T10)*#REF! ->  | F10: =-($AD$10+$AE$10+$H$10+$I$10)/IF($T$10=0,1,T10)*#REF! ->  | G10: =-($AD$10+$AE$10+$H$10+$I$10)/IF($T$10=0,1,T10)*#REF! ->  | I10: =(AD10+AE10)*#REF!*-1 ->  | J10: =-($AD$10+$AE$10+$H$10+$I$10)/IF($T$10=0,1,T10)*#REF! ->  | O10: CHP plants | P10: ESCHP | Q10: ES | T10: =#REF! ->  | AD10: =AE10*#REF! ->  | AE10: =AE8*#REF! ->  | AG10: =-(S10+N10) ->  | AH10: =-(C10*Emissionsfaktorer!$B$2*(1-#REF!)+D10*Emissionsfaktorer!$B$3+E10*Emissionsfaktorer!$B$4*(1-#REF!)+F10*Emissionsfaktorer!$B$5*(1-#REF!)+G10*Emissionsfaktorer!$B$6+H10*Emissionsfaktorer!$B$7+I10*Emissionsfaktorer!$B$8-J10*Emissionsfaktorer!B14*#REF!+K10*Emissionsfaktorer!$B$10+L10*Emissionsfaktorer!$B$11+M10*Emissionsfaktorer!$B$12) -> 
C11: =-($AE$11+$H$11+$I$11)/IF($T$11=0,1,$T$11)*#REF! ->  | D11: =-($AE$11+$H$11+$I$11)/IF($T$11=0,1,$T$11)*#REF! ->  | E11: =-($AE$11+$H$11+$I$11)/IF($T$11=0,1,$T$11)*#REF! ->  | F11: =-($AE$11+$H$11+$I$11)/IF($T$11=0,1,$T$11)*#REF! ->  | G11: =-($AE$11+$H$11+$I$11)/IF($T$11=0,1,$T$11)*#REF! ->  | I11: =AE11*#REF!*-1 ->  | J11: =-($AE$11+$H$11+$I$11)/IF($T$11=0,1,$T$11)*#REF! ->  | K11: =AE11*#REF!*-1 ->  | O11: Heat Plants | P11: ESHP | Q11: ES | T11: =#REF! ->  | AE11: =AE8*#REF! ->  | AG11: =-(S11+N11) ->  | AH11: =-(C11*Emissionsfaktorer!$B$2+D11*Emissionsfaktorer!$B$3+E11*Emissionsfaktorer!$B$4+F11*Emissionsfaktorer!$B$5+G11*Emissionsfaktorer!$B$6+H11*Emissionsfaktorer!$B$7+I11*Emissionsfaktorer!$B$8+J11*Emissionsfaktorer!$B$9+K11*Emissionsfaktorer!$B$10+L11*Emissionsfaktorer!$B$11+M11*Emissionsfaktorer!$B$12) -> 
D12: =-X12/IF(T12=0,1,T12)*#REF! ->  | J12: =-X12/IF(T12=0,1,T12)*#REF! ->  | O12: Oil refineries | P12: ESOR | Q12: ES | T12: =#REF! ->  | X12: =-(E9+E10+E11+E13+E14) ->  | AG12: =-(S12+N12) ->  | AH12: =J12*Emissionsfaktorer!B4 -> 
C13: =N13*#REF! ->  | D13: =N13*#REF! ->  | E13: =N13*#REF! ->  | F13: =N13*#REF! ->  | J13: =N13*#REF! ->  | K13: =N13*#REF! ->  | L13: =N13*#REF! ->  | N13: =N16*#REF! ->  | O13: Energy Industry one use | P13: ESNSP | Q13: ES | S13: 0 | T13: 0 | AG13: =-(S13+N13) ->  | AH13: =-(C13*Emissionsfaktorer!$B$2+D13*Emissionsfaktorer!$B$3+E13*Emissionsfaktorer!$B$4+F13*Emissionsfaktorer!$B$5+G13*Emissionsfaktorer!$B$6+H13*Emissionsfaktorer!$B$7+I13*Emissionsfaktorer!$B$8+J13*Emissionsfaktorer!$B$9+K13*Emissionsfaktorer!$B$10+L13*Emissionsfaktorer!$B$11+M13*Emissionsfaktorer!$B$12) -> 
E14: =-X14*1 ->  | K14: =-AD14*(1+#REF!) ->  | L14: =-AE14*(1+#REF!) ->  | O14: Transport electricity, district heating and oil products | P14: TRAS | X14: =-E16 ->  | AD14: =-K16 ->  | AE14: =-L16 ->  | AG14: =-(N14+S14) -> 
N15: 0 | O15: Entry Off-Grid RE | P15: ELP2 | AB15: =I16*-1 -> 
C16: =SUM(C17:C19) ->  | G16: 0 | H16: 0 | M16: 0 | N16: =#REF! ->  | O16: Exit energy | P16: EX | AF16: =SUM(AF17:AF19) ->  | AG16: =SUM(AG17:AG19) ->  | AH16: =SUM(AH17:AH19) -> 
C17: =AF17*#REF!/T17*#REF!/#REF!*-1 ->  | D17: =AF17*#REF!/T17*#REF!/#REF!*-1 ->  | E17: =AF17*#REF!/T17*#REF!/#REF!*-1 ->  | F17: =AF17*#REF!/T17*#REF!/#REF!*-1 ->  | I17: =AF17*#REF!/T17*#REF!/#REF!*-1 ->  | J17: =AF17*#REF!*#REF!/T17/#REF!*-1 ->  | K17: =AF17*#REF!*#REF!/T17/#REF!*-1 ->  | L17: =AF17*#REF!*#REF!/T17/#REF!*-1 ->  | N17: =SUM(C17:L17) ->  | O17: Industry | P17: EXI | Q17: EX | T17: =(#REF!+#REF!+#REF!+#REF!+#REF!)*#REF!+(#REF!+#REF!)*#REF!+#REF!*#REF! ->  | AF17: =#REF!*#REF!*((#REF!+#REF!+#REF!+#REF!+#REF!)*#REF!+(#REF!+#REF!)*#REF!+#REF!*#REF!)*-1 ->  | AG17: =(S17+SUM(C17:M17))*-1 ->  | AH17: =-(C17*Emissionsfaktorer!$B$2+D17*Emissionsfaktorer!$B$3+E17*Emissionsfaktorer!$B$4+F17*Emissionsfaktorer!$B$5+G17*Emissionsfaktorer!$B$6+H17*Emissionsfaktorer!$B$7+I17*Emissionsfaktorer!$B$8+J17*Emissionsfaktorer!$B$9+K17*Emissionsfaktorer!$B$10+L17*Emissionsfaktorer!$B$11+M17*Emissionsfaktorer!$B$12) -> 
C18: =AF18*#REF!/T18*#REF!/#REF!*-1 ->  | E18: =AF18*#REF!/T18*#REF!/#REF!*-1 ->  | F18: =AF18*#REF!/T18*#REF!/#REF!*-1 ->  | I18: =AF18*#REF!/T18*#REF!/#REF!*-1 ->  | J18: =AF18*#REF!/T18*#REF!/#REF!*-1 ->  | K18: =AF18*#REF!/T18*#REF!/#REF!*-1 ->  | L18: =AF18*#REF!/T18*#REF!/#REF!*-1 ->  | N18: =SUM(C18:L18) ->  | O18: Transport | P18: EXT | Q18: EX | T18: =(#REF!+#REF!+#REF!+#REF!)*#REF!+(#REF!+#REF!)*#REF!+#REF!*#REF! ->  | AF18: =#REF!*#REF!*-1*((#REF!+#REF!+#REF!+#REF!)*#REF!+(#REF!+#REF!)*#REF!+#REF!*#REF!) ->  | AG18: =(S18+SUM(C18:M18))*-1 ->  | AH18: =-(C18*Emissionsfaktorer!$B$2+D18*Emissionsfaktorer!$B$3+E18*Emissionsfaktorer!$B$4+F18*Emissionsfaktorer!$B$5+G18*Emissionsfaktorer!$B$6+H18*Emissionsfaktorer!$B$7+I18*Emissionsfaktorer!$B$8+J18*Emissionsfaktorer!$B$9+K18*Emissionsfaktorer!$B$10+L18*Emissionsfaktorer!$B$11+M18*Emissionsfaktorer!$B$12) -> 
C19: =SUM(C20:C24) ->  | D19: =SUM(D20:D24) -> 0 | G19: 0 | H19: 0 | M19: 0 | N19: =SUM(N20:N24) ->  | O19: Other | P19: EXO | Q19: EX | T19: 0.8 | V19: =SUM(V20:V24) -> 0 | W19: =SUM(W20:W24) -> 0 | X19: 0 | Y19: 0 | Z19: 0 | AA19: 0 | AB19: 0 | AC19: 0 | AD19: 0 | AE19: 0
C20: =AF20*#REF!/T20*#REF!/#REF!*-1 ->  | E20: =AF20*#REF!/T20*#REF!/#REF!*-1 ->  | F20: =AF20*#REF!/T20*#REF!/#REF!*-1 ->  | I20: =AF20*#REF!/T20*#REF!/#REF!*-1 ->  | J20: =AF20*#REF!/T20*#REF!/#REF!*-1 ->  | K20: =AF20*#REF!/T20*#REF!/#REF!*-1 ->  | L20: =AF20*#REF!/T20*#REF!/#REF!*-1 ->  | N20: =SUM(C20:L20) ->  | O20: Residential | P20: EXOR | Q20: EXO | T20: =(#REF!+#REF!+#REF!+#REF!)*#REF!+(#REF!+#REF!)*#REF!+#REF!*#REF! ->  | AF20: =#REF!*#REF!*((#REF!+#REF!+#REF!+#REF!)*#REF!+(#REF!+#REF!)*#REF!+#REF!*#REF!)*-1 ->  | AG20: =(N20+AF20)*-1 ->  | AH20: =-(C20*Emissionsfaktorer!$B$2+D20*Emissionsfaktorer!$B$3+E20*Emissionsfaktorer!$B$4+F20*Emissionsfaktorer!$B$5+G20*Emissionsfaktorer!$B$6+H20*Emissionsfaktorer!$B$7+I20*Emissionsfaktorer!$B$8+J20*Emissionsfaktorer!$B$9+K20*Emissionsfaktorer!$B$10+L20*Emissionsfaktorer!$B$11+M20*Emissionsfaktorer!$B$12) -> 
C21: =AF21*#REF!/T21*#REF!/#REF!*-1 ->  | E21: =AF21*#REF!/T21*#REF!/#REF!*-1 ->  | F21: =AF21*#REF!/T21*#REF!/#REF!*-1 ->  | I21: =AF21*#REF!/T21*#REF!/#REF!*-1 ->  | J21: =AF21*#REF!/T21*#REF!/#REF!*-1 ->  | K21: =AF21*#REF!/T21*#REF!/#REF!*-1 ->  | L21: =AF21*#REF!/T21*#REF!/#REF!*-1 ->  | N21: =SUM(C21:L21) ->  | O21: Commercial and public services | P21: EXOC | Q21: EXO | T21: =(#REF!+#REF!+#REF!+#REF!)*#REF!+(#REF!+#REF!)*#REF!+#REF!*#REF! ->  | AF21: =#REF!*#REF!*((#REF!+#REF!+#REF!+#REF!)*#REF!+(#REF!+#REF!)*#REF!+#REF!*#REF!)*-1 ->  | AG21: =(N21+AF21)*-1 ->  | AH21: =-(C21*Emissionsfaktorer!$B$2+D21*Emissionsfaktorer!$B$3+E21*Emissionsfaktorer!$B$4+F21*Emissionsfaktorer!$B$5+G21*Emissionsfaktorer!$B$6+H21*Emissionsfaktorer!$B$7+I21*Emissionsfaktorer!$B$8+J21*Emissionsfaktorer!$B$9+K21*Emissionsfaktorer!$B$10+L21*Emissionsfaktorer!$B$11+M21*Emissionsfaktorer!$B$12) -> 
C22: =AF22*#REF!/T22*#REF!/#REF!*-1 ->  | E22: =AF22*#REF!/T22*#REF!/#REF!*-1 ->  | F22: =AF22*#REF!/T22*#REF!/#REF!*-1 ->  | I22: =AF22*#REF!/T22*#REF!/#REF!*-1 ->  | J22: =AF22*#REF!/T22*#REF!/#REF!*-1 ->  | K22: =AF22*#REF!/T22*#REF!/#REF!*-1 ->  | L22: =AF22*#REF!/T22*#REF!/#REF!*-1 ->  | N22: =SUM(C22:L22) ->  | O22: Agriculture / forestry | P22: EXOA | Q22: EXO | T22: =(#REF!+#REF!+#REF!+#REF!)*#REF!+(#REF!+#REF!)*#REF!+#REF!*#REF! ->  | AF22: =((#REF!+#REF!+#REF!+#REF!)*#REF!+(#REF!+#REF!)*#REF!+#REF!*#REF!)*#REF!*#REF!*-1 ->  | AG22: =(N22+AF22)*-1 ->  | AH22: =-(C22*Emissionsfaktorer!$B$2+D22*Emissionsfaktorer!$B$3+E22*Emissionsfaktorer!$B$4+F22*Emissionsfaktorer!$B$5+G22*Emissionsfaktorer!$B$6+H22*Emissionsfaktorer!$B$7+I22*Emissionsfaktorer!$B$8+J22*Emissionsfaktorer!$B$9+K22*Emissionsfaktorer!$B$10+L22*Emissionsfaktorer!$B$11+M22*Emissionsfaktorer!$B$12) -> 
C23: =AF23*#REF!/T23*#REF!/#REF!*-1 ->  | E23: =AF23*#REF!/T23*#REF!/#REF!*-1 ->  | F23: =AF23*#REF!/T23*#REF!/#REF!*-1 ->  | I23: =AF23*#REF!/T23*#REF!/#REF!*-1 ->  | J23: =AF23*#REF!/T23*#REF!/#REF!*-1 ->  | K23: =AF23*#REF!/T23*#REF!/#REF!*-1 ->  | L23: =AF23*#REF!/T23*#REF!/#REF!*-1 ->  | N23: =SUM(C23:L23) ->  | O23: Fishing | P23: EXOF | Q23: EXO | T23: =(#REF!+#REF!+#REF!+#REF!)*#REF!+(#REF!+#REF!)*#REF!+#REF!*#REF! ->  | AF23: =((#REF!+#REF!+#REF!+#REF!)*#REF!+(#REF!+#REF!)*#REF!+#REF!*#REF!)*#REF!*#REF!*-1 ->  | AG23: =(N23+AF23)*-1 ->  | AH23: =-(C23*Emissionsfaktorer!$B$2+D23*Emissionsfaktorer!$B$3+E23*Emissionsfaktorer!$B$4+F23*Emissionsfaktorer!$B$5+G23*Emissionsfaktorer!$B$6+H23*Emissionsfaktorer!$B$7+I23*Emissionsfaktorer!$B$8+J23*Emissionsfaktorer!$B$9+K23*Emissionsfaktorer!$B$10+L23*Emissionsfaktorer!$B$11+M23*Emissionsfaktorer!$B$12) -> 
C24: =AF24*#REF!/T24*#REF!/#REF!*-1 ->  | E24: =AF24*#REF!/T24*#REF!/#REF!*-1 ->  | F24: =AF24*#REF!/T24*#REF!/#REF!*-1 ->  | I24: =AF24*#REF!/T24*#REF!/#REF!*-1 ->  | J24: =AF24*#REF!/T24*#REF!/#REF!*-1 ->  | K24: =AF24*#REF!/T24*#REF!/#REF!*-1 ->  | L24: =AF24*#REF!/T24*#REF!/#REF!*-1 ->  | N24: =SUM(C24:L24) ->  | O24: Non-specified | P24: EXON | Q24: EXO | T24: =(#REF!+#REF!+#REF!+#REF!)*#REF!+(#REF!+#REF!)*#REF!+#REF!*#REF! ->  | AF24: =((#REF!+#REF!+#REF!+#REF!)*#REF!+(#REF!+#REF!)*#REF!+#REF!*#REF!)*#REF!*#REF!*-1 ->  | AG24: =(N24+AF24)*-1 ->  | AH24: =-(C24*Emissionsfaktorer!$B$2+D24*Emissionsfaktorer!$B$3+E24*Emissionsfaktorer!$B$4+F24*Emissionsfaktorer!$B$5+G24*Emissionsfaktorer!$B$6+H24*Emissionsfaktorer!$B$7+I24*Emissionsfaktorer!$B$8+J24*Emissionsfaktorer!$B$9+K24*Emissionsfaktorer!$B$10+L24*Emissionsfaktorer!$B$11+M24*Emissionsfaktorer!$B$12) -> 
N25: =N16 ->  | O25: Energy Services | P25: EN | T25: =AF25/N25*-1 ->  | AF25: =AF16 ->  | AG25: =-(S25+N25) -> 

Sheet BL Non OECD total 2030 (hidden)
B1: Consumption | C1: Coal | D1: Crude oil | E1: Oil Products | F1: Natual Gas | G1: Nuclear | H1: Hydro | I1: Geothermal, solar, wind, etc. | J1: Biofuels and waste | K1: Electricity | L1: Heat | M1: Energy Services | N1: Total consumption | O1: Non OECD total 2030 | R1: Faktor | S1: Total production | T1: Efficiency | U1: Production | V1: Coal | W1: Crude oil | X1: Oil Products | Y1: Natual Gas | Z1: Nuclear | AA1: Hydro | AB1: Geothermal, solar, wind, etc. | AC1: Biofuels and waste | AD1: Electricity | AE1: Heat | AF1: Energy Services | AG1: Loss | AH1: CO2-emissions
A2: ID | B2: C | C2: CC | D2: CCO | E2: COP | F2: CNG | G2: CNU | H2: CHY | I2: CGSW | J2: CWB | K2: CE | L2: CH | M2: CES | N2: fbrbr | P2: ID | Q2: ID Parent | R2: factor | S2: pbrpr | T2: pvrkg | U2: P | V2: PC | W2: PCO | X2: POP | Y2: PNG | Z2: PNU | AA2: PHY | AB2: PGSW | AC2: PWB | AD2: PE | AE2: PH | AF2: PES | AG2: PTAB | AH2: PCO2
A3: ID Parent | C3: C | D3: C | E3: C | F3: C | G3: C | H3: C | I3: C | J3: C | K3: C | L3: C | M3: C | O3: Structures | V3: P | W3: P | X3: P | Y3: P | Z3: P | AA3: P | AB3: P | AC3: P | AD3: P | AE3: P | AF3: P
A4: Factor | U4: =B4 -> 0 | AG4: =U4 -> 0 | AH4: =U4 -> 0
N5: =SUM(C5:M5) -> 0 | O5: Entry fuels | P5: ETP | S5: =SUM(V5:AF5) ->  | V5: =-(C6+C5) ->  | W5: =-(D6+D5) ->  | Y5: =-(F6+F5) ->  | Z5: =-(G6+G5) ->  | AC5: =-(J6+J5) -> 
C6: =-V6 ->  | D6: =-W6 ->  | F6: =-Y6 ->  | G6: =-Z6 ->  | J6: =-AC6 ->  | N6: =SUM(C6:M6) ->  | O6: Transport of fuels | P6: TRAP | S6: =SUM(V6:AF6) ->  | V6: =-(C16+C8) ->  | W6: =-(D16+D8) ->  | Y6: =-(F16+F8) ->  | Z6: =-(G16+G8) ->  | AC6: =-(J16+J8) ->  | AG6: =-(N6+S6) -> 
N7: 0 | O7: Entry On-Grid RE | P7: ELP1 | AA7: =-H8 ->  | AB7: =-I8 -> 
C8: =SUM(C9:C13) ->  | D8: =SUM(D9:D13) ->  | M8: 0 | O8: Entry electricity, district heating and oil products | P8: ES | V8: =SUM(V9:V13) -> 0 | X8: =(E14+E8)*-1 ->  | AD8: =(K14+K8)*-1 ->  | AE8: =(L14+L8)*-1 ->  | AG8: =-(N8+S8) ->  | AH8: =SUM(AH9:AH13) -> 
C9: =-($AD$9+$H$9+$I$9)/$T$9*#REF! ->  | D9: =-($AD$9+$H$9+$I$9)/$T$9*#REF! ->  | E9: =-($AD$9+$H$9+$I$9)/$T$9*#REF! ->  | F9: =-($AD$9+$H$9+$I$9)/$T$9*#REF! ->  | G9: =-($AD$9+$H$9+$I$9)/$T$9*#REF! ->  | H9: =AD9*#REF!*-1 ->  | I9: =AD9*#REF!*-1 ->  | J9: =-($AD$9+$H$9+$I$9)/$T$9*#REF! ->  | O9: Electricity-only plants | P9: ESEP | Q9: ES | T9: =#REF! ->  | AD9: =AD8-AD10 ->  | AG9: =-(S9+N9) ->  | AH9: =-(C9*Emissionsfaktorer!$B$2*(1-#REF!)+D9*Emissionsfaktorer!$B$3+E9*Emissionsfaktorer!$B$4*(1-#REF!)+F9*Emissionsfaktorer!$B$5*(1-#REF!)+G9*Emissionsfaktorer!$B$6+H9*Emissionsfaktorer!$B$7+I9*Emissionsfaktorer!$B$8-J9*Emissionsfaktorer!B13*#REF!+K9*Emissionsfaktorer!$B$10+L9*Emissionsfaktorer!$B$11+M9*Emissionsfaktorer!$B$12) -> 
C10: =-($AD$10+$AE$10+$H$10+$I$10)/IF($T$10=0,1,T10)*#REF! ->  | D10: =-($AD$10+$AE$10+$H$10+$I$10)/IF($T$10=0,1,T10)*#REF! ->  | E10: =-($AD$10+$AE$10+$H$10+$I$10)/IF($T$10=0,1,T10)*#REF! ->  | F10: =-($AD$10+$AE$10+$H$10+$I$10)/IF($T$10=0,1,T10)*#REF! ->  | G10: =-($AD$10+$AE$10+$H$10+$I$10)/IF($T$10=0,1,T10)*#REF! ->  | I10: =(AD10+AE10)*#REF!*-1 ->  | J10: =-($AD$10+$AE$10+$H$10+$I$10)/IF($T$10=0,1,T10)*#REF! ->  | O10: CHP plants | P10: ESCHP | Q10: ES | T10: =#REF! ->  | AD10: =AE10*#REF! ->  | AE10: =AE8*#REF! ->  | AG10: =-(S10+N10) ->  | AH10: =-(C10*Emissionsfaktorer!$B$2*(1-#REF!)+D10*Emissionsfaktorer!$B$3+E10*Emissionsfaktorer!$B$4*(1-#REF!)+F10*Emissionsfaktorer!$B$5*(1-#REF!)+G10*Emissionsfaktorer!$B$6+H10*Emissionsfaktorer!$B$7+I10*Emissionsfaktorer!$B$8-J10*Emissionsfaktorer!B14*#REF!+K10*Emissionsfaktorer!$B$10+L10*Emissionsfaktorer!$B$11+M10*Emissionsfaktorer!$B$12) -> 
C11: =-($AE$11+$H$11+$I$11)/IF($T$11=0,1,$T$11)*#REF! ->  | D11: =-($AE$11+$H$11+$I$11)/IF($T$11=0,1,$T$11)*#REF! ->  | E11: =-($AE$11+$H$11+$I$11)/IF($T$11=0,1,$T$11)*#REF! ->  | F11: =-($AE$11+$H$11+$I$11)/IF($T$11=0,1,$T$11)*#REF! ->  | G11: =-($AE$11+$H$11+$I$11)/IF($T$11=0,1,T11)*#REF! ->  | I11: =AE11*#REF!*-1 ->  | J11: =-($AE$11+$H$11+$I$11)/IF($T$11=0,1,T11)*#REF! ->  | K11: =AE11*#REF!*-1 ->  | O11: Heat Plants | P11: ESHP | Q11: ES | T11: =#REF! ->  | AE11: =AE8*#REF! ->  | AG11: =-(S11+N11) ->  | AH11: =-(C11*Emissionsfaktorer!$B$2+D11*Emissionsfaktorer!$B$3+E11*Emissionsfaktorer!$B$4+F11*Emissionsfaktorer!$B$5+G11*Emissionsfaktorer!$B$6+H11*Emissionsfaktorer!$B$7+I11*Emissionsfaktorer!$B$8+J11*Emissionsfaktorer!$B$9+K11*Emissionsfaktorer!$B$10+L11*Emissionsfaktorer!$B$11+M11*Emissionsfaktorer!$B$12) -> 
D12: =-X12/IF(T12=0,1,T12)*#REF! ->  | J12: =-X12/T12*#REF! ->  | O12: Oil refineries | P12: ESOR | Q12: ES | T12: =#REF! ->  | X12: =-(E9+E10+E11+E13+E14) ->  | AG12: =-(S12+N12) ->  | AH12: =J12*Emissionsfaktorer!B4 -> 
C13: =N13*#REF! ->  | D13: =N13*#REF! ->  | E13: =N13*#REF! ->  | F13: =N13*#REF! ->  | J13: =N13*#REF! ->  | K13: =N13*#REF! ->  | L13: =N13*#REF! ->  | N13: =N16*#REF! ->  | O13: Energy Industry one use | P13: ESNSP | Q13: ES | S13: 0 | T13: 0 | AG13: =-(S13+N13) ->  | AH13: =-(C13*Emissionsfaktorer!$B$2+D13*Emissionsfaktorer!$B$3+E13*Emissionsfaktorer!$B$4+F13*Emissionsfaktorer!$B$5+G13*Emissionsfaktorer!$B$6+H13*Emissionsfaktorer!$B$7+I13*Emissionsfaktorer!$B$8+J13*Emissionsfaktorer!$B$9+K13*Emissionsfaktorer!$B$10+L13*Emissionsfaktorer!$B$11+M13*Emissionsfaktorer!$B$12) -> 
E14: =-X14*1 ->  | K14: =-AD14*(1+#REF!) ->  | L14: =-AE14*(1+#REF!) ->  | O14: Transport electricity, district heating and oil products | P14: TRAS | X14: =-E16 ->  | AD14: =-K16 ->  | AE14: =-L16 ->  | AG14: =-(N14+S14) -> 
N15: 0 | O15: Entry Off-Grid RE | P15: ELP2 | AB15: =I16*-1 -> 
C16: =SUM(C17:C19) ->  | G16: 0 | H16: 0 | M16: 0 | N16: =#REF! ->  | O16: Exit energy | P16: EX | AF16: =SUM(AF17:AF19) ->  | AG16: =SUM(AG17:AG19) ->  | AH16: =SUM(AH17:AH19) -> 
C17: =AF17*#REF!/T17*#REF!/#REF!*-1 ->  | D17: =AF17*#REF!/T17*#REF!/#REF!*-1 ->  | E17: =AF17*#REF!/T17*#REF!/#REF!*-1 ->  | F17: =AF17*#REF!/T17*#REF!/#REF!*-1 ->  | I17: =AF17*#REF!/T17*#REF!/#REF!*-1 ->  | J17: =AF17*#REF!*#REF!/T17/#REF!*-1 ->  | K17: =AF17*#REF!*#REF!/T17/#REF!*-1 ->  | L17: =AF17*#REF!*#REF!/T17/#REF!*-1 ->  | N17: =SUM(C17:L17) ->  | O17: Industry | P17: EXI | Q17: EX | T17: =(#REF!+#REF!+#REF!+#REF!+#REF!)*#REF!+(#REF!+#REF!)*#REF!+#REF!*#REF! ->  | AF17: =#REF!*#REF!*((#REF!+#REF!+#REF!+#REF!+#REF!)*#REF!+(#REF!+#REF!)*#REF!+#REF!*#REF!)*-1 ->  | AG17: =(S17+SUM(C17:M17))*-1 ->  | AH17: =-(C17*Emissionsfaktorer!$B$2+D17*Emissionsfaktorer!$B$3+E17*Emissionsfaktorer!$B$4+F17*Emissionsfaktorer!$B$5+G17*Emissionsfaktorer!$B$6+H17*Emissionsfaktorer!$B$7+I17*Emissionsfaktorer!$B$8+J17*Emissionsfaktorer!$B$9+K17*Emissionsfaktorer!$B$10+L17*Emissionsfaktorer!$B$11+M17*Emissionsfaktorer!$B$12) -> 
C18: =AF18*#REF!/T18*#REF!/#REF!*-1 ->  | E18: =AF18*#REF!/T18*#REF!/#REF!*-1 ->  | F18: =AF18*#REF!/T18*#REF!/#REF!*-1 ->  | I18: =AF18*#REF!/T18*#REF!/#REF!*-1 ->  | J18: =AF18*#REF!/T18*#REF!/#REF!*-1 ->  | K18: =AF18*#REF!/T18*#REF!/#REF!*-1 ->  | L18: =AF18*#REF!/T18*#REF!/#REF!*-1 ->  | N18: =SUM(C18:L18) ->  | O18: Transport | P18: EXT | Q18: EX | T18: =(#REF!+#REF!+#REF!+#REF!)*#REF!+(#REF!+#REF!)*#REF!+#REF!*#REF! ->  | AF18: =#REF!*#REF!*-1*((#REF!+#REF!+#REF!+#REF!)*#REF!+(#REF!+#REF!)*#REF!+#REF!*#REF!) ->  | AG18: =(S18+SUM(C18:M18))*-1 ->  | AH18: =-(C18*Emissionsfaktorer!$B$2+D18*Emissionsfaktorer!$B$3+E18*Emissionsfaktorer!$B$4+F18*Emissionsfaktorer!$B$5+G18*Emissionsfaktorer!$B$6+H18*Emissionsfaktorer!$B$7+I18*Emissionsfaktorer!$B$8+J18*Emissionsfaktorer!$B$9+K18*Emissionsfaktorer!$B$10+L18*Emissionsfaktorer!$B$11+M18*Emissionsfaktorer!$B$12) -> 
C19: =SUM(C20:C24) ->  | D19: =SUM(D20:D24) -> 0 | G19: 0 | H19: 0 | M19: 0 | N19: =SUM(N20:N24) ->  | O19: Other | P19: EXO | Q19: EX | T19: 0.8 | V19: =SUM(V20:V24) -> 0 | W19: =SUM(W20:W24) -> 0 | X19: 0 | Y19: 0 | Z19: 0 | AA19: 0 | AB19: 0 | AC19: 0 | AD19: 0 | AE19: 0
C20: =AF20*#REF!/T20*#REF!/#REF!*-1 ->  | E20: =AF20*#REF!/T20*#REF!/#REF!*-1 ->  | F20: =AF20*#REF!/T20*#REF!/#REF!*-1 ->  | I20: =AF20*#REF!/T20*#REF!/#REF!*-1 ->  | J20: =AF20*#REF!/T20*#REF!/#REF!*-1 ->  | K20: =AF20*#REF!/T20*#REF!/#REF!*-1 ->  | L20: =AF20*#REF!/T20*#REF!/#REF!*-1 ->  | N20: =SUM(C20:L20) ->  | O20: Residential | P20: EXOR | Q20: EXO | T20: =(#REF!+#REF!+#REF!+#REF!)*#REF!+(#REF!+#REF!)*#REF!+#REF!*#REF! ->  | AF20: =#REF!*#REF!*((#REF!+#REF!+#REF!+#REF!)*#REF!+(#REF!+#REF!)*#REF!+#REF!*#REF!)*-1 ->  | AG20: =(N20+AF20)*-1 ->  | AH20: =-(C20*Emissionsfaktorer!$B$2+D20*Emissionsfaktorer!$B$3+E20*Emissionsfaktorer!$B$4+F20*Emissionsfaktorer!$B$5+G20*Emissionsfaktorer!$B$6+H20*Emissionsfaktorer!$B$7+I20*Emissionsfaktorer!$B$8+J20*Emissionsfaktorer!$B$9+K20*Emissionsfaktorer!$B$10+L20*Emissionsfaktorer!$B$11+M20*Emissionsfaktorer!$B$12) -> 
C21: =AF21*#REF!/T21*#REF!/#REF!*-1 ->  | E21: =AF21*#REF!/T21*#REF!/#REF!*-1 ->  | F21: =AF21*#REF!/T21*#REF!/#REF!*-1 ->  | I21: =AF21*#REF!/T21*#REF!/#REF!*-1 ->  | J21: =AF21*#REF!/T21*#REF!/#REF!*-1 ->  | K21: =AF21*#REF!/T21*#REF!/#REF!*-1 ->  | L21: =AF21*#REF!/T21*#REF!/#REF!*-1 ->  | N21: =SUM(C21:L21) ->  | O21: Commercial and public services | P21: EXOC | Q21: EXO | T21: =(#REF!+#REF!+#REF!+#REF!)*#REF!+(#REF!+#REF!)*#REF!+#REF!*#REF! ->  | AF21: =#REF!*#REF!*((#REF!+#REF!+#REF!+#REF!)*#REF!+(#REF!+#REF!)*#REF!+#REF!*#REF!)*-1 ->  | AG21: =(N21+AF21)*-1 ->  | AH21: =-(C21*Emissionsfaktorer!$B$2+D21*Emissionsfaktorer!$B$3+E21*Emissionsfaktorer!$B$4+F21*Emissionsfaktorer!$B$5+G21*Emissionsfaktorer!$B$6+H21*Emissionsfaktorer!$B$7+I21*Emissionsfaktorer!$B$8+J21*Emissionsfaktorer!$B$9+K21*Emissionsfaktorer!$B$10+L21*Emissionsfaktorer!$B$11+M21*Emissionsfaktorer!$B$12) -> 
C22: =AF22*#REF!/T22*#REF!/#REF!*-1 ->  | E22: =AF22*#REF!/T22*#REF!/#REF!*-1 ->  | F22: =AF22*#REF!/T22*#REF!/#REF!*-1 ->  | I22: =AF22*#REF!/T22*#REF!/#REF!*-1 ->  | J22: =AF22*#REF!/T22*#REF!/#REF!*-1 ->  | K22: =AF22*#REF!/T22*#REF!/#REF!*-1 ->  | L22: =AF22*#REF!/T22*#REF!/#REF!*-1 ->  | N22: =SUM(C22:L22) ->  | O22: Agriculture / forestry | P22: EXOA | Q22: EXO | T22: =(#REF!+#REF!+#REF!+#REF!)*#REF!+(#REF!+#REF!)*#REF!+#REF!*#REF! ->  | AF22: =((#REF!+#REF!+#REF!+#REF!)*#REF!+(#REF!+#REF!)*#REF!+#REF!*#REF!)*#REF!*#REF!*-1 ->  | AG22: =(N22+AF22)*-1 ->  | AH22: =-(C22*Emissionsfaktorer!$B$2+D22*Emissionsfaktorer!$B$3+E22*Emissionsfaktorer!$B$4+F22*Emissionsfaktorer!$B$5+G22*Emissionsfaktorer!$B$6+H22*Emissionsfaktorer!$B$7+I22*Emissionsfaktorer!$B$8+J22*Emissionsfaktorer!$B$9+K22*Emissionsfaktorer!$B$10+L22*Emissionsfaktorer!$B$11+M22*Emissionsfaktorer!$B$12) -> 
C23: =AF23*#REF!/T23*#REF!/#REF!*-1 ->  | E23: =AF23*#REF!/T23*#REF!/#REF!*-1 ->  | F23: =AF23*#REF!/T23*#REF!/#REF!*-1 ->  | I23: =AF23*#REF!/T23*#REF!/#REF!*-1 ->  | J23: =AF23*#REF!/T23*#REF!/#REF!*-1 ->  | K23: =AF23*#REF!/T23*#REF!/#REF!*-1 ->  | L23: =AF23*#REF!/T23*#REF!/#REF!*-1 ->  | N23: =SUM(C23:L23) ->  | O23: Fishing | P23: EXOF | Q23: EXO | T23: =(#REF!+#REF!+#REF!+#REF!)*#REF!+(#REF!+#REF!)*#REF!+#REF!*#REF! ->  | AF23: =((#REF!+#REF!+#REF!+#REF!)*#REF!+(#REF!+#REF!)*#REF!+#REF!*#REF!)*#REF!*#REF!*-1 ->  | AG23: =(N23+AF23)*-1 ->  | AH23: =-(C23*Emissionsfaktorer!$B$2+D23*Emissionsfaktorer!$B$3+E23*Emissionsfaktorer!$B$4+F23*Emissionsfaktorer!$B$5+G23*Emissionsfaktorer!$B$6+H23*Emissionsfaktorer!$B$7+I23*Emissionsfaktorer!$B$8+J23*Emissionsfaktorer!$B$9+K23*Emissionsfaktorer!$B$10+L23*Emissionsfaktorer!$B$11+M23*Emissionsfaktorer!$B$12) -> 
C24: =AF24*#REF!/T24*#REF!/#REF!*-1 ->  | E24: =AF24*#REF!/T24*#REF!/#REF!*-1 ->  | F24: =AF24*#REF!/T24*#REF!/#REF!*-1 ->  | I24: =AF24*#REF!/T24*#REF!/#REF!*-1 ->  | J24: =AF24*#REF!/T24*#REF!/#REF!*-1 ->  | K24: =AF24*#REF!/T24*#REF!/#REF!*-1 ->  | L24: =AF24*#REF!/T24*#REF!/#REF!*-1 ->  | N24: =SUM(C24:L24) ->  | O24: Non-specified | P24: EXON | Q24: EXO | T24: =(#REF!+#REF!+#REF!+#REF!)*#REF!+(#REF!+#REF!)*#REF!+#REF!*#REF! ->  | AF24: =((#REF!+#REF!+#REF!+#REF!)*#REF!+(#REF!+#REF!)*#REF!+#REF!*#REF!)*#REF!*#REF!*-1 ->  | AG24: =(N24+AF24)*-1 ->  | AH24: =-(C24*Emissionsfaktorer!$B$2+D24*Emissionsfaktorer!$B$3+E24*Emissionsfaktorer!$B$4+F24*Emissionsfaktorer!$B$5+G24*Emissionsfaktorer!$B$6+H24*Emissionsfaktorer!$B$7+I24*Emissionsfaktorer!$B$8+J24*Emissionsfaktorer!$B$9+K24*Emissionsfaktorer!$B$10+L24*Emissionsfaktorer!$B$11+M24*Emissionsfaktorer!$B$12) -> 
N25: =N16 ->  | O25: Energy Services | P25: EN | T25: =AF25/N25*-1 ->  | AF25: =AF16 ->  | AG25: =-(S25+N25) -> 

Sheet Non OECD total 1995 (hidden)
B1: Coal* | C1: Crude oil | D1: Oil products | E1: Natural gas | F1: Nuclear | G1: Hydro | H1: Geothermal, solar, etc. | I1: Biofuels and waste | J1: Electricity | K1: Heat | L1: Total**
B2: ktoe | C2: ktoe | D2: ktoe | E2: ktoe | F2: ktoe | G2: ktoe | H2: ktoe | I2: ktoe | J2: ktoe | K2: ktoe | L2: ktoe
A3: Production | B3: 1229063 | C3: 2381491 | E3: 986813 | F3: 69396 | G3: 98845 | H3: 11882 | I3: 795459 | L3: 5572950
A4: Imports | B4: 88089 | C4: 349664 | D4: 253031 | E4: 101140 | I4: 1373 | J4: 11538 | L4: 804835
A5: Exports | B5: -130599 | C5: -1353245 | D5: -401573 | E5: -271693 | I5: -631 | J5: -11930 | L5: -2169671
A6: International marine bunkers | D6: -53296 | L6: -53296
A7: International aviation bunkers | D7: -37968 | L7: -37968
A8: Stock changes | B8: -3032 | C8: -950 | D8: -1141 | E8: -13644 | I8: 22 | L8: -18746
A9: TES | B9: 1183520 | C9: 1376960 | D9: -240946 | E9: 802616 | F9: 69396 | G9: 98845 | H9: 11882 | I9: 796222 | J9: -392 | L9: 4098104
A10: Transfers | C10: -74960 | D10: 79859 | L10: 4899
A11: Statistical differences | B11: 13146 | C11: -8499 | D11: 5351 | E11: 6045 | H11: -123 | I11: 89 | J11: -398 | K11: -213 | L11: 15397
A12: Electricity plants | B12: -407900 | C12: -21889 | D12: -111641 | E12: -130005 | F12: -69079 | G12: -98845 | H12: -10389 | I12: -2633 | J12: 334143 | L12: -518239
A13: CHP plants | B13: -86843 | C13: -392 | D13: -30602 | E13: -158396 | F13: -316 | I13: -2539 | J13: 67694 | K13: 118863 | L13: -92531
A14: Heat plants | B14: -51662 | C14: -45 | D14: -29904 | E14: -90915 | I14: -2990 | K14: 156097 | L14: -19419
A15: Gas works | B15: -3002 | D15: -1443 | E15: 663 | L15: -3783
A16: Oil refineries | C16: -1263082 | D16: 1221055 | L16: -42026
A17: Coal transformation | B17: -84319 | D17: -194 | I17: -44 | L17: -84556
A18: Liquefication plants | B18: -13936 | C18: 7230 | E18: -2513 | L18: -9219
A19: Other transformation | C19: 1626 | D19: -1579 | E19: -22 | I19: -49396 | L19: -49371
A20: Energy industry own use | B20: -34418 | C20: -5239 | D20: -59137 | E20: -70446 | I20: -7271 | J20: -44918 | K20: -22857 | L20: -244286
A21: Losses | B21: -8172 | C21: -3657 | D21: -329 | E21: -14909 | H21: -2 | I21: -227 | J21: -46297 | K21: -13917 | L21: -87510
A22: Total final consumption | B22: 506414 | C22: 8053 | D22: 830490 | E22: 342118 | H22: 1369 | I22: 731212 | J22: 309832 | K22: 237973 | L22: 2967461
A23: Industry | B23: 344967 | C23: 3976 | D23: 142847 | E23: 130435 | H23: 41 | I23: 80956 | J23: 155825 | K23: 106134 | L23: 965181
A24: Transport | B24: 3130 | C24: 10 | D24: 389967 | E24: 36801 | I24: 6888 | J24: 9555 | L24: 446352
A25: Residential | B25: 89197 | C25: 133 | D25: 85128 | E25: 93446 | H25: 845 | I25: 624880 | J25: 71296 | K25: 94309 | L25: 1059234
A26: Commercial and public services | B26: 15176 | C26: 5 | D26: 21362 | E26: 16970 | H26: 305 | I26: 11085 | J26: 37489 | K26: 15965 | L26: 118357
A27: Agriculture / forestry | B27: 10819 | C27: 3 | D27: 60252 | E27: 1488 | H27: 133 | I27: 4758 | J27: 25177 | K27: 8591 | L27: 111220
A28: Fishing | D28: 1881 | J28: 141 | L28: 2022
A29: Non-specified | B29: 24299 | C29: 424 | D29: 12658 | E29: 9443 | H29: 45 | I29: 2645 | J29: 10348 | K29: 12974 | L29: 72835
A30: Non-energy use | B30: 18826 | C30: 3503 | D30: 116394 | E30: 53536 | L30: 192258
B32: =SUM(B9,B10:B21,B22*-1) -> 0 | C32: =SUM(C9,C10:C21,C22*-1) -> 0 | D32: 0 | E32: 0 | F32: 1 | G32: 0 | H32: -1 | I32: -1 | J32: 0 | K32: 0 | L32: -1

Sheet Non OECD total 2000 (hidden)
B1: Coal* | C1: Crude oil | D1: Oil products | E1: Natural gas | F1: Nuclear | G1: Hydro | H1: Geothermal, solar, etc. | I1: Biofuels and waste | J1: Electricity | K1: Heat | L1: Total**
B2: ktoe | C2: ktoe | D2: ktoe | E2: ktoe | F2: ktoe | G2: ktoe | H2: ktoe | I2: ktoe | J2: ktoe | K2: ktoe | L2: ktoe
A3: Production | B3: 1311097 | C3: 2666386 | E3: 1154044 | F3: 87148 | G3: 109347 | H3: 23396 | I3: 828271 | K3: 102 | L3: 6179790
A4: Imports | B4: 105143 | C4: 462356 | D4: 276567 | E4: 108617 | I4: 203 | J4: 14302 | L4: 967188
A5: Exports | B5: -201428 | C5: -1554790 | D5: -453084 | E5: -351492 | I5: -551 | J5: -13525 | L5: -2574870
A6: International marine bunkers | D6: -66728 | L6: -66728
A7: International aviation bunkers | D7: -43179 | L7: -43179
A8: Stock changes | B8: 1097 | C8: -5257 | D8: -4254 | E8: -5994 | I8: 843 | L8: -13565
A9: TES | B9: 1215909 | C9: 1568696 | D9: -290679 | E9: 905175 | F9: 87148 | G9: 109347 | H9: 23396 | I9: 828766 | J9: 777 | K9: 102 | L9: 4448636
A10: Transfers | C10: -91598 | D10: 97214 | L10: 5615
A11: Statistical differences | B11: 7379 | C11: -7314 | D11: 3391 | E11: 5112 | H11: -94 | I11: 216 | J11: 396 | K11: -65 | L11: 9022
A12: Electricity plants | B12: -516381 | C12: -15506 | D12: -120179 | E12: -181038 | F12: -86784 | G12: -109347 | H12: -20474 | I12: -4642 | J12: 420818 | K12: -102 | L12: -633636
A13: CHP plants | B13: -90554 | C13: -67 | D13: -20404 | E13: -155255 | F13: -364 | I13: -3247 | J13: 67274 | K13: 96582 | L13: -106034
A14: Heat plants | B14: -62577 | C14: -1139 | D14: -17111 | E14: -90447 | I14: -2860 | K14: 135689 | L14: -38446
A15: Gas works | B15: -3874 | D15: -1067 | E15: 686 | L15: -4255
A16: Oil refineries | C16: -1441016 | D16: 1418058 | L16: -22958
A17: Coal transformation | B17: -84100 | D17: -681 | L17: -84781
A18: Liquefication plants | B18: -14843 | C18: 7859 | E18: -1849 | L18: -8833
A19: Other transformation | C19: 3468 | D19: -3137 | E19: -3023 | I19: -49371 | L19: -52062
A20: Energy industry own use | B20: -41469 | C20: -8846 | D20: -76337 | E20: -89536 | I20: -5663 | J20: -53316 | K20: -20614 | L20: -295781
A21: Losses | B21: -1979 | C21: -5083 | D21: -872 | E21: -15763 | H21: -1 | I21: -169 | J21: -63154 | K21: -15103 | L21: -102124
A22: Total final consumption | B22: 407510 | C22: 9453 | D22: 988197 | E22: 374062 | H22: 2827 | I22: 763030 | J22: 372795 | K22: 196489 | L22: 3114363
A23: Industry | B23: 285824 | C23: 5238 | D23: 166885 | E23: 139011 | H23: 70 | I23: 89664 | J23: 183159 | K23: 82581 | L23: 952433
A24: Transport | B24: 512 | C24: 10 | D24: 486492 | E24: 36741 | I24: 5899 | J24: 9751 | L24: 539405
A25: Residential | B25: 63534 | C25: 722 | D25: 97856 | E25: 111210 | H25: 1887 | I25: 648339 | J25: 91351 | K25: 88246 | L25: 1103146
A26: Commercial and public services | B26: 12512 | D26: 22522 | E26: 16098 | H26: 573 | I26: 12561 | J26: 51182 | K26: 15209 | L26: 130657
A27: Agriculture / forestry | B27: 6612 | C27: 1 | D27: 48901 | E27: 892 | H27: 217 | I27: 4519 | J27: 21937 | K27: 4649 | L27: 87728
A28: Fishing | D28: 1571 | I28: 1 | J28: 91 | L28: 1663
A29: Non-specified | B29: 18855 | C29: 279 | D29: 11839 | E29: 6323 | H29: 79 | I29: 2045 | J29: 15325 | K29: 5804 | L29: 60548
A30: Non-energy use | B30: 19661 | C30: 3204 | D30: 152131 | E30: 63786 | L30: 238782
B32: =SUM(B9,B10:B21,B22*-1) -> 1 | C32: =SUM(C9,C10:C21,C22*-1) -> 1 | D32: -1 | E32: 0 | F32: 0 | G32: 0 | H32: 0 | I32: 0 | J32: 0 | K32: 0 | L32: 0

Sheet Non OECD total 2005 (hidden)
B1: Coal* | C1: Crude oil | D1: Oil products | E1: Natural gas | F1: Nuclear | G1: Hydro | H1: Geothermal, solar, etc. | I1: Biofuels and waste | J1: Electricity | K1: Heat | L1: Total**
B2: ktoe | C2: ktoe | D2: ktoe | E2: ktoe | F2: ktoe | G2: ktoe | H2: ktoe | I2: ktoe | J2: ktoe | K2: ktoe | L2: ktoe
A3: Production | B3: 1985909 | C3: 3091402 | E3: 1462436 | F3: 106114 | G3: 140293 | H3: 29739 | I3: 874175 | K3: 201 | L3: 7690268
A4: Imports | B4: 150979 | C4: 614685 | D4: 358307 | E4: 151634 | I4: 219 | J4: 16018 | L4: 1291841
A5: Exports | B5: -303696 | C5: -1866563 | D5: -577446 | E5: -469699 | I5: -1904 | J5: -17604 | L5: -3236913
A6: International marine bunkers | D6: -81474 | L6: -81474
A7: International aviation bunkers | D7: -53835 | L7: -53835
A8: Stock changes | B8: 8189 | C8: 5542 | D8: 8081 | E8: -2842 | I8: 254 | L8: 19223
A9: TES | B9: 1841381 | C9: 1845066 | D9: -346367 | E9: 1141528 | F9: 106114 | G9: 140293 | H9: 29739 | I9: 872744 | J9: -1587 | K9: 201 | L9: 5629111
A10: Transfers | C10: -99838 | D10: 105645 | L10: 5807
A11: Statistical differences | B11: 24284 | C11: -682 | D11: 8564 | E11: 3068 | I11: 380 | J11: 1273 | K11: 4 | L11: 36891
A12: Electricity plants | B12: -564214 | C12: -14628 | D12: -127331 | E12: -265332 | F12: -105791 | G12: -140293 | H12: -24178 | I12: -8845 | J12: 510267 | K12: -201 | L12: -740545
A13: CHP plants | B13: -378741 | C13: -4 | D13: -13709 | E13: -179323 | F13: -323 | I13: -5544 | J13: 156050 | K13: 140165 | L13: -281429
A14: Heat plants | B14: -18970 | C14: -792 | D14: -12162 | E14: -84570 | H14: -1 | I14: -3229 | K14: 108171 | L14: -11551
A15: Gas works | B15: -7393 | D15: -964 | E15: 371 | L15: -7985
A16: Oil refineries | C16: -1713339 | D16: 1677801 | L16: -35538
A17: Coal transformation | B17: -135490 | D17: -559 | I17: -5 | L17: -136054
A18: Liquefication plants | B18: -5835 | C18: 4481 | E18: -4346 | L18: -5701
A19: Other transformation | B19: -49 | C19: 3884 | D19: -4903 | E19: -2075 | I19: -58733 | L19: -61877
A20: Energy industry own use | B20: -54647 | C20: -10060 | D20: -86779 | E20: -115216 | I20: -8365 | J20: -67822 | K20: -28812 | L20: -371701
A21: Losses | B21: -1742 | C21: -6023 | D21: -573 | E21: -15368 | H21: -1 | I21: -192 | J21: -80412 | K21: -19655 | L21: -123968
A22: Total final consumption | B22: 698584 | C22: 8065 | D22: 1198663 | E22: 478736 | H22: 5559 | I22: 788212 | J22: 517768 | K22: 199873 | L22: 3895460
A23: Industry | B23: 547406 | C23: 4503 | D23: 179225 | E23: 183919 | H23: 103 | I23: 101348 | J23: 267157 | K23: 91610 | L23: 1375272
A24: Transport | B24: 70 | C24: 19 | D24: 605690 | E24: 52069 | I24: 7828 | J24: 13498 | L24: 679174
A25: Residential | B25: 65558 | D25: 110189 | E25: 127673 | H25: 4003 | I25: 656593 | J25: 119263 | K25: 78527 | L25: 1161807
A26: Commercial and public services | B26: 21657 | C26: 31 | D26: 25187 | E26: 22183 | H26: 1009 | I26: 14885 | J26: 72881 | K26: 20415 | L26: 178249
A27: Agriculture / forestry | B27: 10835 | C27: 7 | D27: 57887 | E27: 1163 | H27: 302 | I27: 5699 | J27: 24776 | K27: 3455 | L27: 104123
A28: Fishing | D28: 2283 | E28: 10 | I28: 1 | J28: 117 | K28: 12 | L28: 2423
A29: Non-specified | B29: 26403 | D29: 15341 | E29: 3636 | H29: 142 | I29: 1858 | J29: 20075 | K29: 5854 | L29: 73309
A30: Non-energy use | B30: 26655 | C30: 3505 | D30: 202860 | E30: 88083 | L30: 321103
B32: =SUM(B9,B10:B21,B22*-1) -> 0 | C32: =SUM(C9,C10:C21,C22*-1) -> 0 | D32: 0 | E32: 1 | F32: 0 | G32: 0 | H32: 0 | I32: -1 | J32: 1 | K32: 0 | L32: 0

Sheet Non OECD total 2010 (hidden)
B1: Coal* | C1: Crude oil | D1: Oil products | E1: Natural gas | F1: Nuclear | G1: Hydro | H1: Geothermal, solar, etc. | I1: Biofuels and waste | J1: Electricity | K1: Heat | L1: Total**
B2: ktoe | C2: ktoe | D2: ktoe | E2: ktoe | F2: ktoe | G2: ktoe | H2: ktoe | I2: ktoe | J2: ktoe | K2: ktoe | L2: ktoe
A3: Production | B3: 2665334 | C3: 3197129 | E3: 1749195 | F3: 122328 | G3: 179684 | H3: 48668 | I3: 935007 | K3: 309 | L3: 8897654
A4: Imports | B4: 301421 | C4: 732701 | D4: 544419 | E4: 177579 | I4: 610 | J4: 16306 | L4: 1773036
A5: Exports | B5: -395989 | C5: -1830313 | D5: -644884 | E5: -517480 | I5: -3714 | J5: -18092 | L5: -3410474
A6: International marine bunkers | D6: -114623 | L6: -114623
A7: International aviation bunkers | D7: -67013 | L7: -67013
A8: Stock changes | B8: -13188 | C8: -18939 | D8: -3647 | E8: 3548 | I8: -742 | L8: -32969
A9: TES | B9: 2557577 | C9: 2080577 | D9: -285748 | E9: 1412842 | F9: 122328 | G9: 179684 | H9: 48668 | I9: 931160 | J9: -1787 | K9: 309 | L9: 7045612
A10: Transfers | B10: -354 | C10: -105088 | D10: 113552 | I10: -47 | L10: 8062
A11: Statistical differences | B11: -36878 | C11: 8472 | D11: -9105 | E11: -636 | I11: -1445 | J11: -245 | K11: -1375 | L11: -41212
A12: Electricity plants | B12: -802016 | C12: -29947 | D12: -140865 | E12: -352481 | F12: -121803 | G12: -179684 | H12: -35559 | I12: -27677 | J12: 707710 | K12: -260 | L12: -982582
A13: CHP plants | B13: -471068 | C13: -11 | D13: -5817 | E13: -199702 | F13: -525 | I13: -9390 | J13: 202821 | K13: 151933 | L13: -331760
A14: Heat plants | B14: -21752 | C14: -809 | D14: -13142 | E14: -77567 | I14: -4329 | K14: 106874 | L14: -10724
A15: Gas works | B15: -2261 | D15: -294 | E15: -60 | I15: -13 | L15: -2629
A16: Oil refineries | C16: -1931507 | D16: 1886936 | L16: -44570
A17: Coal transformation | B17: -183442 | D17: -1166 | I17: -25 | L17: -184633
A18: Liquefication plants | B18: -6415 | C18: 6534 | E18: -6854 | L18: -6735
A19: Other transformation | B19: -57 | C19: 4234 | D19: -4191 | E19: -1780 | I19: -64710 | L19: -66504
A20: Energy industry own use | B20: -97637 | C20: -9314 | D20: -94724 | E20: -134950 | H20: -1 | I20: -12995 | J20: -87020 | K20: -31800 | L20: -468442
A21: Losses | B21: -2293 | C21: -8160 | D21: -731 | E21: -21195 | H21: -2 | I21: -132 | J21: -93822 | K21: -15052 | L21: -141386
A22: Total final consumption | B22: 933403 | C22: 14980 | D22: 1444704 | E22: 617618 | H22: 13106 | I22: 810397 | J22: 727657 | K22: 210630 | L22: 4772495
A23: Industry | B23: 770657 | C23: 9371 | D23: 196967 | E23: 248883 | H23: 170 | I23: 116116 | J23: 380284 | K23: 99257 | L23: 1821705
A24: Transport | B24: 78 | C24: 5 | D24: 772024 | E24: 66210 | I24: 18128 | J24: 16866 | L24: 873311
A25: Residential | B25: 60712 | D25: 109309 | E25: 157336 | H25: 9998 | I25: 651722 | J25: 166925 | K25: 81396 | L25: 1237398
A26: Commercial and public services | B26: 25024 | C26: 20 | D26: 31925 | E26: 31981 | H26: 1995 | I26: 16611 | J26: 103089 | K26: 21128 | L26: 231772
A27: Agriculture / forestry | B27: 11821 | C27: 12 | D27: 57976 | E27: 1792 | H27: 467 | I27: 6227 | J27: 30375 | K27: 3740 | L27: 112409
A28: Fishing | B28: 6 | D28: 2610 | E28: 11 | I28: 5 | J28: 137 | K28: 35 | L28: 2805
A29: Non-specified | B29: 32437 | C29: 18 | D29: 17086 | E29: 1512 | H29: 476 | I29: 1588 | J29: 29981 | K29: 5075 | L29: 88174
A30: Non-energy use | B30: 32668 | C30: 5554 | D30: 256807 | E30: 109893 | L30: 404922
B32: =SUM(B9,B10:B21,B22*-1) -> 1 | C32: =SUM(C9,C10:C21,C22*-1) -> 1 | D32: 1 | E32: -1 | F32: 0 | G32: 0 | H32: 0 | I32: 0 | J32: 0 | K32: -1 | L32: 2

Sheet Non OECD total 2015 (hidden)
B1: Coal* | C1: Crude oil | D1: Oil products | E1: Natural gas | F1: Nuclear | G1: Hydro | H1: Geothermal, solar, etc. | I1: Biofuels and waste | J1: Electricity | K1: Heat | L1: Total**
B2: ktoe | C2: ktoe | D2: ktoe | E2: ktoe | F2: ktoe | G2: ktoe | H2: ktoe | I2: ktoe | J2: ktoe | K2: ktoe | L2: ktoe
A3: Production | B3: 2958002 | C3: 3294031 | E3: 1884370 | F3: 156512 | G3: 215754 | H3: 95433 | I3: 964431 | K3: 772 | L3: 9569305
A4: Imports | B4: 387343 | C4: 879098 | D4: 672141 | E4: 241365 | I4: 1799 | J4: 19708 | L4: 2201453
A5: Exports | B5: -458809 | C5: -1861131 | D5: -721483 | E5: -570254 | I5: -4700 | J5: -19240 | L5: -3635619
A6: International marine bunkers | D6: -131956 | L6: -131956
A7: International aviation bunkers | D7: -79769 | L7: -79769
A8: Stock changes | B8: 8586 | C8: -1427 | D8: -3713 | E8: -5314 | I8: 822 | L8: -1047
A9: TES | B9: 2895121 | C9: 2310571 | D9: -264780 | E9: 1550167 | F9: 156512 | G9: 215754 | H9: 95433 | I9: 962351 | J9: 468 | K9: 772 | L9: 7922368
A10: Transfers | B10: -971 | C10: -122353 | D10: 132426 | I10: -27 | L10: 9075
A11: Statistical differences | B11: -16109 | C11: 7205 | D11: 20246 | E11: 14670 | I11: -2108 | J11: -3760 | K11: 600 | L11: 20744
A12: Electricity plants | B12: -1016348 | C12: -41586 | D12: -146159 | E12: -420626 | F12: -156009 | G12: -215754 | H12: -63694 | I12: -48418 | J12: 917825 | K12: -353 | L12: -1191120
A13: CHP plants | B13: -542149 | C13: -7 | D13: -5668 | E13: -213814 | F13: -503 | I13: -13330 | J13: 234446 | K13: 175021 | L13: -366003
A14: Heat plants | B14: -20344 | C14: -654 | D14: -10527 | E14: -53783 | H14: -20 | I14: -4403 | K14: 80158 | L14: -9573
A15: Gas works | B15: -6228 | C15: -3 | D15: -300 | E15: 1337 | I15: -11 | L15: -5205
A16: Oil refineries | C16: -2144668 | D16: 2097839 | L16: -46829
A17: Coal transformation | B17: -217849 | D17: -1347 | I17: -52 | L17: -219249
A18: Liquefication plants | B18: -8814 | C18: 13574 | E18: -17894 | L18: -13135
A19: Other transformation | B19: -182 | C19: 5117 | D19: -4063 | E19: -3360 | I19: -77180 | L19: -79669
A20: Energy industry own use | B20: -76183 | C20: -12019 | D20: -104834 | E20: -143060 | I20: -13585 | J20: -109220 | K20: -29433 | L20: -488335
A21: Losses | B21: -1337 | C21: -8478 | D21: -368 | E21: -17883 | H21: -3 | I21: -97 | J21: -108847 | K21: -12330 | L21: -149342
A22: Total final consumption | B22: 988607 | C22: 6698 | D22: 1712466 | E22: 695755 | H22: 31717 | I22: 803139 | J22: 930911 | K22: 214435 | L22: 5383728
A23: Industry | B23: 801284 | C23: 3516 | D23: 199424 | E23: 279156 | H23: 401 | I23: 125112 | J23: 472585 | K23: 100813 | L23: 1982292
A24: Transport | B24: 43 | C24: 15 | D24: 968360 | E24: 72695 | I24: 26315 | J24: 19527 | L24: 1086954
A25: Residential | B25: 63289 | D25: 128897 | E25: 172152 | H25: 24502 | I25: 622392 | J25: 219797 | K25: 80340 | L25: 1311371
A26: Commercial and public services | B26: 28996 | D26: 34811 | E26: 40065 | H26: 4809 | I26: 20335 | J26: 129755 | K26: 23423 | L26: 282194
A27: Agriculture / forestry | B27: 14275 | C27: 10 | D27: 62849 | E27: 3318 | H27: 1104 | I27: 7390 | J27: 37805 | K27: 2850 | L27: 129602
A28: Fishing | B28: 1 | D28: 2086 | E28: 42 | I28: 8 | J28: 158 | K28: 8 | L28: 2303
A29: Non-specified | B29: 29803 | C29: 58 | D29: 19741 | E29: 2388 | H29: 900 | I29: 1586 | J29: 51283 | K29: 7000 | L29: 112760
A30: Non-energy use | B30: 50917 | C30: 3099 | D30: 296299 | E30: 125938 | L30: 476252
B32: =SUM(B9,B10:B21,B22*-1) -> 0 | C32: =SUM(C9,C10:C21,C22*-1) -> 1 | D32: -1 | E32: -1 | F32: 0 | G32: 0 | H32: -1 | I32: 1 | J32: 1 | K32: 0 | L32: -1

Sheet Non OECD total 2018 (hidden)
B1: Coal* | C1: Crude oil | D1: Oil products | E1: Natural gas | F1: Nuclear | G1: Hydro | H1: Geothermal, solar, etc. | I1: Biofuels and waste | J1: Electricity | K1: Heat | L1: Total**
B2: ktoe | C2: ktoe | D2: ktoe | E2: ktoe | F2: ktoe | G2: ktoe | H2: ktoe | I2: ktoe | J2: ktoe | K2: ktoe | L2: ktoe
A3: Production | B3: 3061441 | C3: 3314982 | E3: 2086624 | F3: 191006 | G3: 239318 | H3: 145710 | I3: 1002565 | K3: 790 | L3: 10042435
A4: Imports | B4: 473996 | C4: 1041303 | D4: 736969 | E4: 300106 | I4: 2552 | J4: 20361 | L4: 2575288
A5: Exports | B5: -528570 | C5: -1915014 | D5: -771664 | E5: -627782 | I5: -6391 | J5: -21123 | L5: -3870544
A6: International marine bunkers | D6: -138087 | L6: -138087
A7: International aviation bunkers | D7: -92661 | L7: -92661
A8: Stock changes | B8: -22876 | C8: -6506 | D8: 1356 | E8: 2619 | I8: -671 | L8: -26079
A9: TES | B9: 2983991 | C9: 2434765 | D9: -264087 | E9: 1761567 | F9: 191006 | G9: 239318 | H9: 145710 | I9: 998055 | J9: -761 | K9: 790 | L9: 8490352
A10: Transfers | B10: -1156 | C10: -129320 | D10: 141335 | L10: 10859
A11: Statistical differences | B11: -26985 | C11: 2229 | D11: -5017 | E11: -5509 | I11: -170 | J11: -5562 | K11: 4082 | L11: -36932
A12: Electricity plants | B12: -1164223 | C12: -30333 | D12: -109517 | E12: -472837 | F12: -190499 | G12: -239318 | H12: -108670 | I12: -83830 | J12: 1068213 | K12: -351 | L12: -1331365
A13: CHP plants | B13: -606684 | C13: -21 | D13: -4411 | E13: -218695 | F13: -506 | I13: -14412 | J13: 259897 | K13: 198567 | L13: -386265
A14: Heat plants | B14: -20625 | C14: -473 | D14: -8986 | E14: -51459 | H14: -14 | I14: -4829 | J14: -336 | K14: 82618 | L14: -4105
A15: Gas works | B15: -7228 | D15: -288 | E15: 1502 | I15: -7 | L15: -6022
A16: Oil refineries | C16: -2273256 | D16: 2216829 | L16: -56427
A17: Coal transformation | B17: -183342 | D17: -1685 | I17: -52 | L17: -185079
A18: Liquefication plants | B18: -15495 | C18: 14412 | E18: -11303 | L18: -12386
A19: Other transformation | B19: -119 | C19: 4925 | D19: -3749 | E19: -4409 | I19: -84828 | L19: -88181
A20: Energy industry own use | B20: -63557 | C20: -9780 | D20: -99043 | E20: -164062 | H20: -3 | I20: -14593 | J20: -121008 | K20: -30941 | L20: -502986
A21: Losses | B21: -1656 | C21: -8100 | D21: -303 | E21: -17296 | H21: -3 | I21: -94 | J21: -118127 | K21: -14663 | L21: -160242
A22: Total final consumption | B22: 892921 | C22: 5047 | D22: 1861077 | E22: 817499 | H22: 37020 | I22: 795240 | J22: 1082315 | K22: 240102 | L22: 5731220
A23: Industry | B23: 714431 | C23: 2462 | D23: 197373 | E23: 315265 | H23: 548 | I23: 122441 | J23: 539759 | K23: 116485 | L23: 2008764
A24: Transport | B24: 40 | C24: 71 | D24: 1052820 | E24: 86281 | I24: 31682 | J24: 23494 | L24: 1194387
A25: Residential | B25: 63707 | D25: 147675 | E25: 213786 | H25: 27913 | I25: 610054 | J25: 256682 | K25: 86087 | L25: 1405904
A26: Commercial and public services | B26: 26777 | D26: 36652 | E26: 48442 | H26: 5912 | I26: 21853 | J26: 149133 | K26: 27375 | L26: 316145
A27: Agriculture / forestry | B27: 14526 | C27: 2 | D27: 63097 | E27: 4192 | H27: 1484 | I27: 7680 | J27: 45177 | K27: 4240 | L27: 140398
A28: Fishing | B28: 1 | D28: 2112 | E28: 4 | I28: 6 | J28: 177 | K28: 14 | L28: 2313
A29: Non-specified | B29: 25253 | C29: 3 | D29: 17835 | E29: 2546 | H29: 1163 | I29: 1524 | J29: 67893 | K29: 5901 | L29: 122117
A30: Non-energy use | B30: 48188 | C30: 2509 | D30: 343512 | E30: 146983 | L30: 541192
B32: =SUM(B9,B10:B21,B22*-1) -> 0 | C32: =SUM(C9,C10:C21,C22*-1) -> 1 | D32: 1 | E32: 0 | F32: 1 | G32: 0 | H32: 0 | I32: 0 | J32: 1 | K32: 0 | L32: 1

Sheet BL Middle East 2050 (hidden)
B1: Consumption | C1: Coal | D1: Crude oil | E1: Oil Products | F1: Natual Gas | G1: Nuclear | H1: Hydro | I1: Geothermal, solar, wind, etc. | J1: Biofuels and waste | K1: Electricity | L1: Heat | M1: Energy Services | N1: Total consumption | O1: Middle East 2050 | R1: Faktor | S1: Total production | T1: Efficiency | U1: Production | V1: Coal | W1: Crude oil | X1: Oil Products | Y1: Natual Gas | Z1: Nuclear | AA1: Hydro | AB1: Geothermal, solar, wind, etc. | AC1: Biofuels and waste | AD1: Electricity | AE1: Heat | AF1: Energy Services | AG1: Loss | AH1: CO2-emissions
A2: ID | B2: C | C2: CC | D2: CCO | E2: COP | F2: CNG | G2: CNU | H2: CHY | I2: CGSW | J2: CWB | K2: CE | L2: CH | M2: CES | N2: fbrbr | P2: ID | Q2: ID Parent | R2: factor | S2: pbrpr | T2: pvrkg | U2: P | V2: PC | W2: PCO | X2: POP | Y2: PNG | Z2: PNU | AA2: PHY | AB2: PGSW | AC2: PWB | AD2: PE | AE2: PH | AF2: PES | AG2: PTAB | AH2: PCO2
A3: ID Parent | C3: C | D3: C | E3: C | F3: C | G3: C | H3: C | I3: C | J3: C | K3: C | L3: C | M3: C | O3: Structures | V3: P | W3: P | X3: P | Y3: P | Z3: P | AA3: P | AB3: P | AC3: P | AD3: P | AE3: P | AF3: P
A4: Factor | U4: =B4 -> 0 | AG4: =U4 -> 0 | AH4: =U4 -> 0
N5: =SUM(C5:M5) -> 0 | O5: Entry fuels | P5: ETP | S5: =SUM(V5:AF5) ->  | V5: =-(C6+C5) ->  | W5: =-(D6+D5) ->  | Y5: =-(F6+F5) ->  | Z5: =-(G6+G5) ->  | AC5: =-(J6+J5) -> 
C6: =-V6 ->  | D6: =-W6 ->  | F6: =-Y6 ->  | G6: =-Z6 ->  | J6: =-AC6 ->  | N6: =SUM(C6:M6) ->  | O6: Transport of fuels | P6: TRAP | S6: =SUM(V6:AF6) ->  | V6: =-(C16+C8) ->  | W6: =-(D16+D8) ->  | Y6: =-(F16+F8) ->  | Z6: =-(G16+G8) ->  | AC6: =-(J16+J8) ->  | AG6: =-(N6+S6) -> 
N7: 0 | O7: Entry On-Grid RE | P7: ELP1 | AA7: =-H8 ->  | AB7: =-I8 -> 
C8: =SUM(C9:C13) ->  | D8: =SUM(D9:D13) ->  | M8: 0 | O8: Entry electricity, district heating and oil products | P8: ES | V8: =SUM(V9:V13) -> 0 | X8: =(E14+E8)*-1 ->  | AD8: =(K14+K8)*-1 ->  | AE8: =(L14+L8)*-1 ->  | AG8: =-(N8+S8) ->  | AH8: =SUM(AH9:AH13) -> 
C9: =-($AD$9+$H$9+$I$9)/$T$9*#REF! ->  | D9: =-($AD$9+$H$9+$I$9)/$T$9*#REF! ->  | E9: =-($AD$9+$H$9+$I$9)/$T$9*#REF! ->  | F9: =-($AD$9+$H$9+$I$9)/$T$9*#REF! ->  | G9: =-($AD$9+$H$9+$I$9)/$T$9*#REF! ->  | H9: =AD9*#REF!*-1 ->  | I9: =AD9*#REF!*-1 ->  | J9: =-($AD$9+$H$9+$I$9)/$T$9*#REF! ->  | O9: Electricity-only plants | P9: ESEP | Q9: ES | T9: =#REF! ->  | AD9: =AD8-AD10 ->  | AG9: =-(S9+N9) ->  | AH9: =-(C9*Emissionsfaktorer!$B$2*(1-#REF!)+D9*Emissionsfaktorer!$B$3+E9*Emissionsfaktorer!$B$4*(1-#REF!)+F9*Emissionsfaktorer!$B$5*(1-#REF!)+G9*Emissionsfaktorer!$B$6+H9*Emissionsfaktorer!$B$7+I9*Emissionsfaktorer!$B$8-J9*Emissionsfaktorer!B13*#REF!+K9*Emissionsfaktorer!$B$10+L9*Emissionsfaktorer!$B$11+M9*Emissionsfaktorer!$B$12) -> 
C10: =-($AD$10+$AE$10+$H$10+$I$10)/IF($T$10=0,1,T10)*#REF! ->  | D10: =-($AD$10+$AE$10+$H$10+$I$10)/IF($T$10=0,1,T10)*#REF! ->  | E10: =-($AD$10+$AE$10+$H$10+$I$10)/IF($T$10=0,1,T10)*#REF! ->  | F10: =-($AD$10+$AE$10+$H$10+$I$10)/IF($T$10=0,1,T10)*#REF! ->  | G10: =-($AD$10+$AE$10+$H$10+$I$10)/IF($T$10=0,1,T10)*#REF! ->  | I10: =(AD10+AE10)*#REF!*-1 ->  | J10: =-($AD$10+$AE$10+$H$10+$I$10)/IF($T$10=0,1,T10)*#REF! ->  | O10: CHP plants | P10: ESCHP | Q10: ES | T10: =#REF! ->  | AD10: =AE10*#REF! ->  | AE10: =AE8*#REF! ->  | AG10: =-(S10+N10) ->  | AH10: =-(C10*Emissionsfaktorer!$B$2*(1-#REF!)+D10*Emissionsfaktorer!$B$3+E10*Emissionsfaktorer!$B$4*(1-#REF!)+F10*Emissionsfaktorer!$B$5*(1-#REF!)+G10*Emissionsfaktorer!$B$6+H10*Emissionsfaktorer!$B$7+I10*Emissionsfaktorer!$B$8-J10*Emissionsfaktorer!B14*#REF!+K10*Emissionsfaktorer!$B$10+L10*Emissionsfaktorer!$B$11+M10*Emissionsfaktorer!$B$12) -> 
C11: =-($AE$11+$H$11+$I$11)/IF($T$11=0,1,$T$11)*#REF! ->  | D11: =-($AE$11+$H$11+$I$11)/IF($T$11=0,1,$T$11)*#REF! ->  | E11: =-($AE$11+$H$11+$I$11)/IF($T$11=0,1,$T$11)*#REF! ->  | F11: =-($AE$11+$H$11+$I$11)/IF($T$11=0,1,$T$11)*#REF! ->  | G11: =-($AE$11+$H$11+$I$11)/IF($T$11=0,1,$T$11)*#REF! ->  | I11: =AE11*#REF!*-1 ->  | J11: =-($AE$11+$H$11+$I$11)/IF($T$11=0,1,$T$11)*#REF! ->  | K11: =AE11*#REF!*-1 ->  | O11: Heat Plants | P11: ESHP | Q11: ES | T11: =#REF! ->  | AE11: =AE8*#REF! ->  | AG11: =-(S11+N11) ->  | AH11: =-(C11*Emissionsfaktorer!$B$2+D11*Emissionsfaktorer!$B$3+E11*Emissionsfaktorer!$B$4+F11*Emissionsfaktorer!$B$5+G11*Emissionsfaktorer!$B$6+H11*Emissionsfaktorer!$B$7+I11*Emissionsfaktorer!$B$8+J11*Emissionsfaktorer!$B$9+K11*Emissionsfaktorer!$B$10+L11*Emissionsfaktorer!$B$11+M11*Emissionsfaktorer!$B$12) -> 
D12: =-X12/IF(T12=0,1,T12)*#REF! ->  | J12: =-X12/IF(T12=0,1,T12)*#REF! ->  | O12: Oil refineries | P12: ESOR | Q12: ES | T12: =#REF! ->  | X12: =-(E9+E10+E11+E13+E14) ->  | AG12: =-(S12+N12) ->  | AH12: =J12*Emissionsfaktorer!B4 -> 
C13: =N13*#REF! ->  | D13: =N13*#REF! ->  | E13: =N13*#REF! ->  | F13: =N13*#REF! ->  | J13: =N13*#REF! ->  | K13: =N13*#REF! ->  | L13: =N13*#REF! ->  | N13: =N16*#REF! ->  | O13: Energy Industry one use | P13: ESNSP | Q13: ES | S13: 0 | T13: 0 | AG13: =-(S13+N13) ->  | AH13: =-(C13*Emissionsfaktorer!$B$2+D13*Emissionsfaktorer!$B$3+E13*Emissionsfaktorer!$B$4+F13*Emissionsfaktorer!$B$5+G13*Emissionsfaktorer!$B$6+H13*Emissionsfaktorer!$B$7+I13*Emissionsfaktorer!$B$8+J13*Emissionsfaktorer!$B$9+K13*Emissionsfaktorer!$B$10+L13*Emissionsfaktorer!$B$11+M13*Emissionsfaktorer!$B$12) -> 
E14: =-X14*1 ->  | K14: =-AD14*(1+#REF!) ->  | L14: =-AE14*(1+#REF!) ->  | O14: Transport electricity, district heating and oil products | P14: TRAS | X14: =-E16 ->  | AD14: =-K16 ->  | AE14: =-L16 ->  | AG14: =-(N14+S14) -> 
N15: 0 | O15: Entry Off-Grid RE | P15: ELP2 | AB15: =I16*-1 -> 
C16: =SUM(C17:C19) ->  | G16: 0 | H16: 0 | M16: 0 | N16: =#REF! ->  | O16: Exit energy | P16: EX | AF16: =SUM(AF17:AF19) ->  | AG16: =SUM(AG17:AG19) ->  | AH16: =SUM(AH17:AH19) -> 
C17: =AF17*#REF!/T17*#REF!/#REF!*-1 ->  | D17: =AF17*#REF!/T17*#REF!/#REF!*-1 ->  | E17: =AF17*#REF!/T17*#REF!/#REF!*-1 ->  | F17: =AF17*#REF!/T17*#REF!/#REF!*-1 ->  | I17: =AF17*#REF!/T17*#REF!/#REF!*-1 ->  | J17: =AF17*#REF!*#REF!/T17/#REF!*-1 ->  | K17: =AF17*#REF!*#REF!/T17/#REF!*-1 ->  | L17: =AF17*#REF!*#REF!/T17/#REF!*-1 ->  | N17: =SUM(C17:L17) ->  | O17: Industry | P17: EXI | Q17: EX | T17: =(#REF!+#REF!+#REF!+#REF!+#REF!)*#REF!+(#REF!+#REF!)*#REF!+#REF!*#REF! ->  | AF17: =#REF!*#REF!*((#REF!+#REF!+#REF!+#REF!+#REF!)*#REF!+(#REF!+#REF!)*#REF!+#REF!*#REF!)*-1 ->  | AG17: =(S17+SUM(C17:M17))*-1 ->  | AH17: =-(C17*Emissionsfaktorer!$B$2+D17*Emissionsfaktorer!$B$3+E17*Emissionsfaktorer!$B$4+F17*Emissionsfaktorer!$B$5+G17*Emissionsfaktorer!$B$6+H17*Emissionsfaktorer!$B$7+I17*Emissionsfaktorer!$B$8+J17*Emissionsfaktorer!$B$9+K17*Emissionsfaktorer!$B$10+L17*Emissionsfaktorer!$B$11+M17*Emissionsfaktorer!$B$12) -> 
C18: =AF18*#REF!/T18*#REF!/#REF!*-1 ->  | E18: =AF18*#REF!/T18*#REF!/#REF!*-1 ->  | F18: =AF18*#REF!/T18*#REF!/#REF!*-1 ->  | I18: =AF18*#REF!/T18*#REF!/#REF!*-1 ->  | J18: =AF18*#REF!/T18*#REF!/#REF!*-1 ->  | K18: =AF18*#REF!/T18*#REF!/#REF!*-1 ->  | L18: =AF18*#REF!/T18*#REF!/#REF!*-1 ->  | N18: =SUM(C18:L18) ->  | O18: Transport | P18: EXT | Q18: EX | T18: =(#REF!+#REF!+#REF!+#REF!)*#REF!+(#REF!+#REF!)*#REF!+#REF!*#REF! ->  | AF18: =#REF!*#REF!*-1*((#REF!+#REF!+#REF!+#REF!)*#REF!+(#REF!+#REF!)*#REF!+#REF!*#REF!) ->  | AG18: =(S18+SUM(C18:M18))*-1 ->  | AH18: =-(C18*Emissionsfaktorer!$B$2+D18*Emissionsfaktorer!$B$3+E18*Emissionsfaktorer!$B$4+F18*Emissionsfaktorer!$B$5+G18*Emissionsfaktorer!$B$6+H18*Emissionsfaktorer!$B$7+I18*Emissionsfaktorer!$B$8+J18*Emissionsfaktorer!$B$9+K18*Emissionsfaktorer!$B$10+L18*Emissionsfaktorer!$B$11+M18*Emissionsfaktorer!$B$12) -> 
C19: =SUM(C20:C24) ->  | D19: =SUM(D20:D24) -> 0 | G19: 0 | H19: 0 | M19: 0 | N19: =SUM(N20:N24) ->  | O19: Other | P19: EXO | Q19: EX | T19: 0.8 | V19: =SUM(V20:V24) -> 0 | W19: =SUM(W20:W24) -> 0 | X19: 0 | Y19: 0 | Z19: 0 | AA19: 0 | AB19: 0 | AC19: 0 | AD19: 0 | AE19: 0
C20: =AF20*#REF!/T20*#REF!/#REF!*-1 ->  | E20: =AF20*#REF!/T20*#REF!/#REF!*-1 ->  | F20: =AF20*#REF!/T20*#REF!/#REF!*-1 ->  | I20: =AF20*#REF!/T20*#REF!/#REF!*-1 ->  | J20: =AF20*#REF!/T20*#REF!/#REF!*-1 ->  | K20: =AF20*#REF!/T20*#REF!/#REF!*-1 ->  | L20: =AF20*#REF!/T20*#REF!/#REF!*-1 ->  | N20: =SUM(C20:L20) ->  | O20: Residential | P20: EXOR | Q20: EXO | T20: =(#REF!+#REF!+#REF!+#REF!)*#REF!+(#REF!+#REF!)*#REF!+#REF!*#REF! ->  | AF20: =#REF!*#REF!*((#REF!+#REF!+#REF!+#REF!)*#REF!+(#REF!+#REF!)*#REF!+#REF!*#REF!)*-1 ->  | AG20: =(N20+AF20)*-1 ->  | AH20: =-(C20*Emissionsfaktorer!$B$2+D20*Emissionsfaktorer!$B$3+E20*Emissionsfaktorer!$B$4+F20*Emissionsfaktorer!$B$5+G20*Emissionsfaktorer!$B$6+H20*Emissionsfaktorer!$B$7+I20*Emissionsfaktorer!$B$8+J20*Emissionsfaktorer!$B$9+K20*Emissionsfaktorer!$B$10+L20*Emissionsfaktorer!$B$11+M20*Emissionsfaktorer!$B$12) -> 
C21: =AF21*#REF!/T21*#REF!/#REF!*-1 ->  | E21: =AF21*#REF!/T21*#REF!/#REF!*-1 ->  | F21: =AF21*#REF!/T21*#REF!/#REF!*-1 ->  | I21: =AF21*#REF!/T21*#REF!/#REF!*-1 ->  | J21: =AF21*#REF!/T21*#REF!/#REF!*-1 ->  | K21: =AF21*#REF!/T21*#REF!/#REF!*-1 ->  | L21: =AF21*#REF!/T21*#REF!/#REF!*-1 ->  | N21: =SUM(C21:L21) ->  | O21: Commercial and public services | P21: EXOC | Q21: EXO | T21: =(#REF!+#REF!+#REF!+#REF!)*#REF!+(#REF!+#REF!)*#REF!+#REF!*#REF! ->  | AF21: =#REF!*#REF!*((#REF!+#REF!+#REF!+#REF!)*#REF!+(#REF!+#REF!)*#REF!+#REF!*#REF!)*-1 ->  | AG21: =(N21+AF21)*-1 ->  | AH21: =-(C21*Emissionsfaktorer!$B$2+D21*Emissionsfaktorer!$B$3+E21*Emissionsfaktorer!$B$4+F21*Emissionsfaktorer!$B$5+G21*Emissionsfaktorer!$B$6+H21*Emissionsfaktorer!$B$7+I21*Emissionsfaktorer!$B$8+J21*Emissionsfaktorer!$B$9+K21*Emissionsfaktorer!$B$10+L21*Emissionsfaktorer!$B$11+M21*Emissionsfaktorer!$B$12) -> 
C22: =AF22*#REF!/T22*#REF!/#REF!*-1 ->  | E22: =AF22*#REF!/T22*#REF!/#REF!*-1 ->  | F22: =AF22*#REF!/T22*#REF!/#REF!*-1 ->  | I22: =AF22*#REF!/T22*#REF!/#REF!*-1 ->  | J22: =AF22*#REF!/T22*#REF!/#REF!*-1 ->  | K22: =AF22*#REF!/T22*#REF!/#REF!*-1 ->  | L22: =AF22*#REF!/T22*#REF!/#REF!*-1 ->  | N22: =SUM(C22:L22) ->  | O22: Agriculture / forestry | P22: EXOA | Q22: EXO | T22: =(#REF!+#REF!+#REF!+#REF!)*#REF!+(#REF!+#REF!)*#REF!+#REF!*#REF! ->  | AF22: =((#REF!+#REF!+#REF!+#REF!)*#REF!+(#REF!+#REF!)*#REF!+#REF!*#REF!)*#REF!*#REF!*-1 ->  | AG22: =(N22+AF22)*-1 ->  | AH22: =-(C22*Emissionsfaktorer!$B$2+D22*Emissionsfaktorer!$B$3+E22*Emissionsfaktorer!$B$4+F22*Emissionsfaktorer!$B$5+G22*Emissionsfaktorer!$B$6+H22*Emissionsfaktorer!$B$7+I22*Emissionsfaktorer!$B$8+J22*Emissionsfaktorer!$B$9+K22*Emissionsfaktorer!$B$10+L22*Emissionsfaktorer!$B$11+M22*Emissionsfaktorer!$B$12) -> 
C23: =AF23*#REF!/T23*#REF!/#REF!*-1 ->  | E23: =AF23*#REF!/T23*#REF!/#REF!*-1 ->  | F23: =AF23*#REF!/T23*#REF!/#REF!*-1 ->  | I23: =AF23*#REF!/T23*#REF!/#REF!*-1 ->  | J23: =AF23*#REF!/T23*#REF!/#REF!*-1 ->  | K23: =AF23*#REF!/T23*#REF!/#REF!*-1 ->  | L23: =AF23*#REF!/T23*#REF!/#REF!*-1 ->  | N23: =SUM(C23:L23) ->  | O23: Fishing | P23: EXOF | Q23: EXO | T23: =(#REF!+#REF!+#REF!+#REF!)*#REF!+(#REF!+#REF!)*#REF!+#REF!*#REF! ->  | AF23: =((#REF!+#REF!+#REF!+#REF!)*#REF!+(#REF!+#REF!)*#REF!+#REF!*#REF!)*#REF!*#REF!*-1 ->  | AG23: =(N23+AF23)*-1 ->  | AH23: =-(C23*Emissionsfaktorer!$B$2+D23*Emissionsfaktorer!$B$3+E23*Emissionsfaktorer!$B$4+F23*Emissionsfaktorer!$B$5+G23*Emissionsfaktorer!$B$6+H23*Emissionsfaktorer!$B$7+I23*Emissionsfaktorer!$B$8+J23*Emissionsfaktorer!$B$9+K23*Emissionsfaktorer!$B$10+L23*Emissionsfaktorer!$B$11+M23*Emissionsfaktorer!$B$12) -> 
C24: =AF24*#REF!/T24*#REF!/#REF!*-1 ->  | E24: =AF24*#REF!/T24*#REF!/#REF!*-1 ->  | F24: =AF24*#REF!/T24*#REF!/#REF!*-1 ->  | I24: =AF24*#REF!/T24*#REF!/#REF!*-1 ->  | J24: =AF24*#REF!/T24*#REF!/#REF!*-1 ->  | K24: =AF24*#REF!/T24*#REF!/#REF!*-1 ->  | L24: =AF24*#REF!/T24*#REF!/#REF!*-1 ->  | N24: =SUM(C24:L24) ->  | O24: Non-specified | P24: EXON | Q24: EXO | T24: =(#REF!+#REF!+#REF!+#REF!)*#REF!+(#REF!+#REF!)*#REF!+#REF!*#REF! ->  | AF24: =((#REF!+#REF!+#REF!+#REF!)*#REF!+(#REF!+#REF!)*#REF!+#REF!*#REF!)*#REF!*#REF!*-1 ->  | AG24: =(N24+AF24)*-1 ->  | AH24: =-(C24*Emissionsfaktorer!$B$2+D24*Emissionsfaktorer!$B$3+E24*Emissionsfaktorer!$B$4+F24*Emissionsfaktorer!$B$5+G24*Emissionsfaktorer!$B$6+H24*Emissionsfaktorer!$B$7+I24*Emissionsfaktorer!$B$8+J24*Emissionsfaktorer!$B$9+K24*Emissionsfaktorer!$B$10+L24*Emissionsfaktorer!$B$11+M24*Emissionsfaktorer!$B$12) -> 
N25: =N16 ->  | O25: Energy Services | P25: EN | T25: =AF25/N25*-1 ->  | AF25: =AF16 ->  | AG25: =-(S25+N25) -> 

Sheet BL Middle East 2030 (hidden)
B1: Consumption | C1: Coal | D1: Crude oil | E1: Oil Products | F1: Natual Gas | G1: Nuclear | H1: Hydro | I1: Geothermal, solar, wind, etc. | J1: Biofuels and waste | K1: Electricity | L1: Heat | M1: Energy Services | N1: Total consumption | O1: Middle East 2030 | R1: Faktor | S1: Total production | T1: Efficiency | U1: Production | V1: Coal | W1: Crude oil | X1: Oil Products | Y1: Natual Gas | Z1: Nuclear | AA1: Hydro | AB1: Geothermal, solar, wind, etc. | AC1: Biofuels and waste | AD1: Electricity | AE1: Heat | AF1: Energy Services | AG1: Loss | AH1: CO2-emissions
A2: ID | B2: C | C2: CC | D2: CCO | E2: COP | F2: CNG | G2: CNU | H2: CHY | I2: CGSW | J2: CWB | K2: CE | L2: CH | M2: CES | N2: fbrbr | P2: ID | Q2: ID Parent | R2: factor | S2: pbrpr | T2: pvrkg | U2: P | V2: PC | W2: PCO | X2: POP | Y2: PNG | Z2: PNU | AA2: PHY | AB2: PGSW | AC2: PWB | AD2: PE | AE2: PH | AF2: PES | AG2: PTAB | AH2: PCO2
A3: ID Parent | C3: C | D3: C | E3: C | F3: C | G3: C | H3: C | I3: C | J3: C | K3: C | L3: C | M3: C | O3: Structures | V3: P | W3: P | X3: P | Y3: P | Z3: P | AA3: P | AB3: P | AC3: P | AD3: P | AE3: P | AF3: P
A4: Factor | U4: =B4 -> 0 | AG4: =U4 -> 0 | AH4: =U4 -> 0
N5: =SUM(C5:M5) -> 0 | O5: Entry fuels | P5: ETP | S5: =SUM(V5:AF5) ->  | V5: =-(C6+C5) ->  | W5: =-(D6+D5) ->  | Y5: =-(F6+F5) ->  | Z5: =-(G6+G5) ->  | AC5: =-(J6+J5) -> 
C6: =-V6 ->  | D6: =-W6 ->  | F6: =-Y6 ->  | G6: =-Z6 ->  | J6: =-AC6 ->  | N6: =SUM(C6:M6) ->  | O6: Transport of fuels | P6: TRAP | S6: =SUM(V6:AF6) ->  | V6: =-(C16+C8) ->  | W6: =-(D16+D8) ->  | Y6: =-(F16+F8) ->  | Z6: =-(G16+G8) ->  | AC6: =-(J16+J8) ->  | AG6: =-(N6+S6) -> 
N7: 0 | O7: Entry On-Grid RE | P7: ELP1 | AA7: =-H8 ->  | AB7: =-I8 -> 
C8: =SUM(C9:C13) ->  | D8: =SUM(D9:D13) ->  | M8: 0 | O8: Entry electricity, district heating and oil products | P8: ES | V8: =SUM(V9:V13) -> 0 | X8: =(E14+E8)*-1 ->  | AD8: =(K14+K8)*-1 ->  | AE8: =(L14+L8)*-1 ->  | AG8: =-(N8+S8) ->  | AH8: =SUM(AH9:AH13) -> 
C9: =-($AD$9+$H$9+$I$9)/$T$9*#REF! ->  | D9: =-($AD$9+$H$9+$I$9)/$T$9*#REF! ->  | E9: =-($AD$9+$H$9+$I$9)/$T$9*#REF! ->  | F9: =-($AD$9+$H$9+$I$9)/$T$9*#REF! ->  | G9: =-($AD$9+$H$9+$I$9)/$T$9*#REF! ->  | H9: =AD9*#REF!*-1 ->  | I9: =AD9*#REF!*-1 ->  | J9: =-($AD$9+$H$9+$I$9)/$T$9*#REF! ->  | O9: Electricity-only plants | P9: ESEP | Q9: ES | T9: =#REF! ->  | AD9: =AD8-AD10 ->  | AG9: =-(S9+N9) ->  | AH9: =-(C9*Emissionsfaktorer!$B$2*(1-#REF!)+D9*Emissionsfaktorer!$B$3+E9*Emissionsfaktorer!$B$4*(1-#REF!)+F9*Emissionsfaktorer!$B$5*(1-#REF!)+G9*Emissionsfaktorer!$B$6+H9*Emissionsfaktorer!$B$7+I9*Emissionsfaktorer!$B$8-J9*Emissionsfaktorer!B13*#REF!+K9*Emissionsfaktorer!$B$10+L9*Emissionsfaktorer!$B$11+M9*Emissionsfaktorer!$B$12) -> 
C10: =-($AD$10+$AE$10+$H$10+$I$10)/IF($T$10=0,1,T10)*#REF! ->  | D10: =-($AD$10+$AE$10+$H$10+$I$10)/IF($T$10=0,1,T10)*#REF! ->  | E10: =-($AD$10+$AE$10+$H$10+$I$10)/IF($T$10=0,1,T10)*#REF! ->  | F10: =-($AD$10+$AE$10+$H$10+$I$10)/IF($T$10=0,1)*#REF! ->  | G10: =-($AD$10+$AE$10+$H$10+$I$10)/IF($T$10=0,1,T10)*#REF! ->  | I10: =(AD10+AE10)*#REF!*-1 ->  | J10: =-($AD$10+$AE$10+$H$10+$I$10)/IF($T$10=0,1,T10)*#REF! ->  | O10: CHP plants | P10: ESCHP | Q10: ES | T10: =#REF! ->  | AD10: =AE10*#REF! ->  | AE10: =AE8*#REF! ->  | AG10: =-(S10+N10) ->  | AH10: =-(C10*Emissionsfaktorer!$B$2*(1-#REF!)+D10*Emissionsfaktorer!$B$3+E10*Emissionsfaktorer!$B$4*(1-#REF!)+F10*Emissionsfaktorer!$B$5*(1-#REF!)+G10*Emissionsfaktorer!$B$6+H10*Emissionsfaktorer!$B$7+I10*Emissionsfaktorer!$B$8-J10*Emissionsfaktorer!B14*#REF!+K10*Emissionsfaktorer!$B$10+L10*Emissionsfaktorer!$B$11+M10*Emissionsfaktorer!$B$12) -> 
C11: =-($AE$11+$H$11+$I$11)/IF($T$11=0,1,$T$11)*#REF! ->  | D11: =-($AE$11+$H$11+$I$11)/IF($T$11=0,1,$T$11)*#REF! ->  | E11: =-($AE$11+$H$11+$I$11)/IF($T$11=0,1,$T$11)*#REF! ->  | F11: =-($AE$11+$H$11+$I$11)/IF($T$11=0,1,$T$11)*#REF! ->  | G11: =-($AE$11+$H$11+$I$11)/IF($T$11=0,1,T11)*#REF! ->  | I11: =AE11*#REF!*-1 ->  | J11: =-($AE$11+$H$11+$I$11)/IF($T$11=0,1,T11)*#REF! ->  | K11: =AE11*#REF!*-1 ->  | O11: Heat Plants | P11: ESHP | Q11: ES | T11: =#REF! ->  | AE11: =AE8*#REF! ->  | AG11: =-(S11+N11) ->  | AH11: =-(C11*Emissionsfaktorer!$B$2+D11*Emissionsfaktorer!$B$3+E11*Emissionsfaktorer!$B$4+F11*Emissionsfaktorer!$B$5+G11*Emissionsfaktorer!$B$6+H11*Emissionsfaktorer!$B$7+I11*Emissionsfaktorer!$B$8+J11*Emissionsfaktorer!$B$9+K11*Emissionsfaktorer!$B$10+L11*Emissionsfaktorer!$B$11+M11*Emissionsfaktorer!$B$12) -> 
D12: =-X12/IF(T12=0,1,T12)*#REF! ->  | J12: =-X12/T12*#REF! ->  | O12: Oil refineries | P12: ESOR | Q12: ES | T12: =#REF! ->  | X12: =-(E9+E10+E11+E13+E14) ->  | AG12: =-(S12+N12) ->  | AH12: =J12*Emissionsfaktorer!B4 -> 
C13: =N13*#REF! ->  | D13: =N13*#REF! ->  | E13: =N13*#REF! ->  | F13: =N13*#REF! ->  | J13: =N13*#REF! ->  | K13: =N13*#REF! ->  | L13: =N13*#REF! ->  | N13: =N16*#REF! ->  | O13: Energy Industry one use | P13: ESNSP | Q13: ES | S13: 0 | T13: 0 | AG13: =-(S13+N13) ->  | AH13: =-(C13*Emissionsfaktorer!$B$2+D13*Emissionsfaktorer!$B$3+E13*Emissionsfaktorer!$B$4+F13*Emissionsfaktorer!$B$5+G13*Emissionsfaktorer!$B$6+H13*Emissionsfaktorer!$B$7+I13*Emissionsfaktorer!$B$8+J13*Emissionsfaktorer!$B$9+K13*Emissionsfaktorer!$B$10+L13*Emissionsfaktorer!$B$11+M13*Emissionsfaktorer!$B$12) -> 
E14: =-X14*1 ->  | K14: =-AD14*(1+#REF!) ->  | L14: =-AE14*(1+#REF!) ->  | O14: Transport electricity, district heating and oil products | P14: TRAS | X14: =-E16 ->  | AD14: =-K16 ->  | AE14: =-L16 ->  | AG14: =-(N14+S14) -> 
N15: 0 | O15: Entry Off-Grid RE | P15: ELP2 | AB15: =I16*-1 -> 
C16: =SUM(C17:C19) ->  | G16: 0 | H16: 0 | M16: 0 | N16: =#REF! ->  | O16: Exit energy | P16: EX | AF16: =SUM(AF17:AF19) ->  | AG16: =SUM(AG17:AG19) ->  | AH16: =SUM(AH17:AH19) -> 
C17: =AF17*#REF!/T17*#REF!/#REF!*-1 ->  | D17: =AF17*#REF!/T17*#REF!/#REF!*-1 ->  | E17: =AF17*#REF!/T17*#REF!/#REF!*-1 ->  | F17: =AF17*#REF!/T17*#REF!/#REF!*-1 ->  | I17: =AF17*#REF!/T17*#REF!/#REF!*-1 ->  | J17: =AF17*#REF!*#REF!/T17/#REF!*-1 ->  | K17: =AF17*#REF!*#REF!/T17/#REF!*-1 ->  | L17: =AF17*#REF!*#REF!/T17/#REF!*-1 ->  | N17: =SUM(C17:L17) ->  | O17: Industry | P17: EXI | Q17: EX | T17: =(#REF!+#REF!+#REF!+#REF!+#REF!)*#REF!+(#REF!+#REF!)*#REF!+#REF!*#REF! ->  | AF17: =#REF!*#REF!*((#REF!+#REF!+#REF!+#REF!+#REF!)*#REF!+(#REF!+#REF!)*#REF!+#REF!*#REF!)*-1 ->  | AG17: =(S17+SUM(C17:M17))*-1 ->  | AH17: =-(C17*Emissionsfaktorer!$B$2+D17*Emissionsfaktorer!$B$3+E17*Emissionsfaktorer!$B$4+F17*Emissionsfaktorer!$B$5+G17*Emissionsfaktorer!$B$6+H17*Emissionsfaktorer!$B$7+I17*Emissionsfaktorer!$B$8+J17*Emissionsfaktorer!$B$9+K17*Emissionsfaktorer!$B$10+L17*Emissionsfaktorer!$B$11+M17*Emissionsfaktorer!$B$12) -> 
C18: =AF18*#REF!/T18*#REF!/#REF!*-1 ->  | E18: =AF18*#REF!/T18*#REF!/#REF!*-1 ->  | F18: =AF18*#REF!/T18*#REF!/#REF!*-1 ->  | I18: =AF18*#REF!/T18*#REF!/#REF!*-1 ->  | J18: =AF18*#REF!/T18*#REF!/#REF!*-1 ->  | K18: =AF18*#REF!/T18*#REF!/#REF!*-1 ->  | L18: =AF18*#REF!/T18*#REF!/#REF!*-1 ->  | N18: =SUM(C18:L18) ->  | O18: Transport | P18: EXT | Q18: EX | T18: =(#REF!+#REF!+#REF!+#REF!)*#REF!+(#REF!+#REF!)*#REF!+#REF!*#REF! ->  | AF18: =#REF!*#REF!*-1*((#REF!+#REF!+#REF!+#REF!)*#REF!+(#REF!+#REF!)*#REF!+#REF!*#REF!) ->  | AG18: =(S18+SUM(C18:M18))*-1 ->  | AH18: =-(C18*Emissionsfaktorer!$B$2+D18*Emissionsfaktorer!$B$3+E18*Emissionsfaktorer!$B$4+F18*Emissionsfaktorer!$B$5+G18*Emissionsfaktorer!$B$6+H18*Emissionsfaktorer!$B$7+I18*Emissionsfaktorer!$B$8+J18*Emissionsfaktorer!$B$9+K18*Emissionsfaktorer!$B$10+L18*Emissionsfaktorer!$B$11+M18*Emissionsfaktorer!$B$12) -> 
C19: =SUM(C20:C24) ->  | D19: =SUM(D20:D24) -> 0 | G19: 0 | H19: 0 | M19: 0 | N19: =SUM(N20:N24) ->  | O19: Other | P19: EXO | Q19: EX | T19: 0.8 | V19: =SUM(V20:V24) -> 0 | W19: =SUM(W20:W24) -> 0 | X19: 0 | Y19: 0 | Z19: 0 | AA19: 0 | AB19: 0 | AC19: 0 | AD19: 0 | AE19: 0
C20: =AF20*#REF!/T20*#REF!/#REF!*-1 ->  | E20: =AF20*#REF!/T20*#REF!/#REF!*-1 ->  | F20: =AF20*#REF!/T20*#REF!/#REF!*-1 ->  | I20: =AF20*#REF!/T20*#REF!/#REF!*-1 ->  | J20: =AF20*#REF!/T20*#REF!/#REF!*-1 ->  | K20: =AF20*#REF!/T20*#REF!/#REF!*-1 ->  | L20: =AF20*#REF!/T20*#REF!/#REF!*-1 ->  | N20: =SUM(C20:L20) ->  | O20: Residential | P20: EXOR | Q20: EXO | T20: =(#REF!+#REF!+#REF!+#REF!)*#REF!+(#REF!+#REF!)*#REF!+#REF!*#REF! ->  | AF20: =#REF!*#REF!*((#REF!+#REF!+#REF!+#REF!)*#REF!+(#REF!+#REF!)*#REF!+#REF!*#REF!)*-1 ->  | AG20: =(N20+AF20)*-1 ->  | AH20: =-(C20*Emissionsfaktorer!$B$2+D20*Emissionsfaktorer!$B$3+E20*Emissionsfaktorer!$B$4+F20*Emissionsfaktorer!$B$5+G20*Emissionsfaktorer!$B$6+H20*Emissionsfaktorer!$B$7+I20*Emissionsfaktorer!$B$8+J20*Emissionsfaktorer!$B$9+K20*Emissionsfaktorer!$B$10+L20*Emissionsfaktorer!$B$11+M20*Emissionsfaktorer!$B$12) -> 
C21: =AF21*#REF!/T21*#REF!/#REF!*-1 ->  | E21: =AF21*#REF!/T21*#REF!/#REF!*-1 ->  | F21: =AF21*#REF!/T21*#REF!/#REF!*-1 ->  | I21: =AF21*#REF!/T21*#REF!/#REF!*-1 ->  | J21: =AF21*#REF!/T21*#REF!/#REF!*-1 ->  | K21: =AF21*#REF!/T21*#REF!/#REF!*-1 ->  | L21: =AF21*#REF!/T21*#REF!/#REF!*-1 ->  | N21: =SUM(C21:L21) ->  | O21: Commercial and public services | P21: EXOC | Q21: EXO | T21: =(#REF!+#REF!+#REF!+#REF!)*#REF!+(#REF!+#REF!)*#REF!+#REF!*#REF! ->  | AF21: =#REF!*#REF!*((#REF!+#REF!+#REF!+#REF!)*#REF!+(#REF!+#REF!)*#REF!+#REF!*#REF!)*-1 ->  | AG21: =(N21+AF21)*-1 ->  | AH21: =-(C21*Emissionsfaktorer!$B$2+D21*Emissionsfaktorer!$B$3+E21*Emissionsfaktorer!$B$4+F21*Emissionsfaktorer!$B$5+G21*Emissionsfaktorer!$B$6+H21*Emissionsfaktorer!$B$7+I21*Emissionsfaktorer!$B$8+J21*Emissionsfaktorer!$B$9+K21*Emissionsfaktorer!$B$10+L21*Emissionsfaktorer!$B$11+M21*Emissionsfaktorer!$B$12) -> 
C22: =AF22*#REF!/T22*#REF!/#REF!*-1 ->  | E22: =AF22*#REF!/T22*#REF!/#REF!*-1 ->  | F22: =AF22*#REF!/T22*#REF!/#REF!*-1 ->  | I22: =AF22*#REF!/T22*#REF!/#REF!*-1 ->  | J22: =AF22*#REF!/T22*#REF!/#REF!*-1 ->  | K22: =AF22*#REF!/T22*#REF!/#REF!*-1 ->  | L22: =AF22*#REF!/T22*#REF!/#REF!*-1 ->  | N22: =SUM(C22:L22) ->  | O22: Agriculture / forestry | P22: EXOA | Q22: EXO | T22: =(#REF!+#REF!+#REF!+#REF!)*#REF!+(#REF!+#REF!)*#REF!+#REF!*#REF! ->  | AF22: =((#REF!+#REF!+#REF!+#REF!)*#REF!+(#REF!+#REF!)*#REF!+#REF!*#REF!)*#REF!*#REF!*-1 ->  | AG22: =(N22+AF22)*-1 ->  | AH22: =-(C22*Emissionsfaktorer!$B$2+D22*Emissionsfaktorer!$B$3+E22*Emissionsfaktorer!$B$4+F22*Emissionsfaktorer!$B$5+G22*Emissionsfaktorer!$B$6+H22*Emissionsfaktorer!$B$7+I22*Emissionsfaktorer!$B$8+J22*Emissionsfaktorer!$B$9+K22*Emissionsfaktorer!$B$10+L22*Emissionsfaktorer!$B$11+M22*Emissionsfaktorer!$B$12) -> 
C23: =AF23*#REF!/T23*#REF!/#REF!*-1 ->  | E23: =AF23*#REF!/T23*#REF!/#REF!*-1 ->  | F23: =AF23*#REF!/T23*#REF!/#REF!*-1 ->  | I23: =AF23*#REF!/T23*#REF!/#REF!*-1 ->  | J23: =AF23*#REF!/T23*#REF!/#REF!*-1 ->  | K23: =AF23*#REF!/T23*#REF!/#REF!*-1 ->  | L23: =AF23*#REF!/T23*#REF!/#REF!*-1 ->  | N23: =SUM(C23:L23) ->  | O23: Fishing | P23: EXOF | Q23: EXO | T23: =(#REF!+#REF!+#REF!+#REF!)*#REF!+(#REF!+#REF!)*#REF!+#REF!*#REF! ->  | AF23: =((#REF!+#REF!+#REF!+#REF!)*#REF!+(#REF!+#REF!)*#REF!+#REF!*#REF!)*#REF!*#REF!*-1 ->  | AG23: =(N23+AF23)*-1 ->  | AH23: =-(C23*Emissionsfaktorer!$B$2+D23*Emissionsfaktorer!$B$3+E23*Emissionsfaktorer!$B$4+F23*Emissionsfaktorer!$B$5+G23*Emissionsfaktorer!$B$6+H23*Emissionsfaktorer!$B$7+I23*Emissionsfaktorer!$B$8+J23*Emissionsfaktorer!$B$9+K23*Emissionsfaktorer!$B$10+L23*Emissionsfaktorer!$B$11+M23*Emissionsfaktorer!$B$12) -> 
C24: =AF24*#REF!/T24*#REF!/#REF!*-1 ->  | E24: =AF24*#REF!/T24*#REF!/#REF!*-1 ->  | F24: =AF24*#REF!/T24*#REF!/#REF!*-1 ->  | I24: =AF24*#REF!/T24*#REF!/#REF!*-1 ->  | J24: =AF24*#REF!/T24*#REF!/#REF!*-1 ->  | K24: =AF24*#REF!/T24*#REF!/#REF!*-1 ->  | L24: =AF24*#REF!/T24*#REF!/#REF!*-1 ->  | N24: =SUM(C24:L24) ->  | O24: Non-specified | P24: EXON | Q24: EXO | T24: =(#REF!+#REF!+#REF!+#REF!)*#REF!+(#REF!+#REF!)*#REF!+#REF!*#REF! ->  | AF24: =((#REF!+#REF!+#REF!+#REF!)*#REF!+(#REF!+#REF!)*#REF!+#REF!*#REF!)*#REF!*#REF!*-1 ->  | AG24: =(N24+AF24)*-1 ->  | AH24: =-(C24*Emissionsfaktorer!$B$2+D24*Emissionsfaktorer!$B$3+E24*Emissionsfaktorer!$B$4+F24*Emissionsfaktorer!$B$5+G24*Emissionsfaktorer!$B$6+H24*Emissionsfaktorer!$B$7+I24*Emissionsfaktorer!$B$8+J24*Emissionsfaktorer!$B$9+K24*Emissionsfaktorer!$B$10+L24*Emissionsfaktorer!$B$11+M24*Emissionsfaktorer!$B$12) -> 
N25: =N16 ->  | O25: Energy Services | P25: EN | T25: =AF25/N25*-1 ->  | AF25: =AF16 ->  | AG25: =-(S25+N25) -> 

Sheet Middle East 1995 (hidden)
B1: Coal* | C1: Crude oil | D1: Oil products | E1: Natural gas | F1: Nuclear | G1: Hydro | H1: Geothermal, solar, etc. | I1: Biofuels and waste | J1: Electricity | K1: Heat | L1: Total**
B2: ktoe | C2: ktoe | D2: ktoe | E2: ktoe | F2: ktoe | G2: ktoe | H2: ktoe | I2: ktoe | J2: ktoe | K2: ktoe | L2: ktoe
A3: Production | B3: 720 | C3: 1019284 | E3: 115955 | G3: 950 | H3: 59 | I3: 495 | L3: 1137466
A4: Imports | B4: 439 | C4: 7476 | D4: 23320 | E4: 408 | I4: 42 | J4: 25 | L4: 31712
A5: Exports | B5: -7 | C5: -698619 | D5: -134869 | E5: -6299 | J5: -13 | L5: -839807
A6: International marine bunkers | D6: -14748 | L6: -14748
A7: International aviation bunkers | D7: -8259 | L7: -8259
A8: Stock changes | C8: 171 | D8: 12 | L8: 183
A9: TES | B9: 1152 | C9: 328313 | D9: -134542 | E9: 110065 | G9: 950 | H9: 59 | I9: 537 | J9: 12 | L9: 306548
A10: Transfers | C10: -42575 | D10: 44968 | L10: 2391
A11: Statistical differences | C11: -3136 | D11: 2290 | E11: 485 | J11: -1 | L11: -361
A12: Electricity plants | B12: -28 | C12: -20245 | D12: -25690 | E12: -47824 | G12: -950 | J12: 27109 | L12: -67627
A13: CHP plants
A14: Heat plants
A15: Gas works
A16: Oil refineries | C16: -258715 | D16: 245005 | L16: -13711
A17: Coal transformation | B17: -451 | L17: -451
A18: Liquefication plants
A19: Other transformation | I19: -111 | L19: -111
A20: Energy industry own use | B20: -127 | C20: -30 | D20: -9421 | E20: -8557 | J20: -2677 | L20: -20817
A21: Losses | B21: -144 | E21: -1161 | J21: -2745 | L21: -4050
A22: Total final consumption | B22: 403 | C22: 3611 | D22: 122607 | E22: 53010 | H22: 59 | I22: 427 | J22: 21697 | L22: 201814
A23: Industry | B23: 385 | C23: 2078 | D23: 19028 | E23: 35145 | J23: 5350 | L23: 61984
A24: Transport | D24: 59105 | L24: 59105
A25: Residential | B25: 18 | D25: 18686 | E25: 9413 | H25: 53 | I25: 240 | J25: 9172 | L25: 37582
A26: Commercial and public services | D26: 3784 | E26: 1253 | I26: 74 | J26: 4612 | L26: 9723
A27: Agriculture / forestry | D27: 4411 | J27: 749 | L27: 5161
A28: Fishing
A29: Non-specified | D29: 1513 | E29: 197 | H29: 6 | I29: 113 | J29: 1815 | L29: 3643
A30: Non-energy use | C30: 1533 | D30: 16079 | E30: 7001 | L30: 24614
B32: =SUM(B9,B10:B21,B22*-1) -> -1 | C32: =SUM(C9,C10:C21,C22*-1) -> 1 | D32: 3 | E32: -2 | F32: 0 | G32: 0 | H32: 0 | I32: -1 | J32: 1 | K32: 0 | L32: -3

Sheet Middle East 2000 (hidden)
B1: Coal* | C1: Crude oil | D1: Oil products | E1: Natural gas | F1: Nuclear | G1: Hydro | H1: Geothermal, solar, etc. | I1: Biofuels and waste | J1: Electricity | K1: Heat | L1: Total**
B2: ktoe | C2: ktoe | D2: ktoe | E2: ktoe | F2: ktoe | G2: ktoe | H2: ktoe | I2: ktoe | J2: ktoe | K2: ktoe | L2: ktoe
A3: Production | B3: 761 | C3: 1157897 | E3: 164444 | G3: 687 | H3: 72 | I3: 398 | L3: 1324260
A4: Imports | B4: 838 | C4: 8781 | D4: 19820 | E4: 2781 | I4: 23 | J4: 152 | L4: 32397
A5: Exports | B5: -41 | C5: -814059 | D5: -150253 | E5: -21809 | J5: -86 | L5: -986246
A6: International marine bunkers | D6: -14029 | L6: -14029
A7: International aviation bunkers | D7: -8594 | L7: -8594
A8: Stock changes | B8: 35 | C8: 4884 | D8: 528 | L8: 5448
A9: TES | B9: 1593 | C9: 357503 | D9: -152525 | E9: 145416 | G9: 687 | H9: 72 | I9: 422 | J9: 65 | L9: 353238
A10: Transfers | C10: -54589 | D10: 58001 | L10: 3412
A11: Statistical differences | B11: -170 | C11: -845 | D11: 4455 | E11: 73 | I11: 1 | J11: 107 | L11: 3621
A12: Electricity plants | B12: -162 | C12: -13056 | D12: -34279 | E12: -65507 | G12: -687 | H12: -3 | I12: -1 | J12: 36952 | L12: -76742
A13: CHP plants
A14: Heat plants
A15: Gas works
A16: Oil refineries | C16: -284890 | D16: 276943 | L16: -7947
A17: Coal transformation | B17: -525 | L17: -525
A18: Liquefication plants
A19: Other transformation | C19: 149 | D19: -188 | I19: -90 | L19: -129
A20: Energy industry own use | B20: -164 | C20: -1681 | D20: -9641 | E20: -14359 | J20: -3560 | L20: -29404
A21: Losses | B21: -108 | E21: -425 | J21: -4292 | L21: -4825
A22: Total final consumption | B22: 464 | C22: 2593 | D22: 142765 | E22: 65198 | H22: 69 | I22: 333 | J22: 29274 | L22: 240697
A23: Industry | B23: 374 | C23: 2593 | D23: 21692 | E23: 37358 | J23: 7155 | L23: 69170
A24: Transport | D24: 70598 | E24: 107 | J24: 1 | L24: 70706
A25: Residential | B25: 18 | D25: 18408 | E25: 16248 | H25: 64 | I25: 182 | J25: 12022 | L25: 46944
A26: Commercial and public services | D26: 4091 | E26: 2297 | H26: 4 | I26: 57 | J26: 6089 | L26: 12540
A27: Agriculture / forestry | D27: 4386 | J27: 1070 | L27: 5456
A28: Fishing
A29: Non-specified | D29: 2101 | E29: 217 | I29: 94 | J29: 2938 | L29: 5349
A30: Non-energy use | B30: 72 | D30: 21488 | E30: 8974 | L30: 30534
B32: =SUM(B9,B10:B21,B22*-1) -> 0 | C32: =SUM(C9,C10:C21,C22*-1) -> -2 | D32: 1 | E32: 0 | F32: 0 | G32: 0 | H32: 0 | I32: -1 | J32: -2 | K32: 0 | L32: 2

Sheet Middle East 2005 (hidden)
B1: Coal* | C1: Crude oil | D1: Oil products | E1: Natural gas | F1: Nuclear | G1: Hydro | H1: Geothermal, solar, etc. | I1: Biofuels and waste | J1: Electricity | K1: Heat | L1: Total**
B2: ktoe | C2: ktoe | D2: ktoe | E2: ktoe | F2: ktoe | G2: ktoe | H2: ktoe | I2: ktoe | J2: ktoe | K2: ktoe | L2: ktoe
A3: Production | B3: 1012 | C3: 1259499 | E3: 252291 | G3: 2367 | H3: 80 | I3: 877 | L3: 1516129
A4: Imports | B4: 944 | C4: 11228 | D4: 42362 | E4: 6728 | I4: 40 | J4: 409 | L4: 61713
A5: Exports | B5: -26 | C5: -878054 | D5: -161289 | E5: -46564 | J5: -315 | L5: -1086249
A6: International marine bunkers | D6: -16945 | L6: -16945
A7: International aviation bunkers | D7: -8978 | L7: -8978
A8: Stock changes | B8: 33 | C8: 4209 | D8: -793 | L8: 3450
A9: TES | B9: 1962 | C9: 396882 | D9: -145640 | E9: 212454 | G9: 2367 | H9: 80 | I9: 917 | J9: 94 | L9: 469119
A10: Transfers | C10: -62717 | D10: 66776 | L10: 4061
A11: Statistical differences | B11: -122 | C11: 940 | D11: 2624 | E11: -812 | J11: -129 | L11: 2502
A12: Electricity plants | B12: -192 | C12: -11051 | D12: -43681 | E12: -100793 | G12: -2367 | H12: -6 | I12: -1 | J12: 51295 | L12: -106796
A13: CHP plants
A14: Heat plants
A15: Gas works
A16: Oil refineries | C16: -319541 | D16: 312611 | L16: -6928
A17: Coal transformation | B17: -519 | L17: -519
A18: Liquefication plants
A19: Other transformation | C19: 572 | D19: -720 | I19: -85 | L19: -233
A20: Energy industry own use | B20: -138 | C20: -3727 | D20: -10900 | E20: -21728 | J20: -4521 | L20: -41016
A21: Losses | B21: -107 | J21: -7186 | L21: -7293
A22: Total final consumption | B22: 884 | C22: 1357 | D22: 181070 | E22: 89123 | H22: 74 | I22: 829 | J22: 39553 | L22: 312892
A23: Industry | B23: 811 | C23: 1357 | D23: 27459 | E23: 46681 | J23: 9124 | L23: 85433
A24: Transport | D24: 91965 | E24: 684 | J24: 9 | L24: 92658
A25: Residential | B25: 9 | D25: 19444 | E25: 26649 | H25: 68 | I25: 434 | J25: 17775 | L25: 64378
A26: Commercial and public services | D26: 4586 | E26: 3633 | H26: 6 | I26: 286 | J26: 8631 | L26: 17143
A27: Agriculture / forestry | D27: 4823 | J27: 1837 | L27: 6660
A28: Fishing
A29: Non-specified | D29: 2441 | E29: 53 | I29: 110 | J29: 2181 | L29: 4785
A30: Non-energy use | B30: 64 | D30: 30354 | E30: 11425 | L30: 41843
B32: =SUM(B9,B10:B21,B22*-1) -> 0 | C32: =SUM(C9,C10:C21,C22*-1) -> 1 | D32: 0 | E32: -2 | F32: 0 | G32: 0 | H32: 0 | I32: 2 | J32: 0 | K32: 0 | L32: 5

Sheet Middle East 2010 (hidden)
B1: Coal* | C1: Crude oil | D1: Oil products | E1: Natural gas | F1: Nuclear | G1: Hydro | H1: Geothermal, solar, etc. | I1: Biofuels and waste | J1: Electricity | K1: Heat | L1: Total**
B2: ktoe | C2: ktoe | D2: ktoe | E2: ktoe | F2: ktoe | G2: ktoe | H2: ktoe | I2: ktoe | J2: ktoe | K2: ktoe | L2: ktoe
A3: Production | B3: 727 | C3: 1231970 | E3: 391320 | G3: 1529 | H3: 154 | I3: 897 | L3: 1626600
A4: Imports | B4: 1755 | C4: 10066 | D4: 59057 | E4: 28726 | I4: 70 | J4: 968 | L4: 100641
A5: Exports | B5: -79 | C5: -794961 | D5: -170750 | E5: -113618 | J5: -674 | L5: -1080080
A6: International marine bunkers | D6: -20937 | L6: -20937
A7: International aviation bunkers | D7: -11991 | L7: -11991
A8: Stock changes | B8: -1 | C8: -7471 | D8: 1575 | L8: -5896
A9: TES | B9: 2403 | C9: 439605 | D9: -143046 | E9: 306429 | G9: 1529 | H9: 154 | I9: 967 | J9: 296 | L9: 608339
A10: Transfers | C10: -74463 | D10: 80864 | L10: 6401
A11: Statistical differences | B11: -200 | C11: 5167 | D11: 3049 | E11: 183 | J11: -550 | L11: 7647
A12: Electricity plants | B12: -121 | C12: -26327 | D12: -56645 | E12: -129057 | G12: -1529 | H12: -15 | I12: -6 | J12: 71317 | L12: -142383
A13: CHP plants
A14: Heat plants
A15: Gas works
A16: Oil refineries | C16: -337073 | D16: 330033 | L16: -7043
A17: Coal transformation | B17: -575 | L17: -575
A18: Liquefication plants | C18: 1136 | E18: -2744 | L18: -1608
A19: Other transformation | C19: 434 | D19: -546 | I19: -80 | L19: -192
A20: Energy industry own use | B20: -184 | C20: -2253 | D20: -10180 | E20: -28926 | J20: -4347 | L20: -45889
A21: Losses | B21: -148 | C21: -76 | E21: -31 | J21: -8901 | L21: -9154
A22: Total final consumption | B22: 1176 | C22: 6146 | D22: 203528 | E22: 145854 | H22: 139 | I22: 881 | J22: 57815 | L22: 415539
A23: Industry | B23: 973 | C23: 6146 | D23: 28660 | E23: 83055 | H23: 1 | J23: 13022 | L23: 131854
A24: Transport | D24: 110784 | E24: 5102 | J24: 26 | L24: 115913
A25: Residential | B25: 9 | D25: 15975 | E25: 34574 | H25: 118 | I25: 432 | J25: 25381 | L25: 76487
A26: Commercial and public services | D26: 3588 | E26: 6838 | H26: 21 | I26: 306 | J26: 13230 | L26: 23983
A27: Agriculture / forestry | D27: 4719 | E27: 400 | J27: 2605 | L27: 7724
A28: Fishing
A29: Non-specified | D29: 927 | E29: 145 | I29: 142 | J29: 3553 | L29: 4767
A30: Non-energy use | B30: 195 | D30: 38872 | E30: 15740 | L30: 54807
B32: =SUM(B9,B10:B21,B22*-1) -> -1 | C32: =SUM(C9,C10:C21,C22*-1) -> 4 | D32: 1 | E32: 0 | F32: 0 | G32: 0 | H32: 0 | I32: 0 | J32: 0 | K32: 0 | L32: 4

Sheet Middle East 2015 (hidden)
B1: Coal* | C1: Crude oil | D1: Oil products | E1: Natural gas | F1: Nuclear | G1: Hydro | H1: Geothermal, solar, etc. | I1: Biofuels and waste | J1: Electricity | K1: Heat | L1: Total**
B2: ktoe | C2: ktoe | D2: ktoe | E2: ktoe | F2: ktoe | G2: ktoe | H2: ktoe | I2: ktoe | J2: ktoe | K2: ktoe | L2: ktoe
A3: Production | B3: 806 | C3: 1394772 | E3: 488551 | F3: 759 | G3: 1513 | H3: 333 | I3: 799 | L3: 1887529
A4: Imports | B4: 2613 | C4: 14173 | D4: 82923 | E4: 31668 | I4: 67 | J4: 1597 | L4: 133039
A5: Exports | B5: -124 | C5: -917105 | D5: -206778 | E5: -134674 | J5: -653 | L5: -1259331
A6: International marine bunkers | D6: -26282 | L6: -26282
A7: International aviation bunkers | D7: -15746 | L7: -15746
A8: Stock changes | C8: 1795 | D8: -3466 | L8: -1669
A9: TES | B9: 3295 | C9: 493635 | D9: -169344 | E9: 385546 | F9: 759 | G9: 1513 | H9: 333 | I9: 865 | J9: 943 | L9: 717543
A10: Transfers | C10: -96074 | D10: 104065 | L10: 7993
A11: Statistical differences | B11: 415 | C11: 9477 | D11: 3322 | E11: 8004 | J11: -2797 | L11: 18426
A12: Electricity plants | B12: -158 | C12: -38074 | D12: -61440 | E12: -155749 | F12: -759 | G12: -1513 | H12: -126 | I12: -5 | J12: 91893 | L12: -165928
A13: CHP plants
A14: Heat plants
A15: Gas works
A16: Oil refineries | C16: -370556 | D16: 365025 | L16: -5533
A17: Coal transformation | B17: -611 | L17: -611
A18: Liquefication plants | C18: 5788 | E18: -14042 | L18: -8254
A19: Other transformation | C19: 456 | D19: -573 | I19: -89 | L19: -206
A20: Energy industry own use | B20: -165 | C20: -4241 | D20: -12888 | E20: -37260 | J20: -5061 | L20: -59614
A21: Losses | B21: -26 | C21: -160 | E21: -49 | J21: -11648 | L21: -11883
A22: Total final consumption | B22: 2749 | C22: 252 | D22: 228166 | E22: 186451 | H22: 209 | I22: 770 | J22: 73335 | L22: 491927
A23: Industry | B23: 2457 | C23: 252 | D23: 27446 | E23: 107310 | H23: 2 | J23: 14158 | L23: 151626
A24: Transport | D24: 131769 | E24: 6661 | J24: 47 | L24: 138478
A25: Residential | B25: 9 | D25: 12282 | E25: 39402 | H25: 158 | I25: 375 | J25: 30875 | L25: 83104
A26: Commercial and public services | D26: 1788 | E26: 10495 | H26: 48 | I26: 248 | J26: 20137 | L26: 32715
A27: Agriculture / forestry | D27: 3032 | E27: 1387 | J27: 3872 | L27: 8292
A28: Fishing
A29: Non-specified | D29: 970 | E29: 161 | I29: 147 | J29: 4241 | L29: 5519
A30: Non-energy use | B30: 284 | D30: 50879 | E30: 21031 | L30: 72194
B32: =SUM(B9,B10:B21,B22*-1) -> 1 | C32: =SUM(C9,C10:C21,C22*-1) -> -1 | D32: 1 | E32: -1 | F32: 0 | G32: 0 | H32: -2 | I32: 1 | J32: -5 | K32: 0 | L32: 6

Sheet Middle East 2018 (hidden)
B1: Coal* | C1: Crude oil | D1: Oil products | E1: Natural gas | F1: Nuclear | G1: Hydro | H1: Geothermal, solar, etc. | I1: Biofuels and waste | J1: Electricity | K1: Heat | L1: Total**
B2: ktoe | C2: ktoe | D2: ktoe | E2: ktoe | F2: ktoe | G2: ktoe | H2: ktoe | I2: ktoe | J2: ktoe | K2: ktoe | L2: ktoe
A3: Production | B3: 1099 | C3: 1494221 | E3: 539179 | F3: 1978 | G3: 1609 | H3: 732 | I3: 890 | L3: 2039709
A4: Imports | B4: 2797 | C4: 20394 | D4: 96503 | E4: 30053 | I4: 107 | J4: 2211 | L4: 152064
A5: Exports | B5: -202 | C5: -1003961 | D5: -252212 | E5: -140113 | J5: -678 | L5: -1397167
A6: International marine bunkers | D6: -25303 | L6: -25303
A7: International aviation bunkers | D7: -17792 | L7: -17792
A8: Stock changes | C8: 6330 | D8: 2066 | L8: 8396
A9: TES | B9: 3693 | C9: 516985 | D9: -196736 | E9: 429120 | F9: 1978 | G9: 1609 | H9: 732 | I9: 996 | J9: 1532 | L9: 759906
A10: Transfers | C10: -95856 | D10: 104714 | L10: 8857
A11: Statistical differences | B11: 422 | C11: 9037 | D11: -253 | E11: -3429 | J11: -1532 | L11: 4242
A12: Electricity plants | B12: -250 | C12: -27238 | D12: -42057 | E12: -187361 | F12: -1978 | G12: -1609 | H12: -456 | I12: -8 | J12: 99680 | L12: -161278
A13: CHP plants
A14: Heat plants
A15: Gas works
A16: Oil refineries | C16: -402457 | D16: 391943 | L16: -10514
A17: Coal transformation | B17: -591 | L17: -591
A18: Liquefication plants | C18: 3173 | E18: -7693 | L18: -4520
A19: Other transformation | C19: 484 | D19: -598 | I19: -120 | L19: -234
A20: Energy industry own use | B20: -163 | C20: -3177 | D20: -13874 | E20: -40582 | J20: -5450 | L20: -63245
A21: Losses | B21: -34 | C21: -219 | E21: -173 | J21: -13221 | L21: -13647
A22: Total final consumption | B22: 3078 | C22: 727 | D22: 243142 | E22: 189884 | H22: 275 | I22: 868 | J22: 81006 | L22: 518980
A23: Industry | B23: 2757 | C23: 727 | D23: 36350 | E23: 102474 | H23: 3 | J23: 17704 | L23: 160011
A24: Transport | D24: 134018 | E24: 7038 | J24: 41 | L24: 141098
A25: Residential | B25: 9 | D25: 13102 | E25: 41097 | H25: 200 | I25: 428 | J25: 32486 | L25: 87319
A26: Commercial and public services | D26: 1221 | E26: 12470 | H26: 72 | I26: 268 | J26: 22045 | L26: 36075
A27: Agriculture / forestry | D27: 2916 | E27: 1914 | J27: 4092 | L27: 8922
A28: Fishing
A29: Non-specified | D29: 1134 | E29: 38 | I29: 172 | J29: 4642 | L29: 5986
A30: Non-energy use | B30: 312 | D30: 54403 | E30: 24852 | L30: 79568
B32: =SUM(B9,B10:B21,B22*-1) -> -1 | C32: =SUM(C9,C10:C21,C22*-1) -> 5 | D32: -3 | E32: -2 | F32: 0 | G32: 0 | H32: 1 | I32: 0 | J32: 3 | K32: 0 | L32: -4

Sheet BL Africa 2050 (hidden)
B1: Consumption | C1: Coal | D1: Crude oil | E1: Oil Products | F1: Natual Gas | G1: Nuclear | H1: Hydro | I1: Geothermal, solar, wind, etc. | J1: Biofuels and waste | K1: Electricity | L1: Heat | M1: Energy Services | N1: Total consumption | O1: Africa 2050 | R1: Faktor | S1: Total production | T1: Efficiency | U1: Production | V1: Coal | W1: Crude oil | X1: Oil Products | Y1: Natual Gas | Z1: Nuclear | AA1: Hydro | AB1: Geothermal, solar, wind, etc. | AC1: Biofuels and waste | AD1: Electricity | AE1: Heat | AF1: Energy Services | AG1: Loss | AH1: CO2-emissions
A2: ID | B2: C | C2: CC | D2: CCO | E2: COP | F2: CNG | G2: CNU | H2: CHY | I2: CGSW | J2: CWB | K2: CE | L2: CH | M2: CES | N2: fbrbr | P2: ID | Q2: ID Parent | R2: factor | S2: pbrpr | T2: pvrkg | U2: P | V2: PC | W2: PCO | X2: POP | Y2: PNG | Z2: PNU | AA2: PHY | AB2: PGSW | AC2: PWB | AD2: PE | AE2: PH | AF2: PES | AG2: PTAB | AH2: PCO2
A3: ID Parent | C3: C | D3: C | E3: C | F3: C | G3: C | H3: C | I3: C | J3: C | K3: C | L3: C | M3: C | O3: Structures | V3: P | W3: P | X3: P | Y3: P | Z3: P | AA3: P | AB3: P | AC3: P | AD3: P | AE3: P | AF3: P
A4: Factor | U4: =B4 -> 0 | AG4: =U4 -> 0 | AH4: =U4 -> 0
N5: =SUM(C5:M5) -> 0 | O5: Entry fuels | P5: ETP | S5: =SUM(V5:AF5) ->  | V5: =-(C6+C5) ->  | W5: =-(D6+D5) ->  | Y5: =-(F6+F5) ->  | Z5: =-(G6+G5) ->  | AC5: =-(J6+J5) -> 
C6: =-V6 ->  | D6: =-W6 ->  | F6: =-Y6 ->  | G6: =-Z6 ->  | J6: =-AC6 ->  | N6: =SUM(C6:M6) ->  | O6: Transport of fuels | P6: TRAP | S6: =SUM(V6:AF6) ->  | V6: =-(C16+C8) ->  | W6: =-(D16+D8) ->  | Y6: =-(F16+F8) ->  | Z6: =-(G16+G8) ->  | AC6: =-(J16+J8) ->  | AG6: =-(N6+S6) -> 
N7: 0 | O7: Entry On-Grid RE | P7: ELP1 | AA7: =-H8 ->  | AB7: =-I8 -> 
C8: =SUM(C9:C13) ->  | D8: =SUM(D9:D13) ->  | M8: 0 | O8: Entry electricity, district heating and oil products | P8: ES | V8: =SUM(V9:V13) -> 0 | X8: =(E14+E8)*-1 ->  | AD8: =(K14+K8)*-1 ->  | AE8: =(L14+L8)*-1 ->  | AG8: =-(N8+S8) ->  | AH8: =SUM(AH9:AH13) -> 
C9: =-($AD$9+$H$9+$I$9)/$T$9*#REF! ->  | D9: =-($AD$9+$H$9+$I$9)/$T$9*#REF! ->  | E9: =-($AD$9+$H$9+$I$9)/$T$9*#REF! ->  | F9: =-($AD$9+$H$9+$I$9)/$T$9*#REF! ->  | G9: =-($AD$9+$H$9+$I$9)/$T$9*#REF! ->  | H9: =AD9*#REF!*-1 ->  | I9: =AD9*#REF!*-1 ->  | J9: =-($AD$9+$H$9+$I$9)/$T$9*#REF! ->  | O9: Electricity-only plants | P9: ESEP | Q9: ES | T9: =#REF! ->  | AD9: =AD8-AD10 ->  | AG9: =-(S9+N9) ->  | AH9: =-(C9*Emissionsfaktorer!$B$2*(1-#REF!)+D9*Emissionsfaktorer!$B$3+E9*Emissionsfaktorer!$B$4*(1-#REF!)+F9*Emissionsfaktorer!$B$5*(1-#REF!)+G9*Emissionsfaktorer!$B$6+H9*Emissionsfaktorer!$B$7+I9*Emissionsfaktorer!$B$8-J9*Emissionsfaktorer!B13*#REF!+K9*Emissionsfaktorer!$B$10+L9*Emissionsfaktorer!$B$11+M9*Emissionsfaktorer!$B$12) -> 
C10: =-($AD$10+$AE$10+$H$10+$I$10)/$T$10*#REF! ->  | D10: =-($AD$10+$AE$10+$H$10+$I$10)/$T$10*#REF! ->  | E10: =-($AD$10+$AE$10+$H$10+$I$10)/$T$10*#REF! ->  | F10: =-($AD$10+$AE$10+$H$10+$I$10)/$T$10*#REF! ->  | G10: =-($AD$10+$AE$10+$H$10+$I$10)/$T$10*#REF! ->  | I10: =(AD10+AE10)*#REF!*-1 ->  | J10: =-($AD$10+$AE$10+$H$10+$I$10)/$T$10*#REF! ->  | O10: CHP plants | P10: ESCHP | Q10: ES | T10: =#REF! ->  | AD10: =AE10*#REF! ->  | AE10: =AE8*#REF! ->  | AG10: =-(S10+N10) ->  | AH10: =-(C10*Emissionsfaktorer!$B$2*(1-#REF!)+D10*Emissionsfaktorer!$B$3+E10*Emissionsfaktorer!$B$4*(1-#REF!)+F10*Emissionsfaktorer!$B$5*(1-#REF!)+G10*Emissionsfaktorer!$B$6+H10*Emissionsfaktorer!$B$7+I10*Emissionsfaktorer!$B$8-J10*Emissionsfaktorer!B14*#REF!+K10*Emissionsfaktorer!$B$10+L10*Emissionsfaktorer!$B$11+M10*Emissionsfaktorer!$B$12) -> 
C11: =-($AE$11+$H$11+$I$11)/IF($T$11=0,1,$T$11)*#REF! ->  | D11: =-($AE$11+$H$11+$I$11)/IF($T$11=0,1,$T$11)*#REF! ->  | E11: =-($AE$11+$H$11+$I$11)/IF($T$11=0,1,$T$11)*#REF! ->  | F11: =-($AE$11+$H$11+$I$11)/IF($T$11=0,1,$T$11)*#REF! ->  | G11: =-($AE$11+$H$11+$I$11)/IF($T$11=0,1,$T$11)*#REF! ->  | I11: =AE11*#REF!*-1 ->  | J11: =-($AE$11+$H$11+$I$11)/IF($T$11=0,1,$T$11)*#REF! ->  | K11: =AE11*#REF!*-1 ->  | O11: Heat Plants | P11: ESHP | Q11: ES | T11: =#REF! ->  | AE11: =AE8*#REF! ->  | AG11: =-(S11+N11) ->  | AH11: =-(C11*Emissionsfaktorer!$B$2+D11*Emissionsfaktorer!$B$3+E11*Emissionsfaktorer!$B$4+F11*Emissionsfaktorer!$B$5+G11*Emissionsfaktorer!$B$6+H11*Emissionsfaktorer!$B$7+I11*Emissionsfaktorer!$B$8+J11*Emissionsfaktorer!$B$9+K11*Emissionsfaktorer!$B$10+L11*Emissionsfaktorer!$B$11+M11*Emissionsfaktorer!$B$12) -> 
D12: =-X12/IF(T12=0,1,T12)*#REF! ->  | J12: =-X12/IF(T12=0,1,T12)*#REF! ->  | O12: Oil refineries | P12: ESOR | Q12: ES | T12: =#REF! ->  | X12: =-(E9+E10+E11+E13+E14) ->  | AG12: =-(S12+N12) ->  | AH12: =J12*Emissionsfaktorer!B4 -> 
C13: =N13*#REF! ->  | D13: =N13*#REF! ->  | E13: =N13*#REF! ->  | F13: =N13*#REF! ->  | J13: =N13*#REF! ->  | K13: =N13*#REF! ->  | L13: =N13*#REF! ->  | N13: =N16*#REF! ->  | O13: Energy Industry one use | P13: ESNSP | Q13: ES | S13: 0 | T13: 0 | AG13: =-(S13+N13) ->  | AH13: =-(C13*Emissionsfaktorer!$B$2+D13*Emissionsfaktorer!$B$3+E13*Emissionsfaktorer!$B$4+F13*Emissionsfaktorer!$B$5+G13*Emissionsfaktorer!$B$6+H13*Emissionsfaktorer!$B$7+I13*Emissionsfaktorer!$B$8+J13*Emissionsfaktorer!$B$9+K13*Emissionsfaktorer!$B$10+L13*Emissionsfaktorer!$B$11+M13*Emissionsfaktorer!$B$12) -> 
E14: =-X14*1 ->  | K14: =-AD14*(1+#REF!) ->  | L14: =-AE14*(1+#REF!) ->  | O14: Transport electricity, district heating and oil products | P14: TRAS | X14: =-E16 ->  | AD14: =-K16 ->  | AE14: =-L16 ->  | AG14: =-(N14+S14) -> 
N15: 0 | O15: Entry Off-Grid RE | P15: ELP2 | AB15: =I16*-1 -> 
C16: =SUM(C17:C19) ->  | G16: 0 | H16: 0 | M16: 0 | N16: =#REF! ->  | O16: Exit energy | P16: EX | AF16: =SUM(AF17:AF19) ->  | AG16: =SUM(AG17:AG19) ->  | AH16: =SUM(AH17:AH19) -> 
C17: =AF17*#REF!/T17*#REF!/#REF!*-1 ->  | D17: =AF17*#REF!/T17*#REF!/#REF!*-1 ->  | E17: =AF17*#REF!/T17*#REF!/#REF!*-1 ->  | F17: =AF17*#REF!/T17*#REF!/#REF!*-1 ->  | I17: =AF17*#REF!/T17*#REF!/#REF!*-1 ->  | J17: =AF17*#REF!*#REF!/T17/#REF!*-1 ->  | K17: =AF17*#REF!*#REF!/T17/#REF!*-1 ->  | L17: =AF17*#REF!*#REF!/T17/#REF!*-1 ->  | N17: =SUM(C17:L17) ->  | O17: Industry | P17: EXI | Q17: EX | T17: =(#REF!+#REF!+#REF!+#REF!+#REF!)*#REF!+(#REF!+#REF!)*#REF!+#REF!*#REF! ->  | AF17: =#REF!*#REF!*((#REF!+#REF!+#REF!+#REF!+#REF!)*#REF!+(#REF!+#REF!)*#REF!+#REF!*#REF!)*-1 ->  | AG17: =(S17+SUM(C17:M17))*-1 ->  | AH17: =-(C17*Emissionsfaktorer!$B$2+D17*Emissionsfaktorer!$B$3+E17*Emissionsfaktorer!$B$4+F17*Emissionsfaktorer!$B$5+G17*Emissionsfaktorer!$B$6+H17*Emissionsfaktorer!$B$7+I17*Emissionsfaktorer!$B$8+J17*Emissionsfaktorer!$B$9+K17*Emissionsfaktorer!$B$10+L17*Emissionsfaktorer!$B$11+M17*Emissionsfaktorer!$B$12) -> 
C18: =AF18*#REF!/T18*#REF!/#REF!*-1 ->  | E18: =AF18*#REF!/T18*#REF!/#REF!*-1 ->  | F18: =AF18*#REF!/T18*#REF!/#REF!*-1 ->  | I18: =AF18*#REF!/T18*#REF!/#REF!*-1 ->  | J18: =AF18*#REF!/T18*#REF!/#REF!*-1 ->  | K18: =AF18*#REF!/T18*#REF!/#REF!*-1 ->  | L18: =AF18*#REF!/T18*#REF!/#REF!*-1 ->  | N18: =SUM(C18:L18) ->  | O18: Transport | P18: EXT | Q18: EX | T18: =(#REF!+#REF!+#REF!+#REF!)*#REF!+(#REF!+#REF!)*#REF!+#REF!*#REF! ->  | AF18: =#REF!*#REF!*-1*((#REF!+#REF!+#REF!+#REF!)*#REF!+(#REF!+#REF!)*#REF!+#REF!*#REF!) ->  | AG18: =(S18+SUM(C18:M18))*-1 ->  | AH18: =-(C18*Emissionsfaktorer!$B$2+D18*Emissionsfaktorer!$B$3+E18*Emissionsfaktorer!$B$4+F18*Emissionsfaktorer!$B$5+G18*Emissionsfaktorer!$B$6+H18*Emissionsfaktorer!$B$7+I18*Emissionsfaktorer!$B$8+J18*Emissionsfaktorer!$B$9+K18*Emissionsfaktorer!$B$10+L18*Emissionsfaktorer!$B$11+M18*Emissionsfaktorer!$B$12) -> 
C19: =SUM(C20:C24) ->  | D19: =SUM(D20:D24) -> 0 | G19: 0 | H19: 0 | M19: 0 | N19: =SUM(N20:N24) ->  | O19: Other | P19: EXO | Q19: EX | T19: 0.8 | V19: =SUM(V20:V24) -> 0 | W19: =SUM(W20:W24) -> 0 | X19: 0 | Y19: 0 | Z19: 0 | AA19: 0 | AB19: 0 | AC19: 0 | AD19: 0 | AE19: 0
C20: =AF20*#REF!/T20*#REF!/#REF!*-1 ->  | E20: =AF20*#REF!/T20*#REF!/#REF!*-1 ->  | F20: =AF20*#REF!/T20*#REF!/#REF!*-1 ->  | I20: =AF20*#REF!/T20*#REF!/#REF!*-1 ->  | J20: =AF20*#REF!/T20*#REF!/#REF!*-1 ->  | K20: =AF20*#REF!/T20*#REF!/#REF!*-1 ->  | L20: =AF20*#REF!/T20*#REF!/#REF!*-1 ->  | N20: =SUM(C20:L20) ->  | O20: Residential | P20: EXOR | Q20: EXO | T20: =(#REF!+#REF!+#REF!+#REF!)*#REF!+(#REF!+#REF!)*#REF!+#REF!*#REF! ->  | AF20: =#REF!*#REF!*((#REF!+#REF!+#REF!+#REF!)*#REF!+(#REF!+#REF!)*#REF!+#REF!*#REF!)*-1 ->  | AG20: =(N20+AF20)*-1 ->  | AH20: =-(C20*Emissionsfaktorer!$B$2+D20*Emissionsfaktorer!$B$3+E20*Emissionsfaktorer!$B$4+F20*Emissionsfaktorer!$B$5+G20*Emissionsfaktorer!$B$6+H20*Emissionsfaktorer!$B$7+I20*Emissionsfaktorer!$B$8+J20*Emissionsfaktorer!$B$9+K20*Emissionsfaktorer!$B$10+L20*Emissionsfaktorer!$B$11+M20*Emissionsfaktorer!$B$12) -> 
C21: =AF21*#REF!/T21*#REF!/#REF!*-1 ->  | E21: =AF21*#REF!/T21*#REF!/#REF!*-1 ->  | F21: =AF21*#REF!/T21*#REF!/#REF!*-1 ->  | I21: =AF21*#REF!/T21*#REF!/#REF!*-1 ->  | J21: =AF21*#REF!/T21*#REF!/#REF!*-1 ->  | K21: =AF21*#REF!/T21*#REF!/#REF!*-1 ->  | L21: =AF21*#REF!/T21*#REF!/#REF!*-1 ->  | N21: =SUM(C21:L21) ->  | O21: Commercial and public services | P21: EXOC | Q21: EXO | T21: =(#REF!+#REF!+#REF!+#REF!)*#REF!+(#REF!+#REF!)*#REF!+#REF!*#REF! ->  | AF21: =#REF!*#REF!*((#REF!+#REF!+#REF!+#REF!)*#REF!+(#REF!+#REF!)*#REF!+#REF!*#REF!)*-1 ->  | AG21: =(N21+AF21)*-1 ->  | AH21: =-(C21*Emissionsfaktorer!$B$2+D21*Emissionsfaktorer!$B$3+E21*Emissionsfaktorer!$B$4+F21*Emissionsfaktorer!$B$5+G21*Emissionsfaktorer!$B$6+H21*Emissionsfaktorer!$B$7+I21*Emissionsfaktorer!$B$8+J21*Emissionsfaktorer!$B$9+K21*Emissionsfaktorer!$B$10+L21*Emissionsfaktorer!$B$11+M21*Emissionsfaktorer!$B$12) -> 
C22: =AF22*#REF!/T22*#REF!/#REF!*-1 ->  | E22: =AF22*#REF!/T22*#REF!/#REF!*-1 ->  | F22: =AF22*#REF!/T22*#REF!/#REF!*-1 ->  | I22: =AF22*#REF!/T22*#REF!/#REF!*-1 ->  | J22: =AF22*#REF!/T22*#REF!/#REF!*-1 ->  | K22: =AF22*#REF!/T22*#REF!/#REF!*-1 ->  | L22: =AF22*#REF!/T22*#REF!/#REF!*-1 ->  | N22: =SUM(C22:L22) ->  | O22: Agriculture / forestry | P22: EXOA | Q22: EXO | T22: =(#REF!+#REF!+#REF!+#REF!)*#REF!+(#REF!+#REF!)*#REF!+#REF!*#REF! ->  | AF22: =((#REF!+#REF!+#REF!+#REF!)*#REF!+(#REF!+#REF!)*#REF!+#REF!*#REF!)*#REF!*#REF!*-1 ->  | AG22: =(N22+AF22)*-1 ->  | AH22: =-(C22*Emissionsfaktorer!$B$2+D22*Emissionsfaktorer!$B$3+E22*Emissionsfaktorer!$B$4+F22*Emissionsfaktorer!$B$5+G22*Emissionsfaktorer!$B$6+H22*Emissionsfaktorer!$B$7+I22*Emissionsfaktorer!$B$8+J22*Emissionsfaktorer!$B$9+K22*Emissionsfaktorer!$B$10+L22*Emissionsfaktorer!$B$11+M22*Emissionsfaktorer!$B$12) -> 
C23: =AF23*#REF!/T23*#REF!/#REF!*-1 ->  | E23: =AF23*#REF!/T23*#REF!/#REF!*-1 ->  | F23: =AF23*#REF!/T23*#REF!/#REF!*-1 ->  | I23: =AF23*#REF!/T23*#REF!/#REF!*-1 ->  | J23: =AF23*#REF!/T23*#REF!/#REF!*-1 ->  | K23: =AF23*#REF!/T23*#REF!/#REF!*-1 ->  | L23: =AF23*#REF!/T23*#REF!/#REF!*-1 ->  | N23: =SUM(C23:L23) ->  | O23: Fishing | P23: EXOF | Q23: EXO | T23: =(#REF!+#REF!+#REF!+#REF!)*#REF!+(#REF!+#REF!)*#REF!+#REF!*#REF! ->  | AF23: =((#REF!+#REF!+#REF!+#REF!)*#REF!+(#REF!+#REF!)*#REF!+#REF!*#REF!)*#REF!*#REF!*-1 ->  | AG23: =(N23+AF23)*-1 ->  | AH23: =-(C23*Emissionsfaktorer!$B$2+D23*Emissionsfaktorer!$B$3+E23*Emissionsfaktorer!$B$4+F23*Emissionsfaktorer!$B$5+G23*Emissionsfaktorer!$B$6+H23*Emissionsfaktorer!$B$7+I23*Emissionsfaktorer!$B$8+J23*Emissionsfaktorer!$B$9+K23*Emissionsfaktorer!$B$10+L23*Emissionsfaktorer!$B$11+M23*Emissionsfaktorer!$B$12) -> 
C24: =AF24*#REF!/T24*#REF!/#REF!*-1 ->  | E24: =AF24*#REF!/T24*#REF!/#REF!*-1 ->  | F24: =AF24*#REF!/T24*#REF!/#REF!*-1 ->  | I24: =AF24*#REF!/T24*#REF!/#REF!*-1 ->  | J24: =AF24*#REF!/T24*#REF!/#REF!*-1 ->  | K24: =AF24*#REF!/T24*#REF!/#REF!*-1 ->  | L24: =AF24*#REF!/T24*#REF!/#REF!*-1 ->  | N24: =SUM(C24:L24) ->  | O24: Non-specified | P24: EXON | Q24: EXO | T24: =(#REF!+#REF!+#REF!+#REF!)*#REF!+(#REF!+#REF!)*#REF!+#REF!*#REF! ->  | AF24: =((#REF!+#REF!+#REF!+#REF!)*#REF!+(#REF!+#REF!)*#REF!+#REF!*#REF!)*#REF!*#REF!*-1 ->  | AG24: =(N24+AF24)*-1 ->  | AH24: =-(C24*Emissionsfaktorer!$B$2+D24*Emissionsfaktorer!$B$3+E24*Emissionsfaktorer!$B$4+F24*Emissionsfaktorer!$B$5+G24*Emissionsfaktorer!$B$6+H24*Emissionsfaktorer!$B$7+I24*Emissionsfaktorer!$B$8+J24*Emissionsfaktorer!$B$9+K24*Emissionsfaktorer!$B$10+L24*Emissionsfaktorer!$B$11+M24*Emissionsfaktorer!$B$12) -> 
N25: =N16 ->  | O25: Energy Services | P25: EN | T25: =AF25/N25*-1 ->  | AF25: =AF16 ->  | AG25: =-(S25+N25) -> 

Sheet BL Africa 2030 (hidden)
B1: Consumption | C1: Coal | D1: Crude oil | E1: Oil Products | F1: Natual Gas | G1: Nuclear | H1: Hydro | I1: Geothermal, solar, wind, etc. | J1: Biofuels and waste | K1: Electricity | L1: Heat | M1: Energy Services | N1: Total consumption | O1: Africa 2030 | R1: Faktor | S1: Total production | T1: Efficiency | U1: Production | V1: Coal | W1: Crude oil | X1: Oil Products | Y1: Natual Gas | Z1: Nuclear | AA1: Hydro | AB1: Geothermal, solar, wind, etc. | AC1: Biofuels and waste | AD1: Electricity | AE1: Heat | AF1: Energy Services | AG1: Loss | AH1: CO2-emissions
A2: ID | B2: C | C2: CC | D2: CCO | E2: COP | F2: CNG | G2: CNU | H2: CHY | I2: CGSW | J2: CWB | K2: CE | L2: CH | M2: CES | N2: fbrbr | P2: ID | Q2: ID Parent | R2: factor | S2: pbrpr | T2: pvrkg | U2: P | V2: PC | W2: PCO | X2: POP | Y2: PNG | Z2: PNU | AA2: PHY | AB2: PGSW | AC2: PWB | AD2: PE | AE2: PH | AF2: PES | AG2: PTAB | AH2: PCO2
A3: ID Parent | C3: C | D3: C | E3: C | F3: C | G3: C | H3: C | I3: C | J3: C | K3: C | L3: C | M3: C | O3: Structures | V3: P | W3: P | X3: P | Y3: P | Z3: P | AA3: P | AB3: P | AC3: P | AD3: P | AE3: P | AF3: P
A4: Factor | U4: =B4 -> 0 | AG4: =U4 -> 0 | AH4: =U4 -> 0
N5: =SUM(C5:M5) -> 0 | O5: Entry fuels | P5: ETP | S5: =SUM(V5:AF5) ->  | V5: =-(C6+C5) ->  | W5: =-(D6+D5) ->  | Y5: =-(F6+F5) ->  | Z5: =-(G6+G5) ->  | AC5: =-(J6+J5) -> 
C6: =-V6 ->  | D6: =-W6 ->  | F6: =-Y6 ->  | G6: =-Z6 ->  | J6: =-AC6 ->  | N6: =SUM(C6:M6) ->  | O6: Transport of fuels | P6: TRAP | S6: =SUM(V6:AF6) ->  | V6: =-(C16+C8) ->  | W6: =-(D16+D8) ->  | Y6: =-(F16+F8) ->  | Z6: =-(G16+G8) ->  | AC6: =-(J16+J8) ->  | AG6: =-(N6+S6) -> 
N7: 0 | O7: Entry On-Grid RE | P7: ELP1 | AA7: =-H8 ->  | AB7: =-I8 -> 
C8: =SUM(C9:C13) ->  | D8: =SUM(D9:D13) ->  | M8: 0 | O8: Entry electricity, district heating and oil products | P8: ES | V8: =SUM(V9:V13) -> 0 | X8: =(E14+E8)*-1 ->  | AD8: =(K14+K8)*-1 ->  | AE8: =(L14+L8)*-1 ->  | AG8: =-(N8+S8) ->  | AH8: =SUM(AH9:AH13) -> 
C9: =-($AD$9+$H$9+$I$9)/$T$9*#REF! ->  | D9: =-($AD$9+$H$9+$I$9)/$T$9*#REF! ->  | E9: =-($AD$9+$H$9+$I$9)/$T$9*#REF! ->  | F9: =-($AD$9+$H$9+$I$9)/$T$9*#REF! ->  | G9: =-($AD$9+$H$9+$I$9)/$T$9*#REF! ->  | H9: =AD9*#REF!*-1 ->  | I9: =AD9*#REF!*-1 ->  | J9: =-($AD$9+$H$9+$I$9)/$T$9*#REF! ->  | O9: Electricity-only plants | P9: ESEP | Q9: ES | T9: =#REF! ->  | AD9: =AD8-AD10 ->  | AG9: =-(S9+N9) ->  | AH9: =-(C9*Emissionsfaktorer!$B$2*(1-#REF!)+D9*Emissionsfaktorer!$B$3+E9*Emissionsfaktorer!$B$4*(1-#REF!)+F9*Emissionsfaktorer!$B$5*(1-#REF!)+G9*Emissionsfaktorer!$B$6+H9*Emissionsfaktorer!$B$7+I9*Emissionsfaktorer!$B$8-J9*Emissionsfaktorer!B13*#REF!+K9*Emissionsfaktorer!$B$10+L9*Emissionsfaktorer!$B$11+M9*Emissionsfaktorer!$B$12) -> 
C10: =-($AD$10+$AE$10+$H$10+$I$10)/$T$10*#REF! ->  | D10: =-($AD$10+$AE$10+$H$10+$I$10)/$T$10*#REF! ->  | E10: =-($AD$10+$AE$10+$H$10+$I$10)/$T$10*#REF! ->  | F10: =-($AD$10+$AE$10+$H$10+$I$10)/$T$10*#REF! ->  | G10: =-($AD$10+$AE$10+$H$10+$I$10)/$T$10*#REF! ->  | I10: =(AD10+AE10)*#REF!*-1 ->  | J10: =-($AD$10+$AE$10+$H$10+$I$10)/$T$10*#REF! ->  | O10: CHP plants | P10: ESCHP | Q10: ES | T10: =#REF! ->  | AD10: =AE10*#REF! ->  | AE10: =AE8*#REF! ->  | AG10: =-(S10+N10) ->  | AH10: =-(C10*Emissionsfaktorer!$B$2*(1-#REF!)+D10*Emissionsfaktorer!$B$3+E10*Emissionsfaktorer!$B$4*(1-#REF!)+F10*Emissionsfaktorer!$B$5*(1-#REF!)+G10*Emissionsfaktorer!$B$6+H10*Emissionsfaktorer!$B$7+I10*Emissionsfaktorer!$B$8-J10*Emissionsfaktorer!B14*#REF!+K10*Emissionsfaktorer!$B$10+L10*Emissionsfaktorer!$B$11+M10*Emissionsfaktorer!$B$12) -> 
C11: =-($AE$11+$H$11+$I$11)/IF($T$11=0,1,$T$11)*#REF! ->  | D11: =-($AE$11+$H$11+$I$11)/IF($T$11=0,1,$T$11)*#REF! ->  | E11: =-($AE$11+$H$11+$I$11)/IF($T$11=0,1,$T$11)*#REF! ->  | F11: =-($AE$11+$H$11+$I$11)/IF($T$11=0,1,$T$11)*#REF! ->  | G11: =-($AE$11+$H$11+$I$11)/IF($T$11=0,1,T11)*#REF! ->  | I11: =AE11*#REF!*-1 ->  | J11: =-($AE$11+$H$11+$I$11)/IF($T$11=0,1,T11)*#REF! ->  | K11: =AE11*#REF!*-1 ->  | O11: Heat Plants | P11: ESHP | Q11: ES | T11: =#REF! ->  | AE11: =AE8*#REF! ->  | AG11: =-(S11+N11) ->  | AH11: =-(C11*Emissionsfaktorer!$B$2+D11*Emissionsfaktorer!$B$3+E11*Emissionsfaktorer!$B$4+F11*Emissionsfaktorer!$B$5+G11*Emissionsfaktorer!$B$6+H11*Emissionsfaktorer!$B$7+I11*Emissionsfaktorer!$B$8+J11*Emissionsfaktorer!$B$9+K11*Emissionsfaktorer!$B$10+L11*Emissionsfaktorer!$B$11+M11*Emissionsfaktorer!$B$12) -> 
D12: =-X12/T12*#REF! ->  | J12: =-X12/T12*#REF! ->  | O12: Oil refineries | P12: ESOR | Q12: ES | T12: =#REF! ->  | X12: =-(E9+E10+E11+E13+E14) ->  | AG12: =-(S12+N12) ->  | AH12: =J12*Emissionsfaktorer!B4 -> 
C13: =N13*#REF! ->  | D13: =N13*#REF! ->  | E13: =N13*#REF! ->  | F13: =N13*#REF! ->  | J13: =N13*#REF! ->  | K13: =N13*#REF! ->  | L13: =N13*#REF! ->  | N13: =N16*#REF! ->  | O13: Energy Industry one use | P13: ESNSP | Q13: ES | S13: 0 | T13: 0 | AG13: =-(S13+N13) ->  | AH13: =-(C13*Emissionsfaktorer!$B$2+D13*Emissionsfaktorer!$B$3+E13*Emissionsfaktorer!$B$4+F13*Emissionsfaktorer!$B$5+G13*Emissionsfaktorer!$B$6+H13*Emissionsfaktorer!$B$7+I13*Emissionsfaktorer!$B$8+J13*Emissionsfaktorer!$B$9+K13*Emissionsfaktorer!$B$10+L13*Emissionsfaktorer!$B$11+M13*Emissionsfaktorer!$B$12) -> 
E14: =-X14*1 ->  | K14: =-AD14*(1+#REF!) ->  | L14: =-AE14*(1+#REF!) ->  | O14: Transport electricity, district heating and oil products | P14: TRAS | X14: =-E16 ->  | AD14: =-K16 ->  | AE14: =-L16 ->  | AG14: =-(N14+S14) -> 
N15: 0 | O15: Entry Off-Grid RE | P15: ELP2 | AB15: =I16*-1 -> 
C16: =SUM(C17:C19) ->  | G16: 0 | H16: 0 | M16: 0 | N16: =#REF! ->  | O16: Exit energy | P16: EX | AF16: =SUM(AF17:AF19) ->  | AG16: =SUM(AG17:AG19) ->  | AH16: =SUM(AH17:AH19) -> 
C17: =AF17*#REF!/T17*#REF!/#REF!*-1 ->  | D17: =AF17*#REF!/T17*#REF!/#REF!*-1 ->  | E17: =AF17*#REF!/T17*#REF!/#REF!*-1 ->  | F17: =AF17*#REF!/T17*#REF!/#REF!*-1 ->  | I17: =AF17*#REF!/T17*#REF!/#REF!*-1 ->  | J17: =AF17*#REF!*#REF!/T17/#REF!*-1 ->  | K17: =AF17*#REF!*#REF!/T17/#REF!*-1 ->  | L17: =AF17*#REF!*#REF!/T17/#REF!*-1 ->  | N17: =SUM(C17:L17) ->  | O17: Industry | P17: EXI | Q17: EX | T17: =(#REF!+#REF!+#REF!+#REF!+#REF!)*#REF!+(#REF!+#REF!)*#REF!+#REF!*#REF! ->  | AF17: =#REF!*#REF!*((#REF!+#REF!+#REF!+#REF!+#REF!)*#REF!+(#REF!+#REF!)*#REF!+#REF!*#REF!)*-1 ->  | AG17: =(S17+SUM(C17:M17))*-1 ->  | AH17: =-(C17*Emissionsfaktorer!$B$2+D17*Emissionsfaktorer!$B$3+E17*Emissionsfaktorer!$B$4+F17*Emissionsfaktorer!$B$5+G17*Emissionsfaktorer!$B$6+H17*Emissionsfaktorer!$B$7+I17*Emissionsfaktorer!$B$8+J17*Emissionsfaktorer!$B$9+K17*Emissionsfaktorer!$B$10+L17*Emissionsfaktorer!$B$11+M17*Emissionsfaktorer!$B$12) -> 
C18: =AF18*#REF!/T18*#REF!/#REF!*-1 ->  | E18: =AF18*#REF!/T18*#REF!/#REF!*-1 ->  | F18: =AF18*#REF!/T18*#REF!/#REF!*-1 ->  | I18: =AF18*#REF!/T18*#REF!/#REF!*-1 ->  | J18: =AF18*#REF!/T18*#REF!/#REF!*-1 ->  | K18: =AF18*#REF!/T18*#REF!/#REF!*-1 ->  | L18: =AF18*#REF!/T18*#REF!/#REF!*-1 ->  | N18: =SUM(C18:L18) ->  | O18: Transport | P18: EXT | Q18: EX | T18: =(#REF!+#REF!+#REF!+#REF!)*#REF!+(#REF!+#REF!)*#REF!+#REF!*#REF! ->  | AF18: =#REF!*#REF!*-1*((#REF!+#REF!+#REF!+#REF!)*#REF!+(#REF!+#REF!)*#REF!+#REF!*#REF!) ->  | AG18: =(S18+SUM(C18:M18))*-1 ->  | AH18: =-(C18*Emissionsfaktorer!$B$2+D18*Emissionsfaktorer!$B$3+E18*Emissionsfaktorer!$B$4+F18*Emissionsfaktorer!$B$5+G18*Emissionsfaktorer!$B$6+H18*Emissionsfaktorer!$B$7+I18*Emissionsfaktorer!$B$8+J18*Emissionsfaktorer!$B$9+K18*Emissionsfaktorer!$B$10+L18*Emissionsfaktorer!$B$11+M18*Emissionsfaktorer!$B$12) -> 
C19: =SUM(C20:C24) ->  | D19: =SUM(D20:D24) -> 0 | G19: 0 | H19: 0 | M19: 0 | N19: =SUM(N20:N24) ->  | O19: Other | P19: EXO | Q19: EX | T19: 0.8 | V19: =SUM(V20:V24) -> 0 | W19: =SUM(W20:W24) -> 0 | X19: 0 | Y19: 0 | Z19: 0 | AA19: 0 | AB19: 0 | AC19: 0 | AD19: 0 | AE19: 0
C20: =AF20*#REF!/T20*#REF!/#REF!*-1 ->  | E20: =AF20*#REF!/T20*#REF!/#REF!*-1 ->  | F20: =AF20*#REF!/T20*#REF!/#REF!*-1 ->  | I20: =AF20*#REF!/T20*#REF!/#REF!*-1 ->  | J20: =AF20*#REF!/T20*#REF!/#REF!*-1 ->  | K20: =AF20*#REF!/T20*#REF!/#REF!*-1 ->  | L20: =AF20*#REF!/T20*#REF!/#REF!*-1 ->  | N20: =SUM(C20:L20) ->  | O20: Residential | P20: EXOR | Q20: EXO | T20: =(#REF!+#REF!+#REF!+#REF!)*#REF!+(#REF!+#REF!)*#REF!+#REF!*#REF! ->  | AF20: =#REF!*#REF!*((#REF!+#REF!+#REF!+#REF!)*#REF!+(#REF!+#REF!)*#REF!+#REF!*#REF!)*-1 ->  | AG20: =(N20+AF20)*-1 ->  | AH20: =-(C20*Emissionsfaktorer!$B$2+D20*Emissionsfaktorer!$B$3+E20*Emissionsfaktorer!$B$4+F20*Emissionsfaktorer!$B$5+G20*Emissionsfaktorer!$B$6+H20*Emissionsfaktorer!$B$7+I20*Emissionsfaktorer!$B$8+J20*Emissionsfaktorer!$B$9+K20*Emissionsfaktorer!$B$10+L20*Emissionsfaktorer!$B$11+M20*Emissionsfaktorer!$B$12) -> 
C21: =AF21*#REF!/T21*#REF!/#REF!*-1 ->  | E21: =AF21*#REF!/T21*#REF!/#REF!*-1 ->  | F21: =AF21*#REF!/T21*#REF!/#REF!*-1 ->  | I21: =AF21*#REF!/T21*#REF!/#REF!*-1 ->  | J21: =AF21*#REF!/T21*#REF!/#REF!*-1 ->  | K21: =AF21*#REF!/T21*#REF!/#REF!*-1 ->  | L21: =AF21*#REF!/T21*#REF!/#REF!*-1 ->  | N21: =SUM(C21:L21) ->  | O21: Commercial and public services | P21: EXOC | Q21: EXO | T21: =(#REF!+#REF!+#REF!+#REF!)*#REF!+(#REF!+#REF!)*#REF!+#REF!*#REF! ->  | AF21: =#REF!*#REF!*((#REF!+#REF!+#REF!+#REF!)*#REF!+(#REF!+#REF!)*#REF!+#REF!*#REF!)*-1 ->  | AG21: =(N21+AF21)*-1 ->  | AH21: =-(C21*Emissionsfaktorer!$B$2+D21*Emissionsfaktorer!$B$3+E21*Emissionsfaktorer!$B$4+F21*Emissionsfaktorer!$B$5+G21*Emissionsfaktorer!$B$6+H21*Emissionsfaktorer!$B$7+I21*Emissionsfaktorer!$B$8+J21*Emissionsfaktorer!$B$9+K21*Emissionsfaktorer!$B$10+L21*Emissionsfaktorer!$B$11+M21*Emissionsfaktorer!$B$12) -> 
C22: =AF22*#REF!/T22*#REF!/#REF!*-1 ->  | E22: =AF22*#REF!/T22*#REF!/#REF!*-1 ->  | F22: =AF22*#REF!/T22*#REF!/#REF!*-1 ->  | I22: =AF22*#REF!/T22*#REF!/#REF!*-1 ->  | J22: =AF22*#REF!/T22*#REF!/#REF!*-1 ->  | K22: =AF22*#REF!/T22*#REF!/#REF!*-1 ->  | L22: =AF22*#REF!/T22*#REF!/#REF!*-1 ->  | N22: =SUM(C22:L22) ->  | O22: Agriculture / forestry | P22: EXOA | Q22: EXO | T22: =(#REF!+#REF!+#REF!+#REF!)*#REF!+(#REF!+#REF!)*#REF!+#REF!*#REF! ->  | AF22: =((#REF!+#REF!+#REF!+#REF!)*#REF!+(#REF!+#REF!)*#REF!+#REF!*#REF!)*#REF!*#REF!*-1 ->  | AG22: =(N22+AF22)*-1 ->  | AH22: =-(C22*Emissionsfaktorer!$B$2+D22*Emissionsfaktorer!$B$3+E22*Emissionsfaktorer!$B$4+F22*Emissionsfaktorer!$B$5+G22*Emissionsfaktorer!$B$6+H22*Emissionsfaktorer!$B$7+I22*Emissionsfaktorer!$B$8+J22*Emissionsfaktorer!$B$9+K22*Emissionsfaktorer!$B$10+L22*Emissionsfaktorer!$B$11+M22*Emissionsfaktorer!$B$12) -> 
C23: =AF23*#REF!/T23*#REF!/#REF!*-1 ->  | E23: =AF23*#REF!/T23*#REF!/#REF!*-1 ->  | F23: =AF23*#REF!/T23*#REF!/#REF!*-1 ->  | I23: =AF23*#REF!/T23*#REF!/#REF!*-1 ->  | J23: =AF23*#REF!/T23*#REF!/#REF!*-1 ->  | K23: =AF23*#REF!/T23*#REF!/#REF!*-1 ->  | L23: =AF23*#REF!/T23*#REF!/#REF!*-1 ->  | N23: =SUM(C23:L23) ->  | O23: Fishing | P23: EXOF | Q23: EXO | T23: =(#REF!+#REF!+#REF!+#REF!)*#REF!+(#REF!+#REF!)*#REF!+#REF!*#REF! ->  | AF23: =((#REF!+#REF!+#REF!+#REF!)*#REF!+(#REF!+#REF!)*#REF!+#REF!*#REF!)*#REF!*#REF!*-1 ->  | AG23: =(N23+AF23)*-1 ->  | AH23: =-(C23*Emissionsfaktorer!$B$2+D23*Emissionsfaktorer!$B$3+E23*Emissionsfaktorer!$B$4+F23*Emissionsfaktorer!$B$5+G23*Emissionsfaktorer!$B$6+H23*Emissionsfaktorer!$B$7+I23*Emissionsfaktorer!$B$8+J23*Emissionsfaktorer!$B$9+K23*Emissionsfaktorer!$B$10+L23*Emissionsfaktorer!$B$11+M23*Emissionsfaktorer!$B$12) -> 
C24: =AF24*#REF!/T24*#REF!/#REF!*-1 ->  | E24: =AF24*#REF!/T24*#REF!/#REF!*-1 ->  | F24: =AF24*#REF!/T24*#REF!/#REF!*-1 ->  | I24: =AF24*#REF!/T24*#REF!/#REF!*-1 ->  | J24: =AF24*#REF!/T24*#REF!/#REF!*-1 ->  | K24: =AF24*#REF!/T24*#REF!/#REF!*-1 ->  | L24: =AF24*#REF!/T24*#REF!/#REF!*-1 ->  | N24: =SUM(C24:L24) ->  | O24: Non-specified | P24: EXON | Q24: EXO | T24: =(#REF!+#REF!+#REF!+#REF!)*#REF!+(#REF!+#REF!)*#REF!+#REF!*#REF! ->  | AF24: =((#REF!+#REF!+#REF!+#REF!)*#REF!+(#REF!+#REF!)*#REF!+#REF!*#REF!)*#REF!*#REF!*-1 ->  | AG24: =(N24+AF24)*-1 ->  | AH24: =-(C24*Emissionsfaktorer!$B$2+D24*Emissionsfaktorer!$B$3+E24*Emissionsfaktorer!$B$4+F24*Emissionsfaktorer!$B$5+G24*Emissionsfaktorer!$B$6+H24*Emissionsfaktorer!$B$7+I24*Emissionsfaktorer!$B$8+J24*Emissionsfaktorer!$B$9+K24*Emissionsfaktorer!$B$10+L24*Emissionsfaktorer!$B$11+M24*Emissionsfaktorer!$B$12) -> 
N25: =N16 ->  | O25: Energy Services | P25: EN | T25: =AF25/N25*-1 ->  | AF25: =AF16 ->  | AG25: =-(S25+N25) -> 

Sheet Africa 1995 (hidden)
B1: Coal* | C1: Crude oil | D1: Oil products | E1: Natural gas | F1: Nuclear | G1: Hydro | H1: Geothermal, solar, etc. | I1: Biofuels and waste | J1: Electricity | K1: Heat | L1: Total**
B2: ktoe | C2: ktoe | D2: ktoe | E2: ktoe | F2: ktoe | G2: ktoe | H2: ktoe | I2: ktoe | J2: ktoe | K2: ktoe | L2: ktoe
A3: Production | B3: 122310 | C3: 350397 | E3: 69032 | F3: 2945 | G3: 5186 | H3: 337 | I3: 219505 | L3: 769708
A4: Imports | B4: 3542 | C4: 34903 | D4: 17694 | E4: 1791 | I4: 37 | J4: 564 | L4: 58525
A5: Exports | B5: -40809 | C5: -263263 | D5: -39834 | E5: -33441 | I5: -273 | J5: -589 | L5: -378208
A6: International marine bunkers | D6: -7465 | L6: -7465
A7: International aviation bunkers | D7: -4272 | L7: -4272
A8: Stock changes | B8: 566 | C8: 231 | D8: 348 | L8: 1140
A9: TES | B9: 85607 | C9: 122266 | D9: -33537 | E9: 37382 | F9: 2945 | G9: 5186 | H9: 337 | I9: 219269 | J9: -24 | L9: 439427
A10: Transfers | C10: -14872 | D10: 15891 | L10: 1018
A11: Statistical differences | B11: -2312 | C11: -341 | D11: 888 | E11: -122 | I11: -39 | J11: -180 | L11: -2106
A12: Electricity plants | B12: -46177 | D12: -11214 | E12: -15342 | F12: -2945 | G12: -5186 | H12: -336 | I12: -171 | J12: 31217 | L12: -50152
A13: CHP plants
A14: Heat plants
A15: Gas works | B15: -2574 | L15: -2574
A16: Oil refineries | C16: -112606 | D16: 109308 | L16: -3300
A17: Coal transformation | B17: -2212 | L17: -2212
A18: Liquefication plants | B18: -13936 | C18: 6901 | E18: -1715 | L18: -8750
A19: Other transformation | I19: -28263 | L19: -28263
A20: Energy industry own use | B20: -28 | C20: -391 | D20: -3989 | E20: -8814 | J20: -3448 | L20: -16667
A21: Losses | B21: -61 | C21: -924 | E21: -563 | J21: -2949 | L21: -4496
A22: Total final consumption | B22: 18309 | C22: 34 | D22: 77343 | E22: 10826 | H22: 1 | I22: 190794 | J22: 24615 | L22: 321929
A23: Industry | B23: 10182 | C23: 34 | D23: 12579 | E23: 4470 | I23: 9647 | J23: 12540 | L23: 49455
A24: Transport | B24: 57 | D24: 44653 | E24: 462 | J24: 427 | L24: 45600
A25: Residential | B25: 1690 | D25: 10304 | E25: 2420 | I25: 174400 | J25: 6581 | L25: 195393
A26: Commercial and public services | B26: 1163 | D26: 539 | E26: 33 | I26: 4380 | J26: 2488 | L26: 8602
A27: Agriculture / forestry | B27: 446 | D27: 2548 | I27: 1249 | J27: 912 | L27: 5156
A28: Fishing
A29: Non-specified | B29: 33 | D29: 1449 | E29: 157 | I29: 1123 | J29: 1670 | L29: 4430
A30: Non-energy use | B30: 4739 | D30: 5276 | E30: 3284 | L30: 13298
B32: =SUM(B9,B10:B21,B22*-1) -> -2 | C32: =SUM(C9,C10:C21,C22*-1) -> -1 | D32: 4 | E32: 0 | F32: 0 | G32: 0 | H32: 0 | I32: 2 | J32: 1 | K32: 0 | L32: -4

Sheet Africa 2000 (hidden)
B1: Coal* | C1: Crude oil | D1: Oil products | E1: Natural gas | F1: Nuclear | G1: Hydro | H1: Geothermal, solar, etc. | I1: Biofuels and waste | J1: Electricity | K1: Heat | L1: Total**
B2: ktoe | C2: ktoe | D2: ktoe | E2: ktoe | F2: ktoe | G2: ktoe | H2: ktoe | I2: ktoe | J2: ktoe | K2: ktoe | L2: ktoe
A3: Production | B3: 130910 | C3: 389976 | E3: 104454 | F3: 3390 | G3: 6449 | H3: 395 | I3: 241432 | K3: 28 | L3: 877028
A4: Imports | B4: 6089 | C4: 37447 | D4: 35965 | E4: 847 | I4: 4 | J4: 2612 | L4: 82966
A5: Exports | B5: -47637 | C5: -302962 | D5: -49326 | E5: -58104 | I5: -264 | J5: -1467 | L5: -459764
A6: International marine bunkers | D6: -7308 | L6: -7308
A7: International aviation bunkers | D7: -5617 | L7: -5617
A8: Stock changes | B8: 891 | C8: 1732 | D8: 1114 | L8: 3735
A9: TES | B9: 90253 | C9: 126190 | D9: -25173 | E9: 47197 | F9: 3390 | G9: 6449 | H9: 395 | I9: 241171 | J9: 1145 | K9: 28 | L9: 491036
A10: Transfers | C10: -20649 | D10: 22020 | L10: 1372
A11: Statistical differences | B11: 141 | C11: -2144 | D11: -292 | E11: 316 | I11: 88 | J11: 9 | L11: -1880
A12: Electricity plants | B12: -52117 | C12: -156 | D12: -10961 | E12: -21987 | F12: -3390 | G12: -6449 | H12: -394 | I12: -381 | J12: 37962 | K12: -28 | L12: -57898
A13: CHP plants
A14: Heat plants
A15: Gas works | B15: -2335 | L15: -2335
A16: Oil refineries | C16: -109419 | D16: 108779 | L16: -639
A17: Coal transformation | B17: -1895 | L17: -1895
A18: Liquefication plants | B18: -14843 | C18: 7696 | E18: -1398 | L18: -8545
A19: Other transformation | I19: -30223 | L19: -30223
A20: Energy industry own use | B20: -19 | C20: -465 | D20: -4208 | E20: -9994 | J20: -3451 | L20: -18138
A21: Losses | B21: -92 | C21: -1023 | D21: -58 | E21: -143 | J21: -4443 | L21: -5760
A22: Total final consumption | B22: 19092 | C22: 29 | D22: 90107 | E22: 13990 | H22: 1 | I22: 210656 | J22: 31217 | L22: 365090
A23: Industry | B23: 11573 | C23: 29 | D23: 13155 | E23: 6075 | I23: 11035 | J23: 15099 | L23: 56963
A24: Transport | B24: 11 | D24: 53708 | E24: 662 | J24: 529 | L24: 54910
A25: Residential | B25: 1021 | D25: 12526 | E25: 2490 | I25: 191929 | J25: 8411 | L25: 216381
A26: Commercial and public services | B26: 732 | D26: 1028 | E26: 41 | I26: 5497 | J26: 4033 | L26: 11330
A27: Agriculture / forestry | B27: 443 | D27: 2639 | I27: 1810 | J27: 929 | L27: 5818
A28: Fishing | D28: 136 | L28: 136
A29: Non-specified | B29: 27 | D29: 1216 | E29: 493 | I29: 382 | J29: 2217 | L29: 4337
A30: Non-energy use | B30: 5285 | D30: 5701 | E30: 4228 | L30: 15215
B32: =SUM(B9,B10:B21,B22*-1) -> 1 | C32: =SUM(C9,C10:C21,C22*-1) -> 1 | D32: 0 | E32: 1 | F32: 0 | G32: 0 | H32: 0 | I32: -1 | J32: 5 | K32: 0 | L32: 5

Sheet Africa 2005 (hidden)
B1: Coal* | C1: Crude oil | D1: Oil products | E1: Natural gas | F1: Nuclear | G1: Hydro | H1: Geothermal, solar, etc. | I1: Biofuels and waste | J1: Electricity | K1: Heat | L1: Total**
B2: ktoe | C2: ktoe | D2: ktoe | E2: ktoe | F2: ktoe | G2: ktoe | H2: ktoe | I2: ktoe | J2: ktoe | K2: ktoe | L2: ktoe
A3: Production | B3: 141751 | C3: 486657 | E3: 158081 | F3: 2942 | G3: 7708 | H3: 951 | I3: 276869 | K3: 37 | L3: 1074996
A4: Imports | B4: 7573 | C4: 41378 | D4: 44171 | E4: 2416 | I4: 3 | J4: 2836 | L4: 98375
A5: Exports | B5: -48588 | C5: -388457 | D5: -50269 | E5: -85788 | I5: -298 | J5: -2708 | L5: -576106
A6: International marine bunkers | D6: -6393 | L6: -6393
A7: International aviation bunkers | D7: -5343 | L7: -5343
A8: Stock changes | B8: 98 | C8: -621 | D8: 491 | L8: -32
A9: TES | B9: 100833 | C9: 138956 | D9: -17343 | E9: 74707 | F9: 2942 | G9: 7708 | H9: 951 | I9: 276575 | J9: 130 | K9: 37 | L9: 585501
A10: Transfers | C10: -15689 | D10: 16840 | L10: 1150
A11: Statistical differences | B11: 1818 | C11: 5771 | D11: -353 | E11: 233 | I11: 158 | J11: 207 | L11: 7836
A12: Electricity plants | B12: -58778 | C12: -328 | D12: -14329 | E12: -34990 | F12: -2942 | G12: -7708 | H12: -933 | I12: -414 | J12: 48189 | K12: -37 | L12: -72271
A13: CHP plants
A14: Heat plants
A15: Gas works | B15: -5084 | L15: -5084
A16: Oil refineries | C16: -130468 | D16: 128040 | L16: -2427
A17: Coal transformation | B17: -2481 | L17: -2481
A18: Liquefication plants | B18: -5835 | C18: 3519 | E18: -2759 | L18: -5075
A19: Other transformation | I19: -37732 | L19: -37732
A20: Energy industry own use | B20: -9415 | C20: -459 | D20: -4726 | E20: -11969 | J20: -3246 | L20: -29817
A21: Losses | B21: -126 | C21: -1235 | D21: -95 | E21: -40 | J21: -5526 | L21: -7021
A22: Total final consumption | B22: 20933 | C22: 68 | D22: 108028 | E22: 25183 | H22: 18 | I22: 238587 | J22: 39757 | L22: 432580
A23: Industry | B23: 14519 | C23: 68 | D23: 14960 | E23: 12573 | I23: 14891 | J23: 18203 | L23: 75216
A24: Transport | B24: 8 | D24: 65977 | E24: 1432 | J24: 549 | L24: 67965
A25: Residential | B25: 3162 | D25: 13460 | E25: 4132 | I25: 215416 | J25: 11799 | L25: 247976
A26: Commercial and public services | B26: 1646 | D26: 992 | E26: 46 | I26: 5740 | J26: 6411 | L26: 14839
A27: Agriculture / forestry | B27: 146 | D27: 4434 | I27: 2142 | J27: 1445 | L27: 8166
A28: Fishing | D28: 167 | L28: 167
A29: Non-specified | B29: 35 | D29: 1661 | E29: 144 | H29: 18 | I29: 399 | J29: 1345 | L29: 3603
A30: Non-energy use | B30: 1416 | D30: 6377 | E30: 6854 | L30: 14647
B32: =SUM(B9,B10:B21,B22*-1) -> -1 | C32: =SUM(C9,C10:C21,C22*-1) -> -1 | D32: 6 | E32: -1 | F32: 0 | G32: 0 | H32: 0 | I32: 0 | J32: -3 | K32: 0 | L32: -1

Sheet Africa 2010 (hidden)
B1: Coal* | C1: Crude oil | D1: Oil products | E1: Natural gas | F1: Nuclear | G1: Hydro | H1: Geothermal, solar, etc. | I1: Biofuels and waste | J1: Electricity | K1: Heat | L1: Total**
B2: ktoe | C2: ktoe | D2: ktoe | E2: ktoe | F2: ktoe | G2: ktoe | H2: ktoe | I2: ktoe | J2: ktoe | K2: ktoe | L2: ktoe
A3: Production | B3: 146759 | C3: 510798 | E3: 174324 | F3: 3153 | G3: 9454 | H3: 1590 | I3: 311263 | K3: 186 | L3: 1157528
A4: Imports | B4: 7169 | C4: 38411 | D4: 81932 | E4: 5504 | I4: 2 | J4: 3295 | L4: 136317
A5: Exports | B5: -45396 | C5: -413125 | D5: -41638 | E5: -90352 | I5: -333 | J5: -2971 | L5: -593815
A6: International marine bunkers | D6: -5923 | L6: -5923
A7: International aviation bunkers | D7: -7160 | L7: -7160
A8: Stock changes | B8: -11 | C8: -256 | D8: -754 | E8: -1 | I8: 1 | L8: -1020
A9: TES | B9: 108524 | C9: 135826 | D9: 26461 | E9: 89476 | F9: 3153 | G9: 9454 | H9: 1590 | I9: 310933 | J9: 323 | K9: 186 | L9: 685929
A10: Transfers | C10: -15829 | D10: 17106 | L10: 1274
A11: Statistical differences | B11: -1612 | C11: 3875 | D11: -7858 | E11: -86 | I11: -1244 | J11: 131 | L11: -6795
A12: Electricity plants | B12: -66322 | C12: -714 | D12: -16350 | E12: -44009 | F12: -3153 | G12: -9454 | H12: -1496 | I12: -630 | J12: 57761 | K12: -186 | L12: -84552
A13: CHP plants | E13: -12 | J13: 12
A14: Heat plants
A15: Gas works | B15: -1001 | L15: -1001
A16: Oil refineries | C16: -125950 | D16: 123168 | L16: -2781
A17: Coal transformation | B17: -2417 | L17: -2417
A18: Liquefication plants | B18: -5210 | C18: 3867 | E18: -3053 | L18: -4395
A19: Other transformation | I19: -43344 | L19: -43344
A20: Energy industry own use | B20: -14293 | C20: -638 | D20: -4595 | E20: -12791 | J20: -3767 | L20: -36083
A21: Losses | B21: -88 | C21: -437 | D21: -124 | E21: -222 | I21: -12 | J21: -7691 | L21: -8574
A22: Total final consumption | B22: 17578 | D22: 137806 | E22: 29304 | H22: 95 | I22: 265701 | J22: 46774 | L22: 497258
A23: Industry | B23: 12476 | D23: 17173 | E23: 14885 | I23: 20587 | J23: 20705 | L23: 85823
A24: Transport | B24: 8 | D24: 86185 | E24: 1329 | I24: 3 | J24: 398 | L24: 87922
A25: Residential | B25: 1958 | D25: 14335 | E25: 4694 | H25: 27 | I25: 235487 | J25: 14472 | L25: 270966
A26: Commercial and public services | B26: 1118 | D26: 1598 | E26: 147 | I26: 6699 | J26: 8415 | L26: 17980
A27: Agriculture / forestry | B27: 306 | D27: 5146 | E27: 34 | I27: 2505 | J27: 1659 | L27: 9646
A28: Fishing | D28: 92 | L28: 92
A29: Non-specified | B29: 386 | D29: 3258 | E29: 518 | H29: 68 | I29: 420 | J29: 1126 | L29: 5775
A30: Non-energy use | B30: 1326 | D30: 10019 | E30: 7699 | L30: 19046
B32: =SUM(B9,B10:B21,B22*-1) -> 3 | C32: =SUM(C9,C10:C21,C22*-1) -> 0 | D32: 2 | E32: -1 | F32: 0 | G32: 0 | H32: -1 | I32: 2 | J32: -5 | K32: 0 | L32: 3

Sheet Africa 2015 (hidden)
B1: Coal* | C1: Crude oil | D1: Oil products | E1: Natural gas | F1: Nuclear | G1: Hydro | H1: Geothermal, solar, etc. | I1: Biofuels and waste | J1: Electricity | K1: Heat | L1: Total**
B2: ktoe | C2: ktoe | D2: ktoe | E2: ktoe | F2: ktoe | G2: ktoe | H2: ktoe | I2: ktoe | J2: ktoe | K2: ktoe | L2: ktoe
A3: Production | B3: 153804 | C3: 403453 | E3: 168713 | F3: 3188 | G3: 10396 | H3: 5009 | I3: 355020 | K3: 83 | L3: 1099668
A4: Imports | B4: 8286 | C4: 31963 | D4: 117025 | E4: 13031 | I4: 2 | J4: 3566 | L4: 173873
A5: Exports | B5: -54141 | C5: -318043 | D5: -41202 | E5: -71405 | I5: -386 | J5: -3038 | L5: -488215
A6: International marine bunkers | D6: -5958 | L6: -5958
A7: International aviation bunkers | D7: -7768 | L7: -7768
A8: Stock changes | B8: -1023 | C8: 2953 | D8: 339 | I8: 1 | L8: 2268
A9: TES | B9: 106925 | C9: 120324 | D9: 62437 | E9: 110339 | F9: 3188 | G9: 10396 | H9: 5009 | I9: 354635 | J9: 526 | K9: 83 | L9: 773867
A10: Transfers | C10: -17542 | D10: 18877 | L10: 1336
A11: Statistical differences | B11: 864 | C11: 3725 | D11: -94 | E11: 1050 | I11: -1935 | J11: 115 | L11: 3725
A12: Electricity plants | B12: -65715 | C12: -793 | D12: -22709 | E12: -58288 | F12: -3188 | G12: -10396 | H12: -4850 | I12: -760 | J12: 66693 | K12: -83 | L12: -100093
A13: CHP plants | E13: -25 | I13: -330 | J13: 58 | L13: -297
A14: Heat plants
A15: Gas works | B15: -1434 | L15: -1434
A16: Oil refineries | C16: -109031 | D16: 105397 | L16: -3639
A17: Coal transformation | B17: -1910 | L17: -1910
A18: Liquefication plants | B18: -5172 | C18: 5318 | E18: -2991 | L18: -2845
A19: Other transformation | D19: -9 | I19: -55958 | L19: -55966
A20: Energy industry own use | B20: -13358 | C20: -871 | D20: -3310 | E20: -11955 | J20: -4424 | L20: -33921
A21: Losses | B21: -34 | C21: -1124 | D21: -93 | E21: -490 | I21: -35 | J21: -9351 | L21: -11127
A22: Total final consumption | B22: 20165 | C22: 7 | D22: 160498 | E22: 37644 | H22: 158 | I22: 295618 | J22: 53611 | L22: 567708
A23: Industry | B23: 12966 | D23: 18228 | E23: 17107 | I23: 18677 | J23: 21276 | L23: 88255
A24: Transport | B24: 10 | C24: 7 | D24: 109806 | E24: 1012 | I24: 39 | J24: 472 | L24: 111346
A25: Residential | B25: 3614 | D25: 14196 | E25: 8478 | H25: 45 | I25: 263896 | J25: 18503 | L25: 308731
A26: Commercial and public services | B26: 1804 | D26: 1885 | E26: 418 | H26: 2 | I26: 9645 | J26: 9423 | L26: 23179
A27: Agriculture / forestry | B27: 377 | D27: 4451 | E27: 60 | I27: 2918 | J27: 2031 | L27: 9839
A28: Fishing | D28: 73 | L28: 73
A29: Non-specified | B29: 101 | D29: 4013 | E29: 577 | H29: 111 | I29: 443 | J29: 1913 | L29: 7160
A30: Non-energy use | B30: 1293 | D30: 7850 | E30: 9991 | L30: 19133
B32: =SUM(B9,B10:B21,B22*-1) -> 1 | C32: =SUM(C9,C10:C21,C22*-1) -> -1 | D32: -2 | E32: -4 | F32: 0 | G32: 0 | H32: 1 | I32: -1 | J32: 6 | K32: 0 | L32: -12

Sheet Africa 2018 (hidden)
B1: Coal* | C1: Crude oil | D1: Oil products | E1: Natural gas | F1: Nuclear | G1: Hydro | H1: Geothermal, solar, etc. | I1: Biofuels and waste | J1: Electricity | K1: Heat | L1: Total**
B2: ktoe | C2: ktoe | D2: ktoe | E2: ktoe | F2: ktoe | G2: ktoe | H2: ktoe | I2: ktoe | J2: ktoe | K2: ktoe | L2: ktoe
A3: Production | B3: 157479 | C3: 403909 | E3: 207147 | F3: 3017 | G3: 11278 | H3: 6836 | I3: 378928 | K3: 122 | L3: 1168718
A4: Imports | B4: 12236 | C4: 32678 | D4: 118170 | E4: 10581 | I4: 2 | J4: 3279 | L4: 176943
A5: Exports | B5: -55922 | C5: -315299 | D5: -37520 | E5: -84393 | I5: -291 | J5: -2810 | L5: -496231
A6: International marine bunkers | D6: -5258 | L6: -5258
A7: International aviation bunkers | D7: -8843 | L7: -8843
A8: Stock changes | B8: -283 | C8: -483 | D8: 2151 | L8: 1388
A9: TES | B9: 113511 | C9: 120808 | D9: 68708 | E9: 133336 | F9: 3017 | G9: 11278 | H9: 6836 | I9: 378639 | J9: 466 | K9: 122 | L9: 836725
A10: Transfers | C10: -18029 | D10: 19409 | L10: 1382
A11: Statistical differences | B11: -832 | C11: 1554 | D11: 1700 | E11: 120 | I11: -173 | J11: 1335 | L11: 3701
A12: Electricity plants | B12: -65511 | C12: -810 | D12: -17571 | E12: -69927 | F12: -3017 | G12: -11278 | H12: -6647 | I12: -815 | J12: 71665 | K12: -122 | L12: -104031
A13: CHP plants | E13: -51 | I13: -347 | J13: 90 | L13: -307
A14: Heat plants
A15: Gas works | B15: -1331 | L15: -1331
A16: Oil refineries | C16: -106977 | D16: 102912 | L16: -4064
A17: Coal transformation | B17: -2010 | L17: -2010
A18: Liquefication plants | B18: -4922 | C18: 4879 | E18: -2508 | L18: -2551
A19: Other transformation | D19: -15 | I19: -66987 | L19: -67002
A20: Energy industry own use | B20: -14107 | C20: -682 | D20: -3354 | E20: -13359 | H20: -3 | I20: -5 | J20: -4560 | L20: -36070
A21: Losses | B21: -95 | C21: -679 | D21: -207 | E21: -460 | I21: -33 | J21: -10493 | L21: -11964
A22: Total final consumption | B22: 24700 | C22: 63 | D22: 171582 | E22: 47155 | H22: 187 | I22: 310280 | J22: 58511 | L22: 612473
A23: Industry | B23: 14896 | D23: 17176 | E23: 19748 | I23: 16359 | J23: 22679 | L23: 90862
A24: Transport | B24: 8 | C24: 63 | D24: 121855 | E24: 1223 | I24: 44 | J24: 459 | L24: 123651
A25: Residential | B25: 5327 | D25: 14460 | E25: 11554 | H25: 56 | I25: 279600 | J25: 20805 | L25: 331801
A26: Commercial and public services | B26: 2628 | D26: 1533 | E26: 522 | H26: 2 | I26: 10583 | J26: 10777 | L26: 26047
A27: Agriculture / forestry | B27: 525 | D27: 4565 | E27: 58 | I27: 3228 | J27: 2058 | L27: 10437
A28: Fishing | D28: 123 | L28: 123
A29: Non-specified | B29: 140 | D29: 2719 | E29: 705 | H29: 129 | I29: 465 | J29: 1727 | L29: 5889
A30: Non-energy use | B30: 1175 | D30: 9140 | E30: 13347 | L30: 23661
B32: =SUM(B9,B10:B21,B22*-1) -> 3 | C32: =SUM(C9,C10:C21,C22*-1) -> 1 | D32: 0 | E32: -4 | F32: 0 | G32: 0 | H32: -1 | I32: -1 | J32: -8 | K32: 0 | L32: 5

Sheet BL China 2050 (hidden)
B1: Consumption | C1: Coal | D1: Crude oil | E1: Oil Products | F1: Natual Gas | G1: Nuclear | H1: Hydro | I1: Geothermal, solar, wind, etc. | J1: Biofuels and waste | K1: Electricity | L1: Heat | M1: Energy Services | N1: Total consumption | O1: China 2050 | R1: Faktor | S1: Total production | T1: Efficiency | U1: Production | V1: Coal | W1: Crude oil | X1: Oil Products | Y1: Natual Gas | Z1: Nuclear | AA1: Hydro | AB1: Geothermal, solar, wind, etc. | AC1: Biofuels and waste | AD1: Electricity | AE1: Heat | AF1: Energy Services | AG1: Loss | AH1: CO2-emissions
A2: ID | B2: C | C2: CC | D2: CCO | E2: COP | F2: CNG | G2: CNU | H2: CHY | I2: CGSW | J2: CWB | K2: CE | L2: CH | M2: CES | N2: fbrbr | P2: ID | Q2: ID Parent | R2: factor | S2: pbrpr | T2: pvrkg | U2: P | V2: PC | W2: PCO | X2: POP | Y2: PNG | Z2: PNU | AA2: PHY | AB2: PGSW | AC2: PWB | AD2: PE | AE2: PH | AF2: PES | AG2: PTAB | AH2: PCO2
A3: ID Parent | C3: C | D3: C | E3: C | F3: C | G3: C | H3: C | I3: C | J3: C | K3: C | L3: C | M3: C | O3: Structures | V3: P | W3: P | X3: P | Y3: P | Z3: P | AA3: P | AB3: P | AC3: P | AD3: P | AE3: P | AF3: P
A4: Factor | U4: =B4 -> 0 | AG4: =U4 -> 0 | AH4: =U4 -> 0
N5: =SUM(C5:M5) -> 0 | O5: Entry fuels | P5: ETP | S5: =SUM(V5:AF5) ->  | V5: =-(C6+C5) ->  | W5: =-(D6+D5) ->  | Y5: =-(F6+F5) ->  | Z5: =-(G6+G5) ->  | AC5: =-(J6+J5) -> 
C6: =-V6 ->  | D6: =-W6 ->  | F6: =-Y6 ->  | G6: =-Z6 ->  | J6: =-AC6 ->  | N6: =SUM(C6:M6) ->  | O6: Transport of fuels | P6: TRAP | S6: =SUM(V6:AF6) ->  | V6: =-(C16+C8) ->  | W6: =-(D16+D8) ->  | Y6: =-(F16+F8) ->  | Z6: =-(G16+G8) ->  | AC6: =-(J16+J8) ->  | AG6: =-(N6+S6) -> 
N7: 0 | O7: Entry On-Grid RE | P7: ELP1 | AA7: =-H8 ->  | AB7: =-I8 -> 
C8: =SUM(C9:C13) ->  | D8: =SUM(D9:D13) ->  | M8: 0 | O8: Entry electricity, district heating and oil products | P8: ES | V8: =SUM(V9:V13) -> 0 | X8: =(E14+E8)*-1 ->  | AD8: =(K14+K8)*-1 ->  | AE8: =(L14+L8)*-1 ->  | AG8: =-(N8+S8) ->  | AH8: =SUM(AH9:AH13) -> 
C9: =-($AD$9+$H$9+$I$9)/$T$9*#REF! ->  | D9: =-($AD$9+$H$9+$I$9)/$T$9*#REF! ->  | E9: =-($AD$9+$H$9+$I$9)/$T$9*#REF! ->  | F9: =-($AD$9+$H$9+$I$9)/$T$9*#REF! ->  | G9: =-($AD$9+$H$9+$I$9)/$T$9*#REF! ->  | H9: =AD9*#REF!*-1 ->  | I9: =AD9*#REF!*-1 ->  | J9: =-($AD$9+$H$9+$I$9)/$T$9*#REF! ->  | O9: Electricity-only plants | P9: ESEP | Q9: ES | T9: =#REF! ->  | AD9: =AD8-AD10 ->  | AG9: =-(S9+N9) ->  | AH9: =-(C9*Emissionsfaktorer!$B$2*(1-#REF!)+D9*Emissionsfaktorer!$B$3+E9*Emissionsfaktorer!$B$4*(1-#REF!)+F9*Emissionsfaktorer!$B$5*(1-#REF!)+G9*Emissionsfaktorer!$B$6+H9*Emissionsfaktorer!$B$7+I9*Emissionsfaktorer!$B$8-J9*Emissionsfaktorer!B13*#REF!+K9*Emissionsfaktorer!$B$10+L9*Emissionsfaktorer!$B$11+M9*Emissionsfaktorer!$B$12) -> 
C10: =-($AD$10+$AE$10+$H$10+$I$10)/$T$10*#REF! ->  | D10: =-($AD$10+$AE$10+$H$10+$I$10)/$T$10*#REF! ->  | E10: =-($AD$10+$AE$10+$H$10+$I$10)/$T$10*#REF! ->  | F10: =-($AD$10+$AE$10+$H$10+$I$10)/$T$10*#REF! ->  | G10: =-($AD$10+$AE$10+$H$10+$I$10)/$T$10*#REF! ->  | I10: =(AD10+AE10)*#REF!*-1 ->  | J10: =-($AD$10+$AE$10+$H$10+$I$10)/$T$10*#REF! ->  | O10: CHP plants | P10: ESCHP | Q10: ES | T10: =#REF! ->  | AD10: =AE10*#REF! ->  | AE10: =AE8*#REF! ->  | AG10: =-(S10+N10) ->  | AH10: =-(C10*Emissionsfaktorer!$B$2*(1-#REF!)+D10*Emissionsfaktorer!$B$3+E10*Emissionsfaktorer!$B$4*(1-#REF!)+F10*Emissionsfaktorer!$B$5*(1-#REF!)+G10*Emissionsfaktorer!$B$6+H10*Emissionsfaktorer!$B$7+I10*Emissionsfaktorer!$B$8-J10*Emissionsfaktorer!B14*#REF!+K10*Emissionsfaktorer!$B$10+L10*Emissionsfaktorer!$B$11+M10*Emissionsfaktorer!$B$12) -> 
C11: =-($AE$11+$H$11+$I$11)/IF($T$11=0,1,$T$11)*#REF! ->  | D11: =-($AE$11+$H$11+$I$11)/IF($T$11=0,1,$T$11)*#REF! ->  | E11: =-($AE$11+$H$11+$I$11)/IF($T$11=0,1,$T$11)*#REF! ->  | F11: =-($AE$11+$H$11+$I$11)/IF($T$11=0,1,$T$11)*#REF! ->  | G11: =-($AE$11+$H$11+$I$11)/IF($T$11=0,1,$T$11)*#REF! ->  | I11: =AE11*#REF!*-1 ->  | J11: =-($AE$11+$H$11+$I$11)/IF($T$11=0,1,$T$11)*#REF! ->  | K11: =AE11*#REF!*-1 ->  | O11: Heat Plants | P11: ESHP | Q11: ES | T11: =#REF! ->  | AE11: =AE8*#REF! ->  | AG11: =-(S11+N11) ->  | AH11: =-(C11*Emissionsfaktorer!$B$2+D11*Emissionsfaktorer!$B$3+E11*Emissionsfaktorer!$B$4+F11*Emissionsfaktorer!$B$5+G11*Emissionsfaktorer!$B$6+H11*Emissionsfaktorer!$B$7+I11*Emissionsfaktorer!$B$8+J11*Emissionsfaktorer!$B$9+K11*Emissionsfaktorer!$B$10+L11*Emissionsfaktorer!$B$11+M11*Emissionsfaktorer!$B$12) -> 
D12: =-X12/IF(T12=0,1,T12)*#REF! ->  | J12: =-X12/IF(T12=0,1,T12)*#REF! ->  | O12: Oil refineries | P12: ESOR | Q12: ES | T12: =#REF! ->  | X12: =-(E9+E10+E11+E13+E14) ->  | AG12: =-(S12+N12) ->  | AH12: =J12*Emissionsfaktorer!B4 -> 
C13: =N13*#REF! ->  | D13: =N13*#REF! ->  | E13: =N13*#REF! ->  | F13: =N13*#REF! ->  | J13: =N13*#REF! ->  | K13: =N13*#REF! ->  | L13: =N13*#REF! ->  | N13: =N16*#REF! ->  | O13: Energy Industry one use | P13: ESNSP | Q13: ES | S13: 0 | T13: 0 | AG13: =-(S13+N13) ->  | AH13: =-(C13*Emissionsfaktorer!$B$2+D13*Emissionsfaktorer!$B$3+E13*Emissionsfaktorer!$B$4+F13*Emissionsfaktorer!$B$5+G13*Emissionsfaktorer!$B$6+H13*Emissionsfaktorer!$B$7+I13*Emissionsfaktorer!$B$8+J13*Emissionsfaktorer!$B$9+K13*Emissionsfaktorer!$B$10+L13*Emissionsfaktorer!$B$11+M13*Emissionsfaktorer!$B$12) -> 
E14: =-X14*1 ->  | K14: =-AD14*(1+#REF!) ->  | L14: =-AE14*(1+#REF!) ->  | O14: Transport electricity, district heating and oil products | P14: TRAS | X14: =-E16 ->  | AD14: =-K16 ->  | AE14: =-L16 ->  | AG14: =-(N14+S14) -> 
N15: 0 | O15: Entry Off-Grid RE | P15: ELP2 | AB15: =I16*-1 -> 
C16: =SUM(C17:C19) ->  | G16: 0 | H16: 0 | M16: 0 | N16: =#REF! ->  | O16: Exit energy | P16: EX | AF16: =SUM(AF17:AF19) ->  | AG16: =SUM(AG17:AG19) ->  | AH16: =SUM(AH17:AH19) -> 
C17: =AF17*#REF!/T17*#REF!/#REF!*-1 ->  | D17: =AF17*#REF!/T17*#REF!/#REF!*-1 ->  | E17: =AF17*#REF!/T17*#REF!/#REF!*-1 ->  | F17: =AF17*#REF!/T17*#REF!/#REF!*-1 ->  | I17: =AF17*#REF!/T17*#REF!/#REF!*-1 ->  | J17: =AF17*#REF!*#REF!/T17/#REF!*-1 ->  | K17: =AF17*#REF!*#REF!/T17/#REF!*-1 ->  | L17: =AF17*#REF!*#REF!/T17/#REF!*-1 ->  | N17: =SUM(C17:L17) ->  | O17: Industry | P17: EXI | Q17: EX | T17: =(#REF!+#REF!+#REF!+#REF!+#REF!)*#REF!+(#REF!+#REF!)*#REF!+#REF!*#REF! ->  | AF17: =#REF!*#REF!*((#REF!+#REF!+#REF!+#REF!+#REF!)*#REF!+(#REF!+#REF!)*#REF!+#REF!*#REF!)*-1 ->  | AG17: =(S17+SUM(C17:M17))*-1 ->  | AH17: =-(C17*Emissionsfaktorer!$B$2+D17*Emissionsfaktorer!$B$3+E17*Emissionsfaktorer!$B$4+F17*Emissionsfaktorer!$B$5+G17*Emissionsfaktorer!$B$6+H17*Emissionsfaktorer!$B$7+I17*Emissionsfaktorer!$B$8+J17*Emissionsfaktorer!$B$9+K17*Emissionsfaktorer!$B$10+L17*Emissionsfaktorer!$B$11+M17*Emissionsfaktorer!$B$12) -> 
C18: =AF18*#REF!/T18*#REF!/#REF!*-1 ->  | E18: =AF18*#REF!/T18*#REF!/#REF!*-1 ->  | F18: =AF18*#REF!/T18*#REF!/#REF!*-1 ->  | I18: =AF18*#REF!/T18*#REF!/#REF!*-1 ->  | J18: =AF18*#REF!/T18*#REF!/#REF!*-1 ->  | K18: =AF18*#REF!/T18*#REF!/#REF!*-1 ->  | L18: =AF18*#REF!/T18*#REF!/#REF!*-1 ->  | N18: =SUM(C18:L18) ->  | O18: Transport | P18: EXT | Q18: EX | T18: =(#REF!+#REF!+#REF!+#REF!)*#REF!+(#REF!+#REF!)*#REF!+#REF!*#REF! ->  | AF18: =#REF!*#REF!*-1*((#REF!+#REF!+#REF!+#REF!)*#REF!+(#REF!+#REF!)*#REF!+#REF!*#REF!) ->  | AG18: =(S18+SUM(C18:M18))*-1 ->  | AH18: =-(C18*Emissionsfaktorer!$B$2+D18*Emissionsfaktorer!$B$3+E18*Emissionsfaktorer!$B$4+F18*Emissionsfaktorer!$B$5+G18*Emissionsfaktorer!$B$6+H18*Emissionsfaktorer!$B$7+I18*Emissionsfaktorer!$B$8+J18*Emissionsfaktorer!$B$9+K18*Emissionsfaktorer!$B$10+L18*Emissionsfaktorer!$B$11+M18*Emissionsfaktorer!$B$12) -> 
C19: =SUM(C20:C24) ->  | D19: =SUM(D20:D24) -> 0 | G19: 0 | H19: 0 | M19: 0 | N19: =SUM(N20:N24) ->  | O19: Other | P19: EXO | Q19: EX | T19: 0.8 | V19: =SUM(V20:V24) -> 0 | W19: =SUM(W20:W24) -> 0 | X19: 0 | Y19: 0 | Z19: 0 | AA19: 0 | AB19: 0 | AC19: 0 | AD19: 0 | AE19: 0
C20: =AF20*#REF!/T20*#REF!/#REF!*-1 ->  | E20: =AF20*#REF!/T20*#REF!/#REF!*-1 ->  | F20: =AF20*#REF!/T20*#REF!/#REF!*-1 ->  | I20: =AF20*#REF!/T20*#REF!/#REF!*-1 ->  | J20: =AF20*#REF!/T20*#REF!/#REF!*-1 ->  | K20: =AF20*#REF!/T20*#REF!/#REF!*-1 ->  | L20: =AF20*#REF!/T20*#REF!/#REF!*-1 ->  | N20: =SUM(C20:L20) ->  | O20: Residential | P20: EXOR | Q20: EXO | T20: =(#REF!+#REF!+#REF!+#REF!)*#REF!+(#REF!+#REF!)*#REF!+#REF!*#REF! ->  | AF20: =#REF!*#REF!*((#REF!+#REF!+#REF!+#REF!)*#REF!+(#REF!+#REF!)*#REF!+#REF!*#REF!)*-1 ->  | AG20: =(N20+AF20)*-1 ->  | AH20: =-(C20*Emissionsfaktorer!$B$2+D20*Emissionsfaktorer!$B$3+E20*Emissionsfaktorer!$B$4+F20*Emissionsfaktorer!$B$5+G20*Emissionsfaktorer!$B$6+H20*Emissionsfaktorer!$B$7+I20*Emissionsfaktorer!$B$8+J20*Emissionsfaktorer!$B$9+K20*Emissionsfaktorer!$B$10+L20*Emissionsfaktorer!$B$11+M20*Emissionsfaktorer!$B$12) -> 
C21: =AF21*#REF!/T21*#REF!/#REF!*-1 ->  | E21: =AF21*#REF!/T21*#REF!/#REF!*-1 ->  | F21: =AF21*#REF!/T21*#REF!/#REF!*-1 ->  | I21: =AF21*#REF!/T21*#REF!/#REF!*-1 ->  | J21: =AF21*#REF!/T21*#REF!/#REF!*-1 ->  | K21: =AF21*#REF!/T21*#REF!/#REF!*-1 ->  | L21: =AF21*#REF!/T21*#REF!/#REF!*-1 ->  | N21: =SUM(C21:L21) ->  | O21: Commercial and public services | P21: EXOC | Q21: EXO | T21: =(#REF!+#REF!+#REF!+#REF!)*#REF!+(#REF!+#REF!)*#REF!+#REF!*#REF! ->  | AF21: =#REF!*#REF!*((#REF!+#REF!+#REF!+#REF!)*#REF!+(#REF!+#REF!)*#REF!+#REF!*#REF!)*-1 ->  | AG21: =(N21+AF21)*-1 ->  | AH21: =-(C21*Emissionsfaktorer!$B$2+D21*Emissionsfaktorer!$B$3+E21*Emissionsfaktorer!$B$4+F21*Emissionsfaktorer!$B$5+G21*Emissionsfaktorer!$B$6+H21*Emissionsfaktorer!$B$7+I21*Emissionsfaktorer!$B$8+J21*Emissionsfaktorer!$B$9+K21*Emissionsfaktorer!$B$10+L21*Emissionsfaktorer!$B$11+M21*Emissionsfaktorer!$B$12) -> 
C22: =AF22*#REF!/T22*#REF!/#REF!*-1 ->  | E22: =AF22*#REF!/T22*#REF!/#REF!*-1 ->  | F22: =AF22*#REF!/T22*#REF!/#REF!*-1 ->  | I22: =AF22*#REF!/T22*#REF!/#REF!*-1 ->  | J22: =AF22*#REF!/T22*#REF!/#REF!*-1 ->  | K22: =AF22*#REF!/T22*#REF!/#REF!*-1 ->  | L22: =AF22*#REF!/T22*#REF!/#REF!*-1 ->  | N22: =SUM(C22:L22) ->  | O22: Agriculture / forestry | P22: EXOA | Q22: EXO | T22: =(#REF!+#REF!+#REF!+#REF!)*#REF!+(#REF!+#REF!)*#REF!+#REF!*#REF! ->  | AF22: =((#REF!+#REF!+#REF!+#REF!)*#REF!+(#REF!+#REF!)*#REF!+#REF!*#REF!)*#REF!*#REF!*-1 ->  | AG22: =(N22+AF22)*-1 ->  | AH22: =-(C22*Emissionsfaktorer!$B$2+D22*Emissionsfaktorer!$B$3+E22*Emissionsfaktorer!$B$4+F22*Emissionsfaktorer!$B$5+G22*Emissionsfaktorer!$B$6+H22*Emissionsfaktorer!$B$7+I22*Emissionsfaktorer!$B$8+J22*Emissionsfaktorer!$B$9+K22*Emissionsfaktorer!$B$10+L22*Emissionsfaktorer!$B$11+M22*Emissionsfaktorer!$B$12) -> 
C23: =AF23*#REF!/T23*#REF!/#REF!*-1 ->  | E23: =AF23*#REF!/T23*#REF!/#REF!*-1 ->  | F23: =AF23*#REF!/T23*#REF!/#REF!*-1 ->  | I23: =AF23*#REF!/T23*#REF!/#REF!*-1 ->  | J23: =AF23*#REF!/T23*#REF!/#REF!*-1 ->  | K23: =AF23*#REF!/T23*#REF!/#REF!*-1 ->  | L23: =AF23*#REF!/T23*#REF!/#REF!*-1 ->  | N23: =SUM(C23:L23) ->  | O23: Fishing | P23: EXOF | Q23: EXO | T23: =(#REF!+#REF!+#REF!+#REF!)*#REF!+(#REF!+#REF!)*#REF!+#REF!*#REF! ->  | AF23: =((#REF!+#REF!+#REF!+#REF!)*#REF!+(#REF!+#REF!)*#REF!+#REF!*#REF!)*#REF!*#REF!*-1 ->  | AG23: =(N23+AF23)*-1 ->  | AH23: =-(C23*Emissionsfaktorer!$B$2+D23*Emissionsfaktorer!$B$3+E23*Emissionsfaktorer!$B$4+F23*Emissionsfaktorer!$B$5+G23*Emissionsfaktorer!$B$6+H23*Emissionsfaktorer!$B$7+I23*Emissionsfaktorer!$B$8+J23*Emissionsfaktorer!$B$9+K23*Emissionsfaktorer!$B$10+L23*Emissionsfaktorer!$B$11+M23*Emissionsfaktorer!$B$12) -> 
C24: =AF24*#REF!/T24*#REF!/#REF!*-1 ->  | E24: =AF24*#REF!/T24*#REF!/#REF!*-1 ->  | F24: =AF24*#REF!/T24*#REF!/#REF!*-1 ->  | I24: =AF24*#REF!/T24*#REF!/#REF!*-1 ->  | J24: =AF24*#REF!/T24*#REF!/#REF!*-1 ->  | K24: =AF24*#REF!/T24*#REF!/#REF!*-1 ->  | L24: =AF24*#REF!/T24*#REF!/#REF!*-1 ->  | N24: =SUM(C24:L24) ->  | O24: Non-specified | P24: EXON | Q24: EXO | T24: =(#REF!+#REF!+#REF!+#REF!)*#REF!+(#REF!+#REF!)*#REF!+#REF!*#REF! ->  | AF24: =((#REF!+#REF!+#REF!+#REF!)*#REF!+(#REF!+#REF!)*#REF!+#REF!*#REF!)*#REF!*#REF!*-1 ->  | AG24: =(N24+AF24)*-1 ->  | AH24: =-(C24*Emissionsfaktorer!$B$2+D24*Emissionsfaktorer!$B$3+E24*Emissionsfaktorer!$B$4+F24*Emissionsfaktorer!$B$5+G24*Emissionsfaktorer!$B$6+H24*Emissionsfaktorer!$B$7+I24*Emissionsfaktorer!$B$8+J24*Emissionsfaktorer!$B$9+K24*Emissionsfaktorer!$B$10+L24*Emissionsfaktorer!$B$11+M24*Emissionsfaktorer!$B$12) -> 
N25: =N16 ->  | O25: Energy Services | P25: EN | T25: =AF25/N25*-1 ->  | AF25: =AF16 ->  | AG25: =-(S25+N25) -> 

Sheet BL China 2030 (hidden)
B1: Consumption | C1: Coal | D1: Crude oil | E1: Oil Products | F1: Natual Gas | G1: Nuclear | H1: Hydro | I1: Geothermal, solar, wind, etc. | J1: Biofuels and waste | K1: Electricity | L1: Heat | M1: Energy Services | N1: Total consumption | O1: China 2030 | R1: Faktor | S1: Total production | T1: Efficiency | U1: Production | V1: Coal | W1: Crude oil | X1: Oil Products | Y1: Natual Gas | Z1: Nuclear | AA1: Hydro | AB1: Geothermal, solar, wind, etc. | AC1: Biofuels and waste | AD1: Electricity | AE1: Heat | AF1: Energy Services | AG1: Loss | AH1: CO2-emissions
A2: ID | B2: C | C2: CC | D2: CCO | E2: COP | F2: CNG | G2: CNU | H2: CHY | I2: CGSW | J2: CWB | K2: CE | L2: CH | M2: CES | N2: fbrbr | P2: ID | Q2: ID Parent | R2: factor | S2: pbrpr | T2: pvrkg | U2: P | V2: PC | W2: PCO | X2: POP | Y2: PNG | Z2: PNU | AA2: PHY | AB2: PGSW | AC2: PWB | AD2: PE | AE2: PH | AF2: PES | AG2: PTAB | AH2: PCO2
A3: ID Parent | C3: C | D3: C | E3: C | F3: C | G3: C | H3: C | I3: C | J3: C | K3: C | L3: C | M3: C | O3: Structures | V3: P | W3: P | X3: P | Y3: P | Z3: P | AA3: P | AB3: P | AC3: P | AD3: P | AE3: P | AF3: P
A4: Factor | U4: =B4 -> 0 | AG4: =U4 -> 0 | AH4: =U4 -> 0
N5: =SUM(C5:M5) -> 0 | O5: Entry fuels | P5: ETP | S5: =SUM(V5:AF5) ->  | V5: =-(C6+C5) ->  | W5: =-(D6+D5) ->  | Y5: =-(F6+F5) ->  | Z5: =-(G6+G5) ->  | AC5: =-(J6+J5) -> 
C6: =-V6 ->  | D6: =-W6 ->  | F6: =-Y6 ->  | G6: =-Z6 ->  | J6: =-AC6 ->  | N6: =SUM(C6:M6) ->  | O6: Transport of fuels | P6: TRAP | S6: =SUM(V6:AF6) ->  | V6: =-(C16+C8) ->  | W6: =-(D16+D8) ->  | Y6: =-(F16+F8) ->  | Z6: =-(G16+G8) ->  | AC6: =-(J16+J8) ->  | AG6: =-(N6+S6) -> 
N7: 0 | O7: Entry On-Grid RE | P7: ELP1 | AA7: =-H8 ->  | AB7: =-I8 -> 
C8: =SUM(C9:C13) ->  | D8: =SUM(D9:D13) ->  | M8: 0 | O8: Entry electricity, district heating and oil products | P8: ES | V8: =SUM(V9:V13) -> 0 | X8: =(E14+E8)*-1 ->  | AD8: =(K14+K8)*-1 ->  | AE8: =(L14+L8)*-1 ->  | AG8: =-(N8+S8) ->  | AH8: =SUM(AH9:AH13) -> 
C9: =-($AD$9+$H$9+$I$9)/$T$9*#REF! ->  | D9: =-($AD$9+$H$9+$I$9)/$T$9*#REF! ->  | E9: =-($AD$9+$H$9+$I$9)/$T$9*#REF! ->  | F9: =-($AD$9+$H$9+$I$9)/$T$9*#REF! ->  | G9: =-($AD$9+$H$9+$I$9)/$T$9*#REF! ->  | H9: =AD9*#REF!*-1 ->  | I9: =AD9*#REF!*-1 ->  | J9: =-($AD$9+$H$9+$I$9)/$T$9*#REF! ->  | O9: Electricity-only plants | P9: ESEP | Q9: ES | T9: =#REF! ->  | AD9: =AD8-AD10 ->  | AG9: =-(S9+N9) ->  | AH9: =-(C9*Emissionsfaktorer!$B$2*(1-#REF!)+D9*Emissionsfaktorer!$B$3+E9*Emissionsfaktorer!$B$4*(1-#REF!)+F9*Emissionsfaktorer!$B$5*(1-#REF!)+G9*Emissionsfaktorer!$B$6+H9*Emissionsfaktorer!$B$7+I9*Emissionsfaktorer!$B$8-J9*Emissionsfaktorer!B13*#REF!+K9*Emissionsfaktorer!$B$10+L9*Emissionsfaktorer!$B$11+M9*Emissionsfaktorer!$B$12) -> 
C10: =-($AD$10+$AE$10+$H$10+$I$10)/$T$10*#REF! ->  | D10: =-($AD$10+$AE$10+$H$10+$I$10)/$T$10*#REF! ->  | E10: =-($AD$10+$AE$10+$H$10+$I$10)/$T$10*#REF! ->  | F10: =-($AD$10+$AE$10+$H$10+$I$10)/$T$10*#REF! ->  | G10: =-($AD$10+$AE$10+$H$10+$I$10)/$T$10*#REF! ->  | I10: =(AD10+AE10)*#REF!*-1 ->  | J10: =-($AD$10+$AE$10+$H$10+$I$10)/$T$10*#REF! ->  | O10: CHP plants | P10: ESCHP | Q10: ES | T10: =#REF! ->  | AD10: =AE10*#REF! ->  | AE10: =AE8*#REF! ->  | AG10: =-(S10+N10) ->  | AH10: =-(C10*Emissionsfaktorer!$B$2*(1-#REF!)+D10*Emissionsfaktorer!$B$3+E10*Emissionsfaktorer!$B$4*(1-#REF!)+F10*Emissionsfaktorer!$B$5*(1-#REF!)+G10*Emissionsfaktorer!$B$6+H10*Emissionsfaktorer!$B$7+I10*Emissionsfaktorer!$B$8-J10*Emissionsfaktorer!B14*#REF!+K10*Emissionsfaktorer!$B$10+L10*Emissionsfaktorer!$B$11+M10*Emissionsfaktorer!$B$12) -> 
C11: =-($AE$11+$H$11+$I$11)/IF($T$11=0,1,$T$11)*#REF! ->  | D11: =-($AE$11+$H$11+$I$11)/IF($T$11=0,1,$T$11)*#REF! ->  | E11: =-($AE$11+$H$11+$I$11)/IF($T$11=0,1,$T$11)*#REF! ->  | F11: =-($AE$11+$H$11+$I$11)/IF($T$11=0,1,$T$11)*#REF! ->  | G11: =-($AE$11+$H$11+$I$11)/IF($T$11=0,1,T11)*#REF! ->  | I11: =AE11*#REF!*-1 ->  | J11: =-($AE$11+$H$11+$I$11)/IF($T$11=0,1,T11)*#REF! ->  | K11: =AE11*#REF!*-1 ->  | O11: Heat Plants | P11: ESHP | Q11: ES | T11: =#REF! ->  | AE11: =AE8*#REF! ->  | AG11: =-(S11+N11) ->  | AH11: =-(C11*Emissionsfaktorer!$B$2+D11*Emissionsfaktorer!$B$3+E11*Emissionsfaktorer!$B$4+F11*Emissionsfaktorer!$B$5+G11*Emissionsfaktorer!$B$6+H11*Emissionsfaktorer!$B$7+I11*Emissionsfaktorer!$B$8+J11*Emissionsfaktorer!$B$9+K11*Emissionsfaktorer!$B$10+L11*Emissionsfaktorer!$B$11+M11*Emissionsfaktorer!$B$12) -> 
D12: =-X12/T12*#REF! ->  | J12: =-X12/T12*#REF! ->  | O12: Oil refineries | P12: ESOR | Q12: ES | T12: =#REF! ->  | X12: =-(E9+E10+E11+E13+E14) ->  | AG12: =-(S12+N12) ->  | AH12: =J12*Emissionsfaktorer!B4 -> 
C13: =N13*#REF! ->  | D13: =N13*#REF! ->  | E13: =N13*#REF! ->  | F13: =N13*#REF! ->  | J13: =N13*#REF! ->  | K13: =N13*#REF! ->  | L13: =N13*#REF! ->  | N13: =N16*#REF! ->  | O13: Energy Industry one use | P13: ESNSP | Q13: ES | S13: 0 | T13: 0 | AG13: =-(S13+N13) ->  | AH13: =-(C13*Emissionsfaktorer!$B$2+D13*Emissionsfaktorer!$B$3+E13*Emissionsfaktorer!$B$4+F13*Emissionsfaktorer!$B$5+G13*Emissionsfaktorer!$B$6+H13*Emissionsfaktorer!$B$7+I13*Emissionsfaktorer!$B$8+J13*Emissionsfaktorer!$B$9+K13*Emissionsfaktorer!$B$10+L13*Emissionsfaktorer!$B$11+M13*Emissionsfaktorer!$B$12) -> 
E14: =-X14*1 ->  | K14: =-AD14*(1+#REF!) ->  | L14: =-AE14*(1+#REF!) ->  | O14: Transport electricity, district heating and oil products | P14: TRAS | X14: =-E16 ->  | AD14: =-K16 ->  | AE14: =-L16 ->  | AG14: =-(N14+S14) -> 
N15: 0 | O15: Entry Off-Grid RE | P15: ELP2 | AB15: =I16*-1 -> 
C16: =SUM(C17:C19) ->  | G16: 0 | H16: 0 | M16: 0 | N16: =#REF! ->  | O16: Exit energy | P16: EX | AF16: =SUM(AF17:AF19) ->  | AG16: =SUM(AG17:AG19) ->  | AH16: =SUM(AH17:AH19) -> 
